Workbook

Sheet START

Sheet Instructions
D2: 2020
X4: Yes
X5: No
W7: Type of Entities Range:
X8: Parent Municipality
X9: Consolidated Information
F14: START
F15: Instructions
F16: Template names
F17: Lookup and lists | W17: MTREF Range: | X17: 2013
F18: Org structure | X18: 2014
F19: Contacts | X19: 2015
F20: A1-Sum | X20: 2016
F21: A2-FinPerf SC | X21: 2017
F22: A2A | X22: 2018
F23: A3-FinPerf V | X23: 2019
F24: A3A | X24: 2020
F25: A4-FinPerf RE | X25: 2021
F26: A5-Capex | X26: 2022
F27: A5A | X27: 2023
F28: A6-FinPos | X28: 2024
F29: A7-CFlow | X29: 2025
F30: A8-ResRecon | X30: 2026
F31: A9-Asset | X31: 2027
F32: A10-SerDel
F33: SA1 | W33: MTREF Linked: | X33: 11
F34: SA2 | W34: MTREF: | X34: =INDEX(X17:X31,X33,1) -> 2023
F35: SA3
F36: SA4 | W36: Fin Year: | X36: =MTREF&"/"&RIGHT(MTREF,2)+1 -> 2023/24
F37: SA5
F38: SA6
F39: SA7
F40: SA8
F41: SA9
F42: SA10
F43: SA11
F44: SA12a
F45: SA12b
F46: SA13a
F47: SA13b
F48: SA14
F49: SA15
F50: SA16
F51: SA17
F52: SA18
F53: SA19
F54: SA20
F55: SA21
F56: SA22
F57: SA23
F58: SA24
F59: SA25
F60: SA26
F61: SA27
F62: SA28
F63: SA29
F64: SA30
F65: SA31
F66: SA32
F67: SA33
F68: SA34a
F69: SA34b
F70: SA34c
F71: SA34d
F72: SA34e
F73: SA35
F74: SA36
F75: SA37
F76: SA38
F77: LGDB_EXPORT

Sheet Template names (hidden)
A1: Common sheet headings
A2: Head1 | B2: =HLOOKUP(MTREF,Headings,2) -> 2021/22 | C2: Prior year -1
A3: Head1A | B3: =HLOOKUP(MTREF,Headings,3) -> 2020/21 | C3: Prior year -2
A4: Head1B | B4: =HLOOKUP(MTREF,Headings,4) -> 2019/20 | C4: Prior year -3
A5: Head2 | B5: =HLOOKUP(MTREF,Headings,5) -> Current Year 2022/23 | C5: Year in which budget is being prepared
A6: Head2A | B6: =HLOOKUP(MTREF,Headings,6) -> 2022/23 | C6: Year in which budget is being prepared
A7: Head3 | B7: =HLOOKUP(MTREF,Headings,7) -> 2023/24 Medium Term Revenue & Expenditure Framework | C7: MTREF name
A8: Head4 | B8: LTFS | C8: Long term financial strategy
A9: Head5 | B9: Audited Outcome
A10: Head5A | B10: Outcome
A11: Head5B | B11: Pre-audit outcome
A12: Head6 | B12: Original Budget
A13: Head7 | B13: Adjusted Budget
A14: Head8 | B14: Full Year Forecast
A15: Head9 | B15: =HLOOKUP(MTREF,Headings,8) -> Budget Year 2023/24 | C15: 1st year of MTREF | D15: Year1
A16: Head10 | B16: =HLOOKUP(MTREF,Headings,9) -> Budget Year +1 2024/25 | C16: 2nd year of MTREF | D16: Year2
A17: Head11 | B17: =HLOOKUP(MTREF,Headings,10) -> Budget Year +2 2025/26 | C17: 3rd year of MTREF | D17: Year3
A18: Head12 | B18: =HLOOKUP(MTREF,Headings,11) -> Forecast 2026/27 | C18: 1st yr of long term forecast | D18: Year4
A19: Head13 | B19: =HLOOKUP(MTREF,Headings,12) -> Forecast 2027/28 | C19: Next yr of long term forecast | D19: Year5
A20: Head14 | B20: =HLOOKUP(MTREF,Headings,13) -> Forecast 2028/29 | C20: Next yr of long term forecast | D20: Year6
A21: Head15 | B21: =HLOOKUP(MTREF,Headings,14) -> Forecast 2029/30 | C21: Next yr of long term forecast | D21: Year7
A22: Head16 | B22: =HLOOKUP(MTREF,Headings,15) -> Forecast 2030/31 | C22: Next yr of long term forecast | D22: Year8
A23: Head17 | B23: =HLOOKUP(MTREF,Headings,16) -> Forecast 2031/32 | C23: Next yr of long term forecast | D23: Year9
A24: Head18 | B24: =HLOOKUP(MTREF,Headings,17) -> Forecast 2032/33 | C24: Next yr of long term forecast | D24: Year10
A25: Head19 | B25: =HLOOKUP(MTREF,Headings,18) -> Forecast 2033/34 | C25: Next yr of long term forecast | D25: Year11
A26: Head20 | B26: =HLOOKUP(MTREF,Headings,19) -> Forecast 2034/35 | C26: Next yr of long term forecast | D26: Year12
A27: Head21 | B27: =HLOOKUP(MTREF,Headings,20) -> Forecast 2035/36 | C27: Next yr of long term forecast | D27: Year13
A28: Head22 | B28: =HLOOKUP(MTREF,Headings,21) -> Forecast 2036/37 | C28: Next yr of long term forecast | D28: Year14
A29: Head23 | B29: =HLOOKUP(MTREF,Headings,22) -> Forecast 2037/38 | C29: Next yr of long term forecast | D29: Year15
A30: Head24 | B30: Description
A31: Head25
A32: Head26 | B32: Vote Description
A33: Head27 | B33: Ref
A34: Head27a | B34: References
A35: Head28 | B35: Surplus/(Deficit) for the year | D35: Result
A36: Head29 | B36: =HLOOKUP(MTREF,Headings,23) -> Annual target 2023/24
A37: Head30 | B37: =HLOOKUP(MTREF,Headings,24) -> Revised target 2023/24
A38: Head31 | B38: Quarter ended 30 September
A39: Head32 | B39: Quarter ended 31 December
A40: Head33 | B40: Quarter ended 31 March
A41: Head34 | B41: Quarter ended 30 June
A42: Head35 | B42: Variance explanation
A43: Head36 | B43: YTD Actual 31 Dec
A44: Head37 | B44: YTD Budget 31 Dec
A45: Head38 | B45: Monthly actual
A46: Head39 | B46: YTD actual
A47: Head40 | B47: YTD budget
A48: Head41 | B48: YTD variance
A49: Head42 | B49: Surplus/ (Deficit) for the yr/period
A50: Head43 | B50: =Head3&" Summary" -> 2023/24 Medium Term Revenue & Expenditure Framework Summary
A51: Head44 | B51: 2001 Census
A52: Head45 | B52: 2011 Census
A53: Head46 | B53: - Adjustments Budget - January 2007
A54: Head47 | B54: Previous target year to complete
A55: Head48 | B55: Present value
A56: Head49
A57: Head50 | B57: Other Adjusts.
A58: Head51 | B58: Accum. Funds
A59: Head52 | B59: Multi-year capital
A60: Head53 | B60: Unfore. Unavoid.
A61: Head54 | B61: Prior Adjusted
A62: Head55 | B62: Nat. or Prov. Govt
A63: Head56 | B63: Total Adjusts.
A64: SFPerf1 | B64: Budgeted Financial Performance
A65: SFPerf2 | B65: Forecast Financial Performance
A66: SFPos1 | B66: Budgeted Financial Position
A67: SFPos2 | B67: Forecast Financial Position
A68: Cash1 | B68: Budget Cash Flow
A69: Cash2 | B69: Forecast Cash Flow
A70: RandM | B70: Expenditure includes repairs & maintenance of R'000
A71: Depart1 | B71: Department 1 - | D71: DEP1
A72: Depart2 | B72: Department 2 - | D72: DEP2
A73: Depart3 | B73: Department 3 - | D73: DEP3
A74: Depart4 | B74: Department 4 - | D74: DEP4
A75: Depart5 | B75: Department 5 - | D75: DEP5
A76: Depart6 | B76: Department 6 - | D76: DEP6
A77: Depart7 | B77: Department 7 - | D77: DEP7
A78: Depart8 | B78: Department 8 - | D78: DEP8
A79: Depart9 | B79: Department 9 - | D79: DEP9
A80: Depart10 | B80: Department 10 - | D80: DEP10
A81: Depart11 | B81: Department 11 - | D81: DEP11
A82: Depart12 | B82: Department 12 - | D82: DEP12
A83: Depart13 | B83: Department 13 - | D83: DEP13
A84: Depart14 | B84: Department 14 - | D84: DEP14
A87: Base year of forecast column selection names
A88: Choose | B88: ACT
B89: APP
B90: ADJ
A92: Standard nomenclature
A93: Muni | B93: ='Lookup and lists'!B28 -> DC47 Sekhukhune
A94: Municipal Entities | B94: 2 | C94: Type of report: | D94: 1
A95: =IF((MuniEntities=1)*(MuniType=2),"YES","NO") -> NO | B95: Does this municipality have entities (consolidated budget and entity budgets required)? YES/NO
A96: Entity 1 | B96: (Pty) Ltd Example 1 - Municipal entity - | D96: Ent1
A97: Entity 2 | B97: (Pty) Ltd Example 2 - Municipal entity - | D97: Ent2
A98: Entity 3 | B98: Municipal Entity Example 3 | D98: Ent3
A99: Budget approval tables | C99: Chart x-ref | D99: Sch/Tab/Ch | E99: Alternative for municipalities without entities | F99: Alternative for municipalities without entities
B100: =IF(Consolques="YES",E100,F100) -> Table A1 Budget Summary | D100: Table A1 | E100: =D100&"Consolidated Budget Summary" -> Table A1 Consolidated Budget Summary | F100: =D100&"Budget Summary" -> Table A1 Budget Summary
B101: Table A2 Budgeted Financial Performance (revenue and expenditure by functional classification) | C101: Charts 5, 6 | D101: Table A2 | E101: =D101&"Consolidated Budgeted Financial Performance (revenue and expenditure by functional classification)" -> Table A2 Consolidated Budgeted Financial Performance (revenue and expenditure by functional classification) | F101: =D101&"Budgeted Financial Performance (revenue and expenditure by functional classification)" -> Table A2 Budgeted Financial Performance (revenue and expenditure by functional classification)
B102: Table A3 Budgeted Financial Performance (revenue and expenditure by municipal vote) | D102: Table A3 | E102: =D102&"Consolidated Budgeted Financial Performance (revenue and expenditure by municipal vote)" -> Table A3 Consolidated Budgeted Financial Performance (revenue and expenditure by municipal vote) | F102: =D102&"Budgeted Financial Performance (revenue and expenditure by municipal vote)" -> Table A3 Budgeted Financial Performance (revenue and expenditure by municipal vote)
B103: Table A4 Budgeted Financial Performance (revenue and expenditure) | C103: Charts 1, 2, 3, 4 | D103: Table A4 | E103: =D103&"Consolidated Budgeted Financial Performance (revenue and expenditure)" -> Table A4 Consolidated Budgeted Financial Performance (revenue and expenditure) | F103: =D103&"Budgeted Financial Performance (revenue and expenditure)" -> Table A4 Budgeted Financial Performance (revenue and expenditure)
B104: Table A5 Budgeted Capital Expenditure by vote, functional classification and funding | C104: Charts 7, 8, 9, 10, 20 | D104: Table A5 | E104: =D104&"Consolidated Budgeted Capital Expenditure by vote, functional classification and funding" -> Table A5 Consolidated Budgeted Capital Expenditure by vote, functional classification and funding | F104: =D104&"Budgeted Capital Expenditure by vote, functional classification and funding" -> Table A5 Budgeted Capital Expenditure by vote, functional classification and funding
B105: Table A6 Budgeted Financial Position | D105: Table A6 | E105: =D105&"Consolidated Budgeted Financial Position" -> Table A6 Consolidated Budgeted Financial Position | F105: =D105&"Budgeted Financial Position" -> Table A6 Budgeted Financial Position
B106: Table A7 Budgeted Cash Flows | D106: Table A7 | E106: =D106&"Consolidated Budgeted Cash Flows" -> Table A7 Consolidated Budgeted Cash Flows | F106: =D106&"Budgeted Cash Flows" -> Table A7 Budgeted Cash Flows
B107: Table A8 Cash backed reserves/accumulated surplus reconciliation | D107: Table A8 | E107: =D107&"Consolidated Cash backed reserves/accumulated surplus reconciliation" -> Table A8 Consolidated Cash backed reserves/accumulated surplus reconciliation | F107: =D107&"Cash backed reserves/accumulated surplus reconciliation" -> Table A8 Cash backed reserves/accumulated surplus reconciliation
B108: Table A9 Asset Management | D108: Table A9 | E108: =D108&"Consolidated Asset Management" -> Table A9 Consolidated Asset Management | F108: =D108&"Asset Management" -> Table A9 Asset Management
B109: Table A10 Basic service delivery measurement | D109: Table A10 | E109: =D109&"Consolidated basic service delivery measurement" -> Table A10 Consolidated basic service delivery measurement | F109: =D109&"Basic service delivery measurement" -> Table A10 Basic service delivery measurement
A110: Supportinging Tables to the Budget Approval Tables | C110: =$C$99 -> Chart x-ref | D110: =$D$99 -> Sch/Tab/Ch
A111: Supporting Table SA1 | B111: =A111&" Supportinging detail to 'Budgeted Financial Performance'" -> Supporting Table SA1 Supportinging detail to 'Budgeted Financial Performance'
A112: Supporting Table SA2 | B112: =IF(Consolques="YES",E112,F112) -> Supporting Table SA2 Matrix Financial Performance Budget (revenue source/expenditure type and dept.) | E112: =A112&"Consolidated Matrix Financial Performance Budget (revenue source/expenditure type & dept.)" -> Supporting Table SA2 Consolidated Matrix Financial Performance Budget (revenue source/expenditure type & dept.) | F112: =A112&"Matrix Financial Performance Budget (revenue source/expenditure type and dept.)" -> Supporting Table SA2 Matrix Financial Performance Budget (revenue source/expenditure type and dept.)
A113: Supporting Table SA3 | B113: =A113&"Supportinging detail to 'Budgeted Financial Position'" -> Supporting Table SA3 Supportinging detail to 'Budgeted Financial Position'
A114: Supporting Table SA4 | B114: =A114&"Reconciliation of IDP strategic objectives and budget (revenue)" -> Supporting Table SA4 Reconciliation of IDP strategic objectives and budget (revenue) | C114: Chart 11
A115: Supporting Table SA5 | B115: =A115&"Reconciliation of IDP strategic objectives and budget (operating expenditure)" -> Supporting Table SA5 Reconciliation of IDP strategic objectives and budget (operating expenditure) | C115: Chart 12
A116: Supporting Table SA6 | B116: =A116&"Reconciliation of IDP strategic objectives and budget (capital expenditure)" -> Supporting Table SA6 Reconciliation of IDP strategic objectives and budget (capital expenditure) | C116: Chart 13
A117: Supporting Table SA7 | B117: =A117&" Measureable performance objectives" -> Supporting Table SA7 Measureable performance objectives
A118: Supporting Table SA8 | B118: =A118&" Performance indicators and benchmarks" -> Supporting Table SA8 Performance indicators and benchmarks | C118: Chts 15-19
A119: Supporting Table SA9 | B119: =A119&" Social, economic and demographic statistics and assumptions" -> Supporting Table SA9 Social, economic and demographic statistics and assumptions
A120: Supporting Table SA10 | B120: =A120&" Funding measurement" -> Supporting Table SA10 Funding measurement | C120: Chart 14
A121: Supporting Table SA11 | B121: =A121&" Property rates summary" -> Supporting Table SA11 Property rates summary
A122: Supporting Table SA12a | B122: =A122&" Property rates by category (current year)" -> Supporting Table SA12a Property rates by category (current year)
A123: Supporting Table SA12b | B123: =A123&" Property rates by category (budget year)" -> Supporting Table SA12b Property rates by category (budget year)
A124: Supporting Table SA13a | B124: =A124&" Service Tariffs by category" -> Supporting Table SA13a Service Tariffs by category
A125: Supporting Table SA13b | B125: =A125&" Service Tariffs by category - explanatory" -> Supporting Table SA13b Service Tariffs by category - explanatory
A126: Supporting Table SA14 | B126: =A126&" Household bills" -> Supporting Table SA14 Household bills
A127: Supporting Table SA15 | B127: =A127&" Investment particulars by type" -> Supporting Table SA15 Investment particulars by type
A128: Supporting Table SA16 | B128: =A128&" Investment particulars by maturity" -> Supporting Table SA16 Investment particulars by maturity
A129: Supporting Table SA17 | B129: =A129&" Borrowing" -> Supporting Table SA17 Borrowing
A130: Supporting Table SA18 | B130: =A130&" Transfers and grant receipts" -> Supporting Table SA18 Transfers and grant receipts
A131: Supporting Table SA19 | B131: =A131&" Expenditure on transfers and grant programme" -> Supporting Table SA19 Expenditure on transfers and grant programme
A132: Supporting Table SA20 | B132: =A132&" Reconciliation of transfers, grant receipts and unspent funds" -> Supporting Table SA20 Reconciliation of transfers, grant receipts and unspent funds
A133: Supporting Table SA21 | B133: =A133&" Transfers and grants made by the municipality" -> Supporting Table SA21 Transfers and grants made by the municipality
A134: Supporting Table SA22 | B134: =A134&" Summary councillor and staff benefits" -> Supporting Table SA22 Summary councillor and staff benefits
A135: Supporting Table SA23 | B135: =A135&" Salaries, allowances & benefits (political office bearers/councillors/senior managers)" -> Supporting Table SA23 Salaries, allowances & benefits (political office bearers/councillors/senior managers)
A136: Supporting Table SA24 | B136: =A136&" Summary of personnel numbers" -> Supporting Table SA24 Summary of personnel numbers
A137: Supporting Table SA25 | B137: =IF(Consolques="YES",E137,F137) -> Supporting Table SA25 Budgeted monthly revenue and expenditure | E137: =A137&" Consolidated budgeted monthly revenue and expenditure" -> Supporting Table SA25 Consolidated budgeted monthly revenue and expenditure | F137: =A137&" Budgeted monthly revenue and expenditure" -> Supporting Table SA25 Budgeted monthly revenue and expenditure
A138: Supporting Table SA26 | B138: Supporting Table SA26 Budgeted monthly revenue and expenditure (municipal vote) | E138: =A138&" Consolidated budgeted monthly revenue and expenditure (municipal vote)" -> Supporting Table SA26 Consolidated budgeted monthly revenue and expenditure (municipal vote) | F138: =A138&" Budgeted monthly revenue and expenditure (municipal vote)" -> Supporting Table SA26 Budgeted monthly revenue and expenditure (municipal vote)
A139: Supporting Table SA27 | B139: Supporting Table SA27 Budgeted monthly revenue and expenditure (functional classification) | E139: =A139&" Consolidated budgeted monthly revenue and expenditure (functional classification)" -> Supporting Table SA27 Consolidated budgeted monthly revenue and expenditure (functional classification) | F139: =A139&" Budgeted monthly revenue and expenditure (functional classification)" -> Supporting Table SA27 Budgeted monthly revenue and expenditure (functional classification)
A140: Supporting Table SA28 | B140: Supporting Table SA28 Budgeted monthly capital expenditure (municipal vote) | E140: =A140&" Consolidated budgeted monthly capital expenditure (municipal vote)" -> Supporting Table SA28 Consolidated budgeted monthly capital expenditure (municipal vote) | F140: =A140&" Budgeted monthly capital expenditure (municipal vote)" -> Supporting Table SA28 Budgeted monthly capital expenditure (municipal vote)
A141: Supporting Table SA29 | B141: Supporting Table SA29 Budgeted monthly capital expenditure (functional classification) | E141: =A141&" Consolidated budgeted monthly capital expenditure (functional classification)" -> Supporting Table SA29 Consolidated budgeted monthly capital expenditure (functional classification) | F141: =A141&" Budgeted monthly capital expenditure (functional classification)" -> Supporting Table SA29 Budgeted monthly capital expenditure (functional classification)
A142: Supporting Table SA30 | B142: Supporting Table SA30 Budgeted monthly cash flow | E142: =A142&" Consolidated budgeted monthly cash flow" -> Supporting Table SA30 Consolidated budgeted monthly cash flow | F142: =A142&" Budgeted monthly cash flow" -> Supporting Table SA30 Budgeted monthly cash flow
A143: Supporting Table SA31 | B143: NOT REQUIRED - municipality does not have entities | E143: =A143&" Aggregated entity budget" -> Supporting Table SA31 Aggregated entity budget | F143: NOT REQUIRED - municipality does not have entities
A144: Supporting Table SA32 | B144: =A144&" List of external mechanisms" -> Supporting Table SA32 List of external mechanisms
A145: Supporting Table SA33 | B145: =A145&" Contracts having future budgetary implications" -> Supporting Table SA33 Contracts having future budgetary implications
A146: Supporting Table SA34a | B146: =IF(Consolques="YES",E146,F146) -> Supporting Table SA34a Capital expenditure on new assets by asset class | E146: =A146&" Consolidated capital expenditure on new assets by asset class" -> Supporting Table SA34a Consolidated capital expenditure on new assets by asset class | F146: =A146&" Capital expenditure on new assets by asset class" -> Supporting Table SA34a Capital expenditure on new assets by asset class
A147: Supporting Table SA34b | B147: Supporting Table SA34b Capital expenditure on the renewal of existing assets by asset class | E147: =A147&" Consolidated capital expenditure on the renewal of existing assets by asset class" -> Supporting Table SA34b Consolidated capital expenditure on the renewal of existing assets by asset class | F147: =A147&" Capital expenditure on the renewal of existing assets by asset class" -> Supporting Table SA34b Capital expenditure on the renewal of existing assets by asset class
A148: Supporting Table SA34c | B148: Supporting Table SA34c Repairs and maintenance expenditure by asset class | E148: =A148&" Consolidated repairs and maintenance by asset class" -> Supporting Table SA34c Consolidated repairs and maintenance by asset class | F148: =A148&" Repairs and maintenance expenditure by asset class" -> Supporting Table SA34c Repairs and maintenance expenditure by asset class
A149: Supporting Table SA34d | B149: =IF(Consolques="YES",E149,F149) -> Supporting Table SA34d Depreciation by asset class | E149: =A149&" Consolidated Depreciation by asset class" -> Supporting Table SA34d Consolidated Depreciation by asset class | F149: =A149&" Depreciation by asset class" -> Supporting Table SA34d Depreciation by asset class
A150: Supporting Table SA34e | B150: =IF(Consolques="YES",E150,F150) -> Supporting Table SA34e Capital expenditure on the upgrading of existing assets by asset class | E150: =A150&" Consolidated capital expenditure on the upgrading of existing assets by asset class" -> Supporting Table SA34e Consolidated capital expenditure on the upgrading of existing assets by asset class | F150: =A150&" Capital expenditure on the upgrading of existing assets by asset class" -> Supporting Table SA34e Capital expenditure on the upgrading of existing assets by asset class
A151: Supporting Table SA35 | B151: Supporting Table SA35 Future financial implications of the capital budget | E151: =A151&" Consolidated future financial implications of the capital budget" -> Supporting Table SA35 Consolidated future financial implications of the capital budget | F151: =A151& " Future financial implications of the capital budget" -> Supporting Table SA35 Future financial implications of the capital budget
A152: Supporting Table SA36 | B152: Supporting Table SA36 Detailed capital budget | E152: =A152&" Consolidated detailed capital budget" -> Supporting Table SA36 Consolidated detailed capital budget | F152: =A152& " Detailed capital budget" -> Supporting Table SA36 Detailed capital budget
A153: Supporting Table SA37 | B153: Supporting Table SA37 Projects delayed from previous financial year/s | E153: =A153&" Consolidated projects delayed from previous financial year/s" -> Supporting Table SA37 Consolidated projects delayed from previous financial year/s | F153: =A153& " Projects delayed from previous financial year/s" -> Supporting Table SA37 Projects delayed from previous financial year/s
A154: Supporting Table SA38 | B154: =IF(Consolques="YES",E154,F154) -> Supporting Table SA38 Detailed operational projects | E154: =A154&" Consolidated detailed operational projects" -> Supporting Table SA38 Consolidated detailed operational projects | F154: =A154& " Detailed operational projects" -> Supporting Table SA38 Detailed operational projects
A156: Budget Charts | B156: Charts | C156: Cross reference
A157: Chart A1 | B157: =A157&"Revenue by Municipal Vote" -> Chart A1 Revenue by Municipal Vote
A158: Chart A2 | B158: =A158&"Expenditure by Municipal Vote" -> Chart A2 Expenditure by Municipal Vote
A159: Chart A3 | B159: =A159&"Revenue by Standard Classification" -> Chart A3 Revenue by Standard Classification | C159: A2
A160: Chart A4 | B160: =A160&"Expenditure by Standard Classification" -> Chart A4 Expenditure by Standard Classification | C160: A2
A161: Chart A5 | B161: =A161&"Revenue by Major Source (refer 'Minor' source for 'Other Revenue' allocation" -> Chart A5 Revenue by Major Source (refer 'Minor' source for 'Other Revenue' allocation | C161: A3
A162: Chart A6 | B162: =A162&"Revenue by Minor Source (Other)" -> Chart A6 Revenue by Minor Source (Other) | C162: A3
A163: Chart A7 | B163: =A163&"Expenditure by Major Type" -> Chart A7 Expenditure by Major Type | C163: A3
A164: Chart A8 | B164: =A164&"Expenditure by Minor Type (Other)" -> Chart A8 Expenditure by Minor Type (Other) | C164: A3
A165: Chart A9 | B165: =A165&"Capital Expenditure by Municipal Vote/Appropriation (Major)" -> Chart A9 Capital Expenditure by Municipal Vote/Appropriation (Major) | C165: A5
A166: Chart A10 | B166: =A166&"Capital Expenditure by Municipal Vote/Appropriation (Minor)" -> Chart A10 Capital Expenditure by Municipal Vote/Appropriation (Minor) | C166: A5
A167: Chart A11 | B167: =A166&"Capital Expenditure by Standard Classification" -> Chart A10 Capital Expenditure by Standard Classification | C167: A5
A168: Chart A12 | B168: =A168&"Capital expenditure performance trend" -> Chart A12 Capital expenditure performance trend | C168: A5
A169: Chart A13 | B169: =A169&"Capital funding by Source" -> Chart A13 Capital funding by Source | C169: A5
A170: Chart A14 | B170: =A170&"Cash flow trend" -> Chart A14 Cash flow trend | C170: A7
A171: Chart A15 | B171: =A171&"IDP Strategic Objective - Revenue" -> Chart A15 IDP Strategic Objective - Revenue | C171: Table A4
A172: Chart A16 | B172: =A172&"IDP Strategic Objective - Expenditure" -> Chart A16 IDP Strategic Objective - Expenditure | C172: Table A5
A173: Chart A17 | B173: =A173&"IDP Strategic Objective - Capital Expenditure" -> Chart A17 IDP Strategic Objective - Capital Expenditure | C173: Table A6
A174: Chart A18 | B174: =A174&"Debt (borrowing to Total Revenue)" -> Chart A18 Debt (borrowing to Total Revenue) | C174: Table A8
A175: Chart A19 | B175: =A175&"Debtors' trend analysis" -> Chart A19 Debtors' trend analysis | C175: Table A8
A176: Chart A20 | B176: =A176&"Distribution losses" -> Chart A20 Distribution losses | C176: Table A8
A177: Chart A21 | B177: =A177&"Borrowed funding of capital expenditure" -> Chart A21 Borrowed funding of capital expenditure | C177: Table A8
A178: Chart A22 | B178: =A178&"Expenditure analysis (% of Revenue)" -> Chart A22 Expenditure analysis (% of Revenue) | C178: Table A8
A179: Chart A23 | B179: =A179&"Increases in service charges" -> Chart A23 Increases in service charges | C179: Table A10

Sheet Lookup and lists (hidden)
A1: Description | B1: 2013 | C1: 2014 | D1: 2015 | E1: 2016 | F1: 2017 | G1: 2018 | H1: 2019 | I1: 2020 | J1: 2021 | K1: 2022 | L1: 2023 | M1: 2024 | N1: 2025 | O1: 2026 | Q1: Lists | Y1: Grants: | Z1: National - opex | AA1: Provincial - opex | AB1: National - capex | AC1: Provincial - capex
A2: ='Template names'!C2 -> Prior year -1 | B2: =B1-2&"/"&RIGHT(B1,2)-1 -> 2011/12 | C2: 2012/13 | D2: 2013/14 | E2: 2014/15 | F2: 2015/16 | G2: 2016/17 | H2: 2017/18 | I2: 2018/19 | J2: =J1-2&"/"&RIGHT(J1,2)-1 -> 2019/20 | K2: 2020/21 | L2: 2021/22 | M2: 2022/23 | N2: 2023/24 | O2: 2024/25 | Q2: Yes | R2: <1 | S2: <4 | T2: Market | U2: Land & impr. | V2: Yes | W2: Uniform | X2: Yrs | Z2: Local Government Equitable Share | AA2: Health subsidy | AB2: Municipal Infrastructure Grant (MIG) | AC2: Agriculture
A3: ='Template names'!C3 -> Prior year -2 | B3: =B1-3&"/"&RIGHT(B1,2)-2 -> 2010/11 | C3: 2011/12 | D3: 2012/13 | E3: 2013/14 | F3: 2014/15 | G3: 2015/16 | H3: 2016/17 | I3: 2017/18 | J3: =J1-3&"/"&RIGHT(J1,2)-2 -> 2018/19 | K3: 2019/20 | L3: 2020/21 | M3: 2021/22 | N3: 2022/23 | O3: 2023/24 | Q3: No | R3: 1 | S3: 4 | T3: Dep.Replace | U3: Land only | V3: No | W3: Variable | X3: Mths | Z3: RSC Levy Replacement | AA3: Ambulance subsidy | AB3: Public Transport and Systems | AC3: Education
A4: ='Template names'!C4 -> Prior year -3 | B4: =B1-4&"/"&RIGHT(B1,2)-3 -> 2009/10 | C4: 2010/11 | D4: 2011/12 | E4: 2012/13 | F4: 2013/14 | G4: 2014/15 | H4: 2015/16 | I4: 2016/17 | J4: =J1-4&"/"&RIGHT(J1,2)-3 -> 2017/18 | K4: 2018/19 | L4: 2019/20 | M4: 2020/21 | N4: 2021/22 | O4: 2022/23 | R4: 2 | S4: 5 | T4: Other | U4: Other | Z4: Finance Management | AA4: Housing | AB4: Rural Transport Services and Infrastructure | AC4: Health
A5: ='Template names'!C5 -> Year in which budget is being prepared | B5: ="Current Year "& B1-1&"/"&RIGHT(B1,2) -> Current Year 2012/13 | C5: Current Year 2013/14 | D5: Current Year 2014/15 | E5: Current Year 2015/16 | F5: Current Year 2016/17 | G5: Current Year 2017/18 | H5: Current Year 2018/19 | I5: Current Year 2019/20 | J5: ="Current Year "& J1-1&"/"&RIGHT(J1,2) -> Current Year 2020/21 | K5: Current Year 2021/22 | L5: Current Year 2022/23 | M5: Current Year 2023/24 | N5: Current Year 2024/25 | O5: Current Year 2025/26 | R5: 3 | S5: 6 | Z5: Municipal Systems Improvement | AA5: Sport and Recreation | AB5: Regional Bulk Infrastructure | AC5: Housing and Local Government
A6: ='Template names'!C6 -> Year in which budget is being prepared | B6: =B1-1&"/"&RIGHT(B1,2) -> 2012/13 | C6: 2013/14 | D6: 2014/15 | E6: 2015/16 | F6: 2016/17 | G6: 2017/18 | H6: 2018/19 | I6: 2019/20 | J6: =J1-1&"/"&RIGHT(J1,2) -> 2020/21 | K6: 2021/22 | L6: 2022/23 | M6: 2023/24 | N6: 2024/25 | O6: 2025/26 | R6: 4 | S6: 6-10 | Z6: Water Services Operating Subsidy | AB6: Rural Households Infrastructure | AC6: Other Departments
A7: ='Template names'!C7 -> MTREF name | B7: =B1&"/"&RIGHT(B1,2)+1&" Medium Term Revenue & Expenditure Framework" -> 2013/14 Medium Term Revenue & Expenditure Framework | C7: 2014/15 Medium Term Revenue & Expenditure Framework | D7: 2015/16 Medium Term Revenue & Expenditure Framework | E7: 2016/17 Medium Term Revenue & Expenditure Framework | F7: 2017/18 Medium Term Revenue & Expenditure Framework | G7: 2018/19 Medium Term Revenue & Expenditure Framework | H7: 2019/20 Medium Term Revenue & Expenditure Framework | I7: 2020/21 Medium Term Revenue & Expenditure Framework | J7: =J1&"/"&RIGHT(J1,2)+1&" Medium Term Revenue & Expenditure Framework" -> 2021/22 Medium Term Revenue & Expenditure Framework | K7: 2022/23 Medium Term Revenue & Expenditure Framework | L7: 2023/24 Medium Term Revenue & Expenditure Framework | M7: 2024/25 Medium Term Revenue & Expenditure Framework | N7: 2025/26 Medium Term Revenue & Expenditure Framework | O7: 2026/27 Medium Term Revenue & Expenditure Framework | R7: 5 | S7: >10 | Z7: Energy Efficiency and Demand Management | AB7: Neighbourhood Development Partnership | AC7: Public Works, Roads, Transport
A8: ='Template names'!C15 -> 1st year of MTREF | B8: ="Budget Year "&B1&"/"&RIGHT(B1,2)+1 -> Budget Year 2013/14 | C8: Budget Year 2014/15 | D8: Budget Year 2015/16 | E8: Budget Year 2016/17 | F8: Budget Year 2017/18 | G8: Budget Year 2018/19 | H8: Budget Year 2019/20 | I8: Budget Year 2020/21 | J8: ="Budget Year "&J1&"/"&RIGHT(J1,2)+1 -> Budget Year 2021/22 | K8: Budget Year 2022/23 | L8: Budget Year 2023/24 | M8: Budget Year 2024/25 | N8: Budget Year 2025/26 | O8: Budget Year 2026/27 | R8: >5 | Z8: Integrated National Electrification Programme | AB8: 2010 FIFA World Cup Stadiums Development | AC8: Sport and Recreation
A9: ='Template names'!C16 -> 2nd year of MTREF | B9: ="Budget Year +1 "&B1+1&"/"&RIGHT(B1,2)+2 -> Budget Year +1 2014/15 | C9: Budget Year +1 2015/16 | D9: Budget Year +1 2016/17 | E9: Budget Year +1 2017/18 | F9: Budget Year +1 2018/19 | G9: Budget Year +1 2019/20 | H9: Budget Year +1 2020/21 | I9: Budget Year +1 2021/22 | J9: ="Budget Year +1 "&J1+1&"/"&RIGHT(J1,2)+2 -> Budget Year +1 2022/23 | K9: Budget Year +1 2023/24 | L9: Budget Year +1 2024/25 | M9: Budget Year +1 2025/26 | N9: Budget Year +1 2026/27 | O9: Budget Year +1 2027/28 | Z9: Municipal Drought Relief
A10: ='Template names'!C17 -> 3rd year of MTREF | B10: ="Budget Year +2 "&B1+2&"/"&RIGHT(B1,2)+3 -> Budget Year +2 2015/16 | C10: Budget Year +2 2016/17 | D10: Budget Year +2 2017/18 | E10: Budget Year +2 2018/19 | F10: Budget Year +2 2019/20 | G10: Budget Year +2 2020/21 | H10: Budget Year +2 2021/22 | I10: Budget Year +2 2022/23 | J10: ="Budget Year +2 "&J1+2&"/"&RIGHT(J1,2)+3 -> Budget Year +2 2023/24 | K10: Budget Year +2 2024/25 | L10: Budget Year +2 2025/26 | M10: Budget Year +2 2026/27 | N10: Budget Year +2 2027/28 | O10: Budget Year +2 2028/29 | Z10: 2010 FIFA World Cup Operating
A11: ='Template names'!C18 -> 1st yr of long term forecast | B11: ="Forecast "&B1+3&"/"&RIGHT(B1,2)+4 -> Forecast 2016/17 | C11: Forecast 2017/18 | D11: Forecast 2018/19 | E11: Forecast 2019/20 | F11: Forecast 2020/21 | G11: Forecast 2021/22 | H11: Forecast 2022/23 | I11: Forecast 2023/24 | J11: ="Forecast "&J1+3&"/"&RIGHT(J1,2)+4 -> Forecast 2024/25 | K11: Forecast 2025/26 | L11: Forecast 2026/27 | M11: Forecast 2027/28 | N11: Forecast 2028/29 | O11: Forecast 2029/30 | Z11: Electricity Demand Side Management
A12: ='Template names'!C19 -> Next yr of long term forecast | B12: ="Forecast "&B1+4&"/"&RIGHT(B1,2)+5 -> Forecast 2017/18 | C12: Forecast 2018/19 | D12: Forecast 2019/20 | E12: Forecast 2020/21 | F12: Forecast 2021/22 | G12: Forecast 2022/23 | H12: Forecast 2023/24 | I12: Forecast 2024/25 | J12: ="Forecast "&J1+4&"/"&RIGHT(J1,2)+5 -> Forecast 2025/26 | K12: Forecast 2026/27 | L12: Forecast 2027/28 | M12: Forecast 2028/29 | N12: Forecast 2029/30 | O12: Forecast 2030/31 | Z12: EPWP Incentive
A13: ='Template names'!C20 -> Next yr of long term forecast | B13: ="Forecast "&B1+5&"/"&RIGHT(B1,2)+6 -> Forecast 2018/19 | C13: Forecast 2019/20 | D13: Forecast 2020/21 | E13: Forecast 2021/22 | F13: Forecast 2022/23 | G13: Forecast 2023/24 | H13: Forecast 2024/25 | I13: Forecast 2025/26 | J13: ="Forecast "&J1+5&"/"&RIGHT(J1,2)+6 -> Forecast 2026/27 | K13: Forecast 2027/28 | L13: Forecast 2028/29 | M13: Forecast 2029/30 | N13: Forecast 2030/31 | O13: Forecast 2031/32
A14: ='Template names'!C21 -> Next yr of long term forecast | B14: ="Forecast "&B1+6&"/"&RIGHT(B1,2)+7 -> Forecast 2019/20 | C14: Forecast 2020/21 | D14: Forecast 2021/22 | E14: Forecast 2022/23 | F14: Forecast 2023/24 | G14: Forecast 2024/25 | H14: Forecast 2025/26 | I14: Forecast 2026/27 | J14: ="Forecast "&J1+6&"/"&RIGHT(J1,2)+7 -> Forecast 2027/28 | K14: Forecast 2028/29 | L14: Forecast 2029/30 | M14: Forecast 2030/31 | N14: Forecast 2031/32 | O14: Forecast 2032/33 | Z14: Asset Class | AA14: Asset sub-class old | AB14: Asset sub-class | AC14: IUDF | AD14: MTSF
A15: ='Template names'!C22 -> Next yr of long term forecast | B15: ="Forecast "&B1+7&"/"&RIGHT(B1,2)+8 -> Forecast 2020/21 | C15: Forecast 2021/22 | D15: Forecast 2022/23 | E15: Forecast 2023/24 | F15: Forecast 2024/25 | G15: Forecast 2025/26 | H15: Forecast 2026/27 | I15: Forecast 2027/28 | J15: ="Forecast "&J1+7&"/"&RIGHT(J1,2)+8 -> Forecast 2028/29 | K15: Forecast 2029/30 | L15: Forecast 2030/31 | M15: Forecast 2031/32 | N15: Forecast 2032/33 | O15: Forecast 2033/34
A16: ='Template names'!C23 -> Next yr of long term forecast | B16: ="Forecast "&B1+8&"/"&RIGHT(B1,2)+9 -> Forecast 2021/22 | C16: Forecast 2022/23 | D16: Forecast 2023/24 | E16: Forecast 2024/25 | F16: Forecast 2025/26 | G16: Forecast 2026/27 | H16: Forecast 2027/28 | I16: Forecast 2028/29 | J16: ="Forecast "&J1+8&"/"&RIGHT(J1,2)+9 -> Forecast 2029/30 | K16: Forecast 2030/31 | L16: Forecast 2031/32 | M16: Forecast 2032/33 | N16: Forecast 2033/34 | O16: Forecast 2034/35 | Z16: Roads Infrastructure | AA16: Roads, Pavements & Bridges | AB16: Roads | AC16: Spatial integration | AD16: Quality basic education
A17: ='Template names'!C24 -> Next yr of long term forecast | B17: ="Forecast "&B1+9&"/"&RIGHT(B1,2)+10 -> Forecast 2022/23 | C17: Forecast 2023/24 | D17: Forecast 2024/25 | E17: Forecast 2025/26 | F17: Forecast 2026/27 | G17: Forecast 2027/28 | H17: Forecast 2028/29 | I17: Forecast 2029/30 | J17: ="Forecast "&J1+9&"/"&RIGHT(J1,2)+10 -> Forecast 2030/31 | K17: Forecast 2031/32 | L17: Forecast 2032/33 | M17: Forecast 2033/34 | N17: Forecast 2034/35 | O17: Forecast 2035/36 | Z17: Storm water Infrastructure | AA17: Storm water | AB17: Road Structures | AC17: Inclusion and access | AD17: A long and healthy life for all South Africans
A18: ='Template names'!C25 -> Next yr of long term forecast | B18: ="Forecast "&B1+10&"/"&RIGHT(B1,2)+11 -> Forecast 2023/24 | C18: Forecast 2024/25 | D18: Forecast 2025/26 | E18: Forecast 2026/27 | F18: Forecast 2027/28 | G18: Forecast 2028/29 | H18: Forecast 2029/30 | I18: Forecast 2030/31 | J18: ="Forecast "&J1+10&"/"&RIGHT(J1,2)+11 -> Forecast 2031/32 | K18: Forecast 2032/33 | L18: Forecast 2033/34 | M18: Forecast 2034/35 | N18: Forecast 2035/36 | O18: Forecast 2036/37 | Z18: Electrical Infrastructure | AA18: Generation | AB18: Road Furniture | AC18: Growth | AD18: All people in South Africa are and feel safe
A19: ='Template names'!C26 -> Next yr of long term forecast | B19: ="Forecast "&B1+11&"/"&RIGHT(B1,2)+12 -> Forecast 2024/25 | C19: Forecast 2025/26 | D19: Forecast 2026/27 | E19: Forecast 2027/28 | F19: Forecast 2028/29 | G19: Forecast 2029/30 | H19: Forecast 2030/31 | I19: Forecast 2031/32 | J19: ="Forecast "&J1+11&"/"&RIGHT(J1,2)+12 -> Forecast 2032/33 | K19: Forecast 2033/34 | L19: Forecast 2034/35 | M19: Forecast 2035/36 | N19: Forecast 2036/37 | O19: Forecast 2037/38 | Z19: Water Supply Infrastructure | AA19: Transmission & Reticulation | AB19: Capital Spares | AC19: Governance | AD19: Decent employment through inclusive growth
A20: ='Template names'!C27 -> Next yr of long term forecast | B20: ="Forecast "&B1+12&"/"&RIGHT(B1,2)+13 -> Forecast 2025/26 | C20: Forecast 2026/27 | D20: Forecast 2027/28 | E20: Forecast 2028/29 | F20: Forecast 2029/30 | G20: Forecast 2030/31 | H20: Forecast 2031/32 | I20: Forecast 2032/33 | J20: ="Forecast "&J1+12&"/"&RIGHT(J1,2)+13 -> Forecast 2033/34 | K20: Forecast 2034/35 | L20: Forecast 2035/36 | M20: Forecast 2036/37 | N20: Forecast 2037/38 | O20: Forecast 2038/39 | Z20: Sanitation Infrastructure | AA20: Street Lighting | AB20: Drainage Collection | AD20: A skilled and capable workforce to support an inclusive growth path
A21: ='Template names'!C28 -> Next yr of long term forecast | B21: ="Forecast "&B1+13&"/"&RIGHT(B1,2)+14 -> Forecast 2026/27 | C21: Forecast 2027/28 | D21: Forecast 2028/29 | E21: Forecast 2029/30 | F21: Forecast 2030/31 | G21: Forecast 2031/32 | H21: Forecast 2032/33 | I21: Forecast 2033/34 | J21: ="Forecast "&J1+13&"/"&RIGHT(J1,2)+14 -> Forecast 2034/35 | K21: Forecast 2035/36 | L21: Forecast 2036/37 | M21: Forecast 2037/38 | N21: Forecast 2038/39 | O21: Forecast 2039/40 | Z21: Solid Waste Infrastructure | AA21: Dams & Reservoirs | AB21: Storm water Conveyance | AD21: An efficient, competitive and responsive economic infrastructure network
A22: ='Template names'!C29 -> Next yr of long term forecast | B22: ="Forecast "&B1+14&"/"&RIGHT(B1,2)+15 -> Forecast 2027/28 | C22: Forecast 2028/29 | D22: Forecast 2029/30 | E22: Forecast 2030/31 | F22: Forecast 2031/32 | G22: Forecast 2032/33 | H22: Forecast 2033/34 | I22: Forecast 2034/35 | J22: ="Forecast "&J1+14&"/"&RIGHT(J1,2)+15 -> Forecast 2035/36 | K22: Forecast 2036/37 | L22: Forecast 2037/38 | M22: Forecast 2038/39 | N22: Forecast 2039/40 | O22: Forecast 2040/41 | Z22: Rail Infrastructure | AA22: Water purification | AB22: Attenuation | AD22: Vibrant, equitable, sustainable rural communities contributing towards food security for all
A23: Adjustments Budget | B23: ="Annual target " & B1&"/"&RIGHT(B1,2)+1 -> Annual target 2013/14 | C23: Annual target 2014/15 | D23: Annual target 2015/16 | E23: Annual target 2016/17 | F23: Annual target 2017/18 | G23: Annual target 2018/19 | H23: Annual target 2019/20 | I23: Annual target 2020/21 | J23: ="Annual target " & J1&"/"&RIGHT(J1,2)+1 -> Annual target 2021/22 | K23: Annual target 2022/23 | L23: Annual target 2023/24 | M23: Annual target 2024/25 | N23: Annual target 2025/26 | O23: Annual target 2026/27 | Z23: Coastal Infrastructure | AA23: Reticulation | AB23: Power Plants | AD23: Sustainable human settlements and improved quality of household life
A24: =A23 -> Adjustments Budget | B24: ="Revised target "& B1&"/"&RIGHT(B1,2)+1 -> Revised target 2013/14 | C24: Revised target 2014/15 | D24: Revised target 2015/16 | E24: Revised target 2016/17 | F24: Revised target 2017/18 | G24: Revised target 2018/19 | H24: Revised target 2019/20 | I24: Revised target 2020/21 | J24: ="Revised target "& J1&"/"&RIGHT(J1,2)+1 -> Revised target 2021/22 | K24: Revised target 2022/23 | L24: Revised target 2023/24 | M24: Revised target 2024/25 | N24: Revised target 2025/26 | O24: Revised target 2026/27 | Z24: Information and Communication Infrastructure | AA24: Sewerage purification | AB24: HV Substations | AD24: Responsive, accountable, effective and efficient local government
A25: NOTE: This sheet should not be directly amended - select headings from sheet 'S' | Z25: Community Facilities | AA25: Waste Management | AB25: HV Switching Station | AD25: Protect and enhance our environmental assets and natural resources
Z26: Sport and Recreation Facilities | AA26: Transportation | AB26: HV Transmission Conductors | AD26: Create a better South Africa and contribute to a better Africa and a better world
A27: Name link | B27: 155 | Z27: Heritage assets | AA27: Gas | AB27: MV Substations | AD27: An efficient, effective and development-oriented public service
A28: Name of Muni | B28: =INDEX(B29:B307,B27,1) -> DC47 Sekhukhune | Z28: Revenue Generating | AA28: Parks & gardens | AB28: MV Switching Stations | AD28: A comprehensive, responsive and sustainable social protection system
B29: Choose name from list | C29: Set name on 'Instructions' sheet | Z29: Non-revenue Generating | AA29: Sportsfields & stadia | AB29: MV Networks | AD29: A diverse, socially cohesive society with a common national identity
B30: BUF Buffalo City | C30: EC EASTERN CAPE | Z30: Operational Buildings | AA30: Swimming pools | AB30: LV Networks
B31: NMA Nelson Mandela Bay | C31: EC EASTERN CAPE | Z31: Housing | AA31: Community halls | AB31: Capital Spares
B32: EC101 Dr Beyers Naude | C32: EC EASTERN CAPE | Z32: Biological or Cultivated Assets | AA32: Libraries | AB32: Dams and Weirs
B33: EC102 Blue Crane Route | C33: EC EASTERN CAPE | Z33: Servitudes | AA33: Recreational facilities | AB33: Boreholes
B34: EC104 Makana | C34: EC EASTERN CAPE | Z34: Licences and Rights | AA34: Fire, safety & emergency | AB34: Reservoirs
B35: EC105 Ndlambe | C35: EC EASTERN CAPE | Z35: Computer Equipment | AA35: Security and policing | AB35: Pump Stations
B36: EC106 Sundays River Valley | C36: EC EASTERN CAPE | Z36: Furniture and Office Equipment | AA36: Buses | AB36: Water Treatment Works
B37: EC108 Kouga | C37: EC EASTERN CAPE | Z37: Machinery and Equipment | AA37: Clinics | AB37: Bulk Mains
B38: EC109 Kou-Kamma | C38: EC EASTERN CAPE | Z38: Transport Assets | AA38: Museums & Art Galleries | AB38: Distribution
B39: DC10 Sarah Baartman | C39: EC EASTERN CAPE | Z39: Land | AA39: Cemeteries | AB39: Distribution Points
B40: EC121 Mbhashe | C40: EC EASTERN CAPE | Z40: Zoo's, Marine and Non-biological Animals | AA40: Social rental housing | AB40: PRV Stations
B41: EC122 Mnquma | C41: EC EASTERN CAPE | AA41: Buildings | AB41: Capital Spares
B42: EC123 Great Kei | C42: EC EASTERN CAPE | AA42: Housing development | AB42: Pump Station
B43: EC124 Amahlathi | C43: EC EASTERN CAPE | AA43: General vehicles | AB43: Reticulation
B44: EC126 Ngqushwa | C44: EC EASTERN CAPE | AA44: Specialised vehicles - Refuse | AB44: Waste Water Treatment Works
B45: EC129 Raymond Mhlaba | C45: EC EASTERN CAPE | AA45: Specialised vehicles - Fire | AB45: Outfall Sewers
B46: DC12 Amathole | C46: EC EASTERN CAPE | AA46: Specialised vehicles - Conservancy | AB46: Toilet Facilities
B47: EC131 Inxuba Yethemba | C47: EC EASTERN CAPE | AA47: Specialised vehicles - Ambulances | AB47: Capital Spares
B48: EC135 Intsika Yethu | C48: EC EASTERN CAPE | AA48: Plant & equipment | AB48: Landfill Sites
B49: EC136 Emalahleni (Ec) | C49: EC EASTERN CAPE | AA49: Computers - hardware/equipment | AB49: Waste Transfer Stations
B50: EC137 Engcobo | C50: EC EASTERN CAPE | AA50: Furniture and other office equipment | AB50: Waste Processing Facilities
B51: EC138 Sakhisizwe | C51: EC EASTERN CAPE | AA51: Abattoirs | AB51: Waste Drop-off Points
B52: EC139 Enoch Mgijima | C52: EC EASTERN CAPE | AA52: Markets | AB52: Waste Separation Facilities
B53: DC13 Chris Hani | C53: EC EASTERN CAPE | AA53: Civic Land and Buildings | AB53: Electricity Generation Facilities
B54: EC141 Elundini | C54: EC EASTERN CAPE | AA54: Other Buildings | AB54: Capital Spares
B55: EC142 Senqu | C55: EC EASTERN CAPE | AA55: Other Land | AB55: Rail Lines
B56: EC145 Walter Sisulu | C56: EC EASTERN CAPE | AA56: Surplus Assets - (Investment or Inventory) | AB56: Rail Structures
B57: DC14 Joe Gqabi | C57: EC EASTERN CAPE | AA57: Computers - software & programming | AB57: Rail Furniture
B58: EC153 Ngquza Hills | C58: EC EASTERN CAPE | AA58: Other | AB58: Drainage Collection
B59: EC154 Port St Johns | C59: EC EASTERN CAPE | AB59: Storm water Conveyance
B60: EC155 Nyandeni | C60: EC EASTERN CAPE | Z60: SA16 - Investments | AB60: Attenuation
B61: EC156 Mhlontlo | C61: EC EASTERN CAPE | Z61: Security | AA61: Interest rate | AB61: MV Substations
B62: EC157 King Sabata Dalindyebo | C62: EC EASTERN CAPE | Z62: Yes | AA62: Fixed | AB62: LV Networks
B63: DC15 O .R. Tambo | C63: EC EASTERN CAPE | Z63: No | AA63: Variable | AB63: Capital Spares
B64: EC441 Matatiele | C64: EC EASTERN CAPE | AB64: Sand Pumps
B65: EC442 Umzimvubu | C65: EC EASTERN CAPE | AB65: Piers
B66: EC443 Winnie Madikizela Mandela | C66: EC EASTERN CAPE | Z66: SA36, SA37 - Capital projects | AB66: Revetments
B67: EC444 Ntabankulu | C67: EC EASTERN CAPE | Z67: Yes | AB67: Promenades
B68: DC44 Alfred Nzo | C68: EC EASTERN CAPE | Z68: No | AB68: Capital Spares
B69: MAN Mangaung | C69: FS FREE STATE | AB69: Data Centres
B70: FS161 Letsemeng | C70: FS FREE STATE | AB70: Core Layers
B71: FS162 Kopanong | C71: FS FREE STATE | AB71: Distribution Layers
B72: FS163 Mohokare | C72: FS FREE STATE | AB72: Capital Spares
B73: DC16 Xhariep | C73: FS FREE STATE | AB73: Halls
B74: FS181 Masilonyana | C74: FS FREE STATE | AB74: Centres
B75: FS182 Tokologo | C75: FS FREE STATE | AB75: Crèches
B76: FS183 Tswelopele | C76: FS FREE STATE | AB76: Clinics/Care Centres
B77: FS184 Matjhabeng | C77: FS FREE STATE | AB77: Fire/Ambulance Stations
B78: FS185 Nala | C78: FS FREE STATE | AB78: Testing Stations
B79: DC18 Lejweleputswa | C79: FS FREE STATE | AB79: Museums
B80: FS191 Setsoto | C80: FS FREE STATE | AB80: Galleries
B81: FS192 Dihlabeng | C81: FS FREE STATE | AB81: Theatres
B82: FS193 Nketoana | C82: FS FREE STATE | AB82: Libraries
B83: FS194 Maluti-a-Phofung | C83: FS FREE STATE | AB83: Cemeteries/Crematoria
B84: FS195 Phumelela | C84: FS FREE STATE | AB84: Police
B85: FS196 Mantsopa | C85: FS FREE STATE | AB85: Purls
B86: DC19 Thabo Mofutsanyana | C86: FS FREE STATE | AB86: Public Open Space
B87: FS201 Moqhaka | C87: FS FREE STATE | AB87: Nature Reserves
B88: FS203 Ngwathe | C88: FS FREE STATE | AB88: Public Ablution Facilities
B89: FS204 Metsimaholo | C89: FS FREE STATE | AB89: Markets
B90: FS205 Mafube | C90: FS FREE STATE | AB90: Stalls
B91: DC20 Fezile Dabi | C91: FS FREE STATE | AB91: Abattoirs
B92: EKU City of Ekurhuleni | C92: GT GAUTENG | AB92: Airports
B93: JHB City Of Johannesburg | C93: GT GAUTENG | AB93: Taxi Ranks/Bus Terminals
B94: TSH City Of Tshwane | C94: GT GAUTENG | AB94: Capital Spares
B95: GT421 Emfuleni | C95: GT GAUTENG | AB95: Indoor Facilities
B96: GT422 Midvaal | C96: GT GAUTENG | AB96: Outdoor Facilities
B97: GT423 Lesedi | C97: GT GAUTENG | AB97: Capital Spares
B98: DC42 Sedibeng | C98: GT GAUTENG | AB98: Monuments
B99: GT481 Mogale City | C99: GT GAUTENG | AB99: Historic Buildings
B100: GT484 Merafong City | C100: GT GAUTENG | AB100: Works of Art
B101: GT485 Rand West City | C101: GT GAUTENG | AB101: Conservation Areas
B102: DC48 West Rand | C102: GT GAUTENG | AB102: Other Heritage
B103: ETH eThekwini | C103: KZN KWAZULU-NATAL | AB103: Improved Property
B104: KZN212 Umdoni | C104: KZN KWAZULU-NATAL | AB104: Unimproved Property
B105: KZN213 Umzumbe | C105: KZN KWAZULU-NATAL | AB105: Municipal Offices
B106: KZN214 uMuziwabantu | C106: KZN KWAZULU-NATAL | AB106: Pay/Enquiry Points
B107: KZN216 Ray Nkonyeni | C107: KZN KWAZULU-NATAL | AB107: Building Plan Offices
B108: DC21 Ugu | C108: KZN KWAZULU-NATAL | AB108: Workshops
B109: KZN221 uMshwathi | C109: KZN KWAZULU-NATAL | AB109: Yards
B110: KZN222 uMngeni | C110: KZN KWAZULU-NATAL | AB110: Stores
B111: KZN223 Mpofana | C111: KZN KWAZULU-NATAL | AB111: Laboratories
B112: KZN224 Impendle | C112: KZN KWAZULU-NATAL | AB112: Training Centres
B113: KZN225 Msunduzi | C113: KZN KWAZULU-NATAL | AB113: Manufacturing Plant
B114: KZN226 Mkhambathini | C114: KZN KWAZULU-NATAL | AB114: Depots
B115: KZN227 Richmond | C115: KZN KWAZULU-NATAL | AB115: Capital Spares
B116: DC22 uMgungundlovu | C116: KZN KWAZULU-NATAL | AB116: Staff Housing
B117: KZN235 Okhahlamba | C117: KZN KWAZULU-NATAL | AB117: Social Housing
B118: KZN237 Inkosi Langalibalele | C118: KZN KWAZULU-NATAL | AB118: Capital Spares
B119: KZN238 Alfred Duma | C119: KZN KWAZULU-NATAL | AB119: Water Rights
B120: DC23 Uthukela | C120: KZN KWAZULU-NATAL | AB120: Effluent Licenses
B121: KZN241 Endumeni | C121: KZN KWAZULU-NATAL | AB121: Solid Waste Licenses
B122: KZN242 Nquthu | C122: KZN KWAZULU-NATAL | AB122: Computer Software and Applications
B123: KZN244 Msinga | C123: KZN KWAZULU-NATAL | AB123: Load Settlement Software Applications
B124: KZN245 Umvoti | C124: KZN KWAZULU-NATAL | AB124: Unspecified
B125: DC24 Umzinyathi | C125: KZN KWAZULU-NATAL
B126: KZN252 Newcastle | C126: KZN KWAZULU-NATAL
B127: KZN253 Emadlangeni | C127: KZN KWAZULU-NATAL
B128: KZN254 Dannhauser | C128: KZN KWAZULU-NATAL
B129: DC25 Amajuba | C129: KZN KWAZULU-NATAL
B130: KZN261 eDumbe | C130: KZN KWAZULU-NATAL
B131: KZN262 uPhongolo | C131: KZN KWAZULU-NATAL
B132: KZN263 Abaqulusi | C132: KZN KWAZULU-NATAL
B133: KZN265 Nongoma | C133: KZN KWAZULU-NATAL
B134: KZN266 Ulundi | C134: KZN KWAZULU-NATAL
B135: DC26 Zululand | C135: KZN KWAZULU-NATAL
B136: KZN271 Umhlabuyalingana | C136: KZN KWAZULU-NATAL
B137: KZN272 Jozini | C137: KZN KWAZULU-NATAL
B138: KZN275 Mtubatuba | C138: KZN KWAZULU-NATAL
B139: KZN276 Hlabisa Big Five | C139: KZN KWAZULU-NATAL
B140: DC27 Umkhanyakude | C140: KZN KWAZULU-NATAL
B141: KZN281 Mfolozi | C141: KZN KWAZULU-NATAL
B142: KZN282 uMhlathuze | C142: KZN KWAZULU-NATAL
B143: KZN284 uMlalazi | C143: KZN KWAZULU-NATAL
B144: KZN285 Mthonjaneni | C144: KZN KWAZULU-NATAL
B145: KZN286 Nkandla | C145: KZN KWAZULU-NATAL
B146: DC28 King Cetshwayo | C146: KZN KWAZULU-NATAL
B147: KZN291 Mandeni | C147: KZN KWAZULU-NATAL
B148: KZN292 KwaDukuza | C148: KZN KWAZULU-NATAL
B149: KZN293 Ndwedwe | C149: KZN KWAZULU-NATAL
B150: KZN294 Maphumulo | C150: KZN KWAZULU-NATAL
B151: DC29 iLembe | C151: KZN KWAZULU-NATAL
B152: KZN433 Greater Kokstad | C152: KZN KWAZULU-NATAL
B153: KZN434 Ubuhlebezwe | C153: KZN KWAZULU-NATAL
B154: KZN435 Umzimkhulu | C154: KZN KWAZULU-NATAL
B155: KZN436 Dr Nkosazana Dlamini Zuma | C155: KZN KWAZULU-NATAL
B156: DC43 Harry Gwala | C156: KZN KWAZULU-NATAL
B157: LIM331 Greater Giyani | C157: LIM LIMPOPO
B158: LIM332 Greater Letaba | C158: LIM LIMPOPO
B159: LIM333 Greater Tzaneen | C159: LIM LIMPOPO
B160: LIM334 Ba-Phalaborwa | C160: LIM LIMPOPO
B161: LIM335 Maruleng | C161: LIM LIMPOPO
B162: DC33 Mopani | C162: LIM LIMPOPO
B163: LIM341 Musina | C163: LIM LIMPOPO
B164: LIM343 Thulamela | C164: LIM LIMPOPO
B165: LIM344 Makhado | C165: LIM LIMPOPO
B166: LIM345 Collins Chabane | C166: LIM LIMPOPO
B167: DC34 Vhembe | C167: LIM LIMPOPO
B168: LIM351 Blouberg | C168: LIM LIMPOPO
B169: LIM353 Molemole | C169: LIM LIMPOPO
B170: LIM354 Polokwane | C170: LIM LIMPOPO
B171: LIM355 Lepelle-Nkumpi | C171: LIM LIMPOPO
B172: DC35 Capricorn | C172: LIM LIMPOPO
B173: LIM361 Thabazimbi | C173: LIM LIMPOPO
B174: LIM362 Lephalale | C174: LIM LIMPOPO
B175: LIM366 Bela Bela | C175: LIM LIMPOPO
B176: LIM367 Mogalakwena | C176: LIM LIMPOPO
B177: LIM368 Modimolle-Mookgopong | C177: LIM LIMPOPO
B178: DC36 Waterberg | C178: LIM LIMPOPO
B179: LIM471 Ephraim Mogale | C179: LIM LIMPOPO
B180: LIM472 Elias Motsoaledi | C180: LIM LIMPOPO
B181: LIM473 Makhuduthamaga | C181: LIM LIMPOPO
B182: LIM476 Tubatse Fetakgomo | C182: LIM LIMPOPO
B183: DC47 Sekhukhune | C183: LIM LIMPOPO
B184: MP301 Albert Luthuli | C184: MP MPUMALANGA
B185: MP302 Msukaligwa | C185: MP MPUMALANGA
B186: MP303 Mkhondo | C186: MP MPUMALANGA
B187: MP304 Pixley Ka Seme (MP) | C187: MP MPUMALANGA
B188: MP305 Lekwa | C188: MP MPUMALANGA
B189: MP306 Dipaleseng | C189: MP MPUMALANGA
B190: MP307 Govan Mbeki | C190: MP MPUMALANGA
B191: DC30 Gert Sibande | C191: MP MPUMALANGA
B192: MP311 Victor Khanye | C192: MP MPUMALANGA
B193: MP312 Emalahleni (Mp) | C193: MP MPUMALANGA
B194: MP313 Steve Tshwete | C194: MP MPUMALANGA
B195: MP314 Emakhazeni | C195: MP MPUMALANGA
B196: MP315 Thembisile Hani | C196: MP MPUMALANGA
B197: MP316 Dr J.S. Moroka | C197: MP MPUMALANGA
B198: DC31 Nkangala | C198: MP MPUMALANGA
B199: MP321 Thaba Chweu | C199: MP MPUMALANGA
B200: MP324 Nkomazi | C200: MP MPUMALANGA
... 87 more rows

Sheet Org structure
A1: Organisational Structure Votes | C1: Organisational Structure Sub-Votes | E1: Display Sub-Votes
A2: =B2&" - "&C2 -> Vote 01 - Speakers Office | B2: Vote 01 | C2: Speakers Office
A3: =B5&" - "&C5 -> Vote 02 - Executive Mayor's Office | B3: 01.1 | C3: Office Of The Speaker | D3: =CONCATENATE(B3, " - ", C3) -> 01.1 - Office Of The Speaker | E3: 01.1 - Office Of The Speaker
A4: =B7&" - "&C7 -> Vote 03 - Municipal Manager Office | B4: 01.2 | C4: Office Of The Chief Whip | D4: =CONCATENATE(B4, " - ", C4) -> 01.2 - Office Of The Chief Whip | E4: 01.2 - Office Of The Chief Whip
A5: =B9&" - "&C9 -> Vote 04 - Budget And Treasury | B5: Vote 02 | C5: Executive Mayor's Office
A6: =B12&" - "&C12 -> Vote 05 - Infrustracture And Water Services | B6: 02.1 | C6: Executive Mayor's Office | D6: =CONCATENATE(B6, " - ", C6) -> 02.1 - Executive Mayor's Office | E6: 02.1 - Executive Mayor's Office
A7: =B16&" - "&C16 -> Vote 06 - Planning And Economic Development | B7: Vote 03 | C7: Municipal Manager Office
A8: =B18&" - "&C18 -> Vote 07 - Community Services | B8: 03.1 | C8: Municipal Manager Admin | D8: =CONCATENATE(B8, " - ", C8) -> 03.1 - Municipal Manager Admin | E8: 03.1 - Municipal Manager Admin
A9: =B20&" - "&C20 -> Vote 08 - Sekhukhune Development Angancy | B9: Vote 04 | C9: Budget And Treasury
A10: =B22&" - "&C22 -> Vote 09 - Corporate Services | B10: 04.1 | C10: Budget & Treasury Admin | D10: =CONCATENATE(B10, " - ", C10) -> 04.1 - Budget & Treasury Admin | E10: 04.1 - Budget & Treasury Admin
A11: =B24&" - "&C24 -> Vote 10 - | B11: 04.2 | C11: Budget & Treasury Admin | D11: =CONCATENATE(B11, " - ", C11) -> 04.2 - Budget & Treasury Admin | E11: 04.2 - Budget & Treasury Admin
A12: =B25&" - "&C25 -> Vote 11 - | B12: Vote 05 | C12: Infrustracture And Water Services
A13: =B26&" - "&C26 -> Vote 12 - | B13: 05.1 | C13: Technical Services Admin | D13: =CONCATENATE(B13, " - ", C13) -> 05.1 - Technical Services Admin | E13: 05.1 - Technical Services Admin
A14: =B27&" - "&C27 -> Vote 13 - | B14: 05.2 | C14: Water Services | D14: =CONCATENATE(B14, " - ", C14) -> 05.2 - Water Services | E14: 05.2 - Water Services
A15: =B28&" - "&C28 -> Vote 14 - | B15: 05.3 | C15: Sanitation Services | D15: =CONCATENATE(B15, " - ", C15) -> 05.3 - Sanitation Services | E15: 05.3 - Sanitation Services
A16: =B29&" - "&C29 -> Vote 15 - Other | B16: Vote 06 | C16: Planning And Economic Development
B17: 06.1 | C17: Planning & Economic Dev Admin | D17: =CONCATENATE(B17, " - ", C17) -> 06.1 - Planning & Economic Dev Admin | E17: 06.1 - Planning & Economic Dev Admin
B18: Vote 07 | C18: Community Services
B19: 07.1 | C19: Community Services Admin | D19: =CONCATENATE(B19, " - ", C19) -> 07.1 - Community Services Admin | E19: 07.1 - Community Services Admin
B20: Vote 08 | C20: Sekhukhune Development Angancy
B21: 08.1 | C21: Sekhukhune Development Agency | D21: =CONCATENATE(B21, " - ", C21) -> 08.1 - Sekhukhune Development Agency | E21: 08.1 - Sekhukhune Development Agency
B22: Vote 09 | C22: Corporate Services
B23: 09.1 | C23: Corporate Services Admin | D23: =CONCATENATE(B23, " - ", C23) -> 09.1 - Corporate Services Admin | E23: 09.1 - Corporate Services Admin
B24: Vote 10
B25: Vote 11
B26: Vote 12
B27: Vote 13
B28: Vote 14
B29: Vote 15 | C29: Other
B30: 15.1 | C30: Electricity Reporting Function | D30: =CONCATENATE(B30, " - ", C30) -> 15.1 - Electricity Reporting Function | E30: 15.1 - Electricity Reporting Function

Sheet Contacts
A1: =muni&" - "&" Contact Information" -> DC47 Sekhukhune - Contact Information
A3: A. GENERAL INFORMATION
A4: Municipality | B4: =muni -> DC47 Sekhukhune | C4: =IF(B4="Choose name from List","Set name on 'Instructions' sheet", "") -> 
A6: Grade | B6: grade 4 | C6: 1 Grade in terms of the Remuneration of Public Office Bearers Act.
A8: Province | B8: =IF(B4>" ",VLOOKUP(B4,'Lookup and lists'!B29:C307,2, FALSE)," ") -> LIM LIMPOPO
A10: Web Address | B10: www.sekhukhune.gov.za
A12: e-mail Address | B12: www.sekhukhune.gov.za
A14: B. CONTACT INFORMATION
A15: Postal address:
A16: P.O. Box | B16: 8611
A17: City / Town | B17: Groblersdal
A18: Postal Code | B18: 0470
A20: Street address
A21: Building | B21: Bareki Mall
A22: Street No. & Name | B22: Cnr Van Rebeck and Cris Wild
A23: City / Town | B23: groblersdal
A24: Postal Code | B24: 0470
A26: General Contacts
A27: Telephone number | B27: 0132627000
A28: Fax number | B28: 0132623688
A30: C. POLITICAL LEADERSHIP
A31: Speaker: | C31: Secretary/PA to the Speaker:
A32: ID Number | B32: 6902027028084 | C32: ID Number | D32: 7612010524085
A33: Title | B33: Mr | C33: Title | D33: Ms
A34: Name | B34: Chego David Kgwediebotse | C34: Name | D34: Patricia Madibane
A35: Telephone number | B35: 0132627300 | C35: Telephone number | D35: 0132627301
A36: Cell number | B36: 0721852639 | C36: Cell number | D36: 0727496229
A37: Fax number | B37: 0132623688 | C37: Fax number | D37: 0132627300
A38: E-mail address | B38: chegod@sekhukhune.gov.za | C38: E-mail address | D38: madibanep@sekhukhune.gov.za
A40: Mayor/Executive Mayor: | C40: Secretary/PA to the Mayor/Executive Mayor:
A41: ID Number | B41: 5903060683083 | C41: ID Number | D41: 8207020769082
A42: Title | B42: Mrs | C42: Title | D42: Ms
A43: Name | B43: MJ Mokganyetjie | C43: Name | D43: Mpai Rammupudu
A44: Telephone number | B44: 0132627459 | C44: Telephone number | D44: 0132627300
A45: Cell number | B45: 0828575625 | C45: Cell number | D45: 0727496336
A46: Fax number | B46: 0132623688 | C46: Fax number | D46: 0132623688
A47: E-mail address | B47: mokganyetjiem@Sekhukhune.gov.za | C47: E-mail address | D47: rammupudum@sekhukhune.gov.za
A49: Deputy Mayor/Executive Mayor: | C49: Secretary/PA to the Deputy Mayor/Executive Mayor:
A50: ID Number | C50: ID Number
A51: Title | C51: Title
A52: Name | C52: Name
A53: Telephone number | C53: Telephone number
A54: Cell number | C54: Cell number
A55: Fax number | C55: Fax number
A56: E-mail address | C56: E-mail address
A58: D. MANAGEMENT LEADERSHIP
A59: Municipal Manager: | C59: Secretary/PA to the Municipal Manager:
A60: ID Number | B60: 7306250526088 | C60: ID Number | D60: 8705310747080
A61: Title | B61: Ms | C61: Title | D61: Ms
A62: Name | B62: Nancy Rampedi | C62: Name | D62: Rachel Maunatlala
A63: Telephone number | B63: 0132627312 | C63: Telephone number | D63: 0132627312
A64: Cell number | B64: 0825780196 | C64: Cell number | D64: 0728168285
A65: Fax number | B65: 0132623688 | C65: Fax number | D65: 0132623688
A66: E-mail address | B66: rampedin@sekhukhune.gov.za | C66: E-mail address | D66: Maunatlalar@sekhukhune.gov.za
A68: Chief Financial Officer | C68: Secretary/PA to the Chief Financial Officer
A69: ID Number | B69: 8602245736082 | C69: ID Number | D69: 9503010837080
A70: Title | B70: Mr | C70: Title | D70: Ms
A71: Name | B71: Hendrick Legamane Nkadimeng | C71: Name | D71: Lethabo Matlala
A72: Telephone number | B72: 0132627584 | C72: Telephone number | D72: 0132627584
A73: Cell number | B73: 0832691411 | C73: Cell number | D73: 0723790629
A74: Fax number | B74: 013 262 4303 | C74: Fax number | D74: 0132623688
A75: E-mail address | B75: nkadimengh@sekhukhune.gov.za | C75: E-mail address | D75: Matlalalm@sekhukhune.gov.za
A77: Official responsible for submitting financial information | C77: Official responsible for submitting financial information
A78: ID Number | B78: 8612040651089 | C78: ID Number | D78: 7809030373085
A79: Title | B79: Ms | C79: Title | D79: Ms
A80: Name | B80: MAPHOKENG PETUNIA PITJO | C80: Name | D80: MATHUNG MATLALA
A81: Telephone number | B81: 0132627666 | C81: Telephone number | D81: 013 262 7522
A82: Cell number | B82: 0605269306 | C82: Cell number | D82: 0828529934
A83: Fax number | B83: 0132623688 | C83: Fax number | D83: 013 262 4303
A84: E-mail address | B84: pitjom@sekhukhune.gov.za | C84: E-mail address | D84: matlalam@Sekhukhune.gov.za
A85: Official responsible for submitting financial information | C85: Official responsible for submitting financial information
A86: ID Number | B86: 910712 0452 008 | C86: ID Number
A87: Title | B87: Ms | C87: Title
A88: Name | B88: SENZILE MASEKO | C88: Name
A89: Telephone number | B89: 013 262 7670 | C89: Telephone number
A90: Cell number | B90: 073 985 1961 | C90: Cell number
A91: Fax number | B91: 013 262 4303 | C91: Fax number
A92: E-mail address | B92: masekos@sekhukhune.gov.za | C92: E-mail address
A93: Official responsible for submitting financial information | C93: Official responsible for submitting financial information
A94: ID Number | C94: ID Number
A95: Title | C95: Title
A96: Name | C96: Name
A97: Telephone number | C97: Telephone number
A98: Cell number | C98: Cell number
A99: Fax number | C99: Fax number
A100: E-mail address | C100: E-mail address
A101: Official responsible for submitting financial information | C101: Official responsible for submitting financial information
A102: ID Number | C102: ID Number
A103: Title | C103: Title
A104: Name | C104: Name
A105: Telephone number | C105: Telephone number
A106: Cell number | C106: Cell number
A107: Fax number | C107: Fax number
A108: E-mail address | C108: E-mail address
A109: Official responsible for submitting financial information | C109: Official responsible for submitting financial information
A110: ID Number | C110: ID Number
A111: Title | C111: Title
A112: Name | C112: Name
A113: Telephone number | C113: Telephone number
A114: Cell number | C114: Cell number
A115: Fax number | C115: Fax number
A116: E-mail address | C116: E-mail address
A117: Official responsible for submitting financial information | C117: Official responsible for submitting financial information
A118: ID Number | C118: ID Number
A119: Title | C119: Title
A120: Name | C120: Name
A121: Telephone number | C121: Telephone number
A122: Cell number | C122: Cell number
A123: Fax number | C123: Fax number
A124: E-mail address | C124: E-mail address
A125: Official responsible for submitting financial information | C125: Official responsible for submitting financial information
A126: ID Number | C126: ID Number
A127: Title | C127: Title
A128: Name | C128: Name
A129: Telephone number | C129: Telephone number
A130: Cell number | C130: Cell number
A131: Fax number | C131: Fax number
A132: E-mail address | C132: E-mail address
A133: Official responsible for submitting financial information
A134: ID Number
A135: Title
A136: Name
A137: Telephone number
A138: Cell number
A139: Fax number
A140: E-mail address

Sheet A1-Sum
A1: =muni&" - "&Approve1 -> DC47 Sekhukhune - Table A1 Budget Summary
A2: =desc -> Description | B2: =head1b -> 2019/20 | C2: =head1A -> 2020/21 | D2: =Head1 -> 2021/22 | E2: =Head2 -> Current Year 2022/23 | I2: =Head3 -> 2023/24 Medium Term Revenue & Expenditure Framework
A3: R thousands | B3: =Head5 -> Audited Outcome | C3: =Head5 -> Audited Outcome | D3: =Head5 -> Audited Outcome | E3: =Head6 -> Original Budget | F3: =Head7 -> Adjusted Budget | G3: =Head8 -> Full Year Forecast | H3: =Head5b -> Pre-audit outcome | I3: =Head9 -> Budget Year 2023/24 | J3: =Head10 -> Budget Year +1 2024/25 | K3: =Head11 -> Budget Year +2 2025/26
A4: Financial Performance
A5: Property rates | B5: ='A4-FinPerf RE'!C21 -> 0 | C5: ='A4-FinPerf RE'!D21 -> 0 | D5: ='A4-FinPerf RE'!E21 -> 0 | E5: ='A4-FinPerf RE'!F21 -> 0 | F5: ='A4-FinPerf RE'!G21 -> 0 | G5: ='A4-FinPerf RE'!H21 -> 0 | H5: ='A4-FinPerf RE'!I21 -> 0 | I5: ='A4-FinPerf RE'!J21 -> 0 | J5: ='A4-FinPerf RE'!K21 -> 0 | K5: ='A4-FinPerf RE'!L21 -> 0
A6: Service charges | B6: =SUM('A4-FinPerf RE'!C6:C9) -> 94840931.75 | C6: =SUM('A4-FinPerf RE'!D6:D9) -> 85340370.1 | D6: =SUM('A4-FinPerf RE'!E6:E9) -> 94213107.95 | E6: =SUM('A4-FinPerf RE'!F6:F9) -> 103570014 | F6: =SUM('A4-FinPerf RE'!G6:G9) -> 103570014 | G6: =SUM('A4-FinPerf RE'!H6:H9) -> 103570014 | H6: =SUM('A4-FinPerf RE'!I6:I9) -> 78787136.22 | I6: =SUM('A4-FinPerf RE'!J6:J9) -> 109059226 | J6: =SUM('A4-FinPerf RE'!K6:K9) -> 114403127 | K6: =SUM('A4-FinPerf RE'!L6:L9) -> 119780075
A7: Investment revenue | B7: ='A4-FinPerf RE'!C14 -> 9889632.36 | C7: ='A4-FinPerf RE'!D14 -> 15003055.27 | D7: ='A4-FinPerf RE'!E14 -> 21517319.28 | E7: ='A4-FinPerf RE'!F14 -> 21659404 | F7: ='A4-FinPerf RE'!G14 -> 21659404 | G7: ='A4-FinPerf RE'!H14 -> 21659404 | H7: ='A4-FinPerf RE'!I14 -> 43493521.32 | I7: ='A4-FinPerf RE'!J14 -> 26991908 | J7: ='A4-FinPerf RE'!K14 -> 31170140 | K7: ='A4-FinPerf RE'!L14 -> 41594349
A8: Transfer and subsidies - Operational | B8: ='A4-FinPerf RE'!C25 -> 859188517 | C8: ='A4-FinPerf RE'!D25 -> 1074694103 | D8: ='A4-FinPerf RE'!E25 -> 1002742893 | E8: ='A4-FinPerf RE'!F25 -> 1087843560 | F8: ='A4-FinPerf RE'!G25 -> 1052092311 | G8: ='A4-FinPerf RE'!H25 -> 1052092311 | H8: ='A4-FinPerf RE'!I25 -> 985467448.1 | I8: ='A4-FinPerf RE'!J25 -> 1118176990 | J8: ='A4-FinPerf RE'!K25 -> 1261384458 | K8: ='A4-FinPerf RE'!L25 -> 1359398233
A9: Other own revenue | B9: ='A4-FinPerf RE'!C32-SUM(B5:B8) -> 18655253.36 | C9: ='A4-FinPerf RE'!D32-SUM(C5:C8) -> 95926888.9 | D9: ='A4-FinPerf RE'!E32-SUM(D5:D8) -> 17327894.92 | E9: ='A4-FinPerf RE'!F32-SUM(E5:E8) -> 17876171 | F9: ='A4-FinPerf RE'!G32-SUM(F5:F8) -> 17876171 | G9: ='A4-FinPerf RE'!H32-SUM(G5:G8) -> 17876171 | H9: ='A4-FinPerf RE'!I32-SUM(H5:H8) -> 25127769.78 | I9: ='A4-FinPerf RE'!J32-SUM(I5:I8) -> 18823608 | J9: ='A4-FinPerf RE'!K32-SUM(J5:J8) -> 19745964 | K9: ='A4-FinPerf RE'!L32-SUM(K5:K8) -> 20674027
A10: ='A4-FinPerf RE'!A32 -> Total Revenue (excluding capital transfers and contributions) | B10: =SUM(B5:B9) -> 982574334.5 | C10: =SUM(C5:C9) -> 1270964417 | D10: 1135801215 | E10: 1230949149 | F10: 1195197900 | G10: 1195197900 | H10: 1132875875 | I10: 1273051732 | J10: 1426703689 | K10: 1541446684
A11: Employee costs | B11: ='A4-FinPerf RE'!C34 -> 395222658.9 | C11: ='A4-FinPerf RE'!D34 -> 413179304.5 | D11: ='A4-FinPerf RE'!E34 -> 401062622.2 | E11: ='A4-FinPerf RE'!F34 -> 459428896 | F11: ='A4-FinPerf RE'!G34 -> 454581013 | G11: ='A4-FinPerf RE'!H34 -> 454581013 | H11: ='A4-FinPerf RE'!I34 -> 333078730.9 | I11: ='A4-FinPerf RE'!J34 -> 478529270 | J11: ='A4-FinPerf RE'!K34 -> 502055610 | K11: ='A4-FinPerf RE'!L34 -> 525652225
A12: Remuneration of councillors | B12: ='A4-FinPerf RE'!C35 -> 15466714.2 | C12: ='A4-FinPerf RE'!D35 -> 15042795.47 | D12: ='A4-FinPerf RE'!E35 -> 15631492.35 | E12: ='A4-FinPerf RE'!F35 -> 18422108 | F12: ='A4-FinPerf RE'!G35 -> 18122108 | G12: ='A4-FinPerf RE'!H35 -> 18122108 | H12: ='A4-FinPerf RE'!I35 -> 29732806.03 | I12: ='A4-FinPerf RE'!J35 -> 19082579 | J12: ='A4-FinPerf RE'!K35 -> 20017625 | K12: ='A4-FinPerf RE'!L35 -> 20958453
A13: Depreciation and amortisation | B13: ='A4-FinPerf RE'!C39 -> 122229924.3 | C13: ='A4-FinPerf RE'!D39 -> 94331435.57 | D13: ='A4-FinPerf RE'!E39 -> 116366974.3 | E13: ='A4-FinPerf RE'!F39 -> 106884864 | F13: ='A4-FinPerf RE'!G39 -> 94814864 | G13: ='A4-FinPerf RE'!H39 -> 94814864 | H13: ='A4-FinPerf RE'!I39 -> 0 | I13: ='A4-FinPerf RE'!J39 -> 99840051 | J13: ='A4-FinPerf RE'!K39 -> 104732214 | K13: ='A4-FinPerf RE'!L39 -> 109654628
A14: Interest | B14: ='A4-FinPerf RE'!C40 -> 0 | C14: ='A4-FinPerf RE'!D40 -> 0 | D14: ='A4-FinPerf RE'!E40 -> 0 | E14: ='A4-FinPerf RE'!F40 -> 509411 | F14: ='A4-FinPerf RE'!G40 -> 100000 | G14: ='A4-FinPerf RE'!H40 -> 100000 | H14: ='A4-FinPerf RE'!I40 -> 0 | I14: ='A4-FinPerf RE'!J40 -> 105300 | J14: ='A4-FinPerf RE'!K40 -> 110460 | K14: ='A4-FinPerf RE'!L40 -> 115651
A15: Inventory consumed and bulk purchases | B15: ='A4-FinPerf RE'!C36+'A4-FinPerf RE'!C37 -> 25650773 | C15: ='A4-FinPerf RE'!D36+'A4-FinPerf RE'!D37 -> 24307534 | D15: ='A4-FinPerf RE'!E36+'A4-FinPerf RE'!E37 -> 22905628 | E15: ='A4-FinPerf RE'!F36+'A4-FinPerf RE'!F37 -> 191075226 | F15: ='A4-FinPerf RE'!G36+'A4-FinPerf RE'!G37 -> 166993584 | G15: ='A4-FinPerf RE'!H36+'A4-FinPerf RE'!H37 -> 166993584 | H15: ='A4-FinPerf RE'!I36+'A4-FinPerf RE'!I37 -> 19899054.13 | I15: ='A4-FinPerf RE'!J36+'A4-FinPerf RE'!J37 -> 185066733 | J15: ='A4-FinPerf RE'!K36+'A4-FinPerf RE'!K37 -> 224717503 | K15: ='A4-FinPerf RE'!L36+'A4-FinPerf RE'!L37 -> 269084164
A16: Transfers and subsidies | B16: ='A4-FinPerf RE'!C42 -> 3497209.2 | C16: ='A4-FinPerf RE'!D42 -> 2556298.03 | D16: ='A4-FinPerf RE'!E42 -> 3219345.65 | E16: ='A4-FinPerf RE'!F42 -> 0 | F16: ='A4-FinPerf RE'!G42 -> 0 | G16: ='A4-FinPerf RE'!H42 -> 0 | H16: ='A4-FinPerf RE'!I42 -> 0 | I16: ='A4-FinPerf RE'!J42 -> 20000000 | J16: ='A4-FinPerf RE'!K42 -> 0 | K16: ='A4-FinPerf RE'!L42 -> 0
A17: Other expenditure | B17: ='A4-FinPerf RE'!C47-SUM(B11:B16) -> 376167056.2 | C17: ='A4-FinPerf RE'!D47-SUM(C11:C16) -> 381701084.2 | D17: ='A4-FinPerf RE'!E47-SUM(D11:D16) -> 430736414.5 | E17: ='A4-FinPerf RE'!F47-SUM(E11:E16) -> 434265231 | F17: ='A4-FinPerf RE'!G47-SUM(F11:F16) -> 415088791 | G17: ='A4-FinPerf RE'!H47-SUM(G11:G16) -> 415088791 | H17: ='A4-FinPerf RE'!I47-SUM(H11:H16) -> 300228654.7 | I17: ='A4-FinPerf RE'!J47-SUM(I11:I16) -> 428122870 | J17: ='A4-FinPerf RE'!K47-SUM(J11:J16) -> 551626374 | K17: ='A4-FinPerf RE'!L47-SUM(K11:K16) -> 591286187
A18: ='A4-FinPerf RE'!A47 -> Total Expenditure | B18: =SUM(B11:B17) -> 938234335.8 | C18: =SUM(C11:C17) -> 931118451.7 | D18: 989922477 | E18: 1210585736 | F18: 1149700360 | G18: 1149700360 | H18: 682939245.8 | I18: 1230746803 | J18: 1403259786 | K18: 1516751308
A19: ='A4-FinPerf RE'!A48 -> Surplus/(Deficit) | B19: =B10-B18 -> 44339998.65 | C19: =C10-C18 -> 339845965.2 | D19: 145878738.4 | E19: 20363413 | F19: 45497540 | G19: 45497540 | H19: 449936629.7 | I19: 42304929 | J19: 23443903 | K19: 24695376
A20: ='A4-FinPerf RE'!A49 -> Transfers and subsidies - capital (monetary allocations) | B20: ='A4-FinPerf RE'!C49 -> 443917155.9 | C20: ='A4-FinPerf RE'!D49 -> 448733186.9 | D20: ='A4-FinPerf RE'!E49 -> 345116894.4 | E20: ='A4-FinPerf RE'!F49 -> 469076440 | F20: ='A4-FinPerf RE'!G49 -> 567323148 | G20: ='A4-FinPerf RE'!H49 -> 567323148 | H20: ='A4-FinPerf RE'!I49 -> 191089436.5 | I20: ='A4-FinPerf RE'!J49 -> 551608010 | J20: ='A4-FinPerf RE'!K49 -> 557785542 | K20: ='A4-FinPerf RE'!L49 -> 572601767
A21: ='A4-FinPerf RE'!A50 -> Transfers and subsidies - capital (in-kind) | B21: ='A4-FinPerf RE'!C50 -> 708098.46 | C21: ='A4-FinPerf RE'!D50 -> 1201523.31 | D21: ='A4-FinPerf RE'!E50 -> 1598415.56 | E21: ='A4-FinPerf RE'!F50 -> 0 | F21: ='A4-FinPerf RE'!G50 -> 0 | G21: ='A4-FinPerf RE'!H50 -> 0 | H21: ='A4-FinPerf RE'!I50 -> 2742603.91 | I21: ='A4-FinPerf RE'!J50 -> 0 | J21: ='A4-FinPerf RE'!K50 -> 0 | K21: ='A4-FinPerf RE'!L50 -> 0
A22: ='A4-FinPerf RE'!A51 -> Surplus/(Deficit) after capital transfers & contributions | B22: =B19+SUM(B20:B21) -> 488965253 | C22: =C19+SUM(C20:C21) -> 789780675.5 | D22: 492594048.3 | E22: 489439853 | F22: 612820688 | G22: 612820688 | H22: 643768670.1 | I22: 593912939 | J22: 581229445 | K22: 597297143
A23: ='A4-FinPerf RE'!A57 -> Share of Surplus/Deficit attributable to Associate | B23: ='A4-FinPerf RE'!C57 -> 0 | C23: ='A4-FinPerf RE'!D57 -> 0 | D23: ='A4-FinPerf RE'!E57 -> 0 | E23: ='A4-FinPerf RE'!F57 -> 0 | F23: ='A4-FinPerf RE'!G57 -> 0 | G23: ='A4-FinPerf RE'!H57 -> 0 | H23: ='A4-FinPerf RE'!I57 -> 0 | I23: ='A4-FinPerf RE'!J57 -> 0 | J23: ='A4-FinPerf RE'!K57 -> 0 | K23: ='A4-FinPerf RE'!L57 -> 0
A24: ='A4-FinPerf RE'!A59 -> Surplus/(Deficit) for the year | B24: =B22+B23 -> 488965253 | C24: =C22+C23 -> 789780675.5 | D24: 492594048.3 | E24: 489439853 | F24: 612820688 | G24: 612820688 | H24: 643768670.1 | I24: 593912939 | J24: 581229445 | K24: 597297143
A25: Capital expenditure & funds sources
A26: Capital expenditure | B26: ='A5-Capex'!C63 -> 390198098 | C26: ='A5-Capex'!D63 -> 421393771.7 | D26: ='A5-Capex'!E63 -> 351036807 | E26: ='A5-Capex'!F63 -> 489206441 | F26: ='A5-Capex'!G63 -> 612578484 | G26: ='A5-Capex'!H63 -> 612578484 | H26: ='A5-Capex'!I63 -> 189601462 | I26: ='A5-Capex'!J63 -> 593743325 | J26: ='A5-Capex'!K63 -> 579118381 | K26: ='A5-Capex'!L63 -> 595086856
A27: Transfers recognised - capital | B27: ='A5-Capex'!C70 -> 386878394.9 | C27: ='A5-Capex'!D70 -> 398318906 | D27: ='A5-Capex'!E70 -> 307774256.7 | E27: ='A5-Capex'!F70 -> 469076441 | F27: ='A5-Capex'!G70 -> 567983147 | G27: ='A5-Capex'!H70 -> 567983147 | H27: ='A5-Capex'!I70 -> 172558236.5 | I27: ='A5-Capex'!J70 -> 551608011 | J27: ='A5-Capex'!K70 -> 557785542 | K27: ='A5-Capex'!L70 -> 572601766
A29: ='A5-Capex'!A72 -> Borrowing | B29: ='A5-Capex'!C72 -> 0 | C29: ='A5-Capex'!D72 -> 0 | D29: ='A5-Capex'!E72 -> 0 | E29: ='A5-Capex'!F72 -> 0 | F29: ='A5-Capex'!G72 -> 0 | G29: ='A5-Capex'!H72 -> 0 | H29: ='A5-Capex'!I72 -> 0 | I29: ='A5-Capex'!J72 -> 0 | J29: ='A5-Capex'!K72 -> 0 | K29: ='A5-Capex'!L72 -> 0
A30: ='A5-Capex'!A73 -> Internally generated funds | B30: ='A5-Capex'!C73 -> 3319703.09 | C30: ='A5-Capex'!D73 -> 23074865.71 | D30: ='A5-Capex'!E73 -> 43262550.3 | E30: ='A5-Capex'!F73 -> 20130000 | F30: ='A5-Capex'!G73 -> 44595337 | G30: ='A5-Capex'!H73 -> 44595337 | H30: ='A5-Capex'!I73 -> 17043225.49 | I30: ='A5-Capex'!J73 -> 42135314 | J30: ='A5-Capex'!K73 -> 21332839 | K30: ='A5-Capex'!L73 -> 22485090
A31: Total sources of capital funds | B31: =+B27+B29+B30 -> 390198098 | C31: =+C27+C29+C30 -> 421393771.7 | D31: 351036807 | E31: 489206441 | F31: 612578484 | G31: 612578484 | H31: 189601462 | I31: 593743325 | J31: 579118381 | K31: 595086856
A32: Financial position
A33: ='A6-FinPos'!A13 -> Total current assets | B33: ='A6-FinPos'!C13 -> 431507734.4 | C33: ='A6-FinPos'!D13 -> 713924749.6 | D33: ='A6-FinPos'!E13 -> 445899978.9 | E33: ='A6-FinPos'!F13 -> 559575513 | F33: ='A6-FinPos'!G13 -> 911509261 | G33: ='A6-FinPos'!H13 -> 911509261 | H33: ='A6-FinPos'!I13 -> 477115788.8 | I33: ='A6-FinPos'!J13 -> 1306048763 | J33: ='A6-FinPos'!K13 -> 1251594589 | K33: ='A6-FinPos'!L13 -> 1547161663
A34: ='A6-FinPos'!A25 -> Total non current assets | B34: ='A6-FinPos'!C25 -> 3552763769 | C34: ='A6-FinPos'!D25 -> 3871945186 | D34: ='A6-FinPos'!E25 -> 4867355618 | E34: ='A6-FinPos'!F25 -> 3772526586 | F34: ='A6-FinPos'!G25 -> 3896328650 | G34: ='A6-FinPos'!H25 -> 3896328650 | H34: ='A6-FinPos'!I25 -> 5571296966 | I34: ='A6-FinPos'!J25 -> 3877063470 | J34: ='A6-FinPos'!K25 -> 4023321212 | K34: ='A6-FinPos'!L25 -> 4201639514
A35: ='A6-FinPos'!A37 -> Total current liabilities | B35: ='A6-FinPos'!C37 -> 518007939.7 | C35: ='A6-FinPos'!D37 -> 564187331 | D35: ='A6-FinPos'!E37 -> 644716177.5 | E35: ='A6-FinPos'!F37 -> 278604277 | F35: ='A6-FinPos'!G37 -> 301419653 | G35: ='A6-FinPos'!H37 -> 301419653 | H35: ='A6-FinPos'!I37 -> 862554140.5 | I35: ='A6-FinPos'!J37 -> 259209180 | J35: ='A6-FinPos'!K37 -> 247876205 | K35: ='A6-FinPos'!L37 -> 254497085
A36: ='A6-FinPos'!A43 -> Total non current liabilities | B36: ='A6-FinPos'!C43 -> 17687000 | C36: ='A6-FinPos'!D43 -> 20839000 | D36: ='A6-FinPos'!E43 -> 22962702.86 | E36: ='A6-FinPos'!F43 -> 19486415 | F36: ='A6-FinPos'!G43 -> 19486415 | G36: ='A6-FinPos'!H43 -> 19486415 | H36: ='A6-FinPos'!I43 -> 22475345.2 | I36: ='A6-FinPos'!J43 -> 54002671 | J36: ='A6-FinPos'!K43 -> 53775000 | K36: ='A6-FinPos'!L43 -> 56690112
A37: Community wealth/Equity | B37: ='A6-FinPos'!C50 -> 3565196820 | C37: ='A6-FinPos'!D50 -> 4137987344 | D37: ='A6-FinPos'!E50 -> 4743753478 | E37: ='A6-FinPos'!F50 -> 4085220273 | F37: ='A6-FinPos'!G50 -> 4738140710 | G37: ='A6-FinPos'!H50 -> 4738140710 | H37: ='A6-FinPos'!I50 -> 5228523769 | I37: ='A6-FinPos'!J50 -> 4870201054 | J37: ='A6-FinPos'!K50 -> 4972964596 | K37: ='A6-FinPos'!L50 -> 5602646156
A38: Cash flows
A39: Net cash from (used) operating | B39: ='A7-CFlow'!C17 -> 0 | C39: ='A7-CFlow'!D17 -> -652261101.9 | D39: ='A7-CFlow'!E17 -> -1817020206 | E39: ='A7-CFlow'!F17 -> 550275334 | F39: ='A7-CFlow'!G17 -> 655586170 | G39: ='A7-CFlow'!H17 -> 655586170 | H39: ='A7-CFlow'!I17 -> -913497567.1 | I39: ='A7-CFlow'!J17 -> 733678265 | J39: ='A7-CFlow'!K17 -> 843082612 | K39: ='A7-CFlow'!L17 -> 789396930
A40: Net cash from (used) investing | B40: ='A7-CFlow'!C26 -> -118292482.8 | C40: ='A7-CFlow'!D26 -> -358084714 | D40: ='A7-CFlow'!E26 -> 17532174.12 | E40: ='A7-CFlow'!F26 -> -728701810.1 | F40: ='A7-CFlow'!G26 -> -612148463 | G40: ='A7-CFlow'!H26 -> -612148463 | H40: ='A7-CFlow'!I26 -> 346885605.2 | I40: ='A7-CFlow'!J26 -> -593290513 | J40: ='A7-CFlow'!K26 -> -578643381 | K40: ='A7-CFlow'!L26 -> -594589531
A41: Net cash from (used) financing | B41: ='A7-CFlow'!C35 -> 0 | C41: ='A7-CFlow'!D35 -> 0 | D41: ='A7-CFlow'!E35 -> 0 | E41: ='A7-CFlow'!F35 -> 0 | F41: ='A7-CFlow'!G35 -> 0 | G41: ='A7-CFlow'!H35 -> 0 | H41: ='A7-CFlow'!I35 -> 0 | I41: ='A7-CFlow'!J35 -> 0 | J41: ='A7-CFlow'!K35 -> 110755 | K41: ='A7-CFlow'!L35 -> 115961
A42: =LEFT('A7-CFlow'!A39,37) -> Cash/cash equivalents at the year end | B42: ='A7-CFlow'!C39 -> -106131689.1 | C42: ='A7-CFlow'!D39 -> -829648071.1 | D42: ='A7-CFlow'!E39 -> -1433441354 | E42: ='A7-CFlow'!F39 -> 131946108.9 | F42: ='A7-CFlow'!G39 -> 482170847 | G42: ='A7-CFlow'!H39 -> 482170847 | H42: ='A7-CFlow'!I39 -> -566611961.9 | I42: ='A7-CFlow'!J39 -> 416349145 | J42: ='A7-CFlow'!K39 -> 680899131 | K42: ='A7-CFlow'!L39 -> 875822491
A44: Cash backing/surplus reconciliation
A45: ='A8-ResRecon'!A4 -> Cash and investments available | B45: ='A8-ResRecon'!C8 -> 62405262 | C45: ='A8-ResRecon'!D8 -> 237403087.6 | D45: ='A8-ResRecon'!E8 -> 398718988.1 | E45: ='A8-ResRecon'!F8 -> 271871583 | F45: ='A8-ResRecon'!G8 -> 449723689 | G45: ='A8-ResRecon'!H8 -> 449723689 | H45: ='A8-ResRecon'!I8 -> 876874622.7 | I45: ='A8-ResRecon'!J8 -> 406789922 | J45: ='A8-ResRecon'!K8 -> 508642165 | K45: ='A8-ResRecon'!L8 -> 875822491
A46: ='A8-ResRecon'!A10 -> Application of cash and investments | B46: ='A8-ResRecon'!C18 -> 460781707.9 | C46: ='A8-ResRecon'!D18 -> 439087496.9 | D46: ='A8-ResRecon'!E18 -> 736588121.6 | E46: ='A8-ResRecon'!F18 -> 217243515 | F46: ='A8-ResRecon'!G18 -> 240058891 | G46: ='A8-ResRecon'!H18 -> 240058891 | H46: ='A8-ResRecon'!I18 -> 1161577261 | I46: ='A8-ResRecon'!J18 -> -74702000 | J46: ='A8-ResRecon'!K18 -> -129721312 | K46: ='A8-ResRecon'!L18 -> -112076831
A47: Balance - surplus (shortfall) | B47: =B45-B46 -> -398376445.9 | C47: =C45-C46 -> -201684409.3 | D47: -337869133.4 | E47: 54628068 | F47: 209664798 | G47: 209664798 | H47: -284702638.3 | I47: 481491922 | J47: 638363477 | K47: 987899322
A48: Asset management
A49: Asset register summary (WDV) | B49: ='A9-Asset'!C180 -> 2388135371 | C49: ='A9-Asset'!D180 -> 2662158689 | D49: ='A9-Asset'!E180 -> 3651056174 | E49: ='A9-Asset'!F180 -> 2646498186 | F49: ='A9-Asset'!G180 -> 2770300250 | G49: ='A9-Asset'!H180 -> 2770300250 | I49: ='A9-Asset'!I180 -> 2751035070 | J49: ='A9-Asset'!J180 -> 2842117420 | K49: ='A9-Asset'!K180 -> 2964919144
A50: ='A9-Asset'!A183 -> Depreciation | B50: ='A9-Asset'!C183 -> 122229924.3 | C50: ='A9-Asset'!D183 -> 94331435.57 | D50: ='A9-Asset'!E183 -> 116366974.3 | E50: ='A9-Asset'!F183 -> 106884864 | F50: ='A9-Asset'!G183 -> 94814864 | G50: ='A9-Asset'!H183 -> 94814864 | I50: ='A9-Asset'!I183 -> 99840051 | J50: ='A9-Asset'!J183 -> 104732214 | K50: ='A9-Asset'!K183 -> 109654628
A51: Renewal and Upgrading of Existing Assets | B51: ='A9-Asset'!C40+'A9-Asset'!C75 -> 105683550.4 | C51: ='A9-Asset'!D40+'A9-Asset'!D75 -> 139731993.2 | D51: ='A9-Asset'!E40+'A9-Asset'!E75 -> 65031407.14 | E51: ='A9-Asset'!F40+'A9-Asset'!F75 -> 6493603 | F51: ='A9-Asset'!G40+'A9-Asset'!G75 -> 17950629 | G51: ='A9-Asset'!H40+'A9-Asset'!H75 -> 17950629 | I51: ='A9-Asset'!I40+'A9-Asset'!I75 -> 8410000 | J51: ='A9-Asset'!J40+'A9-Asset'!J75 -> 28213593 | K51: ='A9-Asset'!K40+'A9-Asset'!K75 -> 35911373
A52: Repairs and Maintenance | B52: ='A9-Asset'!C184 -> 99305933.84 | C52: ='A9-Asset'!D184 -> 105300071.5 | D52: ='A9-Asset'!E184 -> 141736527.6 | E52: ='A9-Asset'!F184 -> 123052346 | F52: ='A9-Asset'!G184 -> 83944289 | G52: ='A9-Asset'!H184 -> 83944289 | I52: ='A9-Asset'!J184 -> 159351403 | J52: ='A9-Asset'!K184 -> 179321565 | K52: ='A9-Asset'!L184 -> 0
I53: ='A9-Asset'!I184 -> 68711859
A54: Free services
A55: Cost of Free Basic Services provided | B55: ='A10-SerDel'!C60 -> 0 | C55: ='A10-SerDel'!D60 -> 0 | D55: ='A10-SerDel'!E60 -> 0 | E55: ='A10-SerDel'!F60 -> 0 | F55: ='A10-SerDel'!G60 -> 0 | G55: ='A10-SerDel'!H60 -> 0 | I55: ='A10-SerDel'!I60 -> 0 | J55: ='A10-SerDel'!J60 -> 0 | K55: ='A10-SerDel'!K60 -> 0
A56: Revenue cost of free services provided | B56: ='A10-SerDel'!C79 -> 0 | C56: ='A10-SerDel'!D79 -> 0 | D56: ='A10-SerDel'!E79 -> 0 | E56: ='A10-SerDel'!F79 -> 0 | F56: ='A10-SerDel'!G79 -> 0 | G56: ='A10-SerDel'!H79 -> 0 | I56: ='A10-SerDel'!I79 -> 0 | J56: ='A10-SerDel'!J79 -> 0 | K56: ='A10-SerDel'!K79 -> 0
A57: Households below minimum service level
A58: ='A10-SerDel'!A5 -> Water: | B58: ='A10-SerDel'!C14 -> 0 | C58: ='A10-SerDel'!D14 -> 0 | D58: ='A10-SerDel'!E14 -> 0 | E58: ='A10-SerDel'!F14 -> 50000 | F58: ='A10-SerDel'!G14 -> 50000 | G58: ='A10-SerDel'!H14 -> 50000 | I58: ='A10-SerDel'!I14 -> 15000 | J58: ='A10-SerDel'!J14 -> 0 | K58: ='A10-SerDel'!K14 -> 0
A59: ='A10-SerDel'!A16 -> Sanitation/sewerage: | B59: ='A10-SerDel'!C26 -> 0 | C59: ='A10-SerDel'!D26 -> 0 | D59: ='A10-SerDel'!E26 -> 0 | E59: ='A10-SerDel'!F26 -> 5000 | F59: ='A10-SerDel'!G26 -> 5000 | G59: ='A10-SerDel'!H26 -> 5000 | I59: ='A10-SerDel'!I26 -> 10000 | J59: ='A10-SerDel'!J26 -> 15000 | K59: ='A10-SerDel'!K26 -> 0
A60: ='A10-SerDel'!A28 -> Energy: | B60: ='A10-SerDel'!C35 -> 0 | C60: ='A10-SerDel'!D35 -> 0 | D60: ='A10-SerDel'!E35 -> 0 | E60: ='A10-SerDel'!F35 -> 0 | F60: ='A10-SerDel'!G35 -> 0 | G60: ='A10-SerDel'!H35 -> 0 | I60: ='A10-SerDel'!I35 -> 0 | J60: ='A10-SerDel'!J35 -> 0 | K60: ='A10-SerDel'!K35 -> 0
A61: ='A10-SerDel'!A37 -> Refuse: | B61: ='A10-SerDel'!C45 -> 0 | C61: ='A10-SerDel'!D45 -> 0 | D61: ='A10-SerDel'!E45 -> 0 | E61: ='A10-SerDel'!F45 -> 0 | F61: ='A10-SerDel'!G45 -> 0 | G61: ='A10-SerDel'!H45 -> 0 | I61: ='A10-SerDel'!I45 -> 0 | J61: ='A10-SerDel'!J45 -> 0 | K61: ='A10-SerDel'!K45 -> 0

Sheet A2-FinPerf SC
A1: =muni&" - "&Approve3 -> DC47 Sekhukhune - Table A2 Budgeted Financial Performance (revenue and expenditure by functional classification)
A2: ="Functional Classification "&desc -> Functional Classification Description | B2: =head27 -> Ref | C2: =head1b -> 2019/20 | D2: =head1A -> 2020/21 | E2: =Head1 -> 2021/22 | F2: =Head2 -> Current Year 2022/23 | I2: =Head3 -> 2023/24 Medium Term Revenue & Expenditure Framework
A3: R thousand | B3: 1 | C3: =Head5 -> Audited Outcome | D3: =Head5 -> Audited Outcome | E3: =Head5 -> Audited Outcome | F3: =Head6 -> Original Budget | G3: =Head7 -> Adjusted Budget | H3: =Head8 -> Full Year Forecast | I3: =Head9 -> Budget Year 2023/24 | J3: =Head10 -> Budget Year +1 2024/25 | K3: =Head11 -> Budget Year +2 2025/26
A4: Revenue - Functional
A5: Governance and administration | C5: =SUM(C6:C8) -> 1427199589 | D5: =SUM(D6:D8) -> 1720899127 | E5: 1482516525 | F5: 1700025589 | G5: 1762521048 | H5: 1762521048 | I5: 1824659742 | J5: 1984489231 | K5: 2114048451
A6: Executive and council | C6: =A2A!C6 -> 0 | D6: =A2A!D6 -> 0 | E6: =A2A!E6 -> 0 | F6: =A2A!F6 -> 0 | G6: =A2A!G6 -> 0 | H6: =A2A!H6 -> 0 | I6: =A2A!I6 -> 0 | J6: =A2A!J6 -> 0 | K6: =A2A!K6 -> 0
A7: Finance and administration | C7: =A2A!C9 -> 1427199589 | D7: =A2A!D9 -> 1720899127 | E7: =A2A!E9 -> 1482516525 | F7: =A2A!F9 -> 1700025589 | G7: =A2A!G9 -> 1762521048 | H7: =A2A!H9 -> 1762521048 | I7: =A2A!I9 -> 1824659742 | J7: =A2A!J9 -> 1984489231 | K7: =A2A!K9 -> 2114048451
A8: Internal audit | C8: =A2A!C23 -> 0 | D8: =A2A!D23 -> 0 | E8: =A2A!E23 -> 0 | F8: =A2A!F23 -> 0 | G8: =A2A!G23 -> 0 | H8: =A2A!H23 -> 0 | I8: =A2A!I23 -> 0 | J8: =A2A!J23 -> 0 | K8: =A2A!K23 -> 0
A9: Community and public safety | C9: =SUM(C10:C14) -> 0 | D9: =SUM(D10:D14) -> 0 | E9: 0 | F9: 0 | G9: 0 | H9: 0 | I9: 0 | J9: 0 | K9: 0
A10: Community and social services | C10: =A2A!C26 -> 0 | D10: =A2A!D26 -> 0 | E10: =A2A!E26 -> 0 | F10: =A2A!F26 -> 0 | G10: =A2A!G26 -> 0 | H10: =A2A!H26 -> 0 | I10: =A2A!I26 -> 0 | J10: =A2A!J26 -> 0 | K10: =A2A!K26 -> 0
A11: Sport and recreation | C11: =A2A!C48 -> 0 | D11: =A2A!D48 -> 0 | E11: =A2A!E48 -> 0 | F11: =A2A!F48 -> 0 | G11: =A2A!G48 -> 0 | H11: =A2A!H48 -> 0 | I11: =A2A!I48 -> 0 | J11: =A2A!J48 -> 0 | K11: =A2A!K48 -> 0
A12: Public safety | C12: =A2A!C54 -> 0 | D12: =A2A!D54 -> 0 | E12: =A2A!E54 -> 0 | F12: =A2A!F54 -> 0 | G12: =A2A!G54 -> 0 | H12: =A2A!H54 -> 0 | I12: =A2A!I54 -> 0 | J12: =A2A!J54 -> 0 | K12: =A2A!K54 -> 0
A13: Housing | C13: =A2A!C63 -> 0 | D13: =A2A!D63 -> 0 | E13: =A2A!E63 -> 0 | F13: =A2A!F63 -> 0 | G13: =A2A!G63 -> 0 | H13: =A2A!H63 -> 0 | I13: =A2A!I63 -> 0 | J13: =A2A!J63 -> 0 | K13: =A2A!K63 -> 0
A14: Health | C14: =A2A!C66 -> 0 | D14: =A2A!D66 -> 0 | E14: =A2A!E66 -> 0 | F14: =A2A!F66 -> 0 | G14: =A2A!G66 -> 0 | H14: =A2A!H66 -> 0 | I14: =A2A!I66 -> 0 | J14: =A2A!J66 -> 0 | K14: =A2A!K66 -> 0
A15: Economic and environmental services | C15: =SUM(C16:C18) -> 0 | D15: =SUM(D16:D18) -> 0 | E15: 0 | F15: 0 | G15: 0 | H15: 0 | I15: 0 | J15: 0 | K15: 0
A16: Planning and development | C16: =A2A!C75 -> 0 | D16: =A2A!D75 -> 0 | E16: =A2A!E75 -> 0 | F16: =A2A!F75 -> 0 | G16: =A2A!G75 -> 0 | H16: =A2A!H75 -> 0 | I16: =A2A!I75 -> 0 | J16: =A2A!J75 -> 0 | K16: =A2A!K75 -> 0
A17: Road transport | C17: =A2A!C86 -> 0 | D17: =A2A!D86 -> 0 | E17: =A2A!E86 -> 0 | F17: =A2A!F86 -> 0 | G17: =A2A!G86 -> 0 | H17: =A2A!H86 -> 0 | I17: =A2A!I86 -> 0 | J17: =A2A!J86 -> 0 | K17: =A2A!K86 -> 0
A18: Environmental protection | C18: =A2A!C91 -> 0 | D18: =A2A!D91 -> 0 | E18: =A2A!E91 -> 0 | F18: =A2A!F91 -> 0 | G18: =A2A!G91 -> 0 | H18: =A2A!H91 -> 0 | I18: =A2A!I91 -> 0 | J18: =A2A!J91 -> 0 | K18: =A2A!K91 -> 0
A19: Trading services | C19: =SUM(C20:C23) -> 0 | D19: =SUM(D20:D23) -> 0 | E19: 0 | F19: 0 | G19: 0 | H19: 0 | I19: 0 | J19: =SUM(J20:J23) -> 0 | K19: 0
A20: Energy sources | C20: =A2A!C99 -> 0 | D20: =A2A!D99 -> 0 | E20: =A2A!E99 -> 0 | F20: =A2A!F99 -> 0 | G20: =A2A!G99 -> 0 | H20: =A2A!H99 -> 0 | I20: =A2A!I99 -> 0 | J20: =A2A!J99 -> 0 | K20: =A2A!K99 -> 0
A21: Water management | C21: =A2A!C103 -> 0 | D21: =A2A!D103 -> 0 | E21: =A2A!E103 -> 0 | F21: =A2A!F103 -> 0 | G21: =A2A!G103 -> 0 | H21: =A2A!H103 -> 0 | I21: =A2A!I103 -> 0 | J21: =A2A!J103 -> 0 | K21: =A2A!K103 -> 0
A22: Waste water management | C22: =A2A!C107 -> 0 | D22: =A2A!D107 -> 0 | E22: =A2A!E107 -> 0 | F22: =A2A!F107 -> 0 | G22: =A2A!G107 -> 0 | H22: =A2A!H107 -> 0 | I22: =A2A!I107 -> 0 | J22: =A2A!J107 -> 0 | K22: =A2A!K107 -> 0
A23: Waste management | C23: =A2A!C112 -> 0 | D23: =A2A!D112 -> 0 | E23: =A2A!E112 -> 0 | F23: =A2A!F112 -> 0 | G23: =A2A!G112 -> 0 | H23: =A2A!H112 -> 0 | I23: =A2A!I112 -> 0 | J23: =A2A!J112 -> 0 | K23: =A2A!K112 -> 0
A24: Other | B24: 4 | C24: =A2A!C117 -> 0 | D24: =A2A!D117 -> 0 | E24: =A2A!E117 -> 0 | F24: =A2A!F117 -> 0 | G24: =A2A!G117 -> 0 | H24: =A2A!H117 -> 0 | I24: =A2A!I117 -> 0 | J24: =A2A!J117 -> 0 | K24: =A2A!K117 -> 0
A25: ="Total "&A4 -> Total Revenue - Functional | B25: 2 | C25: =C5+C9+C15+C19+C24 -> 1427199589 | D25: =D5+D9+D15+D19+D24 -> 1720899127 | E25: =E5+E9+E15+E19+E24 -> 1482516525 | F25: 1700025589 | G25: 1762521048 | H25: 1762521048 | I25: =I5+I9+I15+I19+I24 -> 1824659742 | J25: 1984489231 | K25: 2114048451
A27: Expenditure - Functional
A28: Governance and administration | C28: =SUM(C29:C31) -> 466709161.5 | D28: =SUM(D29:D31) -> 426098631.2 | E28: 552870591.6 | F28: 612157778 | G28: 625726047 | H28: 625726047 | I28: 659530647 | J28: 709950203 | K28: 743731873
A29: Executive and council | C29: =A2A!C128 -> 159844921.7 | D29: =A2A!D128 -> 149418498.2 | E29: =A2A!E128 -> 154478914.7 | F29: =A2A!F128 -> 179833377 | G29: =A2A!G128 -> 178278377 | H29: =A2A!H128 -> 178278377 | I29: =A2A!I128 -> 196780010 | J29: =A2A!J128 -> 223096018 | K29: =A2A!K128 -> 232452362
A30: Finance and administration | C30: =A2A!C131 -> 306864239.7 | D30: =A2A!D131 -> 276680132.9 | E30: =A2A!E131 -> 398391676.9 | F30: =A2A!F131 -> 432324401 | G30: =A2A!G131 -> 447447670 | H30: =A2A!H131 -> 447447670 | I30: =A2A!I131 -> 462750637 | J30: =A2A!J131 -> 486854185 | K30: =A2A!K131 -> 511279511
A31: Internal audit | C31: =A2A!C145 -> 0 | D31: =A2A!D145 -> 0 | E31: =A2A!E145 -> 0 | F31: =A2A!F145 -> 0 | G31: =A2A!G145 -> 0 | H31: =A2A!H145 -> 0 | I31: =A2A!I145 -> 0 | J31: =A2A!J145 -> 0 | K31: =A2A!K145 -> 0
A32: Community and public safety | C32: =SUM(C33:C37) -> 0 | D32: =SUM(D33:D37) -> 0 | E32: 0 | F32: 0 | G32: 0 | H32: 0 | I32: 0 | J32: 0 | K32: 0
A33: Community and social services | C33: =A2A!C148 -> 0 | D33: =A2A!D148 -> 0 | E33: =A2A!E148 -> 0 | F33: =A2A!F148 -> 0 | G33: =A2A!G148 -> 0 | H33: =A2A!H148 -> 0 | I33: =A2A!I148 -> 0 | J33: =A2A!J148 -> 0 | K33: =A2A!K148 -> 0
A34: Sport and recreation | C34: =A2A!C170 -> 0 | D34: =A2A!D170 -> 0 | E34: =A2A!E170 -> 0 | F34: =A2A!F170 -> 0 | G34: =A2A!G170 -> 0 | H34: =A2A!H170 -> 0 | I34: =A2A!I170 -> 0 | J34: =A2A!J170 -> 0 | K34: =A2A!K170 -> 0
A35: Public safety | C35: =A2A!C176 -> 0 | D35: =A2A!D176 -> 0 | E35: =A2A!E176 -> 0 | F35: =A2A!F176 -> 0 | G35: =A2A!G176 -> 0 | H35: =A2A!H176 -> 0 | I35: =A2A!I176 -> 0 | J35: =A2A!J176 -> 0 | K35: =A2A!K176 -> 0
A36: Housing | C36: =A2A!C185 -> 0 | D36: =A2A!D185 -> 0 | E36: =A2A!E185 -> 0 | F36: =A2A!F185 -> 0 | G36: =A2A!G185 -> 0 | H36: =A2A!H185 -> 0 | I36: =A2A!I185 -> 0 | J36: =A2A!J185 -> 0 | K36: =A2A!K185 -> 0
A37: Health | C37: =A2A!C188 -> 0 | D37: =A2A!D188 -> 0 | E37: =A2A!E188 -> 0 | F37: =A2A!F188 -> 0 | G37: =A2A!G188 -> 0 | H37: =A2A!H188 -> 0 | I37: =A2A!I188 -> 0 | J37: =A2A!J188 -> 0 | K37: =A2A!K188 -> 0
A38: Economic and environmental services | C38: =SUM(C39:C41) -> 11037768 | D38: =SUM(D39:D41) -> 12664245.74 | E38: 12894236.3 | F38: 26917179 | G38: 25265578 | H38: 25265578 | I38: 31241887 | J38: 36861617 | K38: 40186528
A39: Planning and development | C39: =A2A!C197 -> 11037768 | D39: =A2A!D197 -> 12664245.74 | E39: =A2A!E197 -> 12894236.3 | F39: =A2A!F197 -> 26917179 | G39: =A2A!G197 -> 25265578 | H39: =A2A!H197 -> 25265578 | I39: =A2A!I197 -> 31241887 | J39: =A2A!J197 -> 36861617 | K39: =A2A!K197 -> 40186528
A40: Road transport | C40: =A2A!C208 -> 0 | D40: =A2A!D208 -> 0 | E40: =A2A!E208 -> 0 | F40: =A2A!F208 -> 0 | G40: =A2A!G208 -> 0 | H40: =A2A!H208 -> 0 | I40: =A2A!I208 -> 0 | J40: =A2A!J208 -> 0 | K40: =A2A!K208 -> 0
A41: Environmental protection | C41: =A2A!C213 -> 0 | D41: =A2A!D213 -> 0 | E41: =A2A!E213 -> 0 | F41: =A2A!F213 -> 0 | G41: =A2A!G213 -> 0 | H41: =A2A!H213 -> 0 | I41: =A2A!I213 -> 0 | J41: =A2A!J213 -> 0 | K41: =A2A!K213 -> 0
A42: Trading services | C42: =SUM(C43:C46) -> 580368119.9 | D42: =SUM(D43:D46) -> 658771969.6 | E42: 583156027.8 | F42: =SUM(F43:F46) -> 571510778 | G42: 498708735 | H42: 498708735 | I42: 539974269 | J42: 656447965 | K42: =SUM(K43:K46) -> 732832907
A43: Energy sources | C43: =A2A!C221 -> 0 | D43: =A2A!D221 -> 0 | E43: =A2A!E221 -> 0 | F43: =A2A!F221 -> 0 | G43: =A2A!G221 -> 0 | H43: =A2A!H221 -> 0 | I43: =A2A!I221 -> 0 | J43: =A2A!J221 -> 0 | K43: =A2A!K221 -> 0
A44: Water management | C44: =A2A!C225 -> 562013677.8 | D44: =A2A!D225 -> 640019420.3 | E44: =A2A!E225 -> 529192144.2 | F44: =A2A!F225 -> 569958867 | G44: =A2A!G225 -> 496366506 | H44: =A2A!H225 -> 496366506 | I44: =A2A!I225 -> 537507902 | J44: =A2A!J225 -> 653860746 | K44: =A2A!K225 -> 730124088
A45: Waste water management | C45: =A2A!C229 -> 18354442.03 | D45: =A2A!D229 -> 18752549.23 | E45: =A2A!E229 -> 53963883.57 | F45: =A2A!F229 -> 1551911 | G45: =A2A!G229 -> 2342229 | H45: =A2A!H229 -> 2342229 | I45: =A2A!I229 -> 2466367 | J45: =A2A!J229 -> 2587219 | K45: =A2A!K229 -> 2708819
A46: Waste management | C46: =A2A!C234 -> 0 | D46: =A2A!D234 -> 0 | E46: =A2A!E234 -> 0 | F46: =A2A!F234 -> 0 | G46: =A2A!G234 -> 0 | H46: =A2A!H234 -> 0 | I46: =A2A!I234 -> 0 | J46: =A2A!J234 -> 0 | K46: =A2A!K234 -> 0
A47: Other | B47: 4 | C47: =A2A!C239 -> 0 | D47: =A2A!D239 -> 0 | E47: =A2A!E239 -> 0 | F47: =A2A!F239 -> 0 | G47: =A2A!G239 -> 0 | H47: =A2A!H239 -> 0 | I47: =A2A!I239 -> 0 | J47: =A2A!J239 -> 0 | K47: =A2A!K239 -> 0
A48: ="Total "&A27 -> Total Expenditure - Functional | B48: 3 | C48: =C28+C32+C38+C42+C47 -> 1058115049 | D48: =D28+D32+D38+D42+D47 -> 1097534846 | E48: =E28+E32+E38+E42+E47 -> 1148920856 | F48: =F28+F32+F38+F42+F47 -> 1210585735 | G48: 1149700360 | H48: 1149700360 | I48: 1230746803 | J48: 1403259785 | K48: 1516751308
A49: =result -> Surplus/(Deficit) for the year | C49: =C25-C48 -> 369084539.5 | D49: =D25-D48 -> 623364280.7 | E49: 333595669.6 | F49: 489439854 | G49: 612820688 | H49: 612820688 | I49: 593912939 | J49: 581229446 | K49: 597297143
A50: =head27a -> References
A51: 1. Government Finance Statistics Functions and Sub-functions are standardised to assist the compilation of national and international accounts for comparison purposes
A52: 2. Total Revenue by functional classification must reconcile to Total Operating Revenue shown in Budgeted Financial Performance (revenue and expenditure)
A53: 3. Total Expenditure by Functional Classification must reconcile to Total Operating Expenditure shown in Budgeted Financial Performance (revenue and expenditure)
A54: 4. All amounts must be classified under a functional classification . The GFS function 'Other' is only for Abbatoirs, Air Transport, Forestry, Licensing and Regulation, Markets and Tourism - and if used must be supported by footnotes. Nothing else may be placed under 'Other'. Assign associate share to relevant classification.

Sheet A2A
A1: =muni&" - "&Approve3 -> DC47 Sekhukhune - Table A2 Budgeted Financial Performance (revenue and expenditure by functional classification)
A2: ="Functional Classification "&desc -> Functional Classification Description | B2: =head27 -> Ref | C2: =head1b -> 2019/20 | D2: =head1A -> 2020/21 | E2: =Head1 -> 2021/22 | F2: =Head2 -> Current Year 2022/23 | I2: =Head3 -> 2023/24 Medium Term Revenue & Expenditure Framework
A3: R thousand | B3: 1 | C3: =Head5 -> Audited Outcome | D3: =Head5 -> Audited Outcome | E3: =Head5 -> Audited Outcome | F3: =Head6 -> Original Budget | G3: =Head7 -> Adjusted Budget | H3: =Head8 -> Full Year Forecast | I3: =Head9 -> Budget Year 2023/24 | J3: =Head10 -> Budget Year +1 2024/25 | K3: =Head11 -> Budget Year +2 2025/26
A4: Revenue - Functional
A5: Municipal governance and administration | C5: =C6+C9+C23 -> 1427199589 | D5: 1720899127 | E5: 1482516525 | F5: 1700025589 | G5: 1762521048 | H5: 1762521048 | I5: 1824659742 | J5: 1984489231 | K5: 2114048451
A6: Executive and council | C6: =SUM(C7:C8) -> 0 | D6: =SUM(D7:D8) -> 0 | E6: 0 | F6: 0 | G6: 0 | H6: 0 | I6: 0 | J6: 0 | K6: 0
A7: Mayor and Council | C7: 0 | D7: 0 | E7: 0 | F7: 0 | G7: 0 | H7: 0 | I7: 0 | J7: 0 | K7: 0
A8: Municipal Manager, Town Secretary and Chief Executive | C8: 0 | D8: 0 | E8: 0 | F8: 0 | G8: 0 | H8: 0 | I8: 0 | J8: 0 | K8: 0
A9: Finance and administration | C9: =SUM(C10:C22) -> 1427199589 | D9: 1720899127 | E9: 1482516525 | F9: 1700025589 | G9: 1762521048 | H9: 1762521048 | I9: 1824659742 | J9: 1984489231 | K9: 2114048451
A10: Administrative and Corporate Support | C10: 0 | D10: 0 | E10: 0 | F10: 0 | G10: 0 | H10: 0 | I10: 0 | J10: 0 | K10: 0
A11: Asset Management
A12: Finance | C12: 1427199589 | D12: 1720899127 | E12: 1482516525 | F12: 1700025589 | G12: 1762521048 | H12: 1762521048 | I12: 1824659742 | J12: 1984489231 | K12: 2114048451
A13: Fleet Management
A14: Human Resources
A15: Information Technology
A16: Legal Services
A17: Marketing, Customer Relations, Publicity and Media Co-ordination
A18: Property Services
A19: Risk Management
A20: Security Services
A21: Supply Chain Management
A22: Valuation Service
A23: Internal audit | C23: =SUM(C24:C24) -> 0 | D23: 0 | E23: 0 | F23: 0 | G23: 0 | H23: 0 | I23: 0 | J23: 0 | K23: 0
A24: Governance Function
A25: Community and public safety | C25: =C26+C48+C54+C63+C66 -> 0 | D25: 0 | E25: 0 | F25: 0 | G25: 0 | H25: 0 | I25: 0 | J25: 0 | K25: 0
A26: Community and social services | C26: =SUM(C27:C47) -> 0 | D26: =SUM(D27:D47) -> 0 | E26: 0 | F26: 0 | G26: 0 | H26: 0 | I26: 0 | J26: 0 | K26: 0
A27: Aged Care
A28: Agricultural
A29: Animal Care and Diseases
A30: Cemeteries, Funeral Parlours and Crematoriums
A31: Child Care Facilities
A32: Community Halls and Facilities
A33: Consumer Protection
A34: Cultural Matters
A35: Disaster Management
A36: Education
A37: Indigenous and Customary Law
A38: Industrial Promotion
A39: Language Policy
A40: Libraries and Archives
A41: Literacy Programmes
A42: Media Services
A43: Museums and Art Galleries
A44: Population Development
A45: Provincial Cultural Matters
A46: Theatres
A47: Zoo's
A48: Sport and recreation | C48: =SUM(C49:C53) -> 0 | D48: =SUM(D49:D53) -> 0 | E48: 0 | F48: 0 | G48: 0 | H48: 0 | I48: 0 | J48: 0 | K48: 0
A49: Beaches and Jetties
A50: Casinos, Racing, Gambling, Wagering
A51: Community Parks (including Nurseries)
A52: Recreational Facilities
A53: Sports Grounds and Stadiums
A54: Public safety | C54: =SUM(C55:C62) -> 0 | D54: 0 | E54: 0 | F54: 0 | G54: 0 | H54: 0 | I54: 0 | J54: 0 | K54: 0
A55: Civil Defence
A56: Cleansing
A57: Control of Public Nuisances
A58: Fencing and Fences
A59: Fire Fighting and Protection
A60: Licensing and Control of Animals
A61: Police Forces, Traffic and Street Parking Control
A62: Pounds
A63: Housing | C63: =SUM(C64:C65) -> 0 | D63: =SUM(D64:D65) -> 0 | E63: 0 | F63: 0 | G63: 0 | H63: 0 | I63: 0 | J63: 0 | K63: 0
A64: Housing
A65: Informal Settlements
A66: Health | C66: =SUM(C67:C73) -> 0 | D66: =SUM(D67:D73) -> 0 | E66: 0 | F66: 0 | G66: 0 | H66: 0 | I66: 0 | J66: 0 | K66: 0
A67: Ambulance
A68: Health Services
A69: Laboratory Services
A70: Food Control
A71: Health Surveillance and Prevention of Communicable Diseases including immunizations
A72: Vector Control
A73: Chemical Safety
A74: Economic and environmental services | C74: =C75+C86+C91 -> 0 | D74: 0 | E74: 0 | F74: 0 | G74: 0 | H74: 0 | I74: 0 | J74: 0 | K74: 0
A75: Planning and development | C75: =SUM(C76:C85) -> 0 | D75: =SUM(D76:D85) -> 0 | E75: 0 | F75: 0 | G75: 0 | H75: 0 | I75: 0 | J75: 0 | K75: 0
A76: Billboards
A77: Corporate Wide Strategic Planning (IDPs, LEDs)
A78: Central City Improvement District
A79: Development Facilitation
A80: Economic Development/Planning | C80: 0 | D80: 0 | E80: 0 | F80: 0 | G80: 0 | H80: 0 | I80: 0 | J80: 0 | K80: 0
A81: Regional Planning and Development
A82: Town Planning, Building Regulations and Enforcement, and City Engineer
A83: Project Management Unit
A84: Provincial Planning
A85: Support to Local Municipalities | C85: 0 | D85: 0 | E85: 0 | F85: 0 | G85: 0 | H85: 0 | I85: 0 | J85: 0 | K85: 0
A86: Road transport | C86: =SUM(C87:C90) -> 0 | D86: 0 | E86: 0 | F86: 0 | G86: 0 | H86: 0 | I86: 0 | J86: 0 | K86: 0
A87: Public Transport
A88: Road and Traffic Regulation
A89: Roads
A90: Taxi Ranks
A91: Environmental protection | C91: =SUM(C92:C97) -> 0 | D91: =SUM(D92:D97) -> 0 | E91: 0 | F91: 0 | G91: 0 | H91: 0 | I91: 0 | J91: 0 | K91: 0
A92: Biodiversity and Landscape
A93: Coastal Protection
A94: Indigenous Forests
A95: Nature Conservation
A96: Pollution Control
A97: Soil Conservation
A98: Trading services | C98: =C99+C103+C107+C112 -> 0 | D98: =D99+D103+D107+D112 -> 0 | E98: 0 | F98: 0 | G98: 0 | H98: 0 | I98: 0 | J98: 0 | K98: =K99+K103+K107+K112 -> 0
A99: Energy sources | C99: =SUM(C100:C102) -> 0 | D99: =SUM(D100:D102) -> 0 | E99: 0 | F99: 0 | G99: 0 | H99: 0 | I99: 0 | J99: 0 | K99: 0
A100: Electricity
A101: Street Lighting and Signal Systems
A102: Nonelectric Energy
A103: Water management | C103: =SUM(C104:C106) -> 0 | D103: =SUM(D104:D106) -> 0 | E103: 0 | F103: 0 | G103: 0 | H103: 0 | I103: 0 | J103: 0 | K103: 0
A104: Water Treatment
A105: Water Distribution | C105: 0 | D105: 0 | E105: 0 | F105: 0 | G105: 0 | H105: 0 | I105: 0 | J105: 0 | K105: 0
A106: Water Storage
A107: Waste water management | C107: =SUM(C108:C111) -> 0 | D107: =SUM(D108:D111) -> 0 | E107: 0 | F107: 0 | G107: 0 | H107: 0 | I107: 0 | J107: 0 | K107: 0
A108: Public Toilets
A109: Sewerage
A110: Storm Water Management
A111: Waste Water Treatment | C111: 0 | D111: 0 | E111: 0 | F111: 0 | G111: 0 | H111: 0 | I111: 0 | J111: 0 | K111: 0
A112: Waste management | C112: =SUM(C113:C116) -> 0 | D112: =SUM(D113:D116) -> 0 | E112: 0 | F112: 0 | G112: 0 | H112: 0 | I112: 0 | J112: 0 | K112: 0
A113: Recycling
A114: Solid Waste Disposal (Landfill Sites)
A115: Solid Waste Removal
A116: Street Cleaning
A117: Other | C117: =SUM(C118:C123) -> 0 | D117: =SUM(D118:D123) -> 0 | E117: 0 | F117: 0 | G117: 0 | H117: 0 | I117: 0 | J117: 0 | K117: 0
A118: Abattoirs
A119: Air Transport
A120: Forestry
A121: Licensing and Regulation
A122: Markets
A123: Tourism
A124: ="Total "&A4 -> Total Revenue - Functional | B124: 2 | C124: =C5+C25+C74+C98+C117 -> 1427199589 | D124: 1720899127 | E124: 1482516525 | F124: 1700025589 | G124: 1762521048 | H124: 1762521048 | I124: 1824659742 | J124: 1984489231 | K124: 2114048451
A126: Expenditure - Functional
A127: =A5 -> Municipal governance and administration | C127: =C128+C131+C145 -> 466709161.5 | D127: 426098631.2 | E127: 552870591.6 | F127: 612157778 | G127: 625726047 | H127: 625726047 | I127: 659530647 | J127: 709950203 | K127: 743731873
A128: Executive and council | C128: =SUM(C129:C130) -> 159844921.7 | D128: 149418498.2 | E128: 154478914.7 | F128: 179833377 | G128: 178278377 | H128: 178278377 | I128: 196780010 | J128: 223096018 | K128: 232452362
A129: Mayor and Council | C129: 66393754.36 | D129: 68269937.93 | E129: 73779709.26 | F129: 91170679 | G129: 91170679 | H129: 91170679 | I129: 98736304 | J129: 104377941 | K129: 109657032
A130: Municipal Manager, Town Secretary and Chief Executive | C130: 93451167.38 | D130: 81148560.32 | E130: 80699205.44 | F130: 88662698 | G130: 87107698 | H130: 87107698 | I130: 98043706 | J130: 118718077 | K130: 122795330
A131: Finance and administration | C131: =SUM(C132:C144) -> 306864239.7 | D131: 276680132.9 | E131: 398391676.9 | F131: 432324401 | G131: 447447670 | H131: 447447670 | I131: 462750637 | J131: 486854185 | K131: 511279511
A132: Administrative and Corporate Support | C132: 193735053.6 | D132: 202536748.5 | E132: 217836335.7 | F132: 225453097 | G132: 263925777 | H132: 263925777 | I132: 269502086 | J132: 284527864 | K132: 299216302
A133: Asset Management
A134: Finance | C134: 113129186.1 | D134: 74143384.4 | E134: 180555341.2 | F134: 206871304 | G134: 183521893 | H134: 183521893 | I134: 193248551 | J134: 202326321 | K134: 212063209
A135: Fleet Management
A136: Human Resources
A137: Information Technology
A138: Legal Services
A139: Marketing, Customer Relations, Publicity and Media Co-ordination
A140: Property Services
A141: Risk Management
A142: Security Services
A143: Supply Chain Management
A144: Valuation Service
A145: Internal audit | C145: =SUM(C146:C146) -> 0 | D145: 0 | E145: 0 | F145: 0 | G145: 0 | H145: 0 | I145: 0 | J145: 0 | K145: 0
A146: Governance Function
A147: Community and public safety | C147: =C148+C170+C176+C185+C188 -> 0 | D147: 0 | E147: 0 | F147: 0 | G147: 0 | H147: 0 | I147: 0 | J147: 0 | K147: 0
A148: Community and social services | C148: =SUM(C149:C169) -> 0 | D148: =SUM(D149:D169) -> 0 | E148: 0 | F148: 0 | G148: 0 | H148: 0 | I148: 0 | J148: 0 | K148: 0
A149: Aged Care
A150: Agricultural
A151: Animal Care and Diseases
A152: Cemeteries, Funeral Parlours and Crematoriums
A153: Child Care Facilities
A154: Community Halls and Facilities
A155: Consumer Protection
A156: Cultural Matters
A157: Disaster Management
A158: Education
A159: =A37 -> Indigenous and Customary Law
A160: Industrial Promotion
A161: Language Policy
A162: Libraries and Archives
A163: Literacy Programmes
A164: Media Services
A165: Museums and Art Galleries
A166: Population Development
A167: Provincial Cultural Matters
A168: Theatres
A169: Zoo's
A170: Sport and recreation | C170: =SUM(C171:C175) -> 0 | D170: 0 | E170: 0 | F170: 0 | G170: 0 | H170: 0 | I170: 0 | J170: 0 | K170: 0
A171: Beaches and Jetties
A172: Casinos, Racing, Gambling, Wagering
A173: Community Parks (including Nurseries)
A174: Recreational Facilities
A175: Sports Grounds and Stadiums
A176: Public safety | C176: =SUM(C177:C184) -> 0 | D176: 0 | E176: 0 | F176: 0 | G176: 0 | H176: 0 | I176: 0 | J176: 0 | K176: 0
A177: Civil Defence
A178: Cleansing
A179: =A57 -> Control of Public Nuisances
A180: Fencing and Fences
A181: Fire Fighting and Protection
A182: Licensing and Control of Animals
A183: Police Forces, Traffic and Street Parking Control
A184: Pounds
A185: =A63 -> Housing | C185: =SUM(C186:C187) -> 0 | D185: 0 | E185: 0 | F185: 0 | G185: 0 | H185: 0 | I185: 0 | J185: 0 | K185: 0
A186: Housing
A187: Informal Settlements
A188: Health | C188: =SUM(C189:C195) -> 0 | D188: =SUM(D189:D195) -> 0 | E188: 0 | F188: 0 | G188: 0 | H188: 0 | I188: 0 | J188: 0 | K188: 0
A189: Ambulance
A190: Health Services
A191: Laboratory Services
A192: Food Control
A193: Health Surveillance and Prevention of Communicable Diseases including immunizations
A194: Vector Control
A195: Chemical Safety
A196: Economic and environmental services | C196: =C197+C208+C213 -> 11037768 | D196: 12664245.74 | E196: 12894236.3 | F196: 26917179 | G196: 25265578 | H196: 25265578 | I196: 31241887 | J196: 36861617 | K196: 40186528
A197: Planning and development | C197: =SUM(C198:C207) -> 11037768 | D197: =SUM(D198:D207) -> 12664245.74 | E197: 12894236.3 | F197: 26917179 | G197: 25265578 | H197: 25265578 | I197: 31241887 | J197: 36861617 | K197: 40186528
A198: Billboards
A199: Corporate Wide Strategic Planning (IDPs, LEDs)
A200: Central City Improvement District
A201: Development Facilitation
... 51 more rows

Sheet A3-FinPerf V
A1: =muni&" - "&Approve2 -> DC47 Sekhukhune - Table A3 Budgeted Financial Performance (revenue and expenditure by municipal vote)
A2: =Vdesc -> Vote Description | B2: =head27 -> Ref | C2: =head1b -> 2019/20 | D2: =head1A -> 2020/21 | E2: =Head1 -> 2021/22 | F2: =Head2 -> Current Year 2022/23 | I2: =Head3 -> 2023/24 Medium Term Revenue & Expenditure Framework | L2: =Head4 -> LTFS
A3: R thousand | C3: =Head5 -> Audited Outcome | D3: =Head5 -> Audited Outcome | E3: =Head5 -> Audited Outcome | F3: =Head6 -> Original Budget | G3: =Head7 -> Adjusted Budget | H3: =Head8 -> Full Year Forecast | I3: =Head9 -> Budget Year 2023/24 | J3: =Head10 -> Budget Year +1 2024/25 | K3: =Head11 -> Budget Year +2 2025/26 | L3: =Head12 -> Forecast 2026/27 | M3: =Head13 -> Forecast 2027/28 | N3: =Head14 -> Forecast 2028/29 | O3: =Head15 -> Forecast 2029/30 | P3: =Head16 -> Forecast 2030/31 | Q3: =Head17 -> Forecast 2031/32 | R3: =Head18 -> Forecast 2032/33 | S3: =Head19 -> Forecast 2033/34 | T3: =Head20 -> Forecast 2034/35 | U3: =Head21 -> Forecast 2035/36 | V3: =Head22 -> Forecast 2036/37 | W3: =Head23 -> Forecast 2037/38
A4: Revenue by Vote | B4: 1
A5: =A3A!A5 -> Vote 01 - Speakers Office | C5: =A3A!C5 -> 0 | D5: =A3A!D5 -> 0 | E5: =A3A!E5 -> 0 | F5: =A3A!F5 -> 0 | G5: =A3A!G5 -> 0 | H5: =A3A!H5 -> 0 | I5: =A3A!I5 -> 0 | J5: =A3A!J5 -> 0 | K5: =A3A!K5 -> 0
A6: =A3A!A8 -> Vote 02 - Executive Mayor's Office | C6: =A3A!C8 -> 0 | D6: =A3A!D8 -> 0 | E6: =A3A!E8 -> 0 | F6: =A3A!F8 -> 0 | G6: =A3A!G8 -> 0 | H6: =A3A!H8 -> 0 | I6: =A3A!I8 -> 0 | J6: =A3A!J8 -> 0 | K6: =A3A!K8 -> 0
A7: =A3A!A10 -> Vote 03 - Municipal Manager Office | C7: =A3A!C10 -> 0 | D7: =A3A!D10 -> 0 | E7: =A3A!E10 -> 0 | F7: =A3A!F10 -> 0 | G7: =A3A!G10 -> 0 | H7: =A3A!H10 -> 0 | I7: =A3A!I10 -> 0 | J7: =A3A!J10 -> 0 | K7: =A3A!K10 -> 0
A8: =A3A!A12 -> Vote 04 - Budget And Treasury | C8: =A3A!C12 -> 1427199589 | D8: =A3A!D12 -> 1720899127 | E8: =A3A!E12 -> 1482516525 | F8: =A3A!F12 -> 1700025589 | G8: =A3A!G12 -> 1762521048 | H8: =A3A!H12 -> 1762521048 | I8: =A3A!I12 -> 1824659742 | J8: =A3A!J12 -> 1984489231 | K8: =A3A!K12 -> 2114048451
A9: =A3A!A15 -> Vote 05 - Infrustracture And Water Services | C9: =A3A!C15 -> 0 | D9: =A3A!D15 -> 0 | E9: =A3A!E15 -> 0 | F9: =A3A!F15 -> 0 | G9: =A3A!G15 -> 0 | H9: =A3A!H15 -> 0 | I9: =A3A!I15 -> 0 | J9: =A3A!J15 -> 0 | K9: =A3A!K15 -> 0
A10: =A3A!A19 -> Vote 06 - Planning And Economic Development | C10: =A3A!C19 -> 0 | D10: =A3A!D19 -> 0 | E10: =A3A!E19 -> 0 | F10: =A3A!F19 -> 0 | G10: =A3A!G19 -> 0 | H10: =A3A!H19 -> 0 | I10: =A3A!I19 -> 0 | J10: =A3A!J19 -> 0 | K10: =A3A!K19 -> 0
A11: =A3A!A21 -> Vote 07 - Community Services | C11: =A3A!C21 -> 0 | D11: =A3A!D21 -> 0 | E11: =A3A!E21 -> 0 | F11: =A3A!F21 -> 0 | G11: =A3A!G21 -> 0 | H11: =A3A!H21 -> 0 | I11: =A3A!I21 -> 0 | J11: =A3A!J21 -> 0 | K11: =A3A!K21 -> 0
A12: =A3A!A23 -> Vote 08 - Sekhukhune Development Angancy | C12: =A3A!C23 -> 0 | D12: =A3A!D23 -> 0 | E12: =A3A!E23 -> 0 | F12: =A3A!F23 -> 0 | G12: =A3A!G23 -> 0 | H12: =A3A!H23 -> 0 | I12: =A3A!I23 -> 0 | J12: =A3A!J23 -> 0 | K12: =A3A!K23 -> 0
A13: =A3A!A25 -> Vote 09 - Corporate Services | C13: =A3A!C25 -> 0 | D13: =A3A!D25 -> 0 | E13: =A3A!E25 -> 0 | F13: =A3A!F25 -> 0 | G13: =A3A!G25 -> 0 | H13: =A3A!H25 -> 0 | I13: =A3A!I25 -> 0 | J13: =A3A!J25 -> 0 | K13: =A3A!K25 -> 0
A14: ='Org structure'!A11 -> Vote 10 - | C14: =A3A!C27 -> 0 | D14: =A3A!D27 -> 0 | E14: =A3A!E27 -> 0 | F14: =A3A!F27 -> 0 | G14: =A3A!G27 -> 0 | H14: =A3A!H27 -> 0 | I14: =A3A!I27 -> 0 | J14: =A3A!J27 -> 0 | K14: =A3A!K27 -> 0
A15: ='Org structure'!A12 -> Vote 11 - | C15: =A3A!C28 -> 0 | D15: =A3A!D28 -> 0 | E15: =A3A!E28 -> 0 | F15: =A3A!F28 -> 0 | G15: =A3A!G28 -> 0 | H15: =A3A!H28 -> 0 | I15: =A3A!I28 -> 0 | J15: =A3A!J28 -> 0 | K15: =A3A!K28 -> 0 | L15: =A5A!#REF! -> 
A16: ='Org structure'!A13 -> Vote 12 - | C16: =A3A!C29 -> 0 | D16: =A3A!D29 -> 0 | E16: =A3A!E29 -> 0 | F16: =A3A!F29 -> 0 | G16: =A3A!G29 -> 0 | H16: =A3A!H29 -> 0 | I16: =A3A!I29 -> 0 | J16: =A3A!J29 -> 0 | K16: =A3A!K29 -> 0 | L16: =A5A!#REF! -> 
A17: ='Org structure'!A14 -> Vote 13 - | C17: =A3A!C30 -> 0 | D17: =A3A!D30 -> 0 | E17: =A3A!E30 -> 0 | F17: =A3A!F30 -> 0 | G17: =A3A!G30 -> 0 | H17: =A3A!H30 -> 0 | I17: =A3A!I30 -> 0 | J17: =A3A!J30 -> 0 | K17: =A3A!K30 -> 0 | L17: =A5A!#REF! -> 
A18: ='Org structure'!A15 -> Vote 14 - | C18: =A3A!C31 -> 0 | D18: =A3A!D31 -> 0 | E18: =A3A!E31 -> 0 | F18: =A3A!F31 -> 0 | G18: =A3A!G31 -> 0 | H18: =A3A!H31 -> 0 | I18: =A3A!I31 -> 0 | J18: =A3A!J31 -> 0 | K18: =A3A!K31 -> 0 | L18: =A5A!#REF! -> 
A19: =A3A!A32 -> Vote 15 - Other | C19: =A3A!C32 -> 0 | D19: =A3A!D32 -> 0 | E19: =A3A!E32 -> 0 | F19: =A3A!F32 -> 0 | G19: =A3A!G32 -> 0 | H19: =A3A!H32 -> 0 | I19: =A3A!I32 -> 0 | J19: =A3A!J32 -> 0 | K19: =A3A!K32 -> 0 | L19: =A5A!#REF! -> 
A20: Total Revenue by Vote | B20: 2 | C20: =SUM(C5:C19) -> 1427199589 | D20: =SUM(D5:D19) -> 1720899127 | E20: 1482516525 | F20: 1700025589 | G20: 1762521048 | H20: 1762521048 | I20: 1824659742 | J20: 1984489231 | K20: 2114048451
A22: Expenditure by Vote to be appropriated | B22: 1
A23: =A3A!A37 -> Vote 01 - Speakers Office | C23: =A3A!C37 -> 35235856.23 | D23: =A3A!D37 -> 36276364.55 | E23: =A3A!E37 -> 39147178.14 | F23: =A3A!F37 -> 48349161 | G23: =A3A!G37 -> 48349161 | H23: =A3A!H37 -> 48349161 | I23: =A3A!I37 -> 52392012 | J23: =A3A!J37 -> 55162619 | K23: =A3A!K37 -> 58326488
A24: =A3A!A40 -> Vote 02 - Executive Mayor's Office | C24: =A3A!C40 -> 31157898.13 | D24: =A3A!D40 -> 31993573.38 | E24: =A3A!E40 -> 34632531.12 | F24: =A3A!F40 -> 42821518 | G24: =A3A!G40 -> 42821518 | H24: =A3A!H40 -> 42821518 | I24: =A3A!I40 -> 46344292 | J24: =A3A!J40 -> 49215322 | K24: =A3A!K40 -> 51330544
A25: =A3A!A42 -> Vote 03 - Municipal Manager Office | C25: =A3A!C42 -> 93451167.38 | D25: =A3A!D42 -> 81148560.32 | E25: =A3A!E42 -> 80699205.44 | F25: =A3A!F42 -> 88662698 | G25: =A3A!G42 -> 87107698 | H25: =A3A!H42 -> 87107698 | I25: =A3A!I42 -> 98043706 | J25: =A3A!J42 -> 118718077 | K25: =A3A!K42 -> 122795330
A26: =A3A!A44 -> Vote 04 - Budget And Treasury | C26: =A3A!C44 -> 113129186.1 | D26: =A3A!D44 -> 74143384.4 | E26: =A3A!E44 -> 180555341.2 | F26: =A3A!F44 -> 206871304 | G26: =A3A!G44 -> 183521893 | H26: =A3A!H44 -> 183521893 | I26: =A3A!I44 -> 193248551 | J26: =A3A!J44 -> 202326321 | K26: =A3A!K44 -> 212063209
A27: =A3A!A47 -> Vote 05 - Infrustracture And Water Services | C27: =A3A!C47 -> 580368119.9 | D27: =A3A!D47 -> 658771969.6 | E27: =A3A!E47 -> 583156027.8 | F27: =A3A!F47 -> 571510778 | G27: =A3A!G47 -> 498708735 | H27: =A3A!H47 -> 498708735 | I27: =A3A!I47 -> 539974269 | J27: =A3A!J47 -> 656447965 | K27: =A3A!K47 -> 732832907
A28: =A3A!A51 -> Vote 06 - Planning And Economic Development | C28: =A3A!C51 -> 7540558.8 | D28: =A3A!D51 -> 10107947.71 | E28: =A3A!E51 -> 9688969.38 | F28: =A3A!F51 -> 19209120 | G28: =A3A!G51 -> 18357519 | H28: =A3A!H51 -> 18357519 | I28: =A3A!I51 -> 21926952 | J28: =A3A!J51 -> 24741338 | K28: =A3A!K51 -> 27159422
A29: =A3A!A53 -> Vote 07 - Community Services | C29: =A3A!C53 -> 63649658 | D29: =A3A!D53 -> 67605289.1 | E29: =A3A!E53 -> 69425249.75 | F29: =A3A!F53 -> 76902221 | G29: =A3A!G53 -> 73702221 | H29: =A3A!H53 -> 73702221 | I29: =A3A!I53 -> 77608437 | J29: =A3A!J53 -> 81411250 | K29: =A3A!K53 -> 85237580
A30: =A3A!A55 -> Vote 08 - Sekhukhune Development Angancy | C30: =A3A!C55 -> 3497209.2 | D30: =A3A!D55 -> 2556298.03 | E30: =A3A!E55 -> 3205266.92 | F30: =A3A!F55 -> 7708059 | G30: =A3A!G55 -> 6908059 | H30: =A3A!H55 -> 6908059 | I30: =A3A!I55 -> 9314935 | J30: =A3A!J55 -> 12120279 | K30: =A3A!K55 -> 13027106
A31: =A3A!A57 -> Vote 09 - Corporate Services | C31: =A3A!C57 -> 130085395.6 | D31: =A3A!D57 -> 134931459.4 | E31: =A3A!E57 -> 148411086 | F31: =A3A!F57 -> 148550876 | G31: =A3A!G57 -> 190223556 | H31: =A3A!H57 -> 190223556 | I31: =A3A!I57 -> 191893649 | J31: =A3A!J57 -> 203116614 | K31: =A3A!K57 -> 213978722
A32: ='Org structure'!A11 -> Vote 10 - | C32: =A3A!C59 -> 0 | D32: =A3A!D59 -> 0 | E32: =A3A!E59 -> 0 | F32: =A3A!F59 -> 0 | G32: =A3A!G59 -> 0 | H32: =A3A!H59 -> 0 | I32: =A3A!I59 -> 0 | J32: =A3A!J59 -> 0 | K32: =A3A!K59 -> 0
A33: ='Org structure'!A12 -> Vote 11 - | C33: =A3A!C60 -> 0 | D33: =A3A!D60 -> 0 | E33: =A3A!E60 -> 0 | F33: =A3A!F60 -> 0 | G33: =A3A!G60 -> 0 | H33: =A3A!H60 -> 0 | I33: =A3A!I60 -> 0 | J33: =A3A!J60 -> 0 | K33: =A3A!K60 -> 0 | L33: =A3A!#REF! -> 
A34: ='Org structure'!A13 -> Vote 12 - | C34: =A3A!C61 -> 0 | D34: =A3A!D61 -> 0 | E34: =A3A!E61 -> 0 | F34: =A3A!F61 -> 0 | G34: =A3A!G61 -> 0 | H34: =A3A!H61 -> 0 | I34: =A3A!I61 -> 0 | J34: =A3A!J61 -> 0 | K34: =A3A!K61 -> 0 | L34: =A3A!#REF! -> 
A35: ='Org structure'!A14 -> Vote 13 - | C35: =A3A!C62 -> 0 | D35: =A3A!D62 -> 0 | E35: =A3A!E62 -> 0 | F35: =A3A!F62 -> 0 | G35: =A3A!G62 -> 0 | H35: =A3A!H62 -> 0 | I35: =A3A!I62 -> 0 | J35: =A3A!J62 -> 0 | K35: =A3A!K62 -> 0 | L35: =A3A!#REF! -> 
A36: ='Org structure'!A15 -> Vote 14 - | C36: =A3A!C63 -> 0 | D36: =A3A!D63 -> 0 | E36: =A3A!E63 -> 0 | F36: =A3A!F63 -> 0 | G36: =A3A!G63 -> 0 | H36: =A3A!H63 -> 0 | I36: =A3A!I63 -> 0 | J36: =A3A!J63 -> 0 | K36: =A3A!K63 -> 0 | L36: =A3A!#REF! -> 
A37: =A3A!A64 -> Vote 15 - Other | C37: =A3A!C64 -> 0 | D37: =A3A!D64 -> 0 | E37: =A3A!E64 -> 0 | F37: =A3A!F64 -> 0 | G37: =A3A!G64 -> 0 | H37: =A3A!H64 -> 0 | I37: =A3A!I64 -> 0 | J37: =A3A!J64 -> 0 | K37: =A3A!K64 -> 0 | L37: =A3A!L65 -> 0
A38: Total Expenditure by Vote | B38: 2 | C38: =SUM(C23:C37) -> 1058115049 | D38: =SUM(D23:D37) -> 1097534846 | E38: 1148920856 | F38: 1210585735 | G38: 1149700360 | H38: 1149700360 | I38: 1230746803 | J38: 1403259785 | K38: 1516751308 | L38: =SUM(L23:L29) -> 0 | M38: 0 | N38: 0 | O38: 0 | P38: 0 | Q38: 0 | R38: 0 | S38: 0 | T38: 0 | U38: 0 | V38: 0 | W38: 0
A39: =result -> Surplus/(Deficit) for the year | B39: 2 | C39: =C20-C38 -> 369084539.5 | D39: 623364280.7 | E39: 333595669.6 | F39: 489439854 | G39: 612820688 | H39: 612820688 | I39: 593912939 | J39: 581229446 | K39: 597297143 | L39: 0 | M39: 0 | N39: 0 | O39: 0 | P39: 0 | Q39: 0 | R39: 0 | S39: 0 | T39: 0 | U39: 0 | V39: 0 | W39: 0
A40: =head27a -> References
A41: 1. Insert 'Vote'; e.g. department, if different to functional classification structure
A42: 2. Must reconcile to Budgeted Financial Performance (revenue and expenditure)
A43: 3. Assign share in 'associate' to relevant Vote

Sheet A3A
A1: =muni&" - "&Approve2&"A" -> DC47 Sekhukhune - Table A3 Budgeted Financial Performance (revenue and expenditure by municipal vote)A
A2: =Vdesc -> Vote Description | B2: =head27 -> Ref | C2: =head1b -> 2019/20 | D2: =head1A -> 2020/21 | E2: =Head1 -> 2021/22 | F2: =Head2 -> Current Year 2022/23 | I2: =Head3 -> 2023/24 Medium Term Revenue & Expenditure Framework | L2: =Head4 -> LTFS
A3: R thousand | C3: =Head5 -> Audited Outcome | D3: =Head5 -> Audited Outcome | E3: =Head5 -> Audited Outcome | F3: =Head6 -> Original Budget | G3: =Head7 -> Adjusted Budget | H3: =Head8 -> Full Year Forecast | I3: =Head9 -> Budget Year 2023/24 | J3: =Head10 -> Budget Year +1 2024/25 | K3: =Head11 -> Budget Year +2 2025/26 | L3: =Head12 -> Forecast 2026/27 | M3: =Head13 -> Forecast 2027/28 | N3: =Head14 -> Forecast 2028/29 | O3: =Head15 -> Forecast 2029/30 | P3: =Head16 -> Forecast 2030/31 | Q3: =Head17 -> Forecast 2031/32 | R3: =Head18 -> Forecast 2032/33 | S3: =Head19 -> Forecast 2033/34 | T3: =Head20 -> Forecast 2034/35 | U3: =Head21 -> Forecast 2035/36 | V3: =Head22 -> Forecast 2036/37 | W3: =Head23 -> Forecast 2037/38
A4: Revenue by Vote | B4: 1
A5: ='Org structure'!A2 -> Vote 01 - Speakers Office | C5: =SUM(C6:C7) -> 0 | D5: =SUM(D6:D7) -> 0 | E5: =SUM(E6:E7) -> 0 | F5: =SUM(F6:F7) -> 0 | G5: =SUM(G6:G7) -> 0 | H5: =SUM(H6:H7) -> 0 | I5: =SUM(I6:I7) -> 0 | J5: =SUM(J6:J7) -> 0 | K5: =SUM(K6:K7) -> 0
A6: ='Org structure'!E3 -> 01.1 - Office Of The Speaker | C6: 0 | D6: 0 | E6: 0 | F6: 0 | G6: 0 | H6: 0 | I6: 0 | J6: 0 | K6: 0
A7: ='Org structure'!E4 -> 01.2 - Office Of The Chief Whip | C7: 0 | D7: 0 | E7: 0 | F7: 0 | G7: 0 | H7: 0 | I7: 0 | J7: 0 | K7: 0
A8: ='Org structure'!A3 -> Vote 02 - Executive Mayor's Office | C8: =SUM(C9:C9) -> 0 | D8: =SUM(D9:D9) -> 0 | E8: =SUM(E9:E9) -> 0 | F8: =SUM(F9:F9) -> 0 | G8: =SUM(G9:G9) -> 0 | H8: =SUM(H9:H9) -> 0 | I8: =SUM(I9:I9) -> 0 | J8: =SUM(J9:J9) -> 0 | K8: =SUM(K9:K9) -> 0
A9: ='Org structure'!E6 -> 02.1 - Executive Mayor's Office | C9: 0 | D9: 0 | E9: 0 | F9: 0 | G9: 0 | H9: 0 | I9: 0 | J9: 0 | K9: 0
A10: ='Org structure'!A4 -> Vote 03 - Municipal Manager Office | C10: =SUM(C11:C11) -> 0 | D10: =SUM(D11:D11) -> 0 | E10: =SUM(E11:E11) -> 0 | F10: =SUM(F11:F11) -> 0 | G10: =SUM(G11:G11) -> 0 | H10: =SUM(H11:H11) -> 0 | I10: =SUM(I11:I11) -> 0 | J10: =SUM(J11:J11) -> 0 | K10: =SUM(K11:K11) -> 0
A11: ='Org structure'!E8 -> 03.1 - Municipal Manager Admin | C11: 0 | D11: 0 | E11: 0 | F11: 0 | G11: 0 | H11: 0 | I11: 0 | J11: 0 | K11: 0
A12: ='Org structure'!A5 -> Vote 04 - Budget And Treasury | C12: =SUM(C13:C14) -> 1427199589 | D12: =SUM(D13:D14) -> 1720899127 | E12: =SUM(E13:E14) -> 1482516525 | F12: =SUM(F13:F14) -> 1700025589 | G12: =SUM(G13:G14) -> 1762521048 | H12: =SUM(H13:H14) -> 1762521048 | I12: =SUM(I13:I14) -> 1824659742 | J12: =SUM(J13:J14) -> 1984489231 | K12: =SUM(K13:K14) -> 2114048451
A13: ='Org structure'!E10 -> 04.1 - Budget & Treasury Admin | C13: 0 | D13: 0 | E13: 0 | F13: 0 | G13: 0 | H13: 0 | I13: 0 | J13: 0 | K13: 0
A14: ='Org structure'!E11 -> 04.2 - Budget & Treasury Admin | C14: 1427199589 | D14: 1720899127 | E14: 1482516525 | F14: 1700025589 | G14: 1762521048 | H14: 1762521048 | I14: 1824659742 | J14: 1984489231 | K14: 2114048451
A15: ='Org structure'!A6 -> Vote 05 - Infrustracture And Water Services | C15: =SUM(C16:C18) -> 0 | D15: =SUM(D16:D18) -> 0 | E15: =SUM(E16:E18) -> 0 | F15: =SUM(F16:F18) -> 0 | G15: =SUM(G16:G18) -> 0 | H15: =SUM(H16:H18) -> 0 | I15: =SUM(I16:I18) -> 0 | J15: =SUM(J16:J18) -> 0 | K15: =SUM(K16:K18) -> 0
A16: ='Org structure'!E13 -> 05.1 - Technical Services Admin | C16: 0 | D16: 0 | E16: 0 | F16: 0 | G16: 0 | H16: 0 | I16: 0 | J16: 0 | K16: 0
A17: ='Org structure'!E14 -> 05.2 - Water Services | C17: 0 | D17: 0 | E17: 0 | F17: 0 | G17: 0 | H17: 0 | I17: 0 | J17: 0 | K17: 0
A18: ='Org structure'!E15 -> 05.3 - Sanitation Services | C18: 0 | D18: 0 | E18: 0 | F18: 0 | G18: 0 | H18: 0 | I18: 0 | J18: 0 | K18: 0
A19: ='Org structure'!A7 -> Vote 06 - Planning And Economic Development | C19: =SUM(C20:C20) -> 0 | D19: =SUM(D20:D20) -> 0 | E19: =SUM(E20:E20) -> 0 | F19: =SUM(F20:F20) -> 0 | G19: =SUM(G20:G20) -> 0 | H19: =SUM(H20:H20) -> 0 | I19: =SUM(I20:I20) -> 0 | J19: =SUM(J20:J20) -> 0 | K19: =SUM(K20:K20) -> 0
A20: ='Org structure'!E17 -> 06.1 - Planning & Economic Dev Admin | C20: 0 | D20: 0 | E20: 0 | F20: 0 | G20: 0 | H20: 0 | I20: 0 | J20: 0 | K20: 0
A21: ='Org structure'!A8 -> Vote 07 - Community Services | C21: =SUM(C22:C22) -> 0 | D21: =SUM(D22:D22) -> 0 | E21: =SUM(E22:E22) -> 0 | F21: =SUM(F22:F22) -> 0 | G21: =SUM(G22:G22) -> 0 | H21: =SUM(H22:H22) -> 0 | I21: =SUM(I22:I22) -> 0 | J21: =SUM(J22:J22) -> 0 | K21: =SUM(K22:K22) -> 0
A22: ='Org structure'!E19 -> 07.1 - Community Services Admin | C22: 0 | D22: 0 | E22: 0 | F22: 0 | G22: 0 | H22: 0 | I22: 0 | J22: 0 | K22: 0
A23: ='Org structure'!A9 -> Vote 08 - Sekhukhune Development Angancy | C23: =SUM(C24:C24) -> 0 | D23: =SUM(D24:D24) -> 0 | E23: =SUM(E24:E24) -> 0 | F23: =SUM(F24:F24) -> 0 | G23: =SUM(G24:G24) -> 0 | H23: =SUM(H24:H24) -> 0 | I23: =SUM(I24:I24) -> 0 | J23: =SUM(J24:J24) -> 0 | K23: =SUM(K24:K24) -> 0
A24: ='Org structure'!E21 -> 08.1 - Sekhukhune Development Agency | C24: 0 | D24: 0 | E24: 0 | F24: 0 | G24: 0 | H24: 0 | I24: 0 | J24: 0 | K24: 0
A25: ='Org structure'!A10 -> Vote 09 - Corporate Services | C25: =SUM(C26:C26) -> 0 | D25: =SUM(D26:D26) -> 0 | E25: =SUM(E26:E26) -> 0 | F25: =SUM(F26:F26) -> 0 | G25: =SUM(G26:G26) -> 0 | H25: =SUM(H26:H26) -> 0 | I25: =SUM(I26:I26) -> 0 | J25: =SUM(J26:J26) -> 0 | K25: =SUM(K26:K26) -> 0
A26: ='Org structure'!E23 -> 09.1 - Corporate Services Admin | C26: 0 | D26: 0 | E26: 0 | F26: 0 | G26: 0 | H26: 0 | I26: 0 | J26: 0 | K26: 0
A27: ='Org structure'!A11 -> Vote 10 - | C27: 0 | D27: 0 | E27: 0 | F27: 0 | G27: 0 | H27: 0 | I27: 0 | J27: 0 | K27: 0
A28: ='Org structure'!A12 -> Vote 11 - | C28: 0 | D28: 0 | E28: 0 | F28: 0 | G28: 0 | H28: 0 | I28: 0 | J28: 0 | K28: 0
A29: ='Org structure'!A13 -> Vote 12 - | C29: 0 | D29: 0 | E29: 0 | F29: 0 | G29: 0 | H29: 0 | I29: 0 | J29: 0 | K29: 0
A30: ='Org structure'!A14 -> Vote 13 - | C30: 0 | D30: 0 | E30: 0 | F30: 0 | G30: 0 | H30: 0 | I30: 0 | J30: 0 | K30: 0
A31: ='Org structure'!A15 -> Vote 14 - | C31: 0 | D31: 0 | E31: 0 | F31: 0 | G31: 0 | H31: 0 | I31: 0 | J31: 0 | K31: 0
A32: ='Org structure'!A16 -> Vote 15 - Other | C32: =SUM(C33:C33) -> 0 | D32: =SUM(D33:D33) -> 0 | E32: =SUM(E33:E33) -> 0 | F32: =SUM(F33:F33) -> 0 | G32: =SUM(G33:G33) -> 0 | H32: =SUM(H33:H33) -> 0 | I32: =SUM(I33:I33) -> 0 | J32: =SUM(J33:J33) -> 0 | K32: =SUM(K33:K33) -> 0
A33: ='Org structure'!E30 -> 15.1 - Electricity Reporting Function | C33: 0 | D33: 0 | E33: 0 | F33: 0 | G33: 0 | H33: 0 | I33: 0 | J33: 0 | K33: 0
A34: Total Revenue by Vote | B34: 2 | C34: =C5+C8+C10+C12+C15+C19+C21+C23+C25+C27+C28+C29+C30+C31+C32 -> 1427199589 | D34: =D5+D8+D10+D12+D15+D19+D21+D23+D25+D27+D28+D29+D30+D31+D32 -> 1720899127 | E34: =E5+E8+E10+E12+E15+E19+E21+E23+E25+E27+E28+E29+E30+E31+E32 -> 1482516525 | F34: =F5+F8+F10+F12+F15+F19+F21+F23+F25+F27+F28+F29+F30+F31+F32 -> 1700025589 | G34: =G5+G8+G10+G12+G15+G19+G21+G23+G25+G27+G28+G29+G30+G31+G32 -> 1762521048 | H34: =H5+H8+H10+H12+H15+H19+H21+H23+H25+H27+H28+H29+H30+H31+H32 -> 1762521048 | I34: =I5+I8+I10+I12+I15+I19+I21+I23+I25+I27+I28+I29+I30+I31+I32 -> 1824659742 | J34: =J5+J8+J10+J12+J15+J19+J21+J23+J25+J27+J28+J29+J30+J31+J32 -> 1984489231 | K34: =K5+K8+K10+K12+K15+K19+K21+K23+K25+K27+K28+K29+K30+K31+K32 -> 2114048451 | L34: =SUM(#REF!) ->  | M34: =SUM(#REF!) ->  | N34: =SUM(#REF!) ->  | O34: =SUM(#REF!) ->  | P34: =SUM(#REF!) ->  | Q34: =SUM(#REF!) ->  | R34: =SUM(#REF!) ->  | S34: =SUM(#REF!) ->  | T34: =SUM(#REF!) ->  | U34: =SUM(#REF!) ->  | V34: =SUM(#REF!) ->  | W34: =SUM(#REF!) -> 
A36: Expenditure by Vote | B36: 1
A37: ='Org structure'!A2 -> Vote 01 - Speakers Office | C37: =SUM(C38:C39) -> 35235856.23 | D37: =SUM(D38:D39) -> 36276364.55 | E37: =SUM(E38:E39) -> 39147178.14 | F37: =SUM(F38:F39) -> 48349161 | G37: =SUM(G38:G39) -> 48349161 | H37: =SUM(H38:H39) -> 48349161 | I37: =SUM(I38:I39) -> 52392012 | J37: =SUM(J38:J39) -> 55162619 | K37: =SUM(K38:K39) -> 58326488
A38: ='Org structure'!E3 -> 01.1 - Office Of The Speaker | C38: 35394952.8 | D38: 36276364.55 | E38: 39147178.14 | F38: 48349161 | G38: 48349161 | H38: 48349161 | I38: 52392012 | J38: 55162619 | K38: 58326488
A39: ='Org structure'!E4 -> 01.2 - Office Of The Chief Whip | C39: -159096.57 | D39: 0 | E39: 0 | F39: 0 | G39: 0 | H39: 0 | I39: 0 | J39: 0 | K39: 0
A40: ='Org structure'!A3 -> Vote 02 - Executive Mayor's Office | C40: =SUM(C41:C41) -> 31157898.13 | D40: =SUM(D41:D41) -> 31993573.38 | E40: =SUM(E41:E41) -> 34632531.12 | F40: =SUM(F41:F41) -> 42821518 | G40: =SUM(G41:G41) -> 42821518 | H40: =SUM(H41:H41) -> 42821518 | I40: =SUM(I41:I41) -> 46344292 | J40: =SUM(J41:J41) -> 49215322 | K40: =SUM(K41:K41) -> 51330544
A41: ='Org structure'!E6 -> 02.1 - Executive Mayor's Office | C41: 31157898.13 | D41: 31993573.38 | E41: 34632531.12 | F41: 42821518 | G41: 42821518 | H41: 42821518 | I41: 46344292 | J41: 49215322 | K41: 51330544
A42: ='Org structure'!A4 -> Vote 03 - Municipal Manager Office | C42: =SUM(C43:C43) -> 93451167.38 | D42: =SUM(D43:D43) -> 81148560.32 | E42: =SUM(E43:E43) -> 80699205.44 | F42: =SUM(F43:F43) -> 88662698 | G42: =SUM(G43:G43) -> 87107698 | H42: =SUM(H43:H43) -> 87107698 | I42: =SUM(I43:I43) -> 98043706 | J42: =SUM(J43:J43) -> 118718077 | K42: =SUM(K43:K43) -> 122795330
A43: ='Org structure'!E8 -> 03.1 - Municipal Manager Admin | C43: 93451167.38 | D43: 81148560.32 | E43: 80699205.44 | F43: 88662698 | G43: 87107698 | H43: 87107698 | I43: 98043706 | J43: 118718077 | K43: 122795330
A44: ='Org structure'!A5 -> Vote 04 - Budget And Treasury | C44: =SUM(C45:C46) -> 113129186.1 | D44: =SUM(D45:D46) -> 74143384.4 | E44: =SUM(E45:E46) -> 180555341.2 | F44: =SUM(F45:F46) -> 206871304 | G44: =SUM(G45:G46) -> 183521893 | H44: =SUM(H45:H46) -> 183521893 | I44: =SUM(I45:I46) -> 193248551 | J44: =SUM(J45:J46) -> 202326321 | K44: =SUM(K45:K46) -> 212063209
A45: ='Org structure'!E10 -> 04.1 - Budget & Treasury Admin | C45: 0 | D45: 0 | E45: 0 | F45: 0 | G45: 0 | H45: 0 | I45: 0 | J45: 0 | K45: 0
A46: ='Org structure'!E11 -> 04.2 - Budget & Treasury Admin | C46: 113129186.1 | D46: 74143384.4 | E46: 180555341.2 | F46: 206871304 | G46: 183521893 | H46: 183521893 | I46: 193248551 | J46: 202326321 | K46: 212063209
A47: ='Org structure'!A6 -> Vote 05 - Infrustracture And Water Services | C47: =SUM(C48:C50) -> 580368119.9 | D47: =SUM(D48:D50) -> 658771969.6 | E47: =SUM(E48:E50) -> 583156027.8 | F47: =SUM(F48:F50) -> 571510778 | G47: =SUM(G48:G50) -> 498708735 | H47: =SUM(H48:H50) -> 498708735 | I47: =SUM(I48:I50) -> 539974269 | J47: =SUM(J48:J50) -> 656447965 | K47: =SUM(K48:K50) -> 732832907
A48: ='Org structure'!E13 -> 05.1 - Technical Services Admin | C48: 59159588.93 | D48: 78914769.08 | E48: 92299596.22 | F48: 82535706 | G48: 37835707 | H48: 37835707 | I48: 51793553 | J48: 98508455 | K48: 114751292
A49: ='Org structure'!E14 -> 05.2 - Water Services | C49: 502854088.9 | D49: 561104651.3 | E49: 436892548 | F49: 487423161 | G49: 458530799 | H49: 458530799 | I49: 485714349 | J49: 555352291 | K49: 615372796
A50: ='Org structure'!E15 -> 05.3 - Sanitation Services | C50: 18354442.03 | D50: 18752549.23 | E50: 53963883.57 | F50: 1551911 | G50: 2342229 | H50: 2342229 | I50: 2466367 | J50: 2587219 | K50: 2708819
A51: ='Org structure'!A7 -> Vote 06 - Planning And Economic Development | C51: =SUM(C52:C52) -> 7540558.8 | D51: =SUM(D52:D52) -> 10107947.71 | E51: =SUM(E52:E52) -> 9688969.38 | F51: =SUM(F52:F52) -> 19209120 | G51: =SUM(G52:G52) -> 18357519 | H51: =SUM(H52:H52) -> 18357519 | I51: =SUM(I52:I52) -> 21926952 | J51: =SUM(J52:J52) -> 24741338 | K51: =SUM(K52:K52) -> 27159422
A52: ='Org structure'!E17 -> 06.1 - Planning & Economic Dev Admin | C52: 7540558.8 | D52: 10107947.71 | E52: 9688969.38 | F52: 19209120 | G52: 18357519 | H52: 18357519 | I52: 21926952 | J52: 24741338 | K52: 27159422
A53: ='Org structure'!A8 -> Vote 07 - Community Services | C53: =SUM(C54:C54) -> 63649658 | D53: =SUM(D54:D54) -> 67605289.1 | E53: =SUM(E54:E54) -> 69425249.75 | F53: =SUM(F54:F54) -> 76902221 | G53: =SUM(G54:G54) -> 73702221 | H53: =SUM(H54:H54) -> 73702221 | I53: =SUM(I54:I54) -> 77608437 | J53: =SUM(J54:J54) -> 81411250 | K53: =SUM(K54:K54) -> 85237580
A54: ='Org structure'!E19 -> 07.1 - Community Services Admin | C54: 63649658 | D54: 67605289.1 | E54: 69425249.75 | F54: 76902221 | G54: 73702221 | H54: 73702221 | I54: 77608437 | J54: 81411250 | K54: 85237580
A55: ='Org structure'!A9 -> Vote 08 - Sekhukhune Development Angancy | C55: =SUM(C56:C56) -> 3497209.2 | D55: =SUM(D56:D56) -> 2556298.03 | E55: =SUM(E56:E56) -> 3205266.92 | F55: =SUM(F56:F56) -> 7708059 | G55: =SUM(G56:G56) -> 6908059 | H55: =SUM(H56:H56) -> 6908059 | I55: =SUM(I56:I56) -> 9314935 | J55: =SUM(J56:J56) -> 12120279 | K55: =SUM(K56:K56) -> 13027106
A56: ='Org structure'!E21 -> 08.1 - Sekhukhune Development Agency | C56: 3497209.2 | D56: 2556298.03 | E56: 3205266.92 | F56: 7708059 | G56: 6908059 | H56: 6908059 | I56: 9314935 | J56: 12120279 | K56: 13027106
A57: ='Org structure'!A10 -> Vote 09 - Corporate Services | C57: =SUM(C58:C58) -> 130085395.6 | D57: =SUM(D58:D58) -> 134931459.4 | E57: =SUM(E58:E58) -> 148411086 | F57: =SUM(F58:F58) -> 148550876 | G57: =SUM(G58:G58) -> 190223556 | H57: =SUM(H58:H58) -> 190223556 | I57: =SUM(I58:I58) -> 191893649 | J57: =SUM(J58:J58) -> 203116614 | K57: =SUM(K58:K58) -> 213978722
A58: ='Org structure'!E23 -> 09.1 - Corporate Services Admin | C58: 130085395.6 | D58: 134931459.4 | E58: 148411086 | F58: 148550876 | G58: 190223556 | H58: 190223556 | I58: 191893649 | J58: 203116614 | K58: 213978722
A59: ='Org structure'!A11 -> Vote 10 - | C59: 0 | D59: 0 | E59: 0 | F59: 0 | G59: 0 | H59: 0 | I59: 0 | J59: 0 | K59: 0
A60: ='Org structure'!A12 -> Vote 11 - | C60: 0 | D60: 0 | E60: 0 | F60: 0 | G60: 0 | H60: 0 | I60: 0 | J60: 0 | K60: 0
A61: ='Org structure'!A13 -> Vote 12 - | C61: 0 | D61: 0 | E61: 0 | F61: 0 | G61: 0 | H61: 0 | I61: 0 | J61: 0 | K61: 0
A62: ='Org structure'!A14 -> Vote 13 - | C62: 0 | D62: 0 | E62: 0 | F62: 0 | G62: 0 | H62: 0 | I62: 0 | J62: 0 | K62: 0
A63: ='Org structure'!A15 -> Vote 14 - | C63: 0 | D63: 0 | E63: 0 | F63: 0 | G63: 0 | H63: 0 | I63: 0 | J63: 0 | K63: 0
A64: ='Org structure'!A16 -> Vote 15 - Other | C64: =SUM(C65:C65) -> 0 | D64: =SUM(D65:D65) -> 0 | E64: =SUM(E65:E65) -> 0 | F64: =SUM(F65:F65) -> 0 | G64: =SUM(G65:G65) -> 0 | H64: =SUM(H65:H65) -> 0 | I64: =SUM(I65:I65) -> 0 | J64: =SUM(J65:J65) -> 0 | K64: =SUM(K65:K65) -> 0
A65: ='Org structure'!E30 -> 15.1 - Electricity Reporting Function | C65: 0 | D65: 0 | E65: 0 | F65: 0 | G65: 0 | H65: 0 | I65: 0 | J65: 0 | K65: 0
A66: Total Expenditure by Vote | B66: 2 | C66: =C37+C40+C42+C44+C47+C51+C53+C55+C57+C59+C60+C61+C62+C63+C64 -> 1058115049 | D66: =D37+D40+D42+D44+D47+D51+D53+D55+D57+D59+D60+D61+D62+D63+D64 -> 1097534846 | E66: =E37+E40+E42+E44+E47+E51+E53+E55+E57+E59+E60+E61+E62+E63+E64 -> 1148920856 | F66: =F37+F40+F42+F44+F47+F51+F53+F55+F57+F59+F60+F61+F62+F63+F64 -> 1210585735 | G66: =G37+G40+G42+G44+G47+G51+G53+G55+G57+G59+G60+G61+G62+G63+G64 -> 1149700360 | H66: =H37+H40+H42+H44+H47+H51+H53+H55+H57+H59+H60+H61+H62+H63+H64 -> 1149700360 | I66: =I37+I40+I42+I44+I47+I51+I53+I55+I57+I59+I60+I61+I62+I63+I64 -> 1230746803 | J66: =J37+J40+J42+J44+J47+J51+J53+J55+J57+J59+J60+J61+J62+J63+J64 -> 1403259785 | K66: =K37+K40+K42+K44+K47+K51+K53+K55+K57+K59+K60+K61+K62+K63+K64 -> 1516751308 | L66: =SUM(L37:L54) -> 0 | M66: =SUM(M37:M54) -> 0 | N66: =SUM(N37:N54) -> 0 | O66: =SUM(O37:O54) -> 0 | P66: =SUM(P37:P54) -> 0 | Q66: =SUM(Q37:Q54) -> 0 | R66: =SUM(R37:R54) -> 0 | S66: =SUM(S37:S54) -> 0 | T66: =SUM(T37:T54) -> 0 | U66: =SUM(U37:U54) -> 0 | V66: =SUM(V37:V54) -> 0 | W66: =SUM(W37:W54) -> 0
A68: =result -> Surplus/(Deficit) for the year | B68: 2 | C68: =C34-C66 -> 369084539.5 | D68: =D34-D66 -> 623364280.7 | E68: =E34-E66 -> 333595669.6 | F68: =F34-F66 -> 489439854 | G68: =G34-G66 -> 612820688 | H68: =H34-H66 -> 612820688 | I68: =I34-I66 -> 593912939 | J68: =J34-J66 -> 581229446 | K68: =K34-K66 -> 597297143 | L68: =L34-L66 ->  | M68: =M34-M66 ->  | N68: =N34-N66 ->  | O68: =O34-O66 ->  | P68: =P34-P66 ->  | Q68: =Q34-Q66 ->  | R68: =R34-R66 ->  | S68: =S34-S66 ->  | T68: =T34-T66 ->  | U68: =U34-U66 ->  | V68: =V34-V66 ->  | W68: =W34-W66 -> 
A69: =head27a -> References
A70: 1. Insert 'Vote'; e.g. Department, if different to Functional structure
A71: 2. Must reconcile to Financial Performance ('Revenue and Expenditure by Functional Classification' and 'Revenue and Expenditure')
A72: 3. Assign share in 'associate' to relevant Vote

Sheet A4-FinPerf RE
A1: =muni&" - "&Approve4 -> DC47 Sekhukhune - Table A4 Budgeted Financial Performance (revenue and expenditure)
A2: =desc -> Description | B2: =head27 -> Ref | C2: =head1b -> 2019/20 | D2: =head1A -> 2020/21 | E2: =Head1 -> 2021/22 | F2: =Head2 -> Current Year 2022/23 | J2: =Head3 -> 2023/24 Medium Term Revenue & Expenditure Framework | M2: =Head4 -> LTFS
A3: R thousand | B3: 1 | C3: =Head5 -> Audited Outcome | D3: =Head5 -> Audited Outcome | E3: =Head5 -> Audited Outcome | F3: =Head6 -> Original Budget | G3: =Head7 -> Adjusted Budget | H3: =Head8 -> Full Year Forecast | I3: =Head5b -> Pre-audit outcome | J3: =Head9 -> Budget Year 2023/24 | K3: =Head10 -> Budget Year +1 2024/25 | L3: =Head11 -> Budget Year +2 2025/26 | M3: =Head12 -> Forecast 2026/27 | N3: =Head13 -> Forecast 2027/28 | O3: =Head14 -> Forecast 2028/29 | P3: =Head15 -> Forecast 2029/30 | Q3: =Head16 -> Forecast 2030/31 | R3: =Head17 -> Forecast 2031/32 | S3: =Head18 -> Forecast 2032/33 | T3: =Head19 -> Forecast 2033/34 | U3: =Head20 -> Forecast 2034/35 | V3: =Head21 -> Forecast 2035/36 | W3: =Head22 -> Forecast 2036/37 | X3: =Head23 -> Forecast 2037/38
A4: Revenue
A5: Exchange Revenue
A6: Service charges - Electricity | B6: 2 | C6: ='SA1'!C17 -> 0 | D6: ='SA1'!D17 -> 0 | E6: ='SA1'!E17 -> 0 | F6: ='SA1'!F17 -> 0 | G6: ='SA1'!G17 -> 0 | H6: ='SA1'!H17 -> 0 | I6: ='SA1'!I17 -> 0 | J6: ='SA1'!J17 -> 0 | K6: ='SA1'!K17 -> 0 | L6: ='SA1'!L17 -> 0
A7: Service charges - Water | B7: 2 | C7: ='SA1'!C23 -> 81947083.02 | D7: ='SA1'!D23 -> 72887805.49 | E7: ='SA1'!E23 -> 80127622.54 | F7: ='SA1'!F23 -> 88833619 | G7: ='SA1'!G23 -> 88833619 | H7: ='SA1'!H23 -> 88833619 | I7: ='SA1'!I23 -> 65455879.51 | J7: ='SA1'!J23 -> 93541801 | K7: ='SA1'!K23 -> 98125349 | L7: ='SA1'!L23 -> 102737241
A8: Service charges - Waste Water Management | B8: 2 | C8: ='SA1'!C29 -> 12893848.73 | D8: ='SA1'!D29 -> 12452564.61 | E8: ='SA1'!E29 -> 14085485.41 | F8: ='SA1'!F29 -> 14736395 | G8: ='SA1'!G29 -> 14736395 | H8: ='SA1'!H29 -> 14736395 | I8: ='SA1'!I29 -> 13331256.71 | J8: ='SA1'!J29 -> 15517425 | K8: ='SA1'!K29 -> 16277778 | L8: ='SA1'!L29 -> 17042834
A9: Service charges - Waste Management | B9: 2 | C9: ='SA1'!C36 -> 0 | D9: ='SA1'!D36 -> 0 | E9: ='SA1'!E36 -> 0 | F9: ='SA1'!F36 -> 0 | G9: ='SA1'!G36 -> 0 | H9: ='SA1'!H36 -> 0 | I9: ='SA1'!I36 -> 0 | J9: ='SA1'!J36 -> 0 | K9: ='SA1'!K36 -> 0 | L9: ='SA1'!L36 -> 0
A10: Sale of Goods and Rendering of Services | C10: 1593214.5 | D10: 4144746.53 | E10: 987650.28 | F10: 2136197 | G10: 2136197 | H10: 2136197 | I10: 1267480.41 | J10: 2249415 | K10: 2359637 | L10: 2470540
A11: Agency services
A12: Interest
A13: Interest earned from Receivables | C13: 16995779.92 | D13: 12936558.85 | E13: 16324672.81 | F13: 15221206 | G13: 15221206 | H13: 15221206 | I13: 23490407.45 | J13: 16027930 | K13: 16813298 | L13: 17603524
A14: Interest earned from Current and Non Current Assets | C14: 9889632.36 | D14: 15003055.27 | E14: 21517319.28 | F14: 21659404 | G14: 21659404 | H14: 21659404 | I14: 43493521.32 | J14: 26991908 | K14: 31170140 | L14: 41594349
A15: Dividends | C15: 0 | D15: 0 | E15: 0 | F15: 0 | G15: 0 | H15: 0 | I15: 0 | J15: 0 | K15: 0 | L15: 0
A16: Rent on Land
A17: Rental from Fixed Assets
A18: Licence and permits
A19: Operational Revenue | C19: 2922.63 | D19: 78841749.67 | E19: 8806.04 | F19: 35366 | G19: 35366 | H19: 35366 | I19: 22181.93 | J19: 37241 | K19: 39064 | L19: 40902
A20: Non-Exchange Revenue
A21: Property rates | B21: 2 | C21: ='SA1'!C10 -> 0 | D21: ='SA1'!D10 -> 0 | E21: ='SA1'!E10 -> 0 | F21: ='SA1'!F10 -> 0 | G21: ='SA1'!G10 -> 0 | H21: ='SA1'!H10 -> 0 | I21: ='SA1'!I10 -> 0 | J21: ='SA1'!J10 -> 0 | K21: ='SA1'!K10 -> 0 | L21: ='SA1'!L10 -> 0
A22: Surcharges and Taxes | C22: 0 | D22: 0 | E22: 0 | F22: 3249 | G22: 3249 | H22: 3249 | I22: 0 | J22: 3421 | K22: 3589 | L22: 3758
A23: Fines, penalties and forfeits | C23: 63336.31 | D23: 3833.85 | E23: 4217.24 | F23: 50132 | G23: 50132 | H23: 50132 | I23: 4428.1 | J23: 52789 | K23: 55376 | L23: 57978
A24: Licences or permits
A25: Transfer and subsidies - Operational | C25: 859188517 | D25: 1074694103 | E25: 1002742893 | F25: 1087843560 | G25: 1052092311 | H25: 1052092311 | I25: 985467448.1 | J25: 1118176990 | K25: 1261384458 | L25: 1359398233
A26: Interest
A27: Fuel Levy
A28: Operational Revenue
A29: Gains on disposal of Assets | C29: 0 | D29: 0 | E29: 0 | F29: 430021 | G29: 430021 | H29: 430021 | I29: 0 | J29: 452812 | K29: 475000 | L29: 497325
A30: Other Gains | C30: 0 | D30: 0 | E30: 2548.55 | F30: 0 | G30: 0 | H30: 0 | I30: 343271.89 | J30: 0 | K30: 0 | L30: 0
A31: Discontinued Operations
A32: Total Revenue (excluding capital transfers and contributions) | C32: =SUM(C6:C19)+SUM(C21:C31) -> 982574334.5 | D32: =SUM(D6:D19)+SUM(D21:D31) -> 1270964417 | E32: 1135801215 | F32: 1230949149 | G32: 1195197900 | H32: 1195197900 | I32: 1132875875 | J32: 1273051732 | K32: 1426703689 | L32: 1541446684
A33: Expenditure
A34: Employee related costs | B34: 2 | C34: ='SA1'!C71 -> 395222658.9 | D34: ='SA1'!D71 -> 413179304.5 | E34: ='SA1'!E71 -> 401062622.2 | F34: ='SA1'!F71 -> 459428896 | G34: ='SA1'!G71 -> 454581013 | H34: ='SA1'!H71 -> 454581013 | I34: ='SA1'!I71 -> 333078730.9 | J34: ='SA1'!J71 -> 478529270 | K34: ='SA1'!K71 -> 502055610 | L34: ='SA1'!L71 -> 525652225 | M34: ='SA1'!M71 -> 0 | N34: ='SA1'!N71 -> 0 | O34: ='SA1'!O71 -> 0 | P34: ='SA1'!P71 -> 0 | Q34: ='SA1'!Q71 -> 0 | R34: ='SA1'!R71 -> 0 | S34: ='SA1'!S71 -> 0 | T34: ='SA1'!T71 -> 0
A35: Remuneration of councillors | C35: 15466714.2 | D35: 15042795.47 | E35: 15631492.35 | F35: 18422108 | G35: 18122108 | H35: 18122108 | I35: 29732806.03 | J35: 19082579 | K35: 20017625 | L35: 20958453
A36: Bulk purchases - electricity | B36: 2 | C36: ='SA1'!C88 -> 0 | D36: ='SA1'!D88 -> 0 | E36: ='SA1'!E88 -> 0 | F36: ='SA1'!F88 -> 0 | G36: ='SA1'!G88 -> 0 | H36: ='SA1'!H88 -> 0 | I36: ='SA1'!I88 -> 0 | J36: ='SA1'!J88 -> 0 | K36: ='SA1'!K88 -> 0 | L36: ='SA1'!L88 -> 0
A37: Inventory consumed | B37: 8 | C37: ='SA1'!C169 -> 25650773 | D37: ='SA1'!D169 -> 24307534 | E37: ='SA1'!E169 -> 22905628 | F37: ='SA1'!F169 -> 191075226 | G37: ='SA1'!G169 -> 166993584 | H37: ='SA1'!H169 -> 166993584 | I37: ='SA1'!I169 -> 19899054.13 | J37: ='SA1'!J169 -> 185066733 | K37: ='SA1'!K169 -> 224717503 | L37: ='SA1'!L169 -> 269084164
A38: Debt impairment | B38: 3 | C38: 0 | D38: 0 | E38: 0 | F38: 0 | G38: 0 | H38: 0 | I38: 0 | J38: 0 | K38: 0 | L38: 0
A39: Depreciation and amortisation | C39: ='SA1'!C83 -> 122229924.3 | D39: ='SA1'!D83 -> 94331435.57 | E39: ='SA1'!E83 -> 116366974.3 | F39: ='SA1'!F83 -> 106884864 | G39: ='SA1'!G83 -> 94814864 | H39: ='SA1'!H83 -> 94814864 | I39: ='SA1'!I83 -> 0 | J39: ='SA1'!J83 -> 99840051 | K39: ='SA1'!K83 -> 104732214 | L39: ='SA1'!L83 -> 109654628
A40: Interest | C40: 0 | D40: 0 | E40: 0 | F40: 509411 | G40: 100000 | H40: 100000 | I40: 0 | J40: 105300 | K40: 110460 | L40: 115651
A41: Contracted services | C41: ='SA1'!C127 -> 180216947.1 | D41: ='SA1'!D127 -> 177435630.9 | E41: ='SA1'!E127 -> 200228749.8 | F41: ='SA1'!F127 -> 239331123 | G41: ='SA1'!G127 -> 199813706 | H41: ='SA1'!H127 -> 199813706 | I41: ='SA1'!I127 -> 106557732.8 | J41: ='SA1'!J127 -> 202768071 | K41: ='SA1'!K127 -> 312160886 | L41: ='SA1'!L127 -> 339978922
A42: Transfers and subsidies | C42: ='SA1'!C93 -> 3497209.2 | D42: ='SA1'!D93 -> 2556298.03 | E42: ='SA1'!E93 -> 3219345.65 | F42: ='SA1'!F93 -> 0 | G42: ='SA1'!G93 -> 0 | H42: ='SA1'!H93 -> 0 | I42: ='SA1'!I93 -> 0 | J42: ='SA1'!J93 -> 20000000 | K42: ='SA1'!K93 -> 0 | L42: ='SA1'!L93 -> 0
A43: Irrecoverable debts written off | C43: 2630289.44 | D43: 66912.69 | E43: 47918556.94 | F43: 11039600 | G43: 5039600 | H43: 5039600 | I43: 151888.4 | J43: 5306699 | K43: 5566727 | L43: 5828363
A44: Operational costs | C44: ='SA1'!C157 -> 148236541.8 | D44: ='SA1'!D157 -> 163545740.5 | E44: ='SA1'!E157 -> 179971375.5 | F44: ='SA1'!F157 -> 183894508 | G44: ='SA1'!G157 -> 210235485 | H44: ='SA1'!H157 -> 210235485 | I44: ='SA1'!I157 -> 193519033.5 | J44: ='SA1'!J157 -> 220048100 | K44: ='SA1'!K157 -> 233898761 | L44: ='SA1'!L157 -> 245478902
A45: Losses on disposal of Assets | C45: 45083277.95 | D45: 40652800.02 | E45: 2617732.23 | F45: 0 | G45: 0 | H45: 0 | I45: 0 | J45: 0 | K45: 0 | L45: 0
A46: Other Losses | C46: 0 | D46: 0 | E46: 0 | F46: 0 | G46: 0 | H46: 0 | I46: 0 | J46: 0 | K46: 0 | L46: 0
A47: Total Expenditure | C47: =SUM(C34:C46) -> 938234335.8 | D47: =SUM(D34:D46) -> 931118451.7 | E47: 989922477 | F47: 1210585736 | G47: 1149700360 | H47: 1149700360 | I47: 682939245.8 | J47: 1230746803 | K47: 1403259786 | L47: 1516751308 | M47: =SUM(M34:M46) -> 0 | N47: 0 | O47: 0 | P47: 0 | Q47: 0 | R47: 0 | S47: 0 | T47: 0 | U47: 0 | V47: 0 | W47: 0 | X47: 0
A48: Surplus/(Deficit) | C48: =C32-C47 -> 44339998.65 | D48: 339845965.2 | E48: 145878738.4 | F48: 20363413 | G48: 45497540 | H48: 45497540 | I48: 449936629.7 | J48: 42304929 | K48: 23443903 | L48: 24695376 | M48: =M32+M47 -> 0 | N48: 0 | O48: 0 | P48: 0 | Q48: 0 | R48: 0 | S48: 0 | T48: 0 | U48: 0 | V48: 0 | W48: 0 | X48: 0
A49: Transfers and subsidies - capital (monetary allocations) | B49: 6 | C49: 443917155.9 | D49: 448733186.9 | E49: 345116894.4 | F49: 469076440 | G49: 567323148 | H49: 567323148 | I49: 191089436.5 | J49: 551608010 | K49: 557785542 | L49: 572601767
A50: Transfers and subsidies - capital (in-kind) | B50: 6 | C50: 708098.46 | D50: 1201523.31 | E50: 1598415.56 | F50: 0 | G50: 0 | H50: 0 | I50: 2742603.91 | J50: 0 | K50: 0 | L50: 0
A51: Surplus/(Deficit) after capital transfers & contributions | C51: =SUM(C48:C50) -> 488965253 | D51: 789780675.5 | E51: 492594048.3 | F51: 489439853 | G51: 612820688 | H51: 612820688 | I51: 643768670.1 | J51: 593912939 | K51: 581229445 | L51: 597297143
A52: Income Tax
A53: Surplus/(Deficit) after income tax | C53: =+C51-C52 -> 488965253 | D53: =+D51-D52 -> 789780675.5 | E53: 492594048.3 | F53: 489439853 | G53: 612820688 | H53: 612820688 | I53: 643768670.1 | J53: 593912939 | K53: 581229445 | L53: 597297143 | M53: 0 | N53: 0 | O53: 0 | P53: 0 | Q53: 0
A54: Share of Surplus/Deficit attributable to Joint Venture
A55: Share of Surplus/Deficit attributable to Minorities
A56: Surplus/(Deficit) attributable to municipality | C56: =SUM(C53:C55) -> 488965253 | D56: =SUM(D53:D55) -> 789780675.5 | E56: 492594048.3 | F56: 489439853 | G56: 612820688 | H56: 612820688 | I56: 643768670.1 | J56: 593912939 | K56: 581229445 | L56: 597297143 | M56: 0 | N56: 0 | O56: 0 | P56: 0 | Q56: 0
A57: Share of Surplus/Deficit attributable to Associate | B57: 7
A58: Intercompany/Parent subsidiary transactions | C58: 0 | D58: 0 | E58: 0 | F58: 0 | G58: 0 | H58: 0 | I58: 0 | J58: 0 | K58: 0 | L58: 0
A59: =result -> Surplus/(Deficit) for the year | B59: 1 | C59: =SUM(C56:C58) -> 488965253 | D59: =SUM(D56:D58) -> 789780675.5 | E59: 492594048.3 | F59: 489439853 | G59: 612820688 | H59: 612820688 | I59: 643768670.1 | J59: 593912939 | K59: 581229445 | L59: 597297143 | M59: 0 | N59: 0 | O59: 0 | P59: 0 | Q59: 0 | R59: =R35+R58 -> 0 | S59: 0 | T59: 0 | U59: 0 | V59: 0 | W59: 0 | X59: 0
A60: References
A61: 1. Classifications are revenue sources and expenditure type
A62: 2. Detail to be provided in Table SA1 | O62: =O59-'A4-FinPerf RE'!J59 -> -593912939 | P62: =P59-'A4-FinPerf RE'!K59 -> -581229445 | Q62: =Q59-'A4-FinPerf RE'!L59 -> -597297143
A63: 3. Debt impairment includes Impairment and Reversal of Impairment Losses
A64: 4. Expenditure type components previously shown under repairs and maintenance should be allocated back to the originating expenditure group/item; e.g. employee costs
A65: 5. Repairs & maintenance detailed in Table A9 and Table SA34c
A66: 6. Contributions are funds provided by external organisations to assist with infrastructure development; e.g. developer contributions (detail to be provided in Table SA1)
A67: 7. Equity method ( Includes Joint Ventures)
A68: 8. All materials consumed including water consumed and materials used in operations.

Sheet A5-Capex
A2: =Vdesc -> Vote Description | B2: =head27 -> Ref | C2: =head1b -> 2019/20 | D2: =head1A -> 2020/21 | E2: =Head1 -> 2021/22 | F2: =Head2 -> Current Year 2022/23 | J2: =Head3 -> 2023/24 Medium Term Revenue & Expenditure Framework
A3: R thousand | B3: 1 | C3: =Head5 -> Audited Outcome | D3: =Head5 -> Audited Outcome | E3: =Head5 -> Audited Outcome | F3: =Head6 -> Original Budget | G3: =Head7 -> Adjusted Budget | H3: =Head8 -> Full Year Forecast | I3: =Head5b -> Pre-audit outcome | J3: =Head9 -> Budget Year 2023/24 | K3: =Head10 -> Budget Year +1 2024/25 | L3: =Head11 -> Budget Year +2 2025/26
A4: Capital expenditure - Vote
A5: Multi-year expenditure to be appropriated | B5: 2
A6: =A5A!A6 -> Vote 01 - Speakers Office | C6: =A5A!C6 -> 0 | D6: =A5A!D6 -> 0 | E6: =A5A!E6 -> 0 | F6: =A5A!F6 -> 0 | G6: =A5A!G6 -> 0 | H6: =A5A!H6 -> 0 | I6: =A5A!I6 -> 0 | J6: =A5A!J6 -> 0 | K6: =A5A!K6 -> 0 | L6: =A5A!L6 -> 0
A7: =A5A!A9 -> Vote 02 - Executive Mayor's Office | C7: =A5A!C9 -> 0 | D7: =A5A!D9 -> 0 | E7: =A5A!E9 -> 0 | F7: =A5A!F9 -> 0 | G7: =A5A!G9 -> 0 | H7: =A5A!H9 -> 0 | I7: =A5A!I9 -> 0 | J7: =A5A!J9 -> 0 | K7: =A5A!K9 -> 0 | L7: =A5A!L9 -> 0
A8: =A5A!A11 -> Vote 03 - Municipal Manager Office | C8: =A5A!C11 -> 0 | D8: =A5A!D11 -> 0 | E8: =A5A!E11 -> 0 | F8: =A5A!F11 -> 0 | G8: =A5A!G11 -> 0 | H8: =A5A!H11 -> 0 | I8: =A5A!I11 -> 0 | J8: =A5A!J11 -> 0 | K8: =A5A!K11 -> 0 | L8: =A5A!L11 -> 0
A9: =A5A!A13 -> Vote 04 - Budget And Treasury | C9: =A5A!C13 -> 0 | D9: =A5A!D13 -> 0 | E9: =A5A!E13 -> 0 | F9: =A5A!F13 -> 0 | G9: =A5A!G13 -> 0 | H9: =A5A!H13 -> 0 | I9: =A5A!I13 -> 0 | J9: =A5A!J13 -> 0 | K9: =A5A!K13 -> 0 | L9: =A5A!L13 -> 0
A10: =A5A!A16 -> Vote 05 - Infrustracture And Water Services | C10: =A5A!C16 -> 0 | D10: =A5A!D16 -> 0 | E10: =A5A!E16 -> 0 | F10: =A5A!F16 -> 0 | G10: =A5A!G16 -> 0 | H10: =A5A!H16 -> 0 | I10: =A5A!I16 -> 0 | J10: =A5A!J16 -> 0 | K10: =A5A!K16 -> 0 | L10: =A5A!L16 -> 0
A11: =A5A!A20 -> Vote 06 - Planning And Economic Development | C11: =A5A!C20 -> 0 | D11: =A5A!D20 -> 0 | E11: =A5A!E20 -> 0 | F11: =A5A!F20 -> 0 | G11: =A5A!G20 -> 0 | H11: =A5A!H20 -> 0 | I11: =A5A!I20 -> 0 | J11: =A5A!J20 -> 0 | K11: =A5A!K20 -> 0 | L11: =A5A!L20 -> 0
A12: =A5A!A22 -> Vote 07 - Community Services | C12: =A5A!C22 -> 0 | D12: =A5A!D22 -> 0 | E12: =A5A!E22 -> 0 | F12: =A5A!F22 -> 0 | G12: =A5A!G22 -> 0 | H12: =A5A!H22 -> 0 | I12: =A5A!I22 -> 0 | J12: =A5A!J22 -> 0 | K12: =A5A!K22 -> 0 | L12: =A5A!L22 -> 0
A13: =A5A!A24 -> Vote 08 - Sekhukhune Development Angancy | C13: =A5A!C24 -> 0 | D13: =A5A!D24 -> 0 | E13: =A5A!E24 -> 0 | F13: =A5A!F24 -> 0 | G13: =A5A!G24 -> 0 | H13: =A5A!H24 -> 0 | I13: =A5A!I24 -> 0 | J13: =A5A!J24 -> 0 | K13: =A5A!K24 -> 0 | L13: =A5A!L24 -> 0
A14: =A5A!A26 -> Vote 09 - Corporate Services | C14: =A5A!C26 -> 0 | D14: =A5A!D26 -> 0 | E14: =A5A!E26 -> 0 | F14: =A5A!F26 -> 0 | G14: =A5A!G26 -> 0 | H14: =A5A!H26 -> 0 | I14: =A5A!I26 -> 0 | J14: =A5A!J26 -> 0 | K14: =A5A!K26 -> 0 | L14: =A5A!L26 -> 0
A15: ='Org structure'!A11 -> Vote 10 - | C15: =A5A!C28 -> 0 | D15: =A5A!D28 -> 0 | E15: =A5A!E28 -> 0 | F15: =A5A!F28 -> 0 | G15: =A5A!G28 -> 0 | H15: =A5A!H28 -> 0 | I15: =A5A!I28 -> 0 | J15: =A5A!J28 -> 0 | K15: =A5A!K28 -> 0 | L15: =A5A!L28 -> 0
A16: ='Org structure'!A12 -> Vote 11 - | C16: =A5A!C29 -> 0 | D16: =A5A!D29 -> 0 | E16: =A5A!E29 -> 0 | F16: =A5A!F29 -> 0 | G16: =A5A!G29 -> 0 | H16: =A5A!H29 -> 0 | I16: =A5A!I29 -> 0 | J16: =A5A!J29 -> 0 | K16: =A5A!K29 -> 0 | L16: =A5A!L29 -> 0
A17: ='Org structure'!A13 -> Vote 12 - | C17: =A5A!C30 -> 0 | D17: =A5A!D30 -> 0 | E17: =A5A!E30 -> 0 | F17: =A5A!F30 -> 0 | G17: =A5A!G30 -> 0 | H17: =A5A!H30 -> 0 | I17: =A5A!I30 -> 0 | J17: =A5A!J30 -> 0 | K17: =A5A!K30 -> 0 | L17: =A5A!L30 -> 0
A18: ='Org structure'!A14 -> Vote 13 - | C18: =A5A!C31 -> 0 | D18: =A5A!D31 -> 0 | E18: =A5A!E31 -> 0 | F18: =A5A!F31 -> 0 | G18: =A5A!G31 -> 0 | H18: =A5A!H31 -> 0 | I18: =A5A!I31 -> 0 | J18: =A5A!J31 -> 0 | K18: =A5A!K31 -> 0 | L18: =A5A!L31 -> 0
A19: ='Org structure'!A15 -> Vote 14 - | C19: =A5A!C32 -> 0 | D19: =A5A!D32 -> 0 | E19: =A5A!E32 -> 0 | F19: =A5A!F32 -> 0 | G19: =A5A!G32 -> 0 | H19: =A5A!H32 -> 0 | I19: =A5A!I32 -> 0 | J19: =A5A!J32 -> 0 | K19: =A5A!K32 -> 0 | L19: =A5A!L32 -> 0
A20: =A5A!A33 -> Vote 15 - Other | C20: =A5A!C33 -> 0 | D20: =A5A!D33 -> 0 | E20: =A5A!E33 -> 0 | F20: =A5A!F33 -> 0 | G20: =A5A!G33 -> 0 | H20: =A5A!H33 -> 0 | I20: =A5A!I33 -> 0 | J20: =A5A!J33 -> 0 | K20: =A5A!K33 -> 0 | L20: =A5A!L33 -> 0
A21: Capital multi-year expenditure sub-total | B21: 7 | C21: =SUM(C6:C20) -> 0 | D21: =SUM(D6:D20) -> 0 | E21: 0 | F21: 0 | G21: 0 | H21: =SUM(H6:H20) -> 0 | I21: 0 | J21: 0 | K21: 0 | L21: 0
A23: Single-year expenditure to be appropriated | B23: 2
A24: =A5A!A39 -> Vote 01 - Speakers Office | C24: =A5A!C39 -> 0 | D24: =A5A!D39 -> 0 | E24: =A5A!E39 -> 0 | F24: =A5A!F39 -> 0 | G24: =A5A!G39 -> 0 | H24: =A5A!H39 -> 0 | I24: =A5A!I39 -> 0 | J24: =A5A!J39 -> 0 | K24: =A5A!K39 -> 0 | L24: =A5A!L39 -> 0
A25: =A5A!A42 -> Vote 02 - Executive Mayor's Office | C25: =A5A!C42 -> 0 | D25: =A5A!D42 -> 0 | E25: =A5A!E42 -> 0 | F25: =A5A!F42 -> 0 | G25: =A5A!G42 -> 162000 | H25: =A5A!H42 -> 162000 | I25: =A5A!I42 -> 0 | J25: =A5A!J42 -> 0 | K25: =A5A!K42 -> 0 | L25: =A5A!L42 -> 0
A26: =A5A!A44 -> Vote 03 - Municipal Manager Office | C26: =A5A!C44 -> 0 | D26: =A5A!D44 -> 0 | E26: =A5A!E44 -> 0 | F26: =A5A!F44 -> 0 | G26: =A5A!G44 -> 0 | H26: =A5A!H44 -> 0 | I26: =A5A!I44 -> 0 | J26: =A5A!J44 -> 0 | K26: =A5A!K44 -> 0 | L26: =A5A!L44 -> 0
A27: =A5A!A46 -> Vote 04 - Budget And Treasury | C27: =A5A!C46 -> 0 | D27: =A5A!D46 -> 0 | E27: =A5A!E46 -> 0 | F27: =A5A!F46 -> 0 | G27: =A5A!G46 -> 400000 | H27: =A5A!H46 -> 400000 | I27: =A5A!I46 -> 0 | J27: =A5A!J46 -> 28450000 | K27: =A5A!K46 -> 8160000 | L27: =A5A!L46 -> 8600000
A28: =A5A!A49 -> Vote 05 - Infrustracture And Water Services | C28: =A5A!C49 -> 390198098 | D28: =A5A!D49 -> 421393771.7 | E28: =A5A!E49 -> 350714973 | F28: =A5A!F49 -> 488656441 | G28: =A5A!G49 -> 607429710 | H28: =A5A!H49 -> 607429710 | I28: =A5A!I49 -> 187733262 | J28: =A5A!J49 -> 563293325 | K28: =A5A!K49 -> 570008381 | L28: =A5A!L49 -> 585386856
A29: =A5A!A53 -> Vote 06 - Planning And Economic Development | C29: =A5A!C53 -> 0 | D29: =A5A!D53 -> 0 | E29: =A5A!E53 -> 0 | F29: =A5A!F53 -> 0 | G29: =A5A!G53 -> 0 | H29: =A5A!H53 -> 0 | I29: =A5A!I53 -> 0 | J29: =A5A!J53 -> 0 | K29: =A5A!K53 -> 0 | L29: =A5A!L53 -> 0
A30: =A5A!A55 -> Vote 07 - Community Services | C30: =A5A!C55 -> 0 | D30: =A5A!D55 -> 0 | E30: =A5A!E55 -> 0 | F30: =A5A!F55 -> 0 | G30: =A5A!G55 -> 316528 | H30: =A5A!H55 -> 316528 | I30: =A5A!I55 -> 0 | J30: =A5A!J55 -> 200000 | K30: =A5A!K55 -> 250000 | L30: =A5A!L55 -> 300000
A31: =A5A!A57 -> Vote 08 - Sekhukhune Development Angancy | C31: =A5A!C57 -> 0 | D31: =A5A!D57 -> 0 | E31: =A5A!E57 -> 0 | F31: =A5A!F57 -> 550000 | G31: =A5A!G57 -> 1700000 | H31: =A5A!H57 -> 1700000 | I31: =A5A!I57 -> 86200 | J31: =A5A!J57 -> 1500000 | K31: =A5A!K57 -> 700000 | L31: =A5A!L57 -> 800000
A32: =A5A!A59 -> Vote 09 - Corporate Services | C32: =A5A!C59 -> 0 | D32: =A5A!D59 -> 0 | E32: =A5A!E59 -> 321834 | F32: =A5A!F59 -> 0 | G32: =A5A!G59 -> 2570246 | H32: =A5A!H59 -> 2570246 | I32: =A5A!I59 -> 1782000 | J32: =A5A!J59 -> 300000 | K32: =A5A!K59 -> 0 | L32: =A5A!L59 -> 0
A33: ='Org structure'!A11 -> Vote 10 - | C33: =A5A!C61 -> 0 | D33: =A5A!D61 -> 0 | E33: =A5A!E61 -> 0 | F33: =A5A!F61 -> 0 | G33: =A5A!G61 -> 0 | H33: =A5A!H61 -> 0 | I33: =A5A!I61 -> 0 | J33: =A5A!J61 -> 0 | K33: =A5A!K61 -> 0 | L33: =A5A!L61 -> 0
A34: ='Org structure'!A12 -> Vote 11 - | C34: =A5A!C62 -> 0 | D34: =A5A!D62 -> 0 | E34: =A5A!E62 -> 0 | F34: =A5A!F62 -> 0 | G34: =A5A!G62 -> 0 | H34: =A5A!H62 -> 0 | I34: =A5A!I62 -> 0 | J34: =A5A!J62 -> 0 | K34: =A5A!K62 -> 0 | L34: =A5A!L62 -> 0
A35: ='Org structure'!A13 -> Vote 12 - | C35: =A5A!C63 -> 0 | D35: =A5A!D63 -> 0 | E35: =A5A!E63 -> 0 | F35: =A5A!F63 -> 0 | G35: =A5A!G63 -> 0 | H35: =A5A!H63 -> 0 | I35: =A5A!I63 -> 0 | J35: =A5A!J63 -> 0 | K35: =A5A!K63 -> 0 | L35: =A5A!L63 -> 0
A36: ='Org structure'!A14 -> Vote 13 - | C36: =A5A!C64 -> 0 | D36: =A5A!D64 -> 0 | E36: =A5A!E64 -> 0 | F36: =A5A!F64 -> 0 | G36: =A5A!G64 -> 0 | H36: =A5A!H64 -> 0 | I36: =A5A!I64 -> 0 | J36: =A5A!J64 -> 0 | K36: =A5A!K64 -> 0 | L36: =A5A!L64 -> 0
A37: ='Org structure'!A15 -> Vote 14 - | C37: =A5A!C65 -> 0 | D37: =A5A!D65 -> 0 | E37: =A5A!E65 -> 0 | F37: =A5A!F65 -> 0 | G37: =A5A!G65 -> 0 | H37: =A5A!H65 -> 0 | I37: =A5A!I65 -> 0 | J37: =A5A!J65 -> 0 | K37: =A5A!K65 -> 0 | L37: =A5A!L65 -> 0
A38: =A5A!A66 -> Vote 15 - Other | C38: =A5A!C66 -> 0 | D38: =A5A!D66 -> 0 | E38: =A5A!E66 -> 0 | F38: =A5A!F66 -> 0 | G38: =A5A!G66 -> 0 | H38: =A5A!H66 -> 0 | I38: =A5A!I66 -> 0 | J38: =A5A!J66 -> 0 | K38: =A5A!K66 -> 0 | L38: =A5A!L66 -> 0
A39: Capital single-year expenditure sub-total | C39: =SUM(C24:C38) -> 390198098 | D39: =SUM(D24:D38) -> 421393771.7 | E39: 351036807 | F39: 489206441 | G39: 612578484 | H39: 612578484 | I39: 189601462 | J39: 593743325 | K39: 579118381 | L39: 595086856
A40: Total Capital Expenditure - Vote | C40: =C39+C21 -> 390198098 | D40: =D39+D21 -> 421393771.7 | E40: 351036807 | F40: 489206441 | G40: 612578484 | H40: 612578484 | I40: 189601462 | J40: 593743325 | K40: 579118381 | L40: 595086856
A42: Capital Expenditure - Functional
A43: Governance and administration | C43: =SUM(C44:C46) -> 0 | D43: =SUM(D44:D46) -> 0 | E43: 321834 | F43: 0 | G43: 3448774 | H43: 3448774 | I43: 1782000 | J43: 28950000 | K43: 8410000 | L43: 8900000
A44: Executive and council | C44: 0 | D44: 0 | E44: 0 | F44: 0 | G44: 162000 | H44: 162000 | I44: 0 | J44: 0 | K44: 0 | L44: 0
A45: Finance and administration | C45: 0 | D45: 0 | E45: 321834 | F45: 0 | G45: 3286774 | H45: 3286774 | I45: 1782000 | J45: 28950000 | K45: 8410000 | L45: 8900000
A46: Internal audit
A47: Community and public safety | C47: =SUM(C48:C52) -> 0 | D47: =SUM(D48:D52) -> 0 | E47: 0 | F47: 0 | G47: 0 | H47: 0 | I47: 0 | J47: 0 | K47: 0 | L47: 0
A48: Community and social services
A49: Sport and recreation
A50: Public safety
A51: Housing
A52: Health
A53: Economic and environmental services | C53: =SUM(C54:C56) -> 0 | D53: =SUM(D54:D56) -> 0 | E53: 0 | F53: 550000 | G53: 1700000 | H53: 1700000 | I53: 86200 | J53: 1500000 | K53: 700000 | L53: 800000
A54: Planning and development | C54: 0 | D54: 0 | E54: 0 | F54: 550000 | G54: 1700000 | H54: 1700000 | I54: 86200 | J54: 1500000 | K54: 700000 | L54: 800000
A55: Road transport
A56: Environmental protection
A57: Trading services | C57: =SUM(C58:C61) -> 390198098 | D57: =SUM(D58:D61) -> 421393771.7 | E57: 350714973 | F57: 488656441 | G57: 607429710 | H57: 607429710 | I57: 187733262 | J57: 563293325 | K57: 570008381 | L57: 585386856
A58: Energy sources
A59: Water management | C59: 390198098 | D59: 421393771.7 | E59: 348531223 | F59: 488656441 | G59: 607429710 | H59: 607429710 | I59: 187733262 | J59: 563293325 | K59: 570008381 | L59: 585386856
A60: Waste water management | C60: 0 | D60: 0 | E60: 2183750 | F60: 0 | G60: 0 | H60: 0 | I60: 0 | J60: 0 | K60: 0 | L60: 0
A61: Waste management
A62: Other
A63: Total Capital Expenditure - Functional | B63: 3 | C63: =C43+C47+C53+C57+C62 -> 390198098 | D63: =D43+D47+D53+D57+D62 -> 421393771.7 | E63: 351036807 | F63: 489206441 | G63: 612578484 | H63: 612578484 | I63: 189601462 | J63: 593743325 | K63: 579118381 | L63: =L43+L47+L53+L57+L62 -> 595086856
A65: Funded by:
A66: National Government | C66: 386878394.9 | D66: 398318906 | E66: 307774256.7 | F66: 469076441 | G66: 567983147 | H66: 567983147 | I66: 172558236.5 | J66: 551608011 | K66: 557785542 | L66: 572601766
A67: Provincial Government
A68: District Municipality
A69: Transfers and subsidies - capital (monetary allocations) (Nat / Prov Departm Agencies, Households, Non-profit Institutions, Private Enterprises, Public Corporatons, Higher Educ Institutions)
A70: Transfers recognised - capital | B70: 4 | C70: =SUM(C66:C69) -> 386878394.9 | D70: 398318906 | E70: 307774256.7 | F70: 469076441 | G70: 567983147 | H70: 567983147 | I70: 172558236.5 | J70: 551608011 | K70: 557785542 | L70: 572601766
A72: Borrowing | B72: 6
A73: Internally generated funds | C73: 3319703.09 | D73: 23074865.71 | E73: 43262550.3 | F73: 20130000 | G73: 44595337 | H73: 44595337 | I73: 17043225.49 | J73: 42135314 | K73: 21332839 | L73: 22485090
A74: Total Capital Funding | B74: 7 | C74: =+C70+C72+C73 -> 390198098 | D74: =+D70+D72+D73 -> 421393771.7 | E74: 351036807 | F74: 489206441 | G74: 612578484 | H74: 612578484 | I74: 189601462 | J74: 593743325 | K74: 579118381 | L74: 595086856
A75: =head27a -> References
A76: 1. Municipalities may choose to appropriate for capital expenditure for three years or for one year (if one year appropriation projected expenditure required for yr2 and yr3).
A77: 2. Include capital component of PPP unitary payment. Note that capital transfers are only appropriated to municipalities for the budget year
A78: 3. Capital expenditure by functional classification must reconcile to the appropriations by vote
A79: 4. Must reconcile to supporting table SA20 and to Budgeted Financial Performance (revenue and expenditure)
A81: 6. Include finance leases and PPP capital funding component of unitary payment - total borrowing/repayments to reconcile to changes in Table SA17
A82: 7. Total Capital Funding must balance with Total Capital Expenditure
A83: 8. Include any capitalised interest (MFMA section 46) as part of relevant capital budget

Sheet A5A
A1: =muni&" - "&Approve5 -> DC47 Sekhukhune - Table A5 Budgeted Capital Expenditure by vote, functional classification and funding
A2: =Vdesc -> Vote Description | B2: =head27 -> Ref | C2: =head1b -> 2019/20 | D2: =head1A -> 2020/21 | E2: =Head1 -> 2021/22 | F2: =Head2 -> Current Year 2022/23 | J2: =Head3 -> 2023/24 Medium Term Revenue & Expenditure Framework | N2: ="Multi-year appropriation for "&Head9& " in the "&Head2A&" Annual Budget" -> Multi-year appropriation for Budget Year 2023/24 in the 2022/23 Annual Budget | R2: ="Multi-year appropriation for "&RIGHT(Head10,7)& " in the "&Head2A&" Annual Budget" -> Multi-year appropriation for 2024/25 in the 2022/23 Annual Budget | V2: New multi-year appropriations (funds for new and existing projects)
A3: R thousand | B3: 1 | C3: =Head5 -> Audited Outcome | D3: =Head5 -> Audited Outcome | E3: =Head5 -> Audited Outcome | F3: =Head6 -> Original Budget | G3: =Head7 -> Adjusted Budget | H3: =Head8 -> Full Year Forecast | I3: =Head5b -> Pre-audit outcome | J3: =Head9 -> Budget Year 2023/24 | K3: =Head10 -> Budget Year +1 2024/25 | L3: =Head11 -> Budget Year +2 2025/26 | N3: ="Appropriation for "&RIGHT(Head9,7) -> Appropriation for 2023/24 | O3: ="Adjustments in "&Head2A -> Adjustments in 2022/23 | P3: ="Downward adjustments for "&RIGHT(Head9,7) -> Downward adjustments for 2023/24 | Q3: Appropriation carried forward | R3: ="Appropriation for "&RIGHT(Head9,7) -> Appropriation for 2023/24 | S3: ="Adjustments in "&Head2A -> Adjustments in 2022/23 | T3: ="Downward adjustments for "&RIGHT(Head9,7) -> Downward adjustments for 2023/24 | U3: Appropriation carried forward | V3: =Head9 -> Budget Year 2023/24 | W3: =Head10 -> Budget Year +1 2024/25 | X3: =Head11 -> Budget Year +2 2025/26
A4: Capital expenditure - Municipal Vote
A5: Multi-year expenditure appropriation | B5: 2
A6: ='Org structure'!A2 -> Vote 01 - Speakers Office | C6: =SUM(C7:C8) -> 0 | D6: =SUM(D7:D8) -> 0 | E6: =SUM(E7:E8) -> 0 | F6: =SUM(F7:F8) -> 0 | G6: =SUM(G7:G8) -> 0 | H6: =SUM(H7:H8) -> 0 | I6: =SUM(I7:I8) -> 0 | J6: =SUM(J7:J8) -> 0 | K6: =SUM(K7:K8) -> 0 | L6: =SUM(L7:L8) -> 0 | N6: =SUM(N7:N8) -> 0 | O6: =SUM(O7:O8) -> 0 | P6: =SUM(P7:P8) -> 0 | Q6: =SUM(Q7:Q8) -> 0 | R6: =SUM(R7:R8) -> 0 | S6: =SUM(S7:S8) -> 0 | T6: =SUM(T7:T8) -> 0 | U6: =SUM(U7:U8) -> 0 | V6: =SUM(V7:V8) -> 0 | W6: =SUM(W7:W8) -> 0 | X6: =SUM(X7:X8) -> 0
A7: ='Org structure'!E3 -> 01.1 - Office Of The Speaker | C7: 0 | D7: 0 | E7: 0 | F7: 0 | G7: 0 | H7: 0 | I7: 0 | J7: =Q7+V7 -> 0 | K7: =U7+W7 -> 0 | L7: =X7 -> 0 | N7: 0 | O7: 0 | P7: 0 | Q7: =SUM(N7:P7) -> 0 | R7: 0 | S7: 0 | T7: 0 | U7: =SUM(R7:T7) -> 0 | V7: 0 | W7: 0 | X7: 0
A8: ='Org structure'!E4 -> 01.2 - Office Of The Chief Whip | C8: 0 | D8: 0 | E8: 0 | F8: 0 | G8: 0 | H8: 0 | I8: 0 | J8: =Q8+V8 -> 0 | K8: =U8+W8 -> 0 | L8: =X8 -> 0 | N8: 0 | O8: 0 | P8: 0 | Q8: =SUM(N8:P8) -> 0 | R8: 0 | S8: 0 | T8: 0 | U8: =SUM(R8:T8) -> 0 | V8: 0 | W8: 0 | X8: 0
A9: ='Org structure'!A3 -> Vote 02 - Executive Mayor's Office | C9: =SUM(C10:C10) -> 0 | D9: =SUM(D10:D10) -> 0 | E9: =SUM(E10:E10) -> 0 | F9: =SUM(F10:F10) -> 0 | G9: =SUM(G10:G10) -> 0 | H9: =SUM(H10:H10) -> 0 | I9: =SUM(I10:I10) -> 0 | J9: =SUM(J10:J10) -> 0 | K9: =SUM(K10:K10) -> 0 | L9: =SUM(L10:L10) -> 0 | N9: =SUM(N10:N10) -> 0 | O9: =SUM(O10:O10) -> 0 | P9: =SUM(P10:P10) -> 0 | Q9: =SUM(Q10:Q10) -> 0 | R9: =SUM(R10:R10) -> 0 | S9: =SUM(S10:S10) -> 0 | T9: =SUM(T10:T10) -> 0 | U9: =SUM(U10:U10) -> 0 | V9: =SUM(V10:V10) -> 0 | W9: =SUM(W10:W10) -> 0 | X9: =SUM(X10:X10) -> 0
A10: ='Org structure'!E6 -> 02.1 - Executive Mayor's Office | C10: 0 | D10: 0 | E10: 0 | F10: 0 | G10: 0 | H10: 0 | I10: 0 | J10: =Q10+V10 -> 0 | K10: =U10+W10 -> 0 | L10: =X10 -> 0 | N10: 0 | O10: 0 | P10: 0 | Q10: =SUM(N10:P10) -> 0 | R10: 0 | S10: 0 | T10: 0 | U10: =SUM(R10:T10) -> 0 | V10: 0 | W10: 0 | X10: 0
A11: ='Org structure'!A4 -> Vote 03 - Municipal Manager Office | C11: =SUM(C12:C12) -> 0 | D11: =SUM(D12:D12) -> 0 | E11: =SUM(E12:E12) -> 0 | F11: =SUM(F12:F12) -> 0 | G11: =SUM(G12:G12) -> 0 | H11: =SUM(H12:H12) -> 0 | I11: =SUM(I12:I12) -> 0 | J11: =SUM(J12:J12) -> 0 | K11: =SUM(K12:K12) -> 0 | L11: =SUM(L12:L12) -> 0 | N11: =SUM(N12:N12) -> 0 | O11: =SUM(O12:O12) -> 0 | P11: =SUM(P12:P12) -> 0 | Q11: =SUM(Q12:Q12) -> 0 | R11: =SUM(R12:R12) -> 0 | S11: =SUM(S12:S12) -> 0 | T11: =SUM(T12:T12) -> 0 | U11: =SUM(U12:U12) -> 0 | V11: =SUM(V12:V12) -> 0 | W11: =SUM(W12:W12) -> 0 | X11: =SUM(X12:X12) -> 0
A12: ='Org structure'!E8 -> 03.1 - Municipal Manager Admin | C12: 0 | D12: 0 | E12: 0 | F12: 0 | G12: 0 | H12: 0 | I12: 0 | J12: =Q12+V12 -> 0 | K12: =U12+W12 -> 0 | L12: =X12 -> 0 | N12: 0 | O12: 0 | P12: 0 | Q12: =SUM(N12:P12) -> 0 | R12: 0 | S12: 0 | T12: 0 | U12: =SUM(R12:T12) -> 0 | V12: 0 | W12: 0 | X12: 0
A13: ='Org structure'!A5 -> Vote 04 - Budget And Treasury | C13: =SUM(C14:C15) -> 0 | D13: =SUM(D14:D15) -> 0 | E13: =SUM(E14:E15) -> 0 | F13: =SUM(F14:F15) -> 0 | G13: =SUM(G14:G15) -> 0 | H13: =SUM(H14:H15) -> 0 | I13: =SUM(I14:I15) -> 0 | J13: =SUM(J14:J15) -> 0 | K13: =SUM(K14:K15) -> 0 | L13: =SUM(L14:L15) -> 0 | N13: =SUM(N14:N15) -> 0 | O13: =SUM(O14:O15) -> 0 | P13: =SUM(P14:P15) -> 0 | Q13: =SUM(Q14:Q15) -> 0 | R13: =SUM(R14:R15) -> 0 | S13: =SUM(S14:S15) -> 0 | T13: =SUM(T14:T15) -> 0 | U13: =SUM(U14:U15) -> 0 | V13: =SUM(V14:V15) -> 0 | W13: =SUM(W14:W15) -> 0 | X13: =SUM(X14:X15) -> 0
A14: ='Org structure'!E10 -> 04.1 - Budget & Treasury Admin | C14: 0 | D14: 0 | E14: 0 | F14: 0 | G14: 0 | H14: 0 | I14: 0 | J14: =Q14+V14 -> 0 | K14: =U14+W14 -> 0 | L14: =X14 -> 0 | N14: 0 | O14: 0 | P14: 0 | Q14: =SUM(N14:P14) -> 0 | R14: 0 | S14: 0 | T14: 0 | U14: =SUM(R14:T14) -> 0 | V14: 0 | W14: 0 | X14: 0
A15: ='Org structure'!E11 -> 04.2 - Budget & Treasury Admin | C15: 0 | D15: 0 | E15: 0 | F15: 0 | G15: 0 | H15: 0 | I15: 0 | J15: =Q15+V15 -> 0 | K15: =U15+W15 -> 0 | L15: =X15 -> 0 | N15: 0 | O15: 0 | P15: 0 | Q15: =SUM(N15:P15) -> 0 | R15: 0 | S15: 0 | T15: 0 | U15: =SUM(R15:T15) -> 0 | V15: 0 | W15: 0 | X15: 0
A16: ='Org structure'!A6 -> Vote 05 - Infrustracture And Water Services | C16: =SUM(C17:C19) -> 0 | D16: =SUM(D17:D19) -> 0 | E16: =SUM(E17:E19) -> 0 | F16: =SUM(F17:F19) -> 0 | G16: =SUM(G17:G19) -> 0 | H16: =SUM(H17:H19) -> 0 | I16: =SUM(I17:I19) -> 0 | J16: =SUM(J17:J19) -> 0 | K16: =SUM(K17:K19) -> 0 | L16: =SUM(L17:L19) -> 0 | N16: =SUM(N17:N19) -> 0 | O16: =SUM(O17:O19) -> 0 | P16: =SUM(P17:P19) -> 0 | Q16: =SUM(Q17:Q19) -> 0 | R16: =SUM(R17:R19) -> 0 | S16: =SUM(S17:S19) -> 0 | T16: =SUM(T17:T19) -> 0 | U16: =SUM(U17:U19) -> 0 | V16: =SUM(V17:V19) -> 0 | W16: =SUM(W17:W19) -> 0 | X16: =SUM(X17:X19) -> 0
A17: ='Org structure'!E13 -> 05.1 - Technical Services Admin | C17: 0 | D17: 0 | E17: 0 | F17: 0 | G17: 0 | H17: 0 | I17: 0 | J17: =Q17+V17 -> 0 | K17: =U17+W17 -> 0 | L17: =X17 -> 0 | N17: 0 | O17: 0 | P17: 0 | Q17: =SUM(N17:P17) -> 0 | R17: 0 | S17: 0 | T17: 0 | U17: =SUM(R17:T17) -> 0 | V17: 0 | W17: 0 | X17: 0
A18: ='Org structure'!E14 -> 05.2 - Water Services | C18: 0 | D18: 0 | E18: 0 | F18: 0 | G18: 0 | H18: 0 | I18: 0 | J18: =Q18+V18 -> 0 | K18: =U18+W18 -> 0 | L18: =X18 -> 0 | N18: 0 | O18: 0 | P18: 0 | Q18: =SUM(N18:P18) -> 0 | R18: 0 | S18: 0 | T18: 0 | U18: =SUM(R18:T18) -> 0 | V18: 0 | W18: 0 | X18: 0
A19: ='Org structure'!E15 -> 05.3 - Sanitation Services | C19: 0 | D19: 0 | E19: 0 | F19: 0 | G19: 0 | H19: 0 | I19: 0 | J19: =Q19+V19 -> 0 | K19: =U19+W19 -> 0 | L19: =X19 -> 0 | N19: 0 | O19: 0 | P19: 0 | Q19: =SUM(N19:P19) -> 0 | R19: 0 | S19: 0 | T19: 0 | U19: =SUM(R19:T19) -> 0 | V19: 0 | W19: 0 | X19: 0
A20: ='Org structure'!A7 -> Vote 06 - Planning And Economic Development | C20: =SUM(C21:C21) -> 0 | D20: =SUM(D21:D21) -> 0 | E20: =SUM(E21:E21) -> 0 | F20: =SUM(F21:F21) -> 0 | G20: =SUM(G21:G21) -> 0 | H20: =SUM(H21:H21) -> 0 | I20: =SUM(I21:I21) -> 0 | J20: =SUM(J21:J21) -> 0 | K20: =SUM(K21:K21) -> 0 | L20: =SUM(L21:L21) -> 0 | N20: =SUM(N21:N21) -> 0 | O20: =SUM(O21:O21) -> 0 | P20: =SUM(P21:P21) -> 0 | Q20: =SUM(Q21:Q21) -> 0 | R20: =SUM(R21:R21) -> 0 | S20: =SUM(S21:S21) -> 0 | T20: =SUM(T21:T21) -> 0 | U20: =SUM(U21:U21) -> 0 | V20: =SUM(V21:V21) -> 0 | W20: =SUM(W21:W21) -> 0 | X20: =SUM(X21:X21) -> 0
A21: ='Org structure'!E17 -> 06.1 - Planning & Economic Dev Admin | C21: 0 | D21: 0 | E21: 0 | F21: 0 | G21: 0 | H21: 0 | I21: 0 | J21: =Q21+V21 -> 0 | K21: =U21+W21 -> 0 | L21: =X21 -> 0 | N21: 0 | O21: 0 | P21: 0 | Q21: =SUM(N21:P21) -> 0 | R21: 0 | S21: 0 | T21: 0 | U21: =SUM(R21:T21) -> 0 | V21: 0 | W21: 0 | X21: 0
A22: ='Org structure'!A8 -> Vote 07 - Community Services | C22: =SUM(C23:C23) -> 0 | D22: =SUM(D23:D23) -> 0 | E22: =SUM(E23:E23) -> 0 | F22: =SUM(F23:F23) -> 0 | G22: =SUM(G23:G23) -> 0 | H22: =SUM(H23:H23) -> 0 | I22: =SUM(I23:I23) -> 0 | J22: =SUM(J23:J23) -> 0 | K22: =SUM(K23:K23) -> 0 | L22: =SUM(L23:L23) -> 0 | N22: =SUM(N23:N23) -> 0 | O22: =SUM(O23:O23) -> 0 | P22: =SUM(P23:P23) -> 0 | Q22: =SUM(Q23:Q23) -> 0 | R22: =SUM(R23:R23) -> 0 | S22: =SUM(S23:S23) -> 0 | T22: =SUM(T23:T23) -> 0 | U22: =SUM(U23:U23) -> 0 | V22: =SUM(V23:V23) -> 0 | W22: =SUM(W23:W23) -> 0 | X22: =SUM(X23:X23) -> 0
A23: ='Org structure'!E19 -> 07.1 - Community Services Admin | C23: 0 | D23: 0 | E23: 0 | F23: 0 | G23: 0 | H23: 0 | I23: 0 | J23: =Q23+V23 -> 0 | K23: =U23+W23 -> 0 | L23: =X23 -> 0 | N23: 0 | O23: 0 | P23: 0 | Q23: =SUM(N23:P23) -> 0 | R23: 0 | S23: 0 | T23: 0 | U23: =SUM(R23:T23) -> 0 | V23: 0 | W23: 0 | X23: 0
A24: ='Org structure'!A9 -> Vote 08 - Sekhukhune Development Angancy | C24: =SUM(C25:C25) -> 0 | D24: =SUM(D25:D25) -> 0 | E24: =SUM(E25:E25) -> 0 | F24: =SUM(F25:F25) -> 0 | G24: =SUM(G25:G25) -> 0 | H24: =SUM(H25:H25) -> 0 | I24: =SUM(I25:I25) -> 0 | J24: =SUM(J25:J25) -> 0 | K24: =SUM(K25:K25) -> 0 | L24: =SUM(L25:L25) -> 0 | N24: =SUM(N25:N25) -> 0 | O24: =SUM(O25:O25) -> 0 | P24: =SUM(P25:P25) -> 0 | Q24: =SUM(Q25:Q25) -> 0 | R24: =SUM(R25:R25) -> 0 | S24: =SUM(S25:S25) -> 0 | T24: =SUM(T25:T25) -> 0 | U24: =SUM(U25:U25) -> 0 | V24: =SUM(V25:V25) -> 0 | W24: =SUM(W25:W25) -> 0 | X24: =SUM(X25:X25) -> 0
A25: ='Org structure'!E21 -> 08.1 - Sekhukhune Development Agency | C25: 0 | D25: 0 | E25: 0 | F25: 0 | G25: 0 | H25: 0 | I25: 0 | J25: =Q25+V25 -> 0 | K25: =U25+W25 -> 0 | L25: =X25 -> 0 | N25: 0 | O25: 0 | P25: 0 | Q25: =SUM(N25:P25) -> 0 | R25: 0 | S25: 0 | T25: 0 | U25: =SUM(R25:T25) -> 0 | V25: 0 | W25: 0 | X25: 0
A26: ='Org structure'!A10 -> Vote 09 - Corporate Services | C26: =SUM(C27:C27) -> 0 | D26: =SUM(D27:D27) -> 0 | E26: =SUM(E27:E27) -> 0 | F26: =SUM(F27:F27) -> 0 | G26: =SUM(G27:G27) -> 0 | H26: =SUM(H27:H27) -> 0 | I26: =SUM(I27:I27) -> 0 | J26: =SUM(J27:J27) -> 0 | K26: =SUM(K27:K27) -> 0 | L26: =SUM(L27:L27) -> 0 | N26: =SUM(N27:N27) -> 0 | O26: =SUM(O27:O27) -> 0 | P26: =SUM(P27:P27) -> 0 | Q26: =SUM(Q27:Q27) -> 0 | R26: =SUM(R27:R27) -> 0 | S26: =SUM(S27:S27) -> 0 | T26: =SUM(T27:T27) -> 0 | U26: =SUM(U27:U27) -> 0 | V26: =SUM(V27:V27) -> 0 | W26: =SUM(W27:W27) -> 0 | X26: =SUM(X27:X27) -> 0
A27: ='Org structure'!E23 -> 09.1 - Corporate Services Admin | C27: 0 | D27: 0 | E27: 0 | F27: 0 | G27: 0 | H27: 0 | I27: 0 | J27: =Q27+V27 -> 0 | K27: =U27+W27 -> 0 | L27: =X27 -> 0 | N27: 0 | O27: 0 | P27: 0 | Q27: =SUM(N27:P27) -> 0 | R27: 0 | S27: 0 | T27: 0 | U27: =SUM(R27:T27) -> 0 | V27: 0 | W27: 0 | X27: 0
A28: ='Org structure'!A11 -> Vote 10 - | C28: 0 | D28: 0 | E28: 0 | F28: 0 | G28: 0 | H28: 0 | I28: 0 | J28: 0 | K28: 0 | L28: 0 | N28: 0 | O28: 0 | P28: 0 | Q28: 0 | R28: 0 | S28: 0 | T28: 0 | U28: 0 | V28: 0 | W28: 0
A29: ='Org structure'!A12 -> Vote 11 - | C29: 0 | D29: 0 | E29: 0 | F29: 0 | G29: 0 | H29: 0 | I29: 0 | J29: 0 | K29: 0 | L29: 0 | N29: 0 | O29: 0 | P29: 0 | Q29: 0 | R29: 0 | S29: 0 | T29: 0 | U29: 0 | V29: 0 | W29: 0
A30: ='Org structure'!A13 -> Vote 12 - | C30: 0 | D30: 0 | E30: 0 | F30: 0 | G30: 0 | H30: 0 | I30: 0 | J30: 0 | K30: 0 | L30: 0 | N30: 0 | O30: 0 | P30: 0 | Q30: 0 | R30: 0 | S30: 0 | T30: 0 | U30: 0 | V30: 0 | W30: 0
A31: ='Org structure'!A14 -> Vote 13 - | C31: 0 | D31: 0 | E31: 0 | F31: 0 | G31: 0 | H31: 0 | I31: 0 | J31: 0 | K31: 0 | L31: 0 | N31: 0 | O31: 0 | P31: 0 | Q31: 0 | R31: 0 | S31: 0 | T31: 0 | U31: 0 | V31: 0 | W31: 0
A32: ='Org structure'!A15 -> Vote 14 - | C32: 0 | D32: 0 | E32: 0 | F32: 0 | G32: 0 | H32: 0 | I32: 0 | J32: 0 | K32: 0 | L32: 0 | N32: 0 | O32: 0 | P32: 0 | Q32: 0 | R32: 0 | S32: 0 | T32: 0 | U32: 0 | V32: 0 | W32: 0
A33: ='Org structure'!A16 -> Vote 15 - Other | C33: =SUM(C34:C34) -> 0 | D33: =SUM(D34:D34) -> 0 | E33: =SUM(E34:E34) -> 0 | F33: =SUM(F34:F34) -> 0 | G33: =SUM(G34:G34) -> 0 | H33: =SUM(H34:H34) -> 0 | I33: =SUM(I34:I34) -> 0 | J33: =SUM(J34:J34) -> 0 | K33: =SUM(K34:K34) -> 0 | L33: =SUM(L34:L34) -> 0 | N33: =SUM(N34:N34) -> 0 | O33: =SUM(O34:O34) -> 0 | P33: =SUM(P34:P34) -> 0 | Q33: =SUM(Q34:Q34) -> 0 | R33: =SUM(R34:R34) -> 0 | S33: =SUM(S34:S34) -> 0 | T33: =SUM(T34:T34) -> 0 | U33: =SUM(U34:U34) -> 0 | V33: =SUM(V34:V34) -> 0 | W33: =SUM(W34:W34) -> 0 | X33: =SUM(X34:X34) -> 0
A34: ='Org structure'!E30 -> 15.1 - Electricity Reporting Function | C34: 0 | D34: 0 | E34: 0 | F34: 0 | G34: 0 | H34: 0 | I34: 0 | J34: =Q34+V34 -> 0 | K34: =U34+W34 -> 0 | L34: =X34 -> 0 | N34: 0 | O34: 0 | P34: 0 | Q34: =SUM(N34:P34) -> 0 | R34: 0 | S34: 0 | T34: 0 | U34: =SUM(R34:T34) -> 0 | V34: 0 | W34: 0 | X34: 0
A35: Capital multi-year expenditure sub-total | C35: =C6+C9+C11+C13+C16+C20+C22+C24+C26+C28+C29+C30+C31+C32+C33 -> 0 | D35: =D6+D9+D11+D13+D16+D20+D22+D24+D26+D28+D29+D30+D31+D32+D33 -> 0 | E35: =E6+E9+E11+E13+E16+E20+E22+E24+E26+E28+E29+E30+E31+E32+E33 -> 0 | F35: =F6+F9+F11+F13+F16+F20+F22+F24+F26+F28+F29+F30+F31+F32+F33 -> 0 | G35: =G6+G9+G11+G13+G16+G20+G22+G24+G26+G28+G29+G30+G31+G32+G33 -> 0 | H35: =H6+H9+H11+H13+H16+H20+H22+H24+H26+H28+H29+H30+H31+H32+H33 -> 0 | I35: =I6+I9+I11+I13+I16+I20+I22+I24+I26+I28+I29+I30+I31+I32+I33 -> 0 | J35: =J6+J9+J11+J13+J16+J20+J22+J24+J26+J28+J29+J30+J31+J32+J33 -> 0 | K35: =K6+K9+K11+K13+K16+K20+K22+K24+K26+K28+K29+K30+K31+K32+K33 -> 0 | L35: =L6+L9+L11+L13+L16+L20+L22+L24+L26+L28+L29+L30+L31+L32+L33 -> 0 | N35: =N6+N9+N11+N13+N16+N20+N22+N24+N26+N28+N29+N30+N31+N32+N33 -> 0 | O35: =O6+O9+O11+O13+O16+O20+O22+O24+O26+O28+O29+O30+O31+O32+O33 -> 0 | P35: =P6+P9+P11+P13+P16+P20+P22+P24+P26+P28+P29+P30+P31+P32+P33 -> 0 | Q35: =Q6+Q9+Q11+Q13+Q16+Q20+Q22+Q24+Q26+Q28+Q29+Q30+Q31+Q32+Q33 -> 0 | R35: =R6+R9+R11+R13+R16+R20+R22+R24+R26+R28+R29+R30+R31+R32+R33 -> 0 | S35: =S6+S9+S11+S13+S16+S20+S22+S24+S26+S28+S29+S30+S31+S32+S33 -> 0 | T35: =T6+T9+T11+T13+T16+T20+T22+T24+T26+T28+T29+T30+T31+T32+T33 -> 0 | U35: =U6+U9+U11+U13+U16+U20+U22+U24+U26+U28+U29+U30+U31+U32+U33 -> 0 | V35: =V6+V9+V11+V13+V16+V20+V22+V24+V26+V28+V29+V30+V31+V32+V33 -> 0 | W35: =W6+W9+W11+W13+W16+W20+W22+W24+W26+W28+W29+W30+W31+W32+W33 -> 0 | X35: =X6+X9+X11+X13+X16+X20+X22+X24+X26+X28+X29+X30+X31+X32+X33 -> 
A37: Capital expenditure - Municipal Vote
A38: Single-year expenditure appropriation | B38: 2
A39: ='Org structure'!A2 -> Vote 01 - Speakers Office | C39: =SUM(C40:C41) -> 0 | D39: =SUM(D40:D41) -> 0 | E39: =SUM(E40:E41) -> 0 | F39: =SUM(F40:F41) -> 0 | G39: =SUM(G40:G41) -> 0 | H39: =SUM(H40:H41) -> 0 | I39: =SUM(I40:I41) -> 0 | J39: =SUM(J40:J41) -> 0 | K39: =SUM(K40:K41) -> 0 | L39: =SUM(L40:L41) -> 0
A40: ='Org structure'!E3 -> 01.1 - Office Of The Speaker | C40: 0 | D40: 0 | E40: 0 | F40: 0 | G40: 0 | H40: 0 | I40: 0 | J40: 0 | K40: 0 | L40: 0
A41: ='Org structure'!E4 -> 01.2 - Office Of The Chief Whip | C41: 0 | D41: 0 | E41: 0 | F41: 0 | G41: 0 | H41: 0 | I41: 0 | J41: 0 | K41: 0 | L41: 0
A42: ='Org structure'!A3 -> Vote 02 - Executive Mayor's Office | C42: =SUM(C43:C43) -> 0 | D42: =SUM(D43:D43) -> 0 | E42: =SUM(E43:E43) -> 0 | F42: =SUM(F43:F43) -> 0 | G42: =SUM(G43:G43) -> 162000 | H42: =SUM(H43:H43) -> 162000 | I42: =SUM(I43:I43) -> 0 | J42: =SUM(J43:J43) -> 0 | K42: =SUM(K43:K43) -> 0 | L42: =SUM(L43:L43) -> 0
A43: ='Org structure'!E6 -> 02.1 - Executive Mayor's Office | C43: 0 | D43: 0 | E43: 0 | F43: 0 | G43: 162000 | H43: 162000 | I43: 0 | J43: 0 | K43: 0 | L43: 0
A44: ='Org structure'!A4 -> Vote 03 - Municipal Manager Office | C44: =SUM(C45:C45) -> 0 | D44: =SUM(D45:D45) -> 0 | E44: =SUM(E45:E45) -> 0 | F44: =SUM(F45:F45) -> 0 | G44: =SUM(G45:G45) -> 0 | H44: =SUM(H45:H45) -> 0 | I44: =SUM(I45:I45) -> 0 | J44: =SUM(J45:J45) -> 0 | K44: =SUM(K45:K45) -> 0 | L44: =SUM(L45:L45) -> 0
A45: ='Org structure'!E8 -> 03.1 - Municipal Manager Admin | C45: 0 | D45: 0 | E45: 0 | F45: 0 | G45: 0 | H45: 0 | I45: 0 | J45: 0 | K45: 0 | L45: 0
A46: ='Org structure'!A5 -> Vote 04 - Budget And Treasury | C46: =SUM(C47:C48) -> 0 | D46: =SUM(D47:D48) -> 0 | E46: =SUM(E47:E48) -> 0 | F46: =SUM(F47:F48) -> 0 | G46: =SUM(G47:G48) -> 400000 | H46: =SUM(H47:H48) -> 400000 | I46: =SUM(I47:I48) -> 0 | J46: =SUM(J47:J48) -> 28450000 | K46: =SUM(K47:K48) -> 8160000 | L46: =SUM(L47:L48) -> 8600000
A47: ='Org structure'!E10 -> 04.1 - Budget & Treasury Admin | C47: 0 | D47: 0 | E47: 0 | F47: 0 | G47: 0 | H47: 0 | I47: 0 | J47: 0 | K47: 0 | L47: 0
A48: ='Org structure'!E11 -> 04.2 - Budget & Treasury Admin | C48: 0 | D48: 0 | E48: 0 | F48: 0 | G48: 400000 | H48: 400000 | I48: 0 | J48: 28450000 | K48: 8160000 | L48: 8600000
A49: ='Org structure'!A6 -> Vote 05 - Infrustracture And Water Services | C49: =SUM(C50:C52) -> 390198098 | D49: =SUM(D50:D52) -> 421393771.7 | E49: =SUM(E50:E52) -> 350714973 | F49: =SUM(F50:F52) -> 488656441 | G49: =SUM(G50:G52) -> 607429710 | H49: =SUM(H50:H52) -> 607429710 | I49: =SUM(I50:I52) -> 187733262 | J49: =SUM(J50:J52) -> 563293325 | K49: =SUM(K50:K52) -> 570008381 | L49: =SUM(L50:L52) -> 585386856
A50: ='Org structure'!E13 -> 05.1 - Technical Services Admin | C50: 0 | D50: 0 | E50: 0 | F50: 0 | G50: 0 | H50: 0 | I50: 0 | J50: 0 | K50: 0 | L50: 0
A51: ='Org structure'!E14 -> 05.2 - Water Services | C51: 390198098 | D51: 421393771.7 | E51: 348531223 | F51: 488656441 | G51: 607429710 | H51: 607429710 | I51: 187733262 | J51: 563293325 | K51: 570008381 | L51: 585386856
A52: ='Org structure'!E15 -> 05.3 - Sanitation Services | C52: 0 | D52: 0 | E52: 2183750 | F52: 0 | G52: 0 | H52: 0 | I52: 0 | J52: 0 | K52: 0 | L52: 0
A53: ='Org structure'!A7 -> Vote 06 - Planning And Economic Development | C53: =SUM(C54:C54) -> 0 | D53: =SUM(D54:D54) -> 0 | E53: =SUM(E54:E54) -> 0 | F53: =SUM(F54:F54) -> 0 | G53: =SUM(G54:G54) -> 0 | H53: =SUM(H54:H54) -> 0 | I53: =SUM(I54:I54) -> 0 | J53: =SUM(J54:J54) -> 0 | K53: =SUM(K54:K54) -> 0 | L53: =SUM(L54:L54) -> 0
A54: ='Org structure'!E17 -> 06.1 - Planning & Economic Dev Admin | C54: 0 | D54: 0 | E54: 0 | F54: 0 | G54: 0 | H54: 0 | I54: 0 | J54: 0 | K54: 0 | L54: 0
A55: ='Org structure'!A8 -> Vote 07 - Community Services | C55: =SUM(C56:C56) -> 0 | D55: =SUM(D56:D56) -> 0 | E55: =SUM(E56:E56) -> 0 | F55: =SUM(F56:F56) -> 0 | G55: =SUM(G56:G56) -> 316528 | H55: =SUM(H56:H56) -> 316528 | I55: =SUM(I56:I56) -> 0 | J55: =SUM(J56:J56) -> 200000 | K55: =SUM(K56:K56) -> 250000 | L55: =SUM(L56:L56) -> 300000
A56: ='Org structure'!E19 -> 07.1 - Community Services Admin | C56: 0 | D56: 0 | E56: 0 | F56: 0 | G56: 316528 | H56: 316528 | I56: 0 | J56: 200000 | K56: 250000 | L56: 300000
A57: ='Org structure'!A9 -> Vote 08 - Sekhukhune Development Angancy | C57: =SUM(C58:C58) -> 0 | D57: =SUM(D58:D58) -> 0 | E57: =SUM(E58:E58) -> 0 | F57: =SUM(F58:F58) -> 550000 | G57: =SUM(G58:G58) -> 1700000 | H57: =SUM(H58:H58) -> 1700000 | I57: =SUM(I58:I58) -> 86200 | J57: =SUM(J58:J58) -> 1500000 | K57: =SUM(K58:K58) -> 700000 | L57: =SUM(L58:L58) -> 800000
A58: ='Org structure'!E21 -> 08.1 - Sekhukhune Development Agency | C58: 0 | D58: 0 | E58: 0 | F58: 550000 | G58: 1700000 | H58: 1700000 | I58: 86200 | J58: 1500000 | K58: 700000 | L58: 800000
A59: ='Org structure'!A10 -> Vote 09 - Corporate Services | C59: =SUM(C60:C60) -> 0 | D59: =SUM(D60:D60) -> 0 | E59: =SUM(E60:E60) -> 321834 | F59: =SUM(F60:F60) -> 0 | G59: =SUM(G60:G60) -> 2570246 | H59: =SUM(H60:H60) -> 2570246 | I59: =SUM(I60:I60) -> 1782000 | J59: =SUM(J60:J60) -> 300000 | K59: =SUM(K60:K60) -> 0 | L59: =SUM(L60:L60) -> 0
A60: ='Org structure'!E23 -> 09.1 - Corporate Services Admin | C60: 0 | D60: 0 | E60: 321834 | F60: 0 | G60: 2570246 | H60: 2570246 | I60: 1782000 | J60: 300000 | K60: 0 | L60: 0
A61: ='Org structure'!A11 -> Vote 10 - | C61: 0 | D61: 0 | E61: 0 | F61: 0 | G61: 0 | H61: 0 | I61: 0 | J61: 0 | K61: 0 | L61: 0
A62: ='Org structure'!A12 -> Vote 11 - | C62: 0 | D62: 0 | E62: 0 | F62: 0 | G62: 0 | H62: 0 | I62: 0 | J62: 0 | K62: 0 | L62: 0
A63: ='Org structure'!A13 -> Vote 12 - | C63: 0 | D63: 0 | E63: 0 | F63: 0 | G63: 0 | H63: 0 | I63: 0 | J63: 0 | K63: 0 | L63: 0
A64: ='Org structure'!A14 -> Vote 13 - | C64: 0 | D64: 0 | E64: 0 | F64: 0 | G64: 0 | H64: 0 | I64: 0 | J64: 0 | K64: 0 | L64: 0
A65: ='Org structure'!A15 -> Vote 14 - | C65: 0 | D65: 0 | E65: 0 | F65: 0 | G65: 0 | H65: 0 | I65: 0 | J65: 0 | K65: 0 | L65: 0
A66: ='Org structure'!A16 -> Vote 15 - Other | C66: =SUM(C67:C67) -> 0 | D66: =SUM(D67:D67) -> 0 | E66: =SUM(E67:E67) -> 0 | F66: =SUM(F67:F67) -> 0 | G66: =SUM(G67:G67) -> 0 | H66: =SUM(H67:H67) -> 0 | I66: =SUM(I67:I67) -> 0 | J66: =SUM(J67:J67) -> 0 | K66: =SUM(K67:K67) -> 0 | L66: =SUM(L67:L67) -> 0
A67: ='Org structure'!E30 -> 15.1 - Electricity Reporting Function | C67: 0 | D67: 0 | E67: 0 | F67: 0 | G67: 0 | H67: 0 | I67: 0 | J67: 0 | K67: 0 | L67: 0
A68: Capital single-year expenditure sub-total | C68: =C39+C42+C44+C46+C49+C53+C55+C57+C59+C61+C62+C63+C64+C65+C66 -> 390198098 | D68: =D39+D42+D44+D46+D49+D53+D55+D57+D59+D61+D62+D63+D64+D65+D66 -> 421393771.7 | E68: =E39+E42+E44+E46+E49+E53+E55+E57+E59+E61+E62+E63+E64+E65+E66 -> 351036807 | F68: =F39+F42+F44+F46+F49+F53+F55+F57+F59+F61+F62+F63+F64+F65+F66 -> 489206441 | G68: =G39+G42+G44+G46+G49+G53+G55+G57+G59+G61+G62+G63+G64+G65+G66 -> 612578484 | H68: =H39+H42+H44+H46+H49+H53+H55+H57+H59+H61+H62+H63+H64+H65+H66 -> 612578484 | I68: =I39+I42+I44+I46+I49+I53+I55+I57+I59+I61+I62+I63+I64+I65+I66 -> 189601462 | J68: =J39+J42+J44+J46+J49+J53+J55+J57+J59+J61+J62+J63+J64+J65+J66 -> 593743325 | K68: =K39+K42+K44+K46+K49+K53+K55+K57+K59+K61+K62+K63+K64+K65+K66 -> 579118381 | L68: =L39+L42+L44+L46+L49+L53+L55+L57+L59+L61+L62+L63+L64+L65+L66 -> 595086856
A69: Total Capital Expenditure | C69: =C35+C68 -> 390198098 | D69: =D35+D68 -> 421393771.7 | E69: =E35+E68 -> 351036807 | F69: =F35+F68 -> 489206441 | G69: =G35+G68 -> 612578484 | H69: =H35+H68 -> 612578484 | I69: =I35+I68 -> 189601462 | J69: =J35+J68 -> 593743325 | K69: =K35+K68 -> 579118381 | L69: =L35+L68 -> 595086856

Sheet A6-FinPos
A1: =muni&" - "&Approve6 -> DC47 Sekhukhune - Table A6 Budgeted Financial Position
A2: =desc -> Description | B2: =head27 -> Ref | C2: =head1b -> 2019/20 | D2: =head1A -> 2020/21 | E2: =Head1 -> 2021/22 | F2: =Head2 -> Current Year 2022/23 | J2: =Head3 -> 2023/24 Medium Term Revenue & Expenditure Framework
A3: R thousand | C3: =Head5 -> Audited Outcome | D3: =Head5 -> Audited Outcome | E3: =Head5 -> Audited Outcome | F3: =Head6 -> Original Budget | G3: =Head7 -> Adjusted Budget | H3: =Head8 -> Full Year Forecast | I3: =Head5b -> Pre-audit outcome | J3: =Head9 -> Budget Year 2023/24 | K3: =Head10 -> Budget Year +1 2024/25 | L3: =Head11 -> Budget Year +2 2025/26
A4: ASSETS
A5: Current assets
A6: Cash and cash equivalents | C6: 180697744.8 | D6: 366046678.5 | E6: 158793598 | F6: 271871583 | G6: 449723689 | H6: 449723689 | I6: 112651497.1 | J6: 406789922 | K6: 508642165 | L6: 875822491
A7: Trade and other receivables from exchange transactions | B7: 1 | C7: ='SA3'!C19 -> 124776033.8 | D7: ='SA3'!D19 -> 175659949 | E7: ='SA3'!E19 -> 52983867.68 | F7: ='SA3'!F19 -> 94223040 | G7: ='SA3'!G19 -> 94223040 | H7: ='SA3'!H19 -> 94223040 | I7: ='SA3'!I19 -> 112929280.8 | J7: ='SA3'!J19 -> 544395263 | K7: ='SA3'!K19 -> 537525028 | L7: ='SA3'!L19 -> 508117446
A8: Receivables from non-exchange transactions | B8: 1 | C8: ='SA3'!C28 -> 0 | D8: ='SA3'!D28 -> 0 | E8: ='SA3'!E28 -> 0 | F8: ='SA3'!F28 -> 0 | G8: ='SA3'!G28 -> 0 | H8: ='SA3'!H28 -> 0 | I8: ='SA3'!I28 -> 0 | J8: ='SA3'!J28 -> 0 | K8: ='SA3'!K28 -> 0 | L8: ='SA3'!L28 -> 0
A9: Current portion of non-current receivables
A10: Inventory | B10: 2 | C10: ='SA3'!C123 -> 31702467 | D10: ='SA3'!D123 -> 31383574 | E10: ='SA3'!E123 -> 58181869 | F10: ='SA3'!F123 -> 119202289 | G10: ='SA3'!G123 -> 143283931 | H10: ='SA3'!H123 -> 143283931 | I10: ='SA3'!I123 -> 67779157.51 | J10: ='SA3'!J123 -> 212430662 | K10: ='SA3'!K123 -> 73558033 | L10: ='SA3'!L123 -> 38367854
A11: VAT | C11: 80608963.35 | D11: 127115762.3 | E11: 157060959 | F11: 0 | G11: 0 | H11: 0 | I11: 164579061.5 | J11: 50850653 | K11: 53342335 | L11: 55849425
A12: Other current assets | C12: 13722525.44 | D12: 13718785.75 | E12: 18879685.28 | F12: 74278601 | G12: 224278601 | H12: 224278601 | I12: 19176791.89 | J12: 91582263 | K12: 78527028 | L12: 69004447
A13: Total current assets | C13: =SUM(C6:C12) -> 431507734.4 | D13: 713924749.6 | E13: 445899978.9 | F13: 559575513 | G13: 911509261 | H13: 911509261 | I13: 477115788.8 | J13: 1306048763 | K13: 1251594589 | L13: 1547161663
A14: Non current assets
A15: Investments | C15: -118292482.8 | D15: -128643591 | E15: 239925390.2 | F15: 0 | G15: 0 | H15: 0 | I15: 764223125.6 | J15: 0 | K15: 0 | L15: 0
A16: Investment property
A17: Property, plant and equipment | B17: 3 | C17: ='SA3'!C129 -> 3671056252 | D17: ='SA3'!D129 -> 4000588777 | E17: ='SA3'!E129 -> 4627430228 | F17: ='SA3'!F129 -> 3772526586 | G17: ='SA3'!G129 -> 3894828650 | H17: ='SA3'!H129 -> 3894828650 | I17: ='SA3'!I129 -> 4807073840 | J17: ='SA3'!J129 -> 3875563470 | K17: ='SA3'!K129 -> 4022621212 | L17: ='SA3'!L129 -> 4200839514
A18: Biological assets
A19: Living and non-living resources
A20: Heritage assets | C20: 0 | D20: 0 | E20: 0 | F20: 0 | G20: 0 | H20: 0 | I20: 0 | J20: 0 | K20: 0 | L20: 0
A21: Intangible assets | C21: 0 | D21: 0 | E21: 0 | F21: 0 | G21: 1500000 | H21: 1500000 | I21: 0 | J21: 1500000 | K21: 700000 | L21: 800000
A22: Trade and other receivables from exchange transactions
A23: Non-current receivables from non-exchange transactions
A24: Other non-current assets
A25: Total non current assets | C25: =SUM(C15:C24) -> 3552763769 | D25: =SUM(D15:D24) -> 3871945186 | E25: 4867355618 | F25: 3772526586 | G25: 3896328650 | H25: 3896328650 | I25: 5571296966 | J25: 3877063470 | K25: 4023321212 | L25: 4201639514
A26: TOTAL ASSETS | C26: =C13+C25 -> 3984271504 | D26: =D13+D25 -> 4585869936 | E26: =E13+E25 -> 5313255597 | F26: =F13+F25 -> 4332102099 | G26: 4807837911 | H26: 4807837911 | I26: 6048412754 | J26: 5183112233 | K26: 5274915801 | L26: 5748801177
A27: LIABILITIES
A28: Current liabilities
A29: Bank overdraft
A30: Financial liabilities | C30: ='SA3'!C135 -> 0 | D30: ='SA3'!D135 -> 0 | E30: ='SA3'!E135 -> 0 | F30: ='SA3'!F135 -> 0 | G30: ='SA3'!G135 -> 0 | H30: ='SA3'!H135 -> 0 | I30: ='SA3'!I135 -> 0 | J30: ='SA3'!J135 -> 0 | K30: ='SA3'!K135 -> 0 | L30: ='SA3'!L135 -> 0
A31: Consumer deposits | C31: 4371415.42 | D31: 4624378.95 | E31: 4876358.44 | F31: 4314762 | G31: 4314762 | H31: 4314762 | I31: 5179050.15 | J31: 4209180 | K31: 4425517 | L31: 4738916
A32: Trade and other payables from exchange transactions | B32: 4 | C32: 391847332.7 | D32: 463247137.7 | E32: 529901321 | F32: 254289515 | G32: 197104891 | H32: 197104891 | I32: 433378253.3 | J32: 155000000 | K32: 138550688 | L32: 139927869
A33: Trade and other payables from non-exchange transactions | B33: 5 | C33: 68934375.2 | D33: 30315359.2 | E33: 48759800.55 | F33: 20000000 | G33: 100000000 | H33: 100000000 | I33: 351286007.7 | J33: 100000000 | K33: 104900000 | L33: 109830300
A34: Provision | C34: 0 | D34: 0 | E34: 0 | F34: 0 | G34: 0 | H34: 0 | I34: 0 | J34: 0 | K34: 0 | L34: 0
A35: VAT | C35: 52854816.34 | D35: 66000455.12 | E35: 61178697.53 | F35: 0 | G35: 0 | H35: 0 | I35: 72710829.3 | J35: 0 | K35: 0 | L35: 0
A36: Other current liabilities
A37: Total current liabilities | C37: =SUM(C29:C36) -> 518007939.7 | D37: 564187331 | E37: 644716177.5 | F37: 278604277 | G37: 301419653 | H37: 301419653 | I37: 862554140.5 | J37: 259209180 | K37: 247876205 | L37: 254497085
A38: Non current liabilities
A39: Financial liabilities | B39: 6 | C39: ='SA3'!C147 -> 0 | D39: ='SA3'!D147 -> 0 | E39: ='SA3'!E147 -> 419702.86 | F39: ='SA3'!F147 -> 0 | G39: ='SA3'!G147 -> 0 | H39: ='SA3'!H147 -> 0 | I39: ='SA3'!I147 -> 419702.86 | J39: ='SA3'!J147 -> 0 | K39: ='SA3'!K147 -> 0 | L39: ='SA3'!L147 -> 0
A40: Provision | B40: 7 | C40: ='SA3'!C154 -> 17687000 | D40: ='SA3'!D154 -> 20839000 | E40: ='SA3'!E154 -> 22543000 | F40: ='SA3'!F154 -> 19486415 | G40: ='SA3'!G154 -> 19486415 | H40: ='SA3'!H154 -> 19486415 | I40: ='SA3'!I154 -> 22055642.34 | J40: ='SA3'!J154 -> 54002671 | K40: ='SA3'!K154 -> 53775000 | L40: ='SA3'!L154 -> 56690112
A41: Long term portion of trade payables
A42: Other non-current liabilities
A43: Total non current liabilities | C43: =SUM(C39:C42) -> 17687000 | D43: =SUM(D39:D42) -> 20839000 | E43: =SUM(E39:E42) -> 22962702.86 | F43: =SUM(F39:F42) -> 19486415 | G43: =SUM(G39:G42) -> 19486415 | H43: =SUM(H39:H42) -> 19486415 | I43: =SUM(I39:I42) -> 22475345.2 | J43: =SUM(J39:J42) -> 54002671 | K43: =SUM(K39:K42) -> 53775000 | L43: =SUM(L39:L42) -> 56690112
A44: TOTAL LIABILITIES | C44: =C37+C43 -> 535694939.7 | D44: =D37+D43 -> 585026331 | E44: =E37+E43 -> 667678880.4 | F44: =F37+F43 -> 298090692 | G44: 320906068 | H44: 320906068 | I44: 885029485.7 | J44: 313211851 | K44: =K37+K43 -> 301651205 | L44: 311187197
A45: NET ASSETS | C45: =C26-C44 -> 3448576564 | D45: 4000843605 | E45: 4645576716 | F45: 4034011407 | G45: 4486931843 | H45: 4486931843 | I45: 5163383269 | J45: 4869900382 | K45: 4973264596 | L45: 5437613980
A46: COMMUNITY WEALTH/EQUITY
A47: Accumulated surplus/(deficit) | B47: 8 | C47: ='SA3'!C166 -> 3565196820 | D47: ='SA3'!D166 -> 4137987344 | E47: ='SA3'!E166 -> 4743753478 | F47: ='SA3'!F166 -> 4085220273 | G47: ='SA3'!G166 -> 4738140710 | H47: ='SA3'!H166 -> 4738140710 | I47: ='SA3'!I166 -> 5228523769 | J47: ='SA3'!J166 -> 4870201054 | K47: ='SA3'!K166 -> 4972964596 | L47: ='SA3'!L166 -> 5602646156
A48: Reserves and funds | B48: 9 | C48: ='SA3'!C173 -> 0 | D48: ='SA3'!D173 -> 0 | E48: ='SA3'!E173 -> 0 | F48: ='SA3'!F173 -> 0 | G48: ='SA3'!G173 -> 0 | H48: ='SA3'!H173 -> 0 | I48: ='SA3'!I173 -> 0 | J48: ='SA3'!J173 -> 0 | K48: ='SA3'!K173 -> 0 | L48: ='SA3'!L173 -> 0
A49: Other
A50: TOTAL COMMUNITY WEALTH/EQUITY | B50: 10 | C50: =SUM(C47:C49) -> 3565196820 | D50: =SUM(D47:D49) -> 4137987344 | E50: 4743753478 | F50: 4085220273 | G50: 4738140710 | H50: 4738140710 | I50: 5228523769 | J50: 4870201054 | K50: 4972964596 | L50: 5602646156
A51: =head27a -> References
A52: 1. Detail breakdown in Table SA3 for Trade receivables from Exchange and Non-exchange transactions
A53: 2. Include completed low cost housing to be transferred to beneficiaries within 12 months detail provided in Table SA3
A54: 3. Include 'Construction-work-in-progress' (disclosed separately in annual financial statements) detail in SA3
A55: 4. Detail breakdown in Table SA3.
A56: 5. Detail breakdown in Table SA3.
A57: 6. Detail breakdown in Table SA3.
A58: 7 Detail breakdown in Table SA3.
A59: 8. Detail breakdown in Table SA3.
A60: 9. Detail breakdown in Table SA3. Includes reserves to be funded by statute.
A61: 10. Net assets must balance with Total Community Wealth/Equity

Sheet A7-CFlow
A1: =muni&" - "&Approve7 -> DC47 Sekhukhune - Table A7 Budgeted Cash Flows
A2: =desc -> Description | B2: =head27 -> Ref | C2: =head1b -> 2019/20 | D2: =head1A -> 2020/21 | E2: =Head1 -> 2021/22 | F2: =Head2 -> Current Year 2022/23 | J2: =Head3 -> 2023/24 Medium Term Revenue & Expenditure Framework
A3: R thousand | C3: =Head5 -> Audited Outcome | D3: =Head5 -> Audited Outcome | E3: =Head5 -> Audited Outcome | F3: =Head6 -> Original Budget | G3: =Head7 -> Adjusted Budget | H3: =Head8 -> Full Year Forecast | I3: =Head5b -> Pre-audit outcome | J3: =Head9 -> Budget Year 2023/24 | K3: =Head10 -> Budget Year +1 2024/25 | L3: =Head11 -> Budget Year +2 2025/26
A4: CASH FLOW FROM OPERATING ACTIVITIES
A5: Receipts
A6: Property rates | C6: 0 | D6: 0 | E6: 0 | F6: 0 | G6: 0 | H6: 0 | I6: 0 | J6: ='SA30'!N5 -> 0 | K6: ='SA30'!O5 -> 0 | L6: ='SA30'!P5 -> 0
A7: Service charges | C7: 0 | D7: 63553577.23 | E7: 57852237.3 | F7: 62142009 | G7: 62142009 | H7: 62142009 | I7: 38406891.33 | J7: ='SA30'!N6+'SA30'!N7+'SA30'!N8+'SA30'!N9 -> 65249109 | K7: ='SA30'!O6+'SA30'!O7+'SA30'!O8+'SA30'!O9 -> 78793982 | L7: ='SA30'!P6+'SA30'!P7+'SA30'!P8+'SA30'!P9 -> 84467129
A8: Other revenue | C8: 0 | D8: 110904562.8 | E8: -341845998.2 | F8: 2178827 | G8: 2178827 | H8: 2178827 | I8: -306129948.2 | J8: ='SA30'!N11+'SA30'!N15+'SA30'!N16+'SA30'!N17+'SA30'!N19 -> 2219319 | K8: ='SA30'!O11+'SA30'!O15+'SA30'!O16+'SA30'!O17+'SA30'!O19 -> 2335565 | L8: ='SA30'!P11+'SA30'!P15+'SA30'!P16+'SA30'!P17+'SA30'!P19 -> 2661637
A9: Transfers and Subsidies - Operational | B9: 1 | C9: 0 | D9: 5068921.35 | E9: 10480000 | F9: 1087879926 | G9: 1052128677 | H9: 1052128677 | I9: 292379000 | J9: ='SA30'!N18 -> 1118176990 | K9: ='SA30'!O18 -> 1261384458 | L9: ='SA30'!P18 -> 1359398233
A10: Transfers and Subsidies - Capital | B10: 1 | C10: 0 | D10: 365494000 | E10: 262623000 | F10: 469076440 | G10: 567323149 | H10: 567323149 | I10: 496451000 | J10: ='SA30'!N23+'SA30'!N24 -> 551608010 | K10: ='SA30'!O23+'SA30'!O24 -> 557785541 | L10: ='SA30'!P23+'SA30'!P24 -> 569339489
A11: Interest | C11: 0 | D11: 0 | E11: 191594.66 | F11: 21659404 | G11: 21659404 | H11: 21659404 | I11: 0 | J11: ='SA30'!N12+'SA30'!N13 -> 22612418 | K11: ='SA30'!O12+'SA30'!O13 -> 23629977 | L11: ='SA30'!P12+'SA30'!P13 -> 23788588
A12: Dividends | J12: ='SA30'!N14 -> 0 | K12: ='SA30'!O14 -> 0 | L12: ='SA30'!P14 -> 0
A13: Payments
A14: Suppliers and employees | C14: 0 | D14: -1197282163 | E14: -1806321040 | F14: -1092661272 | G14: -1049845896 | H14: -1049845896 | I14: -1434604510 | J14: =-('SA30'!N35+'SA30'!N36+'SA30'!N38+'SA30'!N39+'SA30'!N40+'SA30'!N41+'SA30'!N44+'SA30'!N50) -> -1026187581 | K14: =-('SA30'!O35+'SA30'!O36+'SA30'!O38+'SA30'!O39+'SA30'!O40+'SA30'!O41+'SA30'!O44+'SA30'!O50) -> -1080846911 | L14: =-('SA30'!P35+'SA30'!P36+'SA30'!P38+'SA30'!P39+'SA30'!P40+'SA30'!P41+'SA30'!P44+'SA30'!P50) -> -1250258146
A15: Interest | J15: =-('SA30'!N37) -> 0 | K15: =-('SA30'!O37) -> 0 | L15: =-('SA30'!P37) -> 0
A16: Transfers and Subsidies | B16: 1 | J16: =-('SA30'!N42+'SA30'!N43) -> 0 | K16: =-('SA30'!O42+'SA30'!O43) -> 0 | L16: =-('SA30'!P42+'SA30'!P43) -> 0
A17: NET CASH FROM/(USED) OPERATING ACTIVITIES | C17: =SUM(C6:C12)+SUM(C14:C16) -> 0 | D17: -652261101.9 | E17: -1817020206 | F17: 550275334 | G17: 655586170 | H17: 655586170 | I17: -913497567.1 | J17: 733678265 | K17: 843082612 | L17: 789396930
A18: CASH FLOWS FROM INVESTING ACTIVITIES
A19: Receipts
A20: Proceeds on disposal of PPE | C20: 0 | D20: 0 | E20: 0 | F20: 430021 | G20: 430021 | H20: 430021 | I20: 0 | J20: ='SA30'!N25 -> 452812 | K20: ='SA30'!O25 -> 475000 | L20: ='SA30'!P25 -> 497325
A22: Decrease (increase) in non-current receivables | J22: ='SA30'!N30 -> 0 | K22: ='SA30'!O30 -> 0 | L22: ='SA30'!P30 -> 0
A23: Decrease (increase) in non-current investments | C23: -118292482.8 | D23: -10351108.19 | E23: 368568981.1 | F23: -239925390.2 | G23: 0 | H23: 0 | I23: 524297735.5 | J23: ='SA30'!N31 -> 0 | K23: ='SA30'!O31 -> 0 | L23: ='SA30'!P31 -> 0
A24: Payments
A25: Capital assets | C25: 0 | D25: -347733605.8 | E25: -351036807 | F25: -489206441 | G25: -612578484 | H25: -612578484 | I25: -177412130.2 | J25: =-('SA30'!N48) -> -593743325 | K25: =-('SA30'!O48) -> -579118381 | L25: =-('SA30'!P48) -> -595086856
A26: NET CASH FROM/(USED) INVESTING ACTIVITIES | C26: =+C20+C22+C23+C25 -> -118292482.8 | D26: =+D20+D22+D23+D25 -> -358084714 | E26: 17532174.12 | F26: -728701810.1 | G26: -612148463 | H26: -612148463 | I26: 346885605.2 | J26: -593290513 | K26: -578643381 | L26: -594589531
A28: CASH FLOWS FROM FINANCING ACTIVITIES
A29: Receipts
A30: Short term loans | J30: ='SA30'!N26 -> 0 | K30: ='SA30'!O26 -> 0 | L30: ='SA30'!P26 -> 0
A31: Borrowing long term/refinancing | J31: ='SA30'!N27 -> 0 | K31: ='SA30'!O27 -> 0 | L31: ='SA30'!P27 -> 0
A32: Increase (decrease) in consumer deposits | C32: 0 | D32: 0 | E32: 0 | F32: 0 | G32: 0 | H32: 0 | I32: 0 | J32: ='SA30'!N28 -> 0 | K32: ='SA30'!O28 -> 110755 | L32: ='SA30'!P28 -> 115961
A33: Payments
A34: Repayment of borrowing | J34: =-('SA30'!N49) -> 0 | K34: =-('SA30'!O49) -> 0 | L34: =-('SA30'!P49) -> 0
A35: NET CASH FROM/(USED) FINANCING ACTIVITIES | C35: =SUM(C30:C32)+C34 -> 0 | D35: =SUM(D30:D32)+D34 -> 0 | E35: 0 | F35: 0 | G35: 0 | H35: 0 | I35: 0 | J35: 0 | K35: 110755 | L35: 115961
A37: NET INCREASE/ (DECREASE) IN CASH HELD | C37: =C17+C26+C35 -> -118292482.8 | D37: -1010345816 | E37: -1799488032 | F37: -178426476.1 | G37: 43437707 | H37: 43437707 | I37: -566611961.9 | J37: 140387752 | K37: 264549986 | L37: 194923360
A38: Cash/cash equivalents at the year begin: | B38: 2 | C38: 12160793.68 | D38: 180697744.8 | E38: 366046678.5 | F38: 310372585 | G38: 438733140 | H38: 438733140 | I38: 0 | J38: ='SA30'!N54 -> 275961393 | K38: =J39 -> 416349145 | L38: =K39 -> 680899131
A39: Cash/cash equivalents at the year end: | B39: 2 | C39: =C37+C38 -> -106131689.1 | D39: =D37+D38 -> -829648071.1 | E39: =E37+E38 -> -1433441354 | F39: =F37+F38 -> 131946108.9 | G39: 482170847 | H39: 482170847 | I39: -566611961.9 | J39: 416349145 | K39: 680899131 | L39: 875822491
A40: =head27a -> References
A41: 1. Local/District municipalities to include transfers from/to District/Local Municipalities
A42: 2. Cash equivalents includes investments with maturities of 3 months or less
A43: 3. The MTREF is populated directly from SA30.
A44: Total receipts | C44: =SUM(C6:C12)+SUM(C20:C22) -> 0 | D44: 545021061.3 | E44: -10699166.23 | F44: 1643366627 | G44: 1705862087 | H44: 1705862087 | I44: 521106943.1 | J44: 1760318658 | K44: 1924404523 | L44: 2040152401
A45: Total payments | C45: =SUM(C14:C16)+C25 -> 0 | D45: -1545015769 | E45: -2157357847 | F45: -1581867713 | G45: -1662424380 | H45: -1662424380 | I45: -1612016640 | J45: -1619930906 | K45: -1659965292 | L45: -1845345002
C46: =C44+C45 -> 0 | D46: =D44+D45 -> -999994707.7 | E46: -2168057013 | F46: 61498914 | G46: 43437707 | H46: 43437707 | I46: -1090909697 | J46: 140387752 | K46: 264439231 | L46: 194807399
A47: Borrowings & investments & c.deposits | C47: =C23+C31+C32 -> -118292482.8 | D47: =D23+D31+D32 -> -10351108.19 | E47: 368568981.1 | F47: -239925390.2 | G47: 0 | H47: 0 | I47: 524297735.5 | J47: 0 | K47: 110755 | L47: 115961
A48: =A34 -> Repayment of borrowing | C48: =C34 -> 0 | D48: =D34 -> 0 | E48: 0 | F48: 0 | G48: 0 | H48: 0 | I48: =I34 -> 0 | J48: 0 | K48: 0 | L48: 0
C49: =C46+C47+C48 -> -118292482.8 | D49: =D46+D47+D48 -> -1010345816 | E49: -1799488032 | F49: -178426476.2 | G49: 43437707 | H49: 43437707 | I49: -566611961.9 | J49: 140387752 | K49: 264549986 | L49: 194923360
C50: =C37-C49 -> 0 | D50: 0 | E50: 0 | F50: 0 | G50: 0 | H50: 0 | I50: 0 | J50: 0 | K50: 0 | L50: 0

Sheet A8-ResRecon
A1: =muni&" - "&Approve8 -> DC47 Sekhukhune - Table A8 Cash backed reserves/accumulated surplus reconciliation
A2: =desc -> Description | B2: =head27 -> Ref | C2: =head1b -> 2019/20 | D2: =head1A -> 2020/21 | E2: =Head1 -> 2021/22 | F2: =Head2 -> Current Year 2022/23 | J2: =Head3 -> 2023/24 Medium Term Revenue & Expenditure Framework
A3: R thousand | C3: =Head5 -> Audited Outcome | D3: =Head5 -> Audited Outcome | E3: =Head5 -> Audited Outcome | F3: =Head6 -> Original Budget | G3: =Head7 -> Adjusted Budget | H3: =Head8 -> Full Year Forecast | I3: =Head5b -> Pre-audit outcome | J3: =Head9 -> Budget Year 2023/24 | K3: =Head10 -> Budget Year +1 2024/25 | L3: =Head11 -> Budget Year +2 2025/26
A4: Cash and investments available
A5: =LEFT('A7-CFlow'!A39,37) -> Cash/cash equivalents at the year end | B5: 1 | C5: ='A7-CFlow'!C39 -> -106131689.1 | D5: ='A7-CFlow'!D39 -> -829648071.1 | E5: ='A7-CFlow'!E39 -> -1433441354 | F5: ='A7-CFlow'!F39 -> 131946108.9 | G5: ='A7-CFlow'!G39 -> 482170847 | H5: ='A7-CFlow'!H39 -> 482170847 | I5: ='A7-CFlow'!I39 -> -566611961.9 | J5: ='A7-CFlow'!J39 -> 416349145 | K5: ='A7-CFlow'!K39 -> 680899131 | L5: ='A7-CFlow'!L39 -> 875822491
A6: Other current investments > 90 days | C6: ='A6-FinPos'!C6-'A6-FinPos'!C29-'A8-ResRecon'!C5 -> 286829433.9 | D6: ='A6-FinPos'!D6-'A6-FinPos'!D29-'A8-ResRecon'!D5 -> 1195694750 | E6: ='A6-FinPos'!E6-'A6-FinPos'!E29-'A8-ResRecon'!E5 -> 1592234952 | F6: ='A6-FinPos'!F6-'A6-FinPos'!F29-'A8-ResRecon'!F5 -> 139925474.1 | G6: ='A6-FinPos'!G6-'A6-FinPos'!G29-'A8-ResRecon'!G5 -> -32447158 | H6: ='A6-FinPos'!H6-'A6-FinPos'!H29-'A8-ResRecon'!H5 -> -32447158 | I6: ='A6-FinPos'!I6-'A6-FinPos'!I29-'A8-ResRecon'!I5 -> 679263459 | J6: ='A6-FinPos'!J6-'A6-FinPos'!J29-'A8-ResRecon'!J5 -> -9559223 | K6: ='A6-FinPos'!K6-'A6-FinPos'!K29-'A8-ResRecon'!K5 -> -172256966 | L6: ='A6-FinPos'!L6-'A6-FinPos'!L29-'A8-ResRecon'!L5 -> 0
A7: Non current Investments | B7: 1 | C7: ='A6-FinPos'!C15 -> -118292482.8 | D7: ='A6-FinPos'!D15 -> -128643591 | E7: ='A6-FinPos'!E15 -> 239925390.2 | F7: ='A6-FinPos'!F15 -> 0 | G7: ='A6-FinPos'!G15 -> 0 | H7: ='A6-FinPos'!H15 -> 0 | I7: ='A6-FinPos'!I15 -> 764223125.6 | J7: ='A6-FinPos'!J15 -> 0 | K7: ='A6-FinPos'!K15 -> 0 | L7: ='A6-FinPos'!L15 -> 0
A8: Cash and investments available: | C8: =SUM(C5:C7) -> 62405262 | D8: =SUM(D5:D7) -> 237403087.6 | E8: 398718988.1 | F8: 271871583 | G8: 449723689 | H8: 449723689 | I8: 876874622.7 | J8: 406789922 | K8: 508642165 | L8: 875822491
A10: Application of cash and investments
A11: Unspent conditional transfers | C11: ='SA3'!C140 -> 68934375.2 | D11: ='SA3'!D140 -> 30315359.2 | E11: ='SA3'!E140 -> 48759800.55 | F11: ='SA3'!F140 -> 20000000 | G11: ='SA3'!G140 -> 100000000 | H11: ='SA3'!H140 -> 100000000 | I11: ='SA3'!I140 -> 351286007.7 | J11: ='SA3'!J140 -> 100000000 | K11: ='SA3'!K140 -> 104900000 | L11: ='SA3'!L140 -> 109830300
A12: Unspent borrowing
A13: Statutory requirements | B13: 2
A14: Other working capital requirements | B14: 3 | C14: =-C32 -> 391847332.7 | D14: =-D32 -> 408772137.7 | E14: 687828321 | F14: =-F32 -> 197243515 | G14: 140058891 | H14: 140058891 | I14: 810291253.3 | J14: -174702000 | K14: -234621312 | L14: -221907131
A15: Other provisions
A16: Long term investments committed | B16: 4 | C16: =C42 -> 0 | D16: =D42 -> 0 | E16: 0 | F16: 0 | G16: 0 | H16: 0 | I16: 0 | J16: 0 | K16: 0 | L16: 0
A17: Reserves to be backed by cash/investments | B17: 5
A18: Total Application of cash and investments: | C18: =SUM(C11:C17) -> 460781707.9 | D18: =SUM(D11:D17) -> 439087496.9 | E18: 736588121.6 | F18: 217243515 | G18: 240058891 | H18: 240058891 | I18: 1161577261 | J18: -74702000 | K18: -129721312 | L18: -112076831
A19: Surplus(shortfall) | C19: =C8-C18 -> -398376445.9 | D19: =D8-D18 -> -201684409.3 | E19: -337869133.4 | F19: 54628068 | G19: 209664798 | H19: 209664798 | I19: -284702638.3 | J19: 481491922 | K19: 638363477 | L19: 987899322
A20: =head27a -> References
A21: 1. Must reconcile with Budgeted Cash Flows
A22: 2. For example: VAT, taxation
A23: 3. Council approval for policy required - include sufficient working capital (e.g. allowing for a % of current debtors > 90 days as uncollectable)
A24: 4. For example: sinking fund requirements for borrowing
A25: 5. Council approval required for each reserve created and basis of cash backing of reserves - Total Reserves to be backed by cash/investments excl Valuation reserve
A28: Other working capital requirements
A29: Debtors | C29: =IF(ISERROR(ROUND(C35*C36,-3)),0,(ROUND(C35*C36,-3))) -> 0 | D29: =IF(ISERROR(ROUND(D35*D36,-3)),0,(ROUND(D35*D36,-3))) -> 54475000 | E29: -157927000 | F29: 57046000 | G29: 57046000 | H29: 57046000 | I29: -376913000 | J29: 329702000 | K29: 373172000 | L29: 361835000
A31: Creditors due | C31: ='SA3'!C138+'SA3'!C139 -> 391847332.7 | D31: ='SA3'!D138+'SA3'!D139 -> 463247137.7 | E31: ='SA3'!E138+'SA3'!E139 -> 529901321 | F31: ='SA3'!F138+'SA3'!F139 -> 254289515 | G31: ='SA3'!G138+'SA3'!G139 -> 197104891 | H31: ='SA3'!H138+'SA3'!H139 -> 197104891 | I31: ='SA3'!I138+'SA3'!I139 -> 433378253.3 | J31: ='SA3'!J138+'SA3'!J139 -> 155000000 | K31: ='SA3'!K138+'SA3'!K139 -> 138550688 | L31: ='SA3'!L138+'SA3'!L139 -> 139927869
A32: Total | C32: =C29-C31 -> -391847332.7 | D32: =D29-D31 -> -408772137.7 | E32: -687828321 | F32: -197243515 | G32: -140058891 | H32: -140058891 | I32: -810291253.3 | J32: 174702000 | K32: 234621312 | L32: 221907131
A34: Debtors collection assumptions
A35: Balance outstanding - debtors | C35: ='A6-FinPos'!C7+'A6-FinPos'!C8+'A6-FinPos'!C9+'A6-FinPos'!C22+'A6-FinPos'!C23+'A6-FinPos'!C24 -> 124776033.8 | D35: ='A6-FinPos'!D7+'A6-FinPos'!D8+'A6-FinPos'!D9+'A6-FinPos'!D22+'A6-FinPos'!D23+'A6-FinPos'!D24 -> 175659949 | E35: ='A6-FinPos'!E7+'A6-FinPos'!E8+'A6-FinPos'!E9+'A6-FinPos'!E22+'A6-FinPos'!E23+'A6-FinPos'!E24 -> 52983867.68 | F35: ='A6-FinPos'!F7+'A6-FinPos'!F8+'A6-FinPos'!F9+'A6-FinPos'!F22+'A6-FinPos'!F23+'A6-FinPos'!F24 -> 94223040 | G35: ='A6-FinPos'!G7+'A6-FinPos'!G8+'A6-FinPos'!G9+'A6-FinPos'!G22+'A6-FinPos'!G23+'A6-FinPos'!G24 -> 94223040 | H35: ='A6-FinPos'!H7+'A6-FinPos'!H8+'A6-FinPos'!H9+'A6-FinPos'!H22+'A6-FinPos'!H23+'A6-FinPos'!H24 -> 94223040 | I35: ='A6-FinPos'!I7+'A6-FinPos'!I8+'A6-FinPos'!I9+'A6-FinPos'!I22+'A6-FinPos'!I23+'A6-FinPos'!I24 -> 112929280.8 | J35: ='A6-FinPos'!J7+'A6-FinPos'!J8+'A6-FinPos'!J9+'A6-FinPos'!J22+'A6-FinPos'!J23+'A6-FinPos'!J24 -> 544395263 | K35: ='A6-FinPos'!K7+'A6-FinPos'!K8+'A6-FinPos'!K9+'A6-FinPos'!K22+'A6-FinPos'!K23+'A6-FinPos'!K24 -> 537525028 | L35: ='A6-FinPos'!L7+'A6-FinPos'!L8+'A6-FinPos'!L9+'A6-FinPos'!L22+'A6-FinPos'!L23+'A6-FinPos'!L24 -> 508117446
A36: Estimate of debtors collection rate | C36: =IF(ISERROR('SA10'!D10),0,('SA10'!D10)) -> 0 | D36: =IF(ISERROR('SA10'!E10),0,('SA10'!E10)) -> 0.3101154875 | E36: =IF(ISERROR('SA10'!F10),0,('SA10'!F10)) -> -2.980657492 | F36: =IF(ISERROR('SA10'!G10),0,('SA10'!G10)) -> 0.605437004 | G36: =IF(ISERROR('SA10'!H10),0,('SA10'!H10)) -> 0.605437004 | H36: =IF(ISERROR('SA10'!I10),0,('SA10'!I10)) -> 0.605437004 | I36: =IF(ISERROR('SA10'!J10),0,('SA10'!J10)) -> -3.337598587 | J36: =IF(ISERROR('SA10'!K10),0,('SA10'!K10)) -> 0.6056298117 | K36: =IF(ISERROR('SA10'!L10),0,('SA10'!L10)) -> 0.6942409419 | L36: =IF(ISERROR('SA10'!M10),0,('SA10'!M10)) -> 0.7121082919
K39: `
A40: =A16 -> Long term investments committed
A41: Balance (Insert description; eg sinking fund)
C42: =SUM(C41:C41) -> 0 | D42: =SUM(D41:D41) -> 0 | E42: =SUM(E41:E41) -> 0 | F42: =SUM(F41:F41) -> 0 | G42: =SUM(G41:G41) -> 0 | H42: =SUM(H41:H41) -> 0 | I42: =SUM(I41:I41) -> 0 | J42: =SUM(J41:J41) -> 0 | K42: =SUM(K41:K41) -> 0 | L42: =SUM(L41:L41) -> 0
A43: =A17 -> Reserves to be backed by cash/investments
A44: Housing Development Fund | C44: ='SA3'!C168 -> 0 | D44: ='SA3'!D168 -> 0 | E44: ='SA3'!E168 -> 0 | F44: ='SA3'!F168 -> 0 | G44: ='SA3'!G168 -> 0 | H44: ='SA3'!H168 -> 0 | I44: ='SA3'!I168 -> 0 | J44: ='SA3'!J168 -> 0 | K44: ='SA3'!K168 -> 0 | L44: ='SA3'!L168 -> 0
A45: Capital replacement | C45: ='SA3'!C169 -> 0 | D45: ='SA3'!D169 -> 0 | E45: ='SA3'!E169 -> 0 | F45: ='SA3'!F169 -> 0 | G45: ='SA3'!G169 -> 0 | H45: ='SA3'!H169 -> 0 | I45: ='SA3'!I169 -> 0 | J45: ='SA3'!J169 -> 0 | K45: ='SA3'!K169 -> 0 | L45: ='SA3'!L169 -> 0
A46: Self-insurance | C46: ='SA3'!C170 -> 0 | D46: ='SA3'!D170 -> 0 | E46: ='SA3'!E170 -> 0 | F46: ='SA3'!F170 -> 0 | G46: ='SA3'!G170 -> 0 | H46: ='SA3'!H170 -> 0 | I46: ='SA3'!I170 -> 0 | J46: ='SA3'!J170 -> 0 | K46: ='SA3'!K170 -> 0 | L46: ='SA3'!L170 -> 0
A47: Compensation for Occupational Injuries and Diseases
A48: Employee Benefit reserve
A49: Non-current Provisions reserve
A50: Valuation roll reserve
A51: Investment in associate account
A52: Capitalisation
B53: 6 | C53: =SUM(C44:C52) -> 0 | D53: 0 | E53: 0 | F53: 0 | G53: 0 | H53: 0 | I53: 0 | J53: 0 | K53: 0 | L53: 0
A54: Note:
A55: 6. Above reserves do not include Revaluation reserve. Revaluation reserve not required to be cash backed

Sheet A9-Asset
A1: =muni&" - "&Approve9 -> DC47 Sekhukhune - Table A9 Asset Management
A2: =desc -> Description | B2: =head27 -> Ref | C2: =head1b -> 2019/20 | D2: =head1A -> 2020/21 | E2: =Head1 -> 2021/22 | F2: =Head2 -> Current Year 2022/23 | I2: =Head3 -> 2023/24 Medium Term Revenue & Expenditure Framework
A3: R thousand | C3: =Head5 -> Audited Outcome | D3: =Head5 -> Audited Outcome | E3: =Head5 -> Audited Outcome | F3: =Head6 -> Original Budget | G3: =Head7 -> Adjusted Budget | H3: =Head8 -> Full Year Forecast | I3: =Head9 -> Budget Year 2023/24 | J3: =Head10 -> Budget Year +1 2024/25 | K3: =Head11 -> Budget Year +2 2025/26
A4: CAPITAL EXPENDITURE
A5: Total New Assets | B5: 1 | C5: =C15+C18+C19+C22+C25+C26+SUM(C29:C35)+C38 -> 284514547.6 | D5: =D15+D18+D19+D22+D25+D26+SUM(D29:D35)+D38 -> 281661778.5 | E5: 286005399.9 | F5: 482712838 | G5: 594627855 | H5: 594627855 | I5: 585333325 | J5: 550904788 | K5: 559175483
A6: Roads Infrastructure | C6: =SA34a!C7 -> 0 | D6: =SA34a!D7 -> 0 | E6: =SA34a!E7 -> 0 | F6: =SA34a!F7 -> 0 | G6: =SA34a!G7 -> 0 | H6: =SA34a!H7 -> 0 | I6: =SA34a!I7 -> 0 | J6: =SA34a!J7 -> 0 | K6: =SA34a!K7 -> 0
A7: Storm water Infrastructure | C7: =SA34a!C12 -> 0 | D7: =SA34a!D12 -> 0 | E7: =SA34a!E12 -> 0 | F7: =SA34a!F12 -> 0 | G7: =SA34a!G12 -> 0 | H7: =SA34a!H12 -> 0 | I7: =SA34a!I12 -> 0 | J7: =SA34a!J12 -> 0 | K7: =SA34a!K12 -> 0
A8: Electrical Infrastructure | C8: =SA34a!C16 -> 0 | D8: =SA34a!D16 -> 0 | E8: =SA34a!E16 -> 0 | F8: =SA34a!F16 -> 0 | G8: =SA34a!G16 -> 0 | H8: =SA34a!H16 -> 0 | I8: =SA34a!I16 -> 0 | J8: =SA34a!J16 -> 0 | K8: =SA34a!K16 -> 0
A9: Water Supply Infrastructure | C9: =SA34a!C26 -> 283703000.1 | D9: =SA34a!D26 -> 281599511.4 | E9: =SA34a!E26 -> 281214318.1 | F9: =SA34a!F26 -> 479082838 | G9: =SA34a!G26 -> 585809327 | H9: =SA34a!H26 -> 585809327 | I9: =SA34a!I26 -> 580833325 | J9: =SA34a!J26 -> 549954788 | K9: =SA34a!K26 -> 558075483
A10: Sanitation Infrastructure | C10: =SA34a!C37 -> 648182.5 | D10: =SA34a!D37 -> 62267.06 | E10: =SA34a!E37 -> 0 | F10: =SA34a!F37 -> 0 | G10: =SA34a!G37 -> 0 | H10: =SA34a!H37 -> 0 | I10: =SA34a!I37 -> 0 | J10: =SA34a!J37 -> 0 | K10: =SA34a!K37 -> 0
A11: Solid Waste Infrastructure | C11: =SA34a!C44 -> 0 | D11: =SA34a!D44 -> 0 | E11: =SA34a!E44 -> 0 | F11: =SA34a!F44 -> 0 | G11: =SA34a!G44 -> 0 | H11: =SA34a!H44 -> 0 | I11: =SA34a!I44 -> 0 | J11: =SA34a!J44 -> 0 | K11: =SA34a!K44 -> 0
A12: Rail Infrastructure | C12: =SA34a!C52 -> 0 | D12: =SA34a!D52 -> 0 | E12: =SA34a!E52 -> 0 | F12: =SA34a!F52 -> 0 | G12: =SA34a!G52 -> 0 | H12: =SA34a!H52 -> 0 | I12: =SA34a!I52 -> 0 | J12: =SA34a!J52 -> 0 | K12: =SA34a!K52 -> 0
A13: Coastal Infrastructure | C13: =SA34a!C62 -> 0 | D13: =SA34a!D62 -> 0 | E13: =SA34a!E62 -> 0 | F13: =SA34a!F62 -> 0 | G13: =SA34a!G62 -> 0 | H13: =SA34a!H62 -> 0 | I13: =SA34a!I62 -> 0 | J13: =SA34a!J62 -> 0 | K13: =SA34a!K62 -> 0
A14: Information and Communication Infrastructure | C14: =SA34a!C68 -> 0 | D14: =SA34a!D68 -> 0 | E14: =SA34a!E68 -> 0 | F14: =SA34a!F68 -> 0 | G14: =SA34a!G68 -> 0 | H14: =SA34a!H68 -> 0 | I14: =SA34a!I68 -> 0 | J14: =SA34a!J68 -> 0 | K14: =SA34a!K68 -> 0
A15: Infrastructure | C15: =SUM(C6:C14) -> 284351182.6 | D15: =SUM(D6:D14) -> 281661778.5 | E15: 281214318.1 | F15: 479082838 | G15: 585809327 | H15: 585809327 | I15: 580833325 | J15: 549954788 | K15: 558075483
A16: Community Facilities | C16: =SA34a!C75 -> 0 | D16: =SA34a!D75 -> 0 | E16: =SA34a!E75 -> 0 | F16: =SA34a!F75 -> 0 | G16: =SA34a!G75 -> 0 | H16: =SA34a!H75 -> 0 | I16: =SA34a!I75 -> 0 | J16: =SA34a!J75 -> 0 | K16: =SA34a!K75 -> 0
A17: Sport and Recreation Facilities | C17: =SA34a!C98 -> 0 | D17: =SA34a!D98 -> 0 | E17: =SA34a!E98 -> 0 | F17: =SA34a!F98 -> 0 | G17: =SA34a!G98 -> 0 | H17: =SA34a!H98 -> 0 | I17: =SA34a!I98 -> 0 | J17: =SA34a!J98 -> 0 | K17: =SA34a!K98 -> 0
A18: Community Assets | C18: =SUM(C16:C17) -> 0 | D18: =SUM(D16:D17) -> 0 | E18: 0 | F18: 0 | G18: 0 | H18: 0 | I18: 0 | J18: 0 | K18: 0
A19: Heritage Assets | C19: =SA34a!C103 -> 0 | D19: =SA34a!D103 -> 0 | E19: =SA34a!E103 -> 0 | F19: =SA34a!F103 -> 0 | G19: =SA34a!G103 -> 0 | H19: =SA34a!H103 -> 0 | I19: =SA34a!I103 -> 0 | J19: =SA34a!J103 -> 0 | K19: =SA34a!K103 -> 0
A20: Revenue Generating | C20: =SA34a!C111 -> 0 | D20: =SA34a!D111 -> 0 | E20: =SA34a!E111 -> 0 | F20: =SA34a!F111 -> 0 | G20: =SA34a!G111 -> 0 | H20: =SA34a!H111 -> 0 | I20: =SA34a!I111 -> 0 | J20: =SA34a!J111 -> 0 | K20: =SA34a!K111 -> 0
A21: Non-revenue Generating | C21: =SA34a!C114 -> 0 | D21: =SA34a!D114 -> 0 | E21: =SA34a!E114 -> 0 | F21: =SA34a!F114 -> 0 | G21: =SA34a!G114 -> 0 | H21: =SA34a!H114 -> 0 | I21: =SA34a!I114 -> 0 | J21: =SA34a!J114 -> 0 | K21: =SA34a!K114 -> 0
A22: Investment properties | C22: =SUM(C20:C21) -> 0 | D22: =SUM(D20:D21) -> 0 | E22: 0 | F22: 0 | G22: 0 | H22: 0 | I22: 0 | J22: 0 | K22: 0
A23: Operational Buildings | C23: =SA34a!C119 -> 0 | D23: =SA34a!D119 -> 0 | E23: =SA34a!E119 -> 0 | F23: =SA34a!F119 -> 0 | G23: =SA34a!G119 -> 0 | H23: =SA34a!H119 -> 0 | I23: =SA34a!I119 -> 0 | J23: =SA34a!J119 -> 0 | K23: =SA34a!K119 -> 0
A24: Housing | C24: =SA34a!C131 -> 0 | D24: =SA34a!D131 -> 0 | E24: =SA34a!E131 -> 0 | F24: =SA34a!F131 -> 0 | G24: =SA34a!G131 -> 0 | H24: =SA34a!H131 -> 0 | I24: =SA34a!I131 -> 0 | J24: =SA34a!J131 -> 0 | K24: =SA34a!K131 -> 0
A25: Other Assets | C25: =SUM(C23:C24) -> 0 | D25: =SUM(D23:D24) -> 0 | E25: 0 | F25: 0 | G25: 0 | H25: 0 | I25: 0 | J25: 0 | K25: 0
A26: Biological or Cultivated Assets | C26: =SA34a!C136 -> 0 | D26: =SA34a!D136 -> 0 | E26: =SA34a!E136 -> 0 | F26: =SA34a!F136 -> 0 | G26: =SA34a!G136 -> 0 | H26: =SA34a!H136 -> 0 | I26: =SA34a!I136 -> 0 | J26: =SA34a!J136 -> 0 | K26: =SA34a!K136 -> 0
A27: Servitudes | C27: =SA34a!C140 -> 0 | D27: =SA34a!D140 -> 0 | E27: =SA34a!E140 -> 0 | F27: =SA34a!F140 -> 0 | G27: =SA34a!G140 -> 0 | H27: =SA34a!H140 -> 0 | I27: =SA34a!I140 -> 0 | J27: =SA34a!J140 -> 0 | K27: =SA34a!K140 -> 0
A28: Licences and Rights | C28: =SA34a!C141 -> 0 | D28: =SA34a!D141 -> 0 | E28: =SA34a!E141 -> 0 | F28: =SA34a!F141 -> 0 | G28: =SA34a!G141 -> 1500000 | H28: =SA34a!H141 -> 1500000 | I28: =SA34a!I141 -> 1500000 | J28: =SA34a!J141 -> 700000 | K28: =SA34a!K141 -> 800000
A29: Intangible Assets | C29: =SUM(C27:C28) -> 0 | D29: =SUM(D27:D28) -> 0 | E29: 0 | F29: 0 | G29: 1500000 | H29: 1500000 | I29: 1500000 | J29: 700000 | K29: 800000
A30: Computer Equipment | C30: =SA34a!C149 -> 163365.01 | D30: =SA34a!D149 -> 0 | E30: =SA34a!E149 -> 4024510.15 | F30: =SA34a!F149 -> 2880000 | G30: =SA34a!G149 -> 5340000 | H30: =SA34a!H149 -> 5340000 | I30: =SA34a!I149 -> 1300000 | J30: =SA34a!J149 -> 0 | K30: =SA34a!K149 -> 0
A31: Furniture and Office Equipment | C31: =SA34a!C152 -> 0 | D31: =SA34a!D152 -> 0 | E31: =SA34a!E152 -> 444737.59 | F31: =SA34a!F152 -> 750000 | G31: =SA34a!G152 -> 1978528 | H31: =SA34a!H152 -> 1978528 | I31: =SA34a!I152 -> 1700000 | J31: =SA34a!J152 -> 250000 | K31: =SA34a!K152 -> 300000
A32: Machinery and Equipment | C32: =SA34a!C155 -> 0 | D32: =SA34a!D155 -> 0 | E32: =SA34a!E155 -> 321834 | F32: =SA34a!F155 -> 0 | G32: =SA34a!G155 -> 0 | H32: =SA34a!H155 -> 0 | I32: =SA34a!I155 -> 0 | J32: =SA34a!J155 -> 0 | K32: =SA34a!K155 -> 0
A33: Transport Assets | C33: =SA34a!C158 -> 0 | D33: =SA34a!D158 -> 0 | E33: =SA34a!E158 -> 0 | F33: =SA34a!F158 -> 0 | G33: =SA34a!G158 -> 0 | H33: =SA34a!H158 -> 0 | I33: =SA34a!I158 -> 0 | J33: =SA34a!J158 -> 0 | K33: =SA34a!K158 -> 0
A34: Land | C34: =SA34a!C161 -> 0 | D34: =SA34a!D161 -> 0 | E34: =SA34a!E161 -> 0 | F34: =SA34a!F161 -> 0 | G34: =SA34a!G161 -> 0 | H34: =SA34a!H161 -> 0 | I34: =SA34a!I161 -> 0 | J34: =SA34a!J161 -> 0 | K34: =SA34a!K161 -> 0
A35: Zoo's, Marine and Non-biological Animals | C35: =SA34a!C164 -> 0 | D35: =SA34a!D164 -> 0 | E35: =SA34a!E164 -> 0 | F35: =SA34a!F164 -> 0 | G35: =SA34a!G164 -> 0 | H35: =SA34a!H164 -> 0 | I35: =SA34a!I164 -> 0 | J35: =SA34a!J164 -> 0 | K35: =SA34a!K164 -> 0
A36: Mature | C36: =SA34a!C168 -> 0 | D36: =SA34a!D168 -> 0 | E36: =SA34a!E168 -> 0 | F36: =SA34a!F168 -> 0 | G36: =SA34a!G168 -> 0 | H36: =SA34a!H168 -> 0 | I36: =SA34a!I168 -> 0 | J36: =SA34a!J168 -> 0 | K36: =SA34a!K168 -> 0
A37: Immature | C37: =SA34a!C171 -> 0 | D37: =SA34a!D171 -> 0 | E37: =SA34a!E171 -> 0 | F37: =SA34a!F171 -> 0 | G37: =SA34a!G171 -> 0 | H37: =SA34a!H171 -> 0 | I37: =SA34a!I171 -> 0 | J37: =SA34a!J171 -> 0 | K37: =SA34a!K171 -> 0
A38: Living Resources | C38: =SUM(C36:C37) -> 0 | D38: 0 | E38: 0 | F38: 0 | G38: 0 | H38: 0 | I38: 0 | J38: 0 | K38: 0
A40: Total Renewal of Existing Assets | B40: 2 | C40: =C50+C53+C54+C57+C60+C61+SUM(C64:C70)+C73 -> 93985584.47 | D40: =D50+D53+D54+D57+D60+D61+SUM(D64:D70)+D73 -> 136821732.8 | E40: 65031407.14 | F40: 4042603 | G40: 15399629 | H40: 15399629 | I40: 5750000 | J40: 25392593 | K40: 32925373
A41: Roads Infrastructure | C41: =SA34b!C7 -> 0 | D41: =SA34b!D7 -> 0 | E41: =SA34b!E7 -> 0 | F41: =SA34b!F7 -> 0 | G41: =SA34b!G7 -> 0 | H41: =SA34b!H7 -> 0 | I41: =SA34b!I7 -> 0 | J41: =SA34b!J7 -> 0 | K41: =SA34b!K7 -> 0
A42: Storm water Infrastructure | C42: =SA34b!C12 -> 0 | D42: =SA34b!D12 -> 0 | E42: =SA34b!E12 -> 0 | F42: =SA34b!F12 -> 0 | G42: =SA34b!G12 -> 0 | H42: =SA34b!H12 -> 0 | I42: =SA34b!I12 -> 0 | J42: =SA34b!J12 -> 0 | K42: =SA34b!K12 -> 0
A43: Electrical Infrastructure | C43: =SA34b!C16 -> 0 | D43: =SA34b!D16 -> 0 | E43: =SA34b!E16 -> 0 | F43: =SA34b!F16 -> 0 | G43: =SA34b!G16 -> 0 | H43: =SA34b!H16 -> 0 | I43: =SA34b!I16 -> 0 | J43: =SA34b!J16 -> 0 | K43: =SA34b!K16 -> 0
A44: Water Supply Infrastructure | C44: =SA34b!C26 -> 93985584.47 | D44: =SA34b!D26 -> 115457573.3 | E44: =SA34b!E26 -> 59457946.01 | F44: =SA34b!F26 -> 4042603 | G44: =SA34b!G26 -> 15399629 | H44: =SA34b!H26 -> 15399629 | I44: =SA34b!I26 -> 0 | J44: =SA34b!J26 -> 19482593 | K44: =SA34b!K26 -> 26625373
A45: Sanitation Infrastructure | C45: =SA34b!C37 -> 0 | D45: =SA34b!D37 -> 0 | E45: =SA34b!E37 -> 2183750 | F45: =SA34b!F37 -> 0 | G45: =SA34b!G37 -> 0 | H45: =SA34b!H37 -> 0 | I45: =SA34b!I37 -> 0 | J45: =SA34b!J37 -> 0 | K45: =SA34b!K37 -> 0
A46: Solid Waste Infrastructure | C46: =SA34b!C44 -> 0 | D46: =SA34b!D44 -> 0 | E46: =SA34b!E44 -> 0 | F46: =SA34b!F44 -> 0 | G46: =SA34b!G44 -> 0 | H46: =SA34b!H44 -> 0 | I46: =SA34b!I44 -> 0 | J46: =SA34b!J44 -> 0 | K46: =SA34b!K44 -> 0
A47: Rail Infrastructure | C47: =SA34b!C52 -> 0 | D47: =SA34b!D52 -> 0 | E47: =SA34b!E52 -> 0 | F47: =SA34b!F52 -> 0 | G47: =SA34b!G52 -> 0 | H47: =SA34b!H52 -> 0 | I47: =SA34b!I52 -> 0 | J47: =SA34b!J52 -> 0 | K47: =SA34b!K52 -> 0
A48: Coastal Infrastructure | C48: =SA34b!C62 -> 0 | D48: =SA34b!D62 -> 0 | E48: =SA34b!E62 -> 0 | F48: =SA34b!F62 -> 0 | G48: =SA34b!G62 -> 0 | H48: =SA34b!H62 -> 0 | I48: =SA34b!I62 -> 0 | J48: =SA34b!J62 -> 0 | K48: =SA34b!K62 -> 0
A49: Information and Communication Infrastructure | C49: =SA34b!C68 -> 0 | D49: =SA34b!D68 -> 0 | E49: =SA34b!E68 -> 0 | F49: =SA34b!F68 -> 0 | G49: =SA34b!G68 -> 0 | H49: =SA34b!H68 -> 0 | I49: =SA34b!I68 -> 0 | J49: =SA34b!J68 -> 0 | K49: =SA34b!K68 -> 0
A50: Infrastructure | C50: =SUM(C41:C49) -> 93985584.47 | D50: =SUM(D41:D49) -> 115457573.3 | E50: 61641696.01 | F50: 4042603 | G50: 15399629 | H50: 15399629 | I50: 0 | J50: 19482593 | K50: 26625373
A51: Community Facilities | C51: =SA34b!C75 -> 0 | D51: =SA34b!D75 -> 0 | E51: =SA34b!E75 -> 0 | F51: =SA34b!F75 -> 0 | G51: =SA34b!G75 -> 0 | H51: =SA34b!H75 -> 0 | I51: =SA34b!I75 -> 0 | J51: =SA34b!J75 -> 0 | K51: =SA34b!K75 -> 0
A52: Sport and Recreation Facilities | C52: =SA34b!C98 -> 0 | D52: =SA34b!D98 -> 0 | E52: =SA34b!E98 -> 0 | F52: =SA34b!F98 -> 0 | G52: =SA34b!G98 -> 0 | H52: =SA34b!H98 -> 0 | I52: =SA34b!I98 -> 0 | J52: =SA34b!J98 -> 0 | K52: =SA34b!K98 -> 0
A53: Community Assets | C53: =SUM(C51:C52) -> 0 | D53: =SUM(D51:D52) -> 0 | E53: 0 | F53: 0 | G53: 0 | H53: 0 | I53: 0 | J53: 0 | K53: 0
A54: Heritage Assets | C54: =SA34b!C103 -> 0 | D54: =SA34b!D103 -> 0 | E54: =SA34b!E103 -> 0 | F54: =SA34b!F103 -> 0 | G54: =SA34b!G103 -> 0 | H54: =SA34b!H103 -> 0 | I54: =SA34b!I103 -> 0 | J54: =SA34b!J103 -> 0 | K54: =SA34b!K103 -> 0
A55: Revenue Generating | C55: =SA34b!C111 -> 0 | D55: =SA34b!D111 -> 0 | E55: =SA34b!E111 -> 0 | F55: =SA34b!F111 -> 0 | G55: =SA34b!G111 -> 0 | H55: =SA34b!H111 -> 0 | I55: =SA34b!I111 -> 0 | J55: =SA34b!J111 -> 0 | K55: =SA34b!K111 -> 0
A56: Non-revenue Generating | C56: =SA34b!C114 -> 0 | D56: =SA34b!D114 -> 0 | E56: =SA34b!E114 -> 0 | F56: =SA34b!F114 -> 0 | G56: =SA34b!G114 -> 0 | H56: =SA34b!H114 -> 0 | I56: =SA34b!I114 -> 0 | J56: =SA34b!J114 -> 0 | K56: =SA34b!K114 -> 0
A57: Investment properties | C57: =SUM(C55:C56) -> 0 | D57: =SUM(D55:D56) -> 0 | E57: 0 | F57: 0 | G57: 0 | H57: 0 | I57: 0 | J57: 0 | K57: 0
A58: Operational Buildings | C58: =SA34b!C119 -> 0 | D58: =SA34b!D119 -> 0 | E58: =SA34b!E119 -> 0 | F58: =SA34b!F119 -> 0 | G58: =SA34b!G119 -> 0 | H58: =SA34b!H119 -> 0 | I58: =SA34b!I119 -> 0 | J58: =SA34b!J119 -> 0 | K58: =SA34b!K119 -> 0
A59: Housing | C59: =SA34b!C131 -> 0 | D59: =SA34b!D131 -> 0 | E59: =SA34b!E131 -> 0 | F59: =SA34b!F131 -> 0 | G59: =SA34b!G131 -> 0 | H59: =SA34b!H131 -> 0 | I59: =SA34b!I131 -> 0 | J59: =SA34b!J131 -> 0 | K59: =SA34b!K131 -> 0
A60: Other Assets | C60: =SUM(C58:C59) -> 0 | D60: =SUM(D58:D59) -> 0 | E60: 0 | F60: 0 | G60: 0 | H60: 0 | I60: 0 | J60: 0 | K60: 0
A61: Biological or Cultivated Assets | C61: =SA34b!C136 -> 0 | D61: =SA34b!D136 -> 0 | E61: =SA34b!E136 -> 0 | F61: =SA34b!F136 -> 0 | G61: =SA34b!G136 -> 0 | H61: =SA34b!H136 -> 0 | I61: =SA34b!I136 -> 0 | J61: =SA34b!J136 -> 0 | K61: =SA34b!K136 -> 0
A62: Servitudes | C62: =SA34b!C140 -> 0 | D62: =SA34b!D140 -> 0 | E62: =SA34b!E140 -> 0 | F62: =SA34b!F140 -> 0 | G62: =SA34b!G140 -> 0 | H62: =SA34b!H140 -> 0 | I62: =SA34b!I140 -> 0 | J62: =SA34b!J140 -> 0 | K62: =SA34b!K140 -> 0
A63: Licences and Rights | C63: =SA34b!C141 -> 0 | D63: =SA34b!D141 -> 0 | E63: =SA34b!E141 -> 0 | F63: =SA34b!F141 -> 0 | G63: =SA34b!G141 -> 0 | H63: =SA34b!H141 -> 0 | I63: =SA34b!I141 -> 0 | J63: =SA34b!J141 -> 0 | K63: =SA34b!K141 -> 0
A64: Intangible Assets | C64: =SUM(C62:C63) -> 0 | D64: =SUM(D62:D63) -> 0 | E64: 0 | F64: 0 | G64: 0 | H64: 0 | I64: 0 | J64: 0 | K64: 0
A65: Computer Equipment | C65: =SA34b!C149 -> 0 | D65: =SA34b!D149 -> 0 | E65: =SA34b!E149 -> 0 | F65: =SA34b!F149 -> 0 | G65: =SA34b!G149 -> 0 | H65: =SA34b!H149 -> 0 | I65: =SA34b!I149 -> 0 | J65: =SA34b!J149 -> 0 | K65: =SA34b!K149 -> 0
A66: Furniture and Office Equipment | C66: =SA34b!C152 -> 0 | D66: =SA34b!D152 -> -615840.55 | E66: =SA34b!E152 -> 0 | F66: =SA34b!F152 -> 0 | G66: =SA34b!G152 -> 0 | H66: =SA34b!H152 -> 0 | I66: =SA34b!I152 -> 0 | J66: =SA34b!J152 -> 0 | K66: =SA34b!K152 -> 0
A67: Machinery and Equipment | C67: =SA34b!C155 -> 0 | D67: =SA34b!D155 -> 0 | E67: =SA34b!E155 -> 0 | F67: =SA34b!F155 -> 0 | G67: =SA34b!G155 -> 0 | H67: =SA34b!H155 -> 0 | I67: =SA34b!I155 -> 0 | J67: =SA34b!J155 -> 0 | K67: =SA34b!K155 -> 0
A68: Transport Assets | C68: =SA34b!C158 -> 0 | D68: =SA34b!D158 -> 21980000 | E68: =SA34b!E158 -> 3389711.13 | F68: =SA34b!F158 -> 0 | G68: =SA34b!G158 -> 0 | H68: =SA34b!H158 -> 0 | I68: =SA34b!I158 -> 5750000 | J68: =SA34b!J158 -> 5910000 | K68: =SA34b!K158 -> 6300000
A69: Land | C69: =SA34b!C161 -> 0 | D69: =SA34b!D161 -> 0 | E69: =SA34b!E161 -> 0 | F69: =SA34b!F161 -> 0 | G69: =SA34b!G161 -> 0 | H69: =SA34b!H161 -> 0 | I69: =SA34b!I161 -> 0 | J69: =SA34b!J161 -> 0 | K69: =SA34b!K161 -> 0
A70: Zoo's, Marine and Non-biological Animals | C70: =SA34b!C164 -> 0 | D70: =SA34b!D164 -> 0 | E70: =SA34b!E164 -> 0 | F70: =SA34b!F164 -> 0 | G70: =SA34b!G164 -> 0 | H70: =SA34b!H164 -> 0 | I70: =SA34b!I164 -> 0 | J70: =SA34b!J164 -> 0 | K70: =SA34b!K164 -> 0
A71: Mature | C71: =SA34b!C168 -> 0 | D71: =SA34b!D168 -> 0 | E71: =SA34b!E168 -> 0 | F71: =SA34b!F168 -> 0 | G71: =SA34b!G168 -> 0 | H71: =SA34b!H168 -> 0 | I71: =SA34b!I168 -> 0 | J71: =SA34b!J168 -> 0 | K71: =SA34b!K168 -> 0
A72: Immature | C72: =SA34b!C171 -> 0 | D72: =SA34b!D171 -> 0 | E72: =SA34b!E171 -> 0 | F72: =SA34b!F171 -> 0 | G72: =SA34b!G171 -> 0 | H72: =SA34b!H171 -> 0 | I72: =SA34b!I171 -> 0 | J72: =SA34b!J171 -> 0 | K72: =SA34b!K171 -> 0
A73: Living Resources | C73: =SUM(C71:C72) -> 0 | D73: 0 | E73: 0 | F73: 0 | G73: 0 | H73: 0 | I73: 0 | J73: 0 | K73: 0
A75: Total Upgrading of Existing Assets | B75: 6 | C75: =C85+C88+C89+C92+C95+C96+SUM(C99:C105)+C108 -> 11697965.92 | D75: =D85+D88+D89+D92+D95+D96+SUM(D99:D105)+D108 -> 2910260.41 | E75: 0 | F75: 2451000 | G75: 2551000 | H75: 2551000 | I75: 2660000 | J75: 2821000 | K75: 2986000
A76: Roads Infrastructure | C76: =SA34e!C7 -> 2091486.09 | D76: =SA34e!D7 -> 0 | E76: =SA34e!E7 -> 0 | F76: =SA34e!F7 -> 2451000 | G76: =SA34e!G7 -> 2451000 | H76: =SA34e!H7 -> 2451000 | I76: =SA34e!I7 -> 2460000 | J76: =SA34e!J7 -> 2571000 | K76: =SA34e!K7 -> 2686000
A77: Storm water Infrastructure | C77: =SA34e!C12 -> 0 | D77: =SA34e!D12 -> 0 | E77: =SA34e!E12 -> 0 | F77: =SA34e!F12 -> 0 | G77: =SA34e!G12 -> 0 | H77: =SA34e!H12 -> 0 | I77: =SA34e!I12 -> 0 | J77: =SA34e!J12 -> 0 | K77: =SA34e!K12 -> 0
A78: Electrical Infrastructure | C78: =SA34e!C16 -> 0 | D78: =SA34e!D16 -> 0 | E78: =SA34e!E16 -> 0 | F78: =SA34e!F16 -> 0 | G78: =SA34e!G16 -> 0 | H78: =SA34e!H16 -> 0 | I78: =SA34e!I16 -> 0 | J78: =SA34e!J16 -> 0 | K78: =SA34e!K16 -> 0
A79: Water Supply Infrastructure | C79: =SA34e!C26 -> 9606479.83 | D79: =SA34e!D26 -> 2910260.41 | E79: =SA34e!E26 -> 0 | F79: =SA34e!F26 -> 0 | G79: =SA34e!G26 -> 0 | H79: =SA34e!H26 -> 0 | I79: =SA34e!I26 -> 0 | J79: =SA34e!J26 -> 0 | K79: =SA34e!K26 -> 0
A80: Sanitation Infrastructure | C80: =SA34e!C37 -> 0 | D80: =SA34e!D37 -> 0 | E80: =SA34e!E37 -> 0 | F80: =SA34e!F37 -> 0 | G80: =SA34e!G37 -> 0 | H80: =SA34e!H37 -> 0 | I80: =SA34e!I37 -> 0 | J80: =SA34e!J37 -> 0 | K80: =SA34e!K37 -> 0
A81: Solid Waste Infrastructure | C81: =SA34e!C44 -> 0 | D81: =SA34e!D44 -> 0 | E81: =SA34e!E44 -> 0 | F81: =SA34e!F44 -> 0 | G81: =SA34e!G44 -> 0 | H81: =SA34e!H44 -> 0 | I81: =SA34e!I44 -> 0 | J81: =SA34e!J44 -> 0 | K81: =SA34e!K44 -> 0
A82: Rail Infrastructure | C82: =SA34e!C52 -> 0 | D82: =SA34e!D52 -> 0 | E82: =SA34e!E52 -> 0 | F82: =SA34e!F52 -> 0 | G82: =SA34e!G52 -> 0 | H82: =SA34e!H52 -> 0 | I82: =SA34e!I52 -> 0 | J82: =SA34e!J52 -> 0 | K82: =SA34e!K52 -> 0
A83: Coastal Infrastructure | C83: =SA34e!C62 -> 0 | D83: =SA34e!D62 -> 0 | E83: =SA34e!E62 -> 0 | F83: =SA34e!F62 -> 0 | G83: =SA34e!G62 -> 0 | H83: =SA34e!H62 -> 0 | I83: =SA34e!I62 -> 0 | J83: =SA34e!J62 -> 0 | K83: =SA34e!K62 -> 0
A84: Information and Communication Infrastructure | C84: =SA34e!C68 -> 0 | D84: =SA34e!D68 -> 0 | E84: =SA34e!E68 -> 0 | F84: =SA34e!F68 -> 0 | G84: =SA34e!G68 -> 0 | H84: =SA34e!H68 -> 0 | I84: =SA34e!I68 -> 0 | J84: =SA34e!J68 -> 0 | K84: =SA34e!K68 -> 0
A85: Infrastructure | C85: =SUM(C76:C84) -> 11697965.92 | D85: 2910260.41 | E85: 0 | F85: 2451000 | G85: 2451000 | H85: 2451000 | I85: 2460000 | J85: 2571000 | K85: 2686000
A86: Community Facilities | C86: =SA34e!C75 -> 0 | D86: =SA34e!D75 -> 0 | E86: =SA34e!E75 -> 0 | F86: =SA34e!F75 -> 0 | G86: =SA34e!G75 -> 0 | H86: =SA34e!H75 -> 0 | I86: =SA34e!I75 -> 0 | J86: =SA34e!J75 -> 0 | K86: =SA34e!K75 -> 0
A87: Sport and Recreation Facilities | C87: =SA34e!C98 -> 0 | D87: =SA34e!D98 -> 0 | E87: =SA34e!E98 -> 0 | F87: =SA34e!F98 -> 0 | G87: =SA34e!G98 -> 0 | H87: =SA34e!H98 -> 0 | I87: =SA34e!I98 -> 0 | J87: =SA34e!J98 -> 0 | K87: =SA34e!K98 -> 0
A88: Community Assets | C88: =SUM(C86:C87) -> 0 | D88: 0 | E88: 0 | F88: 0 | G88: 0 | H88: 0 | I88: 0 | J88: 0 | K88: 0
A89: Heritage Assets | C89: =SA34e!C103 -> 0 | D89: =SA34e!D103 -> 0 | E89: =SA34e!E103 -> 0 | F89: =SA34e!F103 -> 0 | G89: =SA34e!G103 -> 0 | H89: =SA34e!H103 -> 0 | I89: =SA34e!I103 -> 0 | J89: =SA34e!J103 -> 0 | K89: =SA34e!K103 -> 0
A90: Revenue Generating | C90: =SA34e!C111 -> 0 | D90: =SA34e!D111 -> 0 | E90: =SA34e!E111 -> 0 | F90: =SA34e!F111 -> 0 | G90: =SA34e!G111 -> 0 | H90: =SA34e!H111 -> 0 | I90: =SA34e!I111 -> 0 | J90: =SA34e!J111 -> 0 | K90: =SA34e!K111 -> 0
A91: Non-revenue Generating | C91: =SA34e!C114 -> 0 | D91: =SA34e!D114 -> 0 | E91: =SA34e!E114 -> 0 | F91: =SA34e!F114 -> 0 | G91: =SA34e!G114 -> 0 | H91: =SA34e!H114 -> 0 | I91: =SA34e!I114 -> 0 | J91: =SA34e!J114 -> 0 | K91: =SA34e!K114 -> 0
A92: Investment properties | C92: =SUM(C90:C91) -> 0 | D92: 0 | E92: 0 | F92: 0 | G92: 0 | H92: 0 | I92: 0 | J92: 0 | K92: 0
A93: Operational Buildings | C93: =SA34e!C119 -> 0 | D93: =SA34e!D119 -> 0 | E93: =SA34e!E119 -> 0 | F93: =SA34e!F119 -> 0 | G93: =SA34e!G119 -> 100000 | H93: =SA34e!H119 -> 100000 | I93: =SA34e!I119 -> 200000 | J93: =SA34e!J119 -> 250000 | K93: =SA34e!K119 -> 300000
A94: Housing | C94: =SA34e!C131 -> 0 | D94: =SA34e!D131 -> 0 | E94: =SA34e!E131 -> 0 | F94: =SA34e!F131 -> 0 | G94: =SA34e!G131 -> 0 | H94: =SA34e!H131 -> 0 | I94: =SA34e!I131 -> 0 | J94: =SA34e!J131 -> 0 | K94: =SA34e!K131 -> 0
A95: Other Assets | C95: =SUM(C93:C94) -> 0 | D95: 0 | E95: 0 | F95: 0 | G95: 100000 | H95: 100000 | I95: 200000 | J95: 250000 | K95: 300000
A96: Biological or Cultivated Assets | C96: =SA34e!C136 -> 0 | D96: =SA34e!D136 -> 0 | E96: =SA34e!E136 -> 0 | F96: =SA34e!F136 -> 0 | G96: =SA34e!G136 -> 0 | H96: =SA34e!H136 -> 0 | I96: =SA34e!I136 -> 0 | J96: =SA34e!J136 -> 0 | K96: =SA34e!K136 -> 0
A97: Servitudes | C97: =SA34e!C140 -> 0 | D97: =SA34e!D140 -> 0 | E97: =SA34e!E140 -> 0 | F97: =SA34e!F140 -> 0 | G97: =SA34e!G140 -> 0 | H97: =SA34e!H140 -> 0 | I97: =SA34e!I140 -> 0 | J97: =SA34e!J140 -> 0 | K97: =SA34e!K140 -> 0
A98: Licences and Rights | C98: =SA34e!C141 -> 0 | D98: =SA34e!D141 -> 0 | E98: =SA34e!E141 -> 0 | F98: =SA34e!F141 -> 0 | G98: =SA34e!G141 -> 0 | H98: =SA34e!H141 -> 0 | I98: =SA34e!I141 -> 0 | J98: =SA34e!J141 -> 0 | K98: =SA34e!K141 -> 0
A99: Intangible Assets | C99: =SUM(C97:C98) -> 0 | D99: 0 | E99: 0 | F99: 0 | G99: 0 | H99: 0 | I99: 0 | J99: 0 | K99: 0
A100: Computer Equipment | C100: =SA34e!C149 -> 0 | D100: =SA34e!D149 -> 0 | E100: =SA34e!E149 -> 0 | F100: =SA34e!F149 -> 0 | G100: =SA34e!G149 -> 0 | H100: =SA34e!H149 -> 0 | I100: =SA34e!I149 -> 0 | J100: =SA34e!J149 -> 0 | K100: =SA34e!K149 -> 0
A101: Furniture and Office Equipment | C101: =SA34e!C152 -> 0 | D101: =SA34e!D152 -> 0 | E101: =SA34e!E152 -> 0 | F101: =SA34e!F152 -> 0 | G101: =SA34e!G152 -> 0 | H101: =SA34e!H152 -> 0 | I101: =SA34e!I152 -> 0 | J101: =SA34e!J152 -> 0 | K101: =SA34e!K152 -> 0
A102: Machinery and Equipment | C102: =SA34e!C155 -> 0 | D102: =SA34e!D155 -> 0 | E102: =SA34e!E155 -> 0 | F102: =SA34e!F155 -> 0 | G102: =SA34e!G155 -> 0 | H102: =SA34e!H155 -> 0 | I102: =SA34e!I155 -> 0 | J102: =SA34e!J155 -> 0 | K102: =SA34e!K155 -> 0
A103: Transport Assets | C103: =SA34e!C158 -> 0 | D103: =SA34e!D158 -> 0 | E103: =SA34e!E158 -> 0 | F103: =SA34e!F158 -> 0 | G103: =SA34e!G158 -> 0 | H103: =SA34e!H158 -> 0 | I103: =SA34e!I158 -> 0 | J103: =SA34e!J158 -> 0 | K103: =SA34e!K158 -> 0
A104: Land | C104: =SA34e!C161 -> 0 | D104: =SA34e!D161 -> 0 | E104: =SA34e!E161 -> 0 | F104: =SA34e!F161 -> 0 | G104: =SA34e!G161 -> 0 | H104: =SA34e!H161 -> 0 | I104: =SA34e!I161 -> 0 | J104: =SA34e!J161 -> 0 | K104: =SA34e!K161 -> 0
A105: Zoo's, Marine and Non-biological Animals | C105: =SA34e!C164 -> 0 | D105: =SA34e!D164 -> 0 | E105: =SA34e!E164 -> 0 | F105: =SA34e!F164 -> 0 | G105: =SA34e!G164 -> 0 | H105: =SA34e!H164 -> 0 | I105: =SA34e!I164 -> 0 | J105: =SA34e!J164 -> 0 | K105: =SA34e!K164 -> 0
A106: Mature | C106: =SA34e!C168 -> 0 | D106: =SA34e!D168 -> 0 | E106: =SA34e!E168 -> 0 | F106: =SA34e!F168 -> 0 | G106: =SA34e!G168 -> 0 | H106: =SA34e!H168 -> 0 | I106: =SA34e!I168 -> 0 | J106: =SA34e!J168 -> 0 | K106: =SA34e!K168 -> 0
A107: Immature | C107: =SA34b!C171 -> 0 | D107: =SA34b!D171 -> 0 | E107: =SA34b!E171 -> 0 | F107: =SA34b!F171 -> 0 | G107: =SA34b!G171 -> 0 | H107: =SA34b!H171 -> 0 | I107: =SA34b!I171 -> 0 | J107: =SA34b!J171 -> 0 | K107: =SA34b!K171 -> 0
A108: Living Resources | C108: =SUM(C106:C107) -> 0 | D108: 0 | E108: 0 | F108: 0 | G108: 0 | H108: 0 | I108: 0 | J108: 0 | K108: 0
A110: Total Capital Expenditure | B110: 4 | C110: =+C5+C40+C75 -> 390198098 | D110: 421393771.7 | E110: 351036807 | F110: 489206441 | G110: 612578484 | H110: 612578484 | I110: 593743325 | J110: 579118381 | K110: 595086856
A111: Roads Infrastructure | C111: =+C6+C41+C76 -> 2091486.09 | D111: 0 | E111: 0 | F111: 2451000 | G111: 2451000 | H111: 2451000 | I111: 2460000 | J111: 2571000 | K111: 2686000
A112: Storm water Infrastructure | C112: =+C7+C42+C77 -> 0 | D112: 0 | E112: 0 | F112: 0 | G112: 0 | H112: 0 | I112: 0 | J112: 0 | K112: 0
A113: Electrical Infrastructure | C113: =+C8+C43+C78 -> 0 | D113: 0 | E113: 0 | F113: 0 | G113: 0 | H113: 0 | I113: 0 | J113: 0 | K113: 0
A114: Water Supply Infrastructure | C114: =+C9+C44+C79 -> 387295064.4 | D114: 399967345.2 | E114: 340672264.1 | F114: 483125441 | G114: 601208956 | H114: 601208956 | I114: 580833325 | J114: 569437381 | K114: 584700856
A115: Sanitation Infrastructure | C115: =+C10+C45+C80 -> 648182.5 | D115: 62267.06 | E115: 2183750 | F115: 0 | G115: 0 | H115: 0 | I115: 0 | J115: 0 | K115: 0
A116: Solid Waste Infrastructure | C116: =+C11+C46+C81 -> 0 | D116: 0 | E116: 0 | F116: 0 | G116: 0 | H116: 0 | I116: 0 | J116: 0 | K116: 0
A117: Rail Infrastructure | C117: =+C12+C47+C82 -> 0 | D117: 0 | E117: 0 | F117: 0 | G117: 0 | H117: 0 | I117: 0 | J117: 0 | K117: 0
A118: Coastal Infrastructure | C118: =+C13+C48+C83 -> 0 | D118: 0 | E118: 0 | F118: 0 | G118: 0 | H118: 0 | I118: 0 | J118: 0 | K118: 0
A119: Information and Communication Infrastructure | C119: =+C14+C49+C84 -> 0 | D119: 0 | E119: 0 | F119: 0 | G119: 0 | H119: 0 | I119: 0 | J119: 0 | K119: 0
A120: Infrastructure | C120: =SUM(C111:C119) -> 390034733 | D120: =SUM(D111:D119) -> 400029612.2 | E120: 342856014.1 | F120: 485576441 | G120: 603659956 | H120: 603659956 | I120: 583293325 | J120: 572008381 | K120: 587386856
A121: Community Facilities | C121: =+C16+C51+C86 -> 0 | D121: 0 | E121: 0 | F121: 0 | G121: 0 | H121: 0 | I121: 0 | J121: 0 | K121: 0
A122: Sport and Recreation Facilities | C122: =+C17+C52+C87 -> 0 | D122: 0 | E122: 0 | F122: 0 | G122: 0 | H122: 0 | I122: 0 | J122: 0 | K122: 0
A123: Community Assets | C123: =SUM(C121:C122) -> 0 | D123: =SUM(D121:D122) -> 0 | E123: 0 | F123: 0 | G123: 0 | H123: 0 | I123: 0 | J123: 0 | K123: 0
A124: Heritage Assets | C124: =+C19+C54+C89 -> 0 | D124: 0 | E124: 0 | F124: 0 | G124: 0 | H124: 0 | I124: 0 | J124: 0 | K124: 0
A125: Revenue Generating | C125: =+C20+C55+C90 -> 0 | D125: 0 | E125: 0 | F125: 0 | G125: 0 | H125: 0 | I125: 0 | J125: 0 | K125: 0
A126: Non-revenue Generating | C126: =+C21+C56+C91 -> 0 | D126: 0 | E126: 0 | F126: 0 | G126: 0 | H126: 0 | I126: 0 | J126: 0 | K126: 0
A127: Investment properties | C127: =SUM(C125:C126) -> 0 | D127: =SUM(D125:D126) -> 0 | E127: 0 | F127: 0 | G127: 0 | H127: 0 | I127: 0 | J127: 0 | K127: 0
A128: Operational Buildings | C128: =+C23+C58+C93 -> 0 | D128: 0 | E128: 0 | F128: 0 | G128: 100000 | H128: 100000 | I128: 200000 | J128: 250000 | K128: 300000
A129: Housing | C129: =+C24+C59+C94 -> 0 | D129: 0 | E129: 0 | F129: 0 | G129: 0 | H129: 0 | I129: 0 | J129: 0 | K129: 0
A130: Other Assets | C130: =SUM(C128:C129) -> 0 | D130: 0 | E130: 0 | F130: 0 | G130: 100000 | H130: 100000 | I130: 200000 | J130: 250000 | K130: 300000
A131: Biological or Cultivated Assets | C131: =+C26+C61+C96 -> 0 | D131: 0 | E131: 0 | F131: 0 | G131: 0 | H131: 0 | I131: 0 | J131: 0 | K131: 0
A132: Servitudes | C132: =+C27+C62+C97 -> 0 | D132: 0 | E132: 0 | F132: 0 | G132: 0 | H132: 0 | I132: 0 | J132: 0 | K132: 0
A133: Licences and Rights | C133: =+C28+C63+C98 -> 0 | D133: 0 | E133: 0 | F133: 0 | G133: 1500000 | H133: 1500000 | I133: 1500000 | J133: 700000 | K133: 800000
A134: Intangible Assets | C134: =SUM(C132:C133) -> 0 | D134: =SUM(D132:D133) -> 0 | E134: 0 | F134: 0 | G134: 1500000 | H134: 1500000 | I134: 1500000 | J134: 700000 | K134: 800000
A135: Computer Equipment | C135: =+C30+C65+C100 -> 163365.01 | D135: 0 | E135: 4024510.15 | F135: 2880000 | G135: 5340000 | H135: 5340000 | I135: 1300000 | J135: 0 | K135: 0
A136: Furniture and Office Equipment | C136: =+C31+C66+C101 -> 0 | D136: -615840.55 | E136: 444737.59 | F136: 750000 | G136: 1978528 | H136: 1978528 | I136: 1700000 | J136: 250000 | K136: 300000
A137: Machinery and Equipment | C137: =+C32+C67+C102 -> 0 | D137: 0 | E137: 321834 | F137: 0 | G137: 0 | H137: 0 | I137: 0 | J137: 0 | K137: 0
A138: Transport Assets | C138: =+C33+C68+C103 -> 0 | D138: 21980000 | E138: 3389711.13 | F138: 0 | G138: 0 | H138: 0 | I138: 5750000 | J138: 5910000 | K138: 6300000
A139: Land | C139: =+C34+C69+C104 -> 0 | D139: 0 | E139: 0 | F139: 0 | G139: 0 | H139: 0 | I139: 0 | J139: 0 | K139: 0
A140: Zoo's, Marine and Non-biological Animals | C140: =+C35+C70+C105 -> 0 | D140: 0 | E140: 0 | F140: 0 | G140: 0 | H140: 0 | I140: 0 | J140: 0 | K140: 0
A141: Mature | C141: =+C36+C71+C106 -> 0 | D141: =+D36+D71+D106 -> 0 | E141: 0 | F141: 0 | G141: 0 | H141: 0 | I141: 0 | J141: 0 | K141: 0
A142: Immature | C142: =+C37+C72+C107 -> 0 | D142: =+D37+D72+D107 -> 0 | E142: 0 | F142: 0 | G142: 0 | H142: 0 | I142: 0 | J142: 0 | K142: 0
A143: Living Resources | C143: =SUM(C141:C142) -> 0 | D143: 0 | E143: 0 | F143: 0 | G143: 0 | H143: 0 | I143: 0 | J143: 0 | K143: 0
A144: TOTAL CAPITAL EXPENDITURE - Asset class | C144: =+C5+C40+C75 -> 390198098 | D144: 421393771.7 | E144: 351036807 | F144: 489206441 | G144: 612578484 | H144: 612578484 | I144: 593743325 | J144: 579118381 | K144: 595086856
A146: ASSET REGISTER SUMMARY - PPE (WDV) | B146: 5 | C146: =C156+C159+C160+C163+C166+C167+C170+C171+C172+C173+C174+C175+C176 -> 2388135371 | D146: =D156+D159+D160+D163+D166+D167+D170+D171+D172+D173+D174+D175+D176 -> 2662158689 | E146: 3651056174 | F146: 2646498186 | G146: 2770300250 | H146: 2770300250 | I146: 2751035070 | J146: 2842117420 | K146: 2964919144
A147: Roads Infrastructure | C147: 29039481.58 | D147: 25451617.71 | E147: 24057572.44 | F147: 31357761 | G147: 31357761 | H147: 31357761 | I147: 31366761 | J147: 32894191 | K147: 34434382
A148: Storm water Infrastructure | C148: 0 | D148: 0 | E148: 0 | F148: 0 | G148: 0 | H148: 0 | I148: 0 | J148: 0 | K148: 0
A149: Electrical Infrastructure
A150: Water Supply Infrastructure | C150: 2276876336 | D150: 2524816188 | E150: 3487828262 | F150: 2556766180 | G150: 2674849695 | H150: 2674849695 | I150: 2654474064 | J150: 2744686516 | K150: 2862186700
A151: Sanitation Infrastructure | C151: 37192785.05 | D151: 37192676.91 | E151: 60596711.13 | F151: 48398333 | G151: 48398333 | H151: 48398333 | I151: 48398333 | J151: 50769851 | K151: 53156034
A152: Solid Waste Infrastructure | C152: -22.19 | D152: -28.38 | E152: -28.38 | F152: 0 | G152: 0 | H152: 0 | I152: 0 | J152: 0 | K152: 0
A153: Rail Infrastructure
A154: Coastal Infrastructure
A155: Information and Communication Infrastructure
A156: Infrastructure | C156: =SUM(C147:C155) -> 2343108580 | D156: =SUM(D147:D155) -> 2587460454 | E156: 3572482517 | F156: 2636522274 | G156: 2754605789 | H156: 2754605789 | I156: 2734239158 | J156: 2828350558 | K156: 2949777116
A159: Community Assets | C159: 34891580.17 | D159: 33681182.46 | E159: 35974749.31 | F159: 35182078 | G159: 35612099 | H159: 35612099 | I159: 35182078 | J159: 36906001 | K159: 39112874
A160: Heritage Assets | C160: 0 | D160: 0 | E160: 0 | F160: 0 | G160: 0 | H160: 0 | I160: 0 | J160: 0 | K160: 0
A163: Investment properties
A166: Other Assets | C166: -15563882.52 | D166: -15715544.35 | E166: -16819093.53 | F166: -15408026 | G166: -15308026 | H166: -15308026 | I166: -15208026 | J166: -15913019 | K166: -16622681
A167: Biological or Cultivated Assets
A170: Intangible Assets | C170: 0 | D170: 0 | E170: 0 | F170: 0 | G170: 1500000 | H170: 1500000 | I170: 1500000 | J170: 700000 | K170: 800000
A171: Computer Equipment | C171: 7840273.55 | D171: 10658428.23 | E171: 10928472.25 | F171: -19596705 | G171: -17136705 | H171: -17136705 | I171: -21176705 | J171: -23578065 | K171: -24686232
A172: Furniture and Office Equipment | C172: 4349855.53 | D172: 3007386.17 | E172: 3867319.45 | F172: 5345334 | G172: 6573862 | H172: 6573862 | I172: 6295334 | J172: 5070505 | K172: 5347069
A173: Machinery and Equipment | C173: 3996692.79 | D173: 13682414.47 | E173: 9950796.44 | F173: 3790842 | G173: 3790842 | H173: 3790842 | I173: 3790842 | J173: 3976593 | K173: 4163494
A174: Transport Assets | C174: 9512271.06 | D174: 29384368.55 | E174: 34671413.37 | F174: 662389 | G174: 662389 | H174: 662389 | I174: 6412389 | J174: 6604847 | K174: 7027504
A175: Land | C175: 0 | D175: 0 | E175: 0 | F175: 0 | G175: 0 | H175: 0 | I175: 0 | J175: 0 | K175: 0
A176: Zoo's, Marine and Non-biological Animals
A179: Living Resources
A180: TOTAL ASSET REGISTER SUMMARY - PPE (WDV) | B180: 5 | C180: =C156+C159+C160+C163+C166+C167+C170+C171+C172+C173+C174+C175+C176+C179 -> 2388135371 | D180: 2662158689 | E180: 3651056174 | F180: =F156+F159+F160+F163+F166+F167+F170+F171+F172+F173+F174+F175+F176+F179 -> 2646498186 | G180: =G156+G159+G160+G163+G166+G167+G170+G171+G172+G173+G174+G175+G176+G179 -> 2770300250 | H180: 2770300250 | I180: 2751035070 | J180: 2842117420 | K180: 2964919144
A182: EXPENDITURE OTHER ITEMS | C182: =SUM(C183:C184) -> 221535858.1 | D182: =SUM(D183:D184) -> 199631507.1 | E182: 258103501.9 | F182: 229937210 | G182: 178759153 | H182: 178759153 | I182: 168551910 | J182: 264083617 | K182: 288976193
A183: Depreciation | B183: 7 | C183: =SA34d!C175 -> 122229924.3 | D183: =SA34d!D175 -> 94331435.57 | E183: =SA34d!E175 -> 116366974.3 | F183: =SA34d!F175 -> 106884864 | G183: =SA34d!G175 -> 94814864 | H183: =SA34d!H175 -> 94814864 | I183: =SA34d!I175 -> 99840051 | J183: =SA34d!J175 -> 104732214 | K183: =SA34d!K175 -> 109654628
A184: Repairs and Maintenance by Asset Class | B184: 3 | C184: =C194+C197+C198+C201+C204+C205+SUM(C208:C214)+C217 -> 99305933.84 | D184: 105300071.5 | E184: 141736527.6 | F184: 123052346 | G184: 83944289 | H184: 83944289 | I184: 68711859 | J184: 159351403 | K184: 179321565
A185: Roads Infrastructure | C185: =SA34c!C7 -> 0 | D185: =SA34c!D7 -> 0 | E185: =SA34c!E7 -> 0 | F185: =SA34c!F7 -> 0 | G185: =SA34c!G7 -> 0 | H185: =SA34c!H7 -> 0 | I185: =SA34c!I7 -> 0 | J185: =SA34c!J7 -> 0 | K185: =SA34c!K7 -> 0
A186: Storm water Infrastructure | C186: =SA34c!C12 -> 0 | D186: =SA34c!D12 -> 0 | E186: =SA34c!E12 -> 0 | F186: =SA34c!F12 -> 0 | G186: =SA34c!G12 -> 0 | H186: =SA34c!H12 -> 0 | I186: =SA34c!I12 -> 0 | J186: =SA34c!J12 -> 0 | K186: =SA34c!K12 -> 0
A187: Electrical Infrastructure | C187: =SA34c!C16 -> 0 | D187: =SA34c!D16 -> 0 | E187: =SA34c!E16 -> 0 | F187: =SA34c!F16 -> 0 | G187: =SA34c!G16 -> 0 | H187: =SA34c!H16 -> 0 | I187: =SA34c!I16 -> 0 | J187: =SA34c!J16 -> 0 | K187: =SA34c!K16 -> 0
A188: Water Supply Infrastructure | C188: =SA34c!C26 -> 19283635.64 | D188: =SA34c!D26 -> 26881441.8 | E188: =SA34c!E26 -> 36563379.35 | F188: =SA34c!F26 -> 43957326 | G188: =SA34c!G26 -> 35100516 | H188: =SA34c!H26 -> 35100516 | I188: =SA34c!I26 -> 31902467 | J188: =SA34c!J26 -> 44059980 | K188: =SA34c!K26 -> 46316740
A189: Sanitation Infrastructure | C189: =SA34c!C37 -> 76368908.3 | D189: =SA34c!D37 -> 77530341.22 | E189: =SA34c!E37 -> 100577094.8 | F189: =SA34c!F37 -> 64145441 | G189: =SA34c!G37 -> 28394194 | H189: =SA34c!H37 -> 28394194 | I189: =SA34c!I37 -> 10093185 | J189: =SA34c!J37 -> 87311443 | K189: =SA34c!K37 -> 103037667
A190: Solid Waste Infrastructure | C190: =SA34c!C44 -> 0 | D190: =SA34c!D44 -> 0 | E190: =SA34c!E44 -> 0 | F190: =SA34c!F44 -> 0 | G190: =SA34c!G44 -> 900000 | H190: =SA34c!H44 -> 900000 | I190: =SA34c!I44 -> 1247700 | J190: =SA34c!J44 -> 994137 | K190: =SA34c!K44 -> 1040862
A191: Rail Infrastructure | C191: =SA34c!C52 -> 0 | D191: =SA34c!D52 -> 0 | E191: =SA34c!E52 -> 0 | F191: =SA34c!F52 -> 0 | G191: =SA34c!G52 -> 0 | H191: =SA34c!H52 -> 0 | I191: =SA34c!I52 -> 0 | J191: =SA34c!J52 -> 0 | K191: =SA34c!K52 -> 0
A192: Coastal Infrastructure | C192: =SA34c!C62 -> 0 | D192: =SA34c!D62 -> 0 | E192: =SA34c!E62 -> 0 | F192: =SA34c!F62 -> 0 | G192: =SA34c!G62 -> 0 | H192: =SA34c!H62 -> 0 | I192: =SA34c!I62 -> 0 | J192: =SA34c!J62 -> 0 | K192: =SA34c!K62 -> 0
A193: Information and Communication Infrastructure | C193: =SA34c!C68 -> 0 | D193: =SA34c!D68 -> 0 | E193: =SA34c!E68 -> 0 | F193: =SA34c!F68 -> 0 | G193: =SA34c!G68 -> 0 | H193: =SA34c!H68 -> 0 | I193: =SA34c!I68 -> 0 | J193: =SA34c!J68 -> 0 | K193: =SA34c!K68 -> 0
A194: Infrastructure | C194: =SUM(C185:C193) -> 95652543.94 | D194: =SUM(D185:D193) -> 104411783 | E194: 137140474.1 | F194: 108102767 | G194: 64394710 | H194: 64394710 | I194: 43243352 | J194: 132365560 | K194: 150395269
A195: Community Facilities | C195: =SA34c!C75 -> 0 | D195: =SA34c!D75 -> 0 | E195: =SA34c!E75 -> 0 | F195: =SA34c!F75 -> 0 | G195: =SA34c!G75 -> 0 | H195: =SA34c!H75 -> 0 | I195: =SA34c!I75 -> 0 | J195: =SA34c!J75 -> 0 | K195: =SA34c!K75 -> 0
A196: Sport and Recreation Facilities | C196: =SA34c!C98 -> 0 | D196: =SA34c!D98 -> 0 | E196: =SA34c!E98 -> 0 | F196: =SA34c!F98 -> 0 | G196: =SA34c!G98 -> 0 | H196: =SA34c!H98 -> 0 | I196: =SA34c!I98 -> 0 | J196: =SA34c!J98 -> 0 | K196: =SA34c!K98 -> 0
A197: Community Assets | C197: =SUM(C195:C196) -> 0 | D197: 0 | E197: 0 | F197: 0 | G197: 0 | H197: 0 | I197: 0 | J197: 0 | K197: 0
A198: Heritage Assets | C198: =SA34c!C103 -> 0 | D198: =SA34c!D103 -> 0 | E198: =SA34c!E103 -> 0 | F198: =SA34c!F103 -> 400000 | G198: =SA34c!G103 -> 400000 | H198: =SA34c!H103 -> 400000 | I198: =SA34c!I103 -> 500000 | J198: =SA34c!J103 -> 522000 | K198: =SA34c!K103 -> 545549
A199: Revenue Generating | C199: =SA34c!C111 -> 0 | D199: =SA34c!D111 -> 0 | E199: =SA34c!E111 -> 0 | F199: =SA34c!F111 -> 0 | G199: =SA34c!G111 -> 0 | H199: =SA34c!H111 -> 0 | I199: =SA34c!I111 -> 0 | J199: =SA34c!J111 -> 0 | K199: =SA34c!K111 -> 0
A200: Non-revenue Generating | C200: =SA34c!C114 -> 0 | D200: =SA34c!D114 -> 0 | E200: =SA34c!E114 -> 0 | F200: =SA34c!F114 -> 0 | G200: =SA34c!G114 -> 0 | H200: =SA34c!H114 -> 0 | I200: =SA34c!I114 -> 0 | J200: =SA34c!J114 -> 0 | K200: =SA34c!K114 -> 0
A201: Investment properties | C201: =SUM(C199:C200) -> 0 | D201: 0 | E201: 0 | F201: 0 | G201: 0 | H201: 0 | I201: 0 | J201: 0 | K201: 0
A202: Operational Buildings | C202: =SA34c!C119 -> 280058.62 | D202: =SA34c!D119 -> 194835.04 | E202: =SA34c!E119 -> 192989.31 | F202: =SA34c!F119 -> 2080000 | G202: =SA34c!G119 -> 2180000 | H202: =SA34c!H119 -> 2180000 | I202: =SA34c!I119 -> 3057940 | J202: =SA34c!J119 -> 3473166 | K202: =SA34c!K119 -> 3589275
A203: Housing | C203: =SA34c!C131 -> 0 | D203: =SA34c!D131 -> 0 | E203: =SA34c!E131 -> 0 | F203: =SA34c!F131 -> 0 | G203: =SA34c!G131 -> 0 | H203: =SA34c!H131 -> 0 | I203: =SA34c!I131 -> 0 | J203: =SA34c!J131 -> 0 | K203: =SA34c!K131 -> 0
A204: Other Assets | C204: =SUM(C202:C203) -> 280058.62 | D204: 194835.04 | E204: 192989.31 | F204: 2080000 | G204: 2180000 | H204: 2180000 | I204: 3057940 | J204: 3473166 | K204: 3589275
A205: Biological or Cultivated Assets | C205: =SA34c!C136 -> 0 | D205: =SA34c!D136 -> 0 | E205: =SA34c!E136 -> 0 | F205: =SA34c!F136 -> 0 | G205: =SA34c!G136 -> 0 | H205: =SA34c!H136 -> 0 | I205: =SA34c!I136 -> 0 | J205: =SA34c!J136 -> 0 | K205: =SA34c!K136 -> 0
A206: Servitudes | C206: =SA34c!C140 -> 0 | D206: =SA34c!D140 -> 0 | E206: =SA34c!E140 -> 0 | F206: =SA34c!F140 -> 0 | G206: =SA34c!G140 -> 0 | H206: =SA34c!H140 -> 0 | I206: =SA34c!I140 -> 0 | J206: =SA34c!J140 -> 0 | K206: =SA34c!K140 -> 0
A207: Licences and Rights | C207: =SA34c!C141 -> 0 | D207: =SA34c!D141 -> 0 | E207: =SA34c!E141 -> 0 | F207: =SA34c!F141 -> 0 | G207: =SA34c!G141 -> 0 | H207: =SA34c!H141 -> 0 | I207: =SA34c!I141 -> 0 | J207: =SA34c!J141 -> 0 | K207: =SA34c!K141 -> 0
A208: Intangible Assets | C208: =SUM(C206:C207) -> 0 | D208: 0 | E208: 0 | F208: 0 | G208: 0 | H208: 0 | I208: 0 | J208: 0 | K208: 0
A209: Computer Equipment | C209: =SA34c!C149 -> 0 | D209: =SA34c!D149 -> 0 | E209: =SA34c!E149 -> 14995 | F209: =SA34c!F149 -> 104000 | G209: =SA34c!G149 -> 604000 | H209: =SA34c!H149 -> 604000 | I209: =SA34c!I149 -> 636012 | J209: =SA34c!J149 -> 667177 | K209: =SA34c!K149 -> 698534
A210: Furniture and Office Equipment | C210: =SA34c!C152 -> 0 | D210: =SA34c!D152 -> 0 | E210: =SA34c!E152 -> 0 | F210: =SA34c!F152 -> 0 | G210: =SA34c!G152 -> 2000000 | H210: =SA34c!H152 -> 2000000 | I210: =SA34c!I152 -> 2106000 | J210: =SA34c!J152 -> 2209194 | K210: =SA34c!K152 -> 2313026
A211: Machinery and Equipment | C211: =SA34c!C155 -> 608.24 | D211: =SA34c!D155 -> -589284.44 | E211: =SA34c!E155 -> 303.48 | F211: =SA34c!F155 -> 9065579 | G211: =SA34c!G155 -> 8065579 | H211: =SA34c!H155 -> 8065579 | I211: =SA34c!I155 -> 9668555 | J211: =SA34c!J155 -> 10114306 | K211: =SA34c!K155 -> 10579912
A212: Transport Assets | C212: =SA34c!C158 -> 3372723.04 | D212: =SA34c!D158 -> 1282737.86 | E212: =SA34c!E158 -> 4387765.66 | F212: =SA34c!F158 -> 3300000 | G212: =SA34c!G158 -> 6300000 | H212: =SA34c!H158 -> 6300000 | I212: =SA34c!I158 -> 9500000 | J212: =SA34c!J158 -> 10000000 | K212: =SA34c!K158 -> 11200000
A213: Land | C213: =SA34c!C161 -> 0 | D213: =SA34c!D161 -> 0 | E213: =SA34c!E161 -> 0 | F213: =SA34c!F161 -> 0 | G213: =SA34c!G161 -> 0 | H213: =SA34c!H161 -> 0 | I213: =SA34c!I161 -> 0 | J213: =SA34c!J161 -> 0 | K213: =SA34c!K161 -> 0
A214: Zoo's, Marine and Non-biological Animals | C214: =SA34c!C164 -> 0 | D214: =SA34c!D164 -> 0 | E214: =SA34c!E164 -> 0 | F214: =SA34c!F164 -> 0 | G214: =SA34c!G164 -> 0 | H214: =SA34c!H164 -> 0 | I214: =SA34c!I164 -> 0 | J214: =SA34c!J164 -> 0 | K214: =SA34c!K164 -> 0
A215: Mature | C215: =SA34c!C168 -> 0 | D215: =SA34c!D168 -> 0 | E215: =SA34c!E168 -> 0 | F215: =SA34c!F168 -> 0 | G215: =SA34c!G168 -> 0 | H215: =SA34c!H168 -> 0 | I215: =SA34c!I168 -> 0 | J215: =SA34c!J168 -> 0 | K215: =SA34c!K168 -> 0
... 16 more rows

Sheet A10-SerDel
A1: =muni&" - "&Approve10 -> DC47 Sekhukhune - Table A10 Basic service delivery measurement
A2: =desc -> Description | B2: =head27 -> Ref | C2: =head1b -> 2019/20 | D2: =head1A -> 2020/21 | E2: =Head1 -> 2021/22 | F2: =Head2 -> Current Year 2022/23 | I2: =Head3 -> 2023/24 Medium Term Revenue & Expenditure Framework
C3: =Head5A -> Outcome | D3: =Head5A -> Outcome | E3: =Head5A -> Outcome | F3: =Head6 -> Original Budget | G3: =Head7 -> Adjusted Budget | H3: =Head8 -> Full Year Forecast | I3: =Head9 -> Budget Year 2023/24 | J3: =Head10 -> Budget Year +1 2024/25 | K3: =Head11 -> Budget Year +2 2025/26
A4: Household service targets | B4: 1
A5: Water:
A6: Piped water inside dwelling | C6: ='SA9'!E67 -> 0 | D6: ='SA9'!F67 -> 0 | E6: ='SA9'!G67 -> 0 | F6: ='SA9'!H67 -> 15000 | G6: ='SA9'!I67 -> 15000 | H6: ='SA9'!J67 -> 15000 | I6: ='SA9'!K67 -> 20000 | J6: ='SA9'!L67 -> 0 | K6: ='SA9'!M67 -> 0
A7: Piped water inside yard (but not in dwelling) | C7: ='SA9'!E68 -> 0 | D7: ='SA9'!F68 -> 0 | E7: ='SA9'!G68 -> 0 | F7: ='SA9'!H68 -> 10000 | G7: ='SA9'!I68 -> 10000 | H7: ='SA9'!J68 -> 10000 | I7: ='SA9'!K68 -> 15000 | J7: ='SA9'!L68 -> 0 | K7: ='SA9'!M68 -> 0
A8: Using public tap (at least min.service level) | B8: 2 | C8: ='SA9'!E69 -> 0 | D8: ='SA9'!F69 -> 0 | E8: ='SA9'!G69 -> 0 | F8: ='SA9'!H69 -> 457276 | G8: ='SA9'!I69 -> 457276 | H8: ='SA9'!J69 -> 457276 | I8: ='SA9'!K69 -> 469235 | J8: ='SA9'!L69 -> 500880 | K8: ='SA9'!M69 -> 0
A9: Other water supply (at least min.service level) | B9: 4 | C9: ='SA9'!E70 -> 0 | D9: ='SA9'!F70 -> 0 | E9: ='SA9'!G70 -> 0 | F9: ='SA9'!H70 -> 98722 | G9: ='SA9'!I70 -> 98722 | H9: ='SA9'!J70 -> 98722 | I9: ='SA9'!K70 -> 119597 | J9: ='SA9'!L70 -> 146028 | K9: ='SA9'!M70 -> 0
A10: Minimum Service Level and Above sub-total | C10: =SUM(C6:C9) -> 0 | D10: =SUM(D6:D9) -> 0 | E10: 0 | F10: 580998 | G10: 580998 | H10: 580998 | I10: 623832 | J10: 646908 | K10: 0
A11: Using public tap (< min.service level) | B11: 3 | C11: ='SA9'!E72 -> 0 | D11: ='SA9'!F72 -> 0 | E11: ='SA9'!G72 -> 0 | F11: ='SA9'!H72 -> 0 | G11: ='SA9'!I72 -> 0 | H11: ='SA9'!J72 -> 0 | I11: ='SA9'!K72 -> 0 | J11: ='SA9'!L72 -> 0 | K11: ='SA9'!M72 -> 0
A12: Other water supply (< min.service level) | B12: =B9 -> 4 | C12: ='SA9'!E73 -> 0 | D12: ='SA9'!F73 -> 0 | E12: ='SA9'!G73 -> 0 | F12: ='SA9'!H73 -> 25000 | G12: ='SA9'!I73 -> 25000 | H12: ='SA9'!J73 -> 25000 | I12: ='SA9'!K73 -> 10000 | J12: ='SA9'!L73 -> 0 | K12: ='SA9'!M73 -> 0
A13: No water supply | C13: ='SA9'!E74 -> 0 | D13: ='SA9'!F74 -> 0 | E13: ='SA9'!G74 -> 0 | F13: ='SA9'!H74 -> 25000 | G13: ='SA9'!I74 -> 25000 | H13: ='SA9'!J74 -> 25000 | I13: ='SA9'!K74 -> 5000 | J13: ='SA9'!L74 -> 0 | K13: ='SA9'!M74 -> 0
A14: Below Minimum Service Level sub-total | C14: =SUM(C11:C13) -> 0 | D14: =SUM(D11:D13) -> 0 | E14: 0 | F14: 50000 | G14: 50000 | H14: 50000 | I14: 15000 | J14: 0 | K14: 0
A15: Total number of households | B15: 5 | C15: =C10+C14 -> 0 | D15: =D10+D14 -> 0 | E15: 0 | F15: 630998 | G15: 630998 | H15: 630998 | I15: 638832 | J15: 646908 | K15: 0
A16: Sanitation/sewerage:
A17: Flush toilet (connected to sewerage) | C17: ='SA9'!E78 -> 0 | D17: ='SA9'!F78 -> 0 | E17: ='SA9'!G78 -> 0 | F17: ='SA9'!H78 -> 0 | G17: ='SA9'!I78 -> 0 | H17: ='SA9'!J78 -> 0 | I17: ='SA9'!K78 -> 0 | J17: ='SA9'!L78 -> 0 | K17: ='SA9'!M78 -> 0
A18: Flush toilet (with septic tank) | C18: ='SA9'!E79 -> 0 | D18: ='SA9'!F79 -> 0 | E18: ='SA9'!G79 -> 0 | F18: ='SA9'!H79 -> 10000 | G18: ='SA9'!I79 -> 10000 | H18: ='SA9'!J79 -> 10000 | I18: ='SA9'!K79 -> 15000 | J18: ='SA9'!L79 -> 20000 | K18: ='SA9'!M79 -> 0
A19: Chemical toilet | C19: ='SA9'!E80 -> 0 | D19: ='SA9'!F80 -> 0 | E19: ='SA9'!G80 -> 0 | F19: ='SA9'!H80 -> 0 | G19: ='SA9'!I80 -> 0 | H19: ='SA9'!J80 -> 0 | I19: ='SA9'!K80 -> 0 | J19: ='SA9'!L80 -> 0 | K19: ='SA9'!M80 -> 0
A20: Pit toilet (ventilated) | C20: ='SA9'!E81 -> 0 | D20: ='SA9'!F81 -> 0 | E20: ='SA9'!G81 -> 0 | F20: ='SA9'!H81 -> 48000 | G20: ='SA9'!I81 -> 48000 | H20: ='SA9'!J81 -> 48000 | I20: ='SA9'!K81 -> 48000 | J20: ='SA9'!L81 -> 0 | K20: ='SA9'!M81 -> 0
A21: Other toilet provisions (> min.service level) | C21: ='SA9'!E82 -> 0 | D21: ='SA9'!F82 -> 0 | E21: ='SA9'!G82 -> 0 | F21: ='SA9'!H82 -> 0 | G21: ='SA9'!I82 -> 0 | H21: ='SA9'!J82 -> 0 | I21: ='SA9'!K82 -> 0 | J21: ='SA9'!L82 -> 0 | K21: ='SA9'!M82 -> 0
A22: =$A$10 -> Minimum Service Level and Above sub-total | C22: =SUM(C17:C21) -> 0 | D22: =SUM(D17:D21) -> 0 | E22: 0 | F22: 58000 | G22: 58000 | H22: 58000 | I22: 63000 | J22: 20000 | K22: 0
A23: Bucket toilet | C23: ='SA9'!E84 -> 0 | D23: ='SA9'!F84 -> 0 | E23: ='SA9'!G84 -> 0 | F23: ='SA9'!H84 -> 0 | G23: ='SA9'!I84 -> 0 | H23: ='SA9'!J84 -> 0 | I23: ='SA9'!K84 -> 0 | J23: ='SA9'!L84 -> 0 | K23: ='SA9'!M84 -> 0
A24: Other toilet provisions (< min.service level) | C24: ='SA9'!E85 -> 0 | D24: ='SA9'!F85 -> 0 | E24: ='SA9'!G85 -> 0 | F24: ='SA9'!H85 -> 5000 | G24: ='SA9'!I85 -> 5000 | H24: ='SA9'!J85 -> 5000 | I24: ='SA9'!K85 -> 10000 | J24: ='SA9'!L85 -> 15000 | K24: ='SA9'!M85 -> 0
A25: No toilet provisions | C25: ='SA9'!E86 -> 0 | D25: ='SA9'!F86 -> 0 | E25: ='SA9'!G86 -> 0 | F25: ='SA9'!H86 -> 0 | G25: ='SA9'!I86 -> 0 | H25: ='SA9'!J86 -> 0 | I25: ='SA9'!K86 -> 0 | J25: ='SA9'!L86 -> 0 | K25: ='SA9'!M86 -> 0
A26: =$A$14 -> Below Minimum Service Level sub-total | C26: =SUM(C23:C25) -> 0 | D26: =SUM(D23:D25) -> 0 | E26: 0 | F26: 5000 | G26: 5000 | H26: 5000 | I26: 10000 | J26: 15000 | K26: 0
A27: =$A$15 -> Total number of households | B27: =$B$15 -> 5 | C27: =C22+C26 -> 0 | D27: =D22+D26 -> 0 | E27: 0 | F27: 63000 | G27: 63000 | H27: 63000 | I27: 73000 | J27: 35000 | K27: 0
A28: Energy:
A29: Electricity (at least min.service level) | C29: ='SA9'!E90 -> 0 | D29: ='SA9'!F90 -> 0 | E29: ='SA9'!G90 -> 0 | F29: ='SA9'!H90 -> 0 | G29: ='SA9'!I90 -> 0 | H29: ='SA9'!J90 -> 0 | I29: ='SA9'!K90 -> 0 | J29: ='SA9'!L90 -> 0 | K29: ='SA9'!M90 -> 0
A30: Electricity - prepaid (min.service level) | C30: ='SA9'!E91 -> 0 | D30: ='SA9'!F91 -> 0 | E30: ='SA9'!G91 -> 0 | F30: ='SA9'!H91 -> 0 | G30: ='SA9'!I91 -> 0 | H30: ='SA9'!J91 -> 0 | I30: ='SA9'!K91 -> 0 | J30: ='SA9'!L91 -> 0 | K30: ='SA9'!M91 -> 0
A31: =$A$10 -> Minimum Service Level and Above sub-total | C31: =SUM(C29:C30) -> 0 | D31: =SUM(D29:D30) -> 0 | E31: 0 | F31: 0 | G31: 0 | H31: 0 | I31: 0 | J31: 0 | K31: 0
A32: Electricity (< min.service level) | C32: ='SA9'!E93 -> 0 | D32: ='SA9'!F93 -> 0 | E32: ='SA9'!G93 -> 0 | F32: ='SA9'!H93 -> 0 | G32: ='SA9'!I93 -> 0 | H32: ='SA9'!J93 -> 0 | I32: ='SA9'!K93 -> 0 | J32: ='SA9'!L93 -> 0 | K32: ='SA9'!M93 -> 0
A33: Electricity - prepaid (< min. service level) | C33: ='SA9'!E94 -> 0 | D33: ='SA9'!F94 -> 0 | E33: ='SA9'!G94 -> 0 | F33: ='SA9'!H94 -> 0 | G33: ='SA9'!I94 -> 0 | H33: ='SA9'!J94 -> 0 | I33: ='SA9'!K94 -> 0 | J33: ='SA9'!L94 -> 0 | K33: ='SA9'!M94 -> 0
A34: Other energy sources | C34: ='SA9'!E95 -> 0 | D34: ='SA9'!F95 -> 0 | E34: ='SA9'!G95 -> 0 | F34: ='SA9'!H95 -> 0 | G34: ='SA9'!I95 -> 0 | H34: ='SA9'!J95 -> 0 | I34: ='SA9'!K95 -> 0 | J34: ='SA9'!L95 -> 0 | K34: ='SA9'!M95 -> 0
A35: =$A$14 -> Below Minimum Service Level sub-total | C35: =SUM(C32:C34) -> 0 | D35: =SUM(D32:D34) -> 0 | E35: 0 | F35: 0 | G35: 0 | H35: 0 | I35: 0 | J35: 0 | K35: 0
A36: =$A$15 -> Total number of households | B36: =$B$15 -> 5 | C36: =C31+C35 -> 0 | D36: =D31+D35 -> 0 | E36: 0 | F36: 0 | G36: 0 | H36: 0 | I36: 0 | J36: 0 | K36: 0
A37: Refuse:
A38: Removed at least once a week | C38: ='SA9'!E99 -> 0 | D38: ='SA9'!F99 -> 0 | E38: ='SA9'!G99 -> 0 | F38: ='SA9'!H99 -> 0 | G38: ='SA9'!I99 -> 0 | H38: ='SA9'!J99 -> 0 | I38: ='SA9'!K99 -> 0 | J38: ='SA9'!L99 -> 0 | K38: ='SA9'!M99 -> 0
A39: =$A$10 -> Minimum Service Level and Above sub-total | C39: =SUM(C38) -> 0 | D39: =SUM(D38) -> 0 | E39: 0 | F39: 0 | G39: 0 | H39: 0 | I39: 0 | J39: 0 | K39: 0
A40: Removed less frequently than once a week | C40: ='SA9'!E101 -> 0 | D40: ='SA9'!F101 -> 0 | E40: ='SA9'!G101 -> 0 | F40: ='SA9'!H101 -> 0 | G40: ='SA9'!I101 -> 0 | H40: ='SA9'!J101 -> 0 | I40: ='SA9'!K101 -> 0 | J40: ='SA9'!L101 -> 0 | K40: ='SA9'!M101 -> 0
A41: Using communal refuse dump | C41: ='SA9'!E102 -> 0 | D41: ='SA9'!F102 -> 0 | E41: ='SA9'!G102 -> 0 | F41: ='SA9'!H102 -> 0 | G41: ='SA9'!I102 -> 0 | H41: ='SA9'!J102 -> 0 | I41: ='SA9'!K102 -> 0 | J41: ='SA9'!L102 -> 0 | K41: ='SA9'!M102 -> 0
A42: Using own refuse dump | C42: ='SA9'!E103 -> 0 | D42: ='SA9'!F103 -> 0 | E42: ='SA9'!G103 -> 0 | F42: ='SA9'!H103 -> 0 | G42: ='SA9'!I103 -> 0 | H42: ='SA9'!J103 -> 0 | I42: ='SA9'!K103 -> 0 | J42: ='SA9'!L103 -> 0 | K42: ='SA9'!M103 -> 0
A43: Other rubbish disposal | C43: ='SA9'!E104 -> 0 | D43: ='SA9'!F104 -> 0 | E43: ='SA9'!G104 -> 0 | F43: ='SA9'!H104 -> 0 | G43: ='SA9'!I104 -> 0 | H43: ='SA9'!J104 -> 0 | I43: ='SA9'!K104 -> 0 | J43: ='SA9'!L104 -> 0 | K43: ='SA9'!M104 -> 0
A44: No rubbish disposal | C44: ='SA9'!E105 -> 0 | D44: ='SA9'!F105 -> 0 | E44: ='SA9'!G105 -> 0 | F44: ='SA9'!H105 -> 0 | G44: ='SA9'!I105 -> 0 | H44: ='SA9'!J105 -> 0 | I44: ='SA9'!K105 -> 0 | J44: ='SA9'!L105 -> 0 | K44: ='SA9'!M105 -> 0
A45: =$A$14 -> Below Minimum Service Level sub-total | C45: =SUM(C40:C44) -> 0 | D45: 0 | E45: 0 | F45: 0 | G45: 0 | H45: 0 | I45: 0 | J45: 0 | K45: 0
A46: =$A$15 -> Total number of households | B46: =$B$15 -> 5 | C46: =C39+C45 -> 0 | D46: =D39+D45 -> 0 | E46: 0 | F46: 0 | G46: 0 | H46: 0 | I46: 0 | J46: 0 | K46: 0
A48: Households receiving Free Basic Service | B48: 7
A49: Water (6 kilolitres per household per month) | C49: ='SA9'!E263 -> 0 | D49: ='SA9'!F263 -> 43124 | E49: ='SA9'!G263 -> 0 | F49: ='SA9'!H263 -> 47436 | G49: ='SA9'!I263 -> 47436 | H49: ='SA9'!J263 -> 47436 | I49: ='SA9'!K263 -> 52180 | J49: ='SA9'!L263 -> 57398 | K49: ='SA9'!M263 -> 0
A50: Sanitation (free minimum level service) | C50: ='SA9'!E275 -> 0 | D50: ='SA9'!F275 -> 34601 | E50: ='SA9'!G275 -> 0 | F50: ='SA9'!H275 -> 41867 | G50: ='SA9'!I275 -> 41867 | H50: ='SA9'!J275 -> 41867 | I50: ='SA9'!K275 -> 46054 | J50: ='SA9'!L275 -> 50660 | K50: ='SA9'!M275 -> 0
A51: Electricity/other energy (50kwh per household per month) | C51: ='SA9'!E251 -> 0 | D51: ='SA9'!F251 -> 0 | E51: ='SA9'!G251 -> 0 | F51: ='SA9'!H251 -> 0 | G51: ='SA9'!I251 -> 0 | H51: ='SA9'!J251 -> 0 | I51: ='SA9'!K251 -> 0 | J51: ='SA9'!L251 -> 0 | K51: ='SA9'!M251 -> 0
A52: Refuse (removed at least once a week) | C52: ='SA9'!E287 -> 0 | D52: ='SA9'!F287 -> 0 | E52: ='SA9'!G287 -> 0 | F52: ='SA9'!H287 -> 0 | G52: ='SA9'!I287 -> 0 | H52: ='SA9'!J287 -> 0 | I52: ='SA9'!K287 -> 0 | J52: ='SA9'!L287 -> 0 | K52: ='SA9'!M287 -> 0
A53: Informal Settlements | C53: ='SA9'!E253+'SA9'!E255+'SA9'!E257+'SA9'!E259+'SA9'!E265+'SA9'!E2267+'SA9'!E269+'SA9'!E271+'SA9'!E277+'SA9'!E279+'SA9'!E281+'SA9'!E283+'SA9'!E289+'SA9'!E291+'SA9'!E293+'SA9'!E295 -> 0 | D53: ='SA9'!F253+'SA9'!F255+'SA9'!F257+'SA9'!F259+'SA9'!F265+'SA9'!F2267+'SA9'!F269+'SA9'!F271+'SA9'!F277+'SA9'!F279+'SA9'!F281+'SA9'!F283+'SA9'!F289+'SA9'!F291+'SA9'!F293+'SA9'!F295 -> 0 | E53: ='SA9'!G253+'SA9'!G255+'SA9'!G257+'SA9'!G259+'SA9'!G265+'SA9'!G2267+'SA9'!G269+'SA9'!G271+'SA9'!G277+'SA9'!G279+'SA9'!G281+'SA9'!G283+'SA9'!G289+'SA9'!G291+'SA9'!G293+'SA9'!G295 -> 0 | F53: ='SA9'!H253+'SA9'!H255+'SA9'!H257+'SA9'!H259+'SA9'!H265+'SA9'!H2267+'SA9'!H269+'SA9'!H271+'SA9'!H277+'SA9'!H279+'SA9'!H281+'SA9'!H283+'SA9'!H289+'SA9'!H291+'SA9'!H293+'SA9'!H295 -> 0 | G53: ='SA9'!I253+'SA9'!I255+'SA9'!I257+'SA9'!I259+'SA9'!I265+'SA9'!I2267+'SA9'!I269+'SA9'!I271+'SA9'!I277+'SA9'!I279+'SA9'!I281+'SA9'!I283+'SA9'!I289+'SA9'!I291+'SA9'!I293+'SA9'!I295 -> 0 | H53: ='SA9'!J253+'SA9'!J255+'SA9'!J257+'SA9'!J259+'SA9'!J265+'SA9'!J2267+'SA9'!J269+'SA9'!J271+'SA9'!J277+'SA9'!J279+'SA9'!J281+'SA9'!J283+'SA9'!J289+'SA9'!J291+'SA9'!J293+'SA9'!J295 -> 0 | I53: ='SA9'!K253+'SA9'!K255+'SA9'!K257+'SA9'!K259+'SA9'!K265+'SA9'!K2267+'SA9'!K269+'SA9'!K271+'SA9'!K277+'SA9'!K279+'SA9'!K281+'SA9'!K283+'SA9'!K289+'SA9'!K291+'SA9'!K293+'SA9'!K295 -> 0 | J53: ='SA9'!L253+'SA9'!L255+'SA9'!L257+'SA9'!L259+'SA9'!L265+'SA9'!L2267+'SA9'!L269+'SA9'!L271+'SA9'!L277+'SA9'!L279+'SA9'!L281+'SA9'!L283+'SA9'!L289+'SA9'!L291+'SA9'!L293+'SA9'!L295 -> 0 | K53: ='SA9'!M253+'SA9'!M255+'SA9'!M257+'SA9'!M259+'SA9'!M265+'SA9'!M2267+'SA9'!M269+'SA9'!M271+'SA9'!M277+'SA9'!M279+'SA9'!M281+'SA9'!M283+'SA9'!M289+'SA9'!M291+'SA9'!M293+'SA9'!M295 -> 0
A54: Cost of Free Basic Services provided - Formal Settlements (R'000)
A55: Water (6 kilolitres per indigent household per month) | C55: ='SA1'!C22 -> 0 | D55: ='SA1'!D22 -> 0 | E55: ='SA1'!E22 -> 0 | F55: ='SA1'!F22 -> 0 | G55: ='SA1'!G22 -> 0 | H55: ='SA1'!H22 -> 0 | I55: ='SA1'!J22 -> 0 | J55: ='SA1'!K22 -> 0 | K55: ='SA1'!L22 -> 0
A56: Sanitation (free sanitation service to indigent households) | C56: ='SA1'!C28 -> 0 | D56: ='SA1'!D28 -> 0 | E56: ='SA1'!E28 -> 0 | F56: ='SA1'!F28 -> 0 | G56: ='SA1'!G28 -> 0 | H56: ='SA1'!H28 -> 0 | I56: ='SA1'!J28 -> 0 | J56: ='SA1'!K28 -> 0 | K56: ='SA1'!L28 -> 0
A57: Electricity/other energy (50kwh per indigent household per month) | C57: ='SA1'!C16 -> 0 | D57: ='SA1'!D16 -> 0 | E57: ='SA1'!E16 -> 0 | F57: ='SA1'!F16 -> 0 | G57: ='SA1'!G16 -> 0 | H57: ='SA1'!H16 -> 0 | I57: ='SA1'!J16 -> 0 | J57: ='SA1'!K16 -> 0 | K57: ='SA1'!L16 -> 0
A58: Refuse (removed once a week for indigent households) | C58: ='SA1'!C35 -> 0 | D58: ='SA1'!D35 -> 0 | E58: ='SA1'!E35 -> 0 | F58: ='SA1'!F35 -> 0 | G58: ='SA1'!G35 -> 0 | H58: ='SA1'!H35 -> 0 | I58: ='SA1'!J35 -> 0 | J58: ='SA1'!K35 -> 0 | K58: ='SA1'!L35 -> 0
A59: Cost of Free Basic Services provided - Informal Formal Settlements (R'000) | C59: ='SA9'!E260+'SA9'!E272+'SA9'!E284+'SA9'!E296 -> 0 | D59: ='SA9'!F260+'SA9'!F272+'SA9'!F284+'SA9'!F296 -> 0 | E59: ='SA9'!G260+'SA9'!G272+'SA9'!G284+'SA9'!G296 -> 0 | F59: ='SA9'!H260+'SA9'!H272+'SA9'!H284+'SA9'!H296 -> 0 | G59: ='SA9'!I260+'SA9'!I272+'SA9'!I284+'SA9'!I296 -> 0 | H59: ='SA9'!J260+'SA9'!J272+'SA9'!J284+'SA9'!J296 -> 0 | I59: ='SA9'!K260+'SA9'!K272+'SA9'!K284+'SA9'!K296 -> 0 | J59: ='SA9'!L260+'SA9'!L272+'SA9'!L284+'SA9'!L296 -> 0 | K59: ='SA9'!M260+'SA9'!M272+'SA9'!M284+'SA9'!M296 -> 0
A60: Total cost of FBS provided | B60: 8 | C60: =SUM(C55:C59) -> 0 | D60: 0 | E60: 0 | F60: 0 | G60: 0 | H60: 0 | I60: 0 | J60: 0 | K60: 0
A62: Highest level of free service provided per household
A63: Property rates (R value threshold)
A64: Water (kilolitres per household per month) | C64: 0 | D64: 0 | E64: 0 | F64: 15000 | G64: 15000 | H64: 15000 | I64: 28000 | J64: 35000 | K64: 0
A65: Sanitation (kilolitres per household per month) | C65: 0 | D65: 0 | E65: 0 | F65: 10000 | G65: 10000 | H65: 10000 | I65: 15000 | J65: 20000 | K65: 0
A66: Sanitation (Rand per household per month) | C66: 0 | D66: 0 | E66: 0 | F66: 5000 | G66: 5000 | H66: 5000 | I66: 10000 | J66: 15000 | K66: 0
A67: Electricity (kwh per household per month)
A68: Refuse (average litres per week)
A69: Revenue cost of subsidised services provided (R'000) | B69: 9
A70: Property rates (tariff adjustment) ( impermissable values per section 17 of MPRA)
A71: Property rates exemptions, reductions and rebates and impermissable values in excess of section 17 of MPRA) | C71: ='SA1'!C9 -> 0 | D71: ='SA1'!D9 -> 0 | E71: ='SA1'!E9 -> 0 | F71: ='SA1'!F9 -> 0 | G71: ='SA1'!G9 -> 0 | H71: ='SA1'!H9 -> 0 | I71: ='SA1'!J9 -> 0 | J71: ='SA1'!K9 -> 0 | K71: ='SA1'!L9 -> 0
A72: Water (in excess of 6 kilolitres per indigent household per month) | C72: ='SA1'!C21 -> 0 | D72: ='SA1'!D21 -> 0 | E72: ='SA1'!E21 -> 0 | F72: ='SA1'!F21 -> 0 | G72: ='SA1'!G21 -> 0 | H72: ='SA1'!H21 -> 0 | I72: ='SA1'!J21 -> 0 | J72: ='SA1'!K21 -> 0 | K72: ='SA1'!L21 -> 0
A73: Sanitation (in excess of free sanitation service to indigent households) | C73: ='SA1'!C27 -> 0 | D73: ='SA1'!D27 -> 0 | E73: ='SA1'!E27 -> 0 | F73: ='SA1'!F27 -> 0 | G73: ='SA1'!G27 -> 0 | H73: ='SA1'!H27 -> 0 | I73: ='SA1'!J27 -> 0 | J73: ='SA1'!K27 -> 0 | K73: ='SA1'!L27 -> 0
A74: Electricity/other energy (in excess of 50 kwh per indigent household per month) | C74: ='SA1'!C15 -> 0 | D74: ='SA1'!D15 -> 0 | E74: ='SA1'!E15 -> 0 | F74: ='SA1'!F15 -> 0 | G74: ='SA1'!G15 -> 0 | H74: ='SA1'!H15 -> 0 | I74: ='SA1'!J15 -> 0 | J74: ='SA1'!K15 -> 0 | K74: ='SA1'!L15 -> 0
A75: Refuse (in excess of one removal a week for indigent households) | C75: ='SA1'!C34 -> 0 | D75: ='SA1'!D34 -> 0 | E75: ='SA1'!E34 -> 0 | F75: ='SA1'!F34 -> 0 | G75: ='SA1'!G34 -> 0 | H75: ='SA1'!H34 -> 0 | I75: ='SA1'!J34 -> 0 | J75: ='SA1'!K34 -> 0 | K75: ='SA1'!L34 -> 0
A76: Municipal Housing - rental rebates
A77: Housing - top structure subsidies | B77: 6
A78: Other
A79: Total revenue cost of subsidised services provided | C79: =SUM(C70:C78) -> 0 | D79: =SUM(D70:D78) -> 0 | E79: 0 | F79: 0 | G79: 0 | H79: 0 | I79: 0 | J79: =SUM(J70:J78) -> 0 | K79: =SUM(K70:K78) -> 0
A80: =head27a -> References
A81: 1. Include services provided by another entity; e.g. Eskom
A82: 2. Stand distance <= 200m from dwelling
A83: 3. Stand distance > 200m from dwelling
A84: 4. Borehole, spring, rain-water tank etc.
A85: 5. Must agree to total number of households in municipal area (informal settlements receiving services must be included)
A86: 6. Include value of subsidy provided by municipality above provincial subsidy level
A87: 7. Show number of households receiving at least these levels of services completely free (informal settlements must be included)
A88: 8. Must reflect the cost to the municipality of providing the Free Basic Service
A89: 9. Reflect the cost of free or subsidised services in excess to the National policy that are not funded from the Free Basic Services component of the Equitable Share

Sheet SA1
A1: =muni&" - "&TableA1 -> DC47 Sekhukhune - Supporting Table SA1 Supportinging detail to 'Budgeted Financial Performance'
A2: =desc -> Description | B2: =head27 -> Ref | C2: =head1b -> 2019/20 | D2: =head1A -> 2020/21 | E2: =Head1 -> 2021/22 | F2: =Head2 -> Current Year 2022/23 | J2: =Head3 -> 2023/24 Medium Term Revenue & Expenditure Framework
C3: =Head5 -> Audited Outcome | D3: =Head5 -> Audited Outcome | E3: =Head5 -> Audited Outcome | F3: =Head6 -> Original Budget | G3: =Head7 -> Adjusted Budget | H3: =Head8 -> Full Year Forecast | I3: =Head5b -> Pre-audit outcome | J3: =Head9 -> Budget Year 2023/24 | K3: =Head10 -> Budget Year +1 2024/25 | L3: =Head11 -> Budget Year +2 2025/26
A4: R thousand
A5: REVENUE ITEMS:
A6: Non-exchange revenue by source
A7: ='A4-FinPerf RE'!A5 -> Exchange Revenue | B7: 6
A8: Total Property Rates
A9: Less Revenue Foregone (exemptions, reductions and rebates and impermissable values in excess of section 17 of MPRA)
A10: Net Property Rates | C10: =C8-C9 -> 0 | D10: =D8-D9 -> 0 | E10: 0 | F10: 0 | G10: 0 | H10: 0 | I10: 0 | J10: 0 | K10: 0 | L10: 0
A12: Exchange revenue service charges
A13: ='A4-FinPerf RE'!A6 -> Service charges - Electricity | B13: 6
A14: ="Total "&A13 -> Total Service charges - Electricity | C14: 0 | D14: 0 | E14: 0 | F14: 0 | G14: 0 | H14: 0 | I14: 0 | J14: 0 | K14: 0 | L14: 0
A15: Less Revenue Foregone (in excess of 50 kwh per indigent household per month)
A16: Less Cost of Free Basis Services (50 kwh per indigent household per month) | C16: ='SA9'!E250 -> 0 | D16: ='SA9'!F250 -> 0 | E16: ='SA9'!G250 -> 0 | F16: ='SA9'!H250 -> 0 | G16: ='SA9'!I250 -> 0 | H16: ='SA9'!J250 -> 0 | J16: ='SA9'!K250 -> 0 | K16: ='SA9'!L250 -> 0 | L16: ='SA9'!M250 -> 0
A17: ="Net "& A13 -> Net Service charges - Electricity | C17: =C14-C15-C16 -> 0 | D17: =D14-D15-D16 -> 0 | E17: 0 | F17: 0 | G17: 0 | H17: 0 | I17: 0 | J17: 0 | K17: 0 | L17: 0
A19: ='A4-FinPerf RE'!A7 -> Service charges - Water | B19: 6
A20: ="Total "&A19 -> Total Service charges - Water | C20: 81947083.02 | D20: 72887805.49 | E20: 80127622.54 | F20: 88833619 | G20: 88833619 | H20: 88833619 | I20: 65455879.51 | J20: 93541801 | K20: 98125349 | L20: 102737241
A21: Less Revenue Foregone (in excess of 6 kilolitres per indigent household per month)
A22: Less Cost of Free Basis Services (6 kilolitres per indigent household per month) | C22: ='SA9'!E262 -> 0 | D22: ='SA9'!F262 -> 0 | E22: ='SA9'!G262 -> 0 | F22: ='SA9'!H262 -> 0 | G22: ='SA9'!I262 -> 0 | H22: ='SA9'!J262 -> 0 | I22: 0 | J22: ='SA9'!K262 -> 0 | K22: ='SA9'!L262 -> 0 | L22: ='SA9'!M262 -> 0
A23: ="Net "& A19 -> Net Service charges - Water | C23: =C20-C21-C22 -> 81947083.02 | D23: =D20-D21-D22 -> 72887805.49 | E23: 80127622.54 | F23: 88833619 | G23: 88833619 | H23: 88833619 | I23: 65455879.51 | J23: 93541801 | K23: 98125349 | L23: 102737241
A25: ='A4-FinPerf RE'!A8 -> Service charges - Waste Water Management
A26: ="Total "&A25 -> Total Service charges - Waste Water Management | C26: 12893848.73 | D26: 12452564.61 | E26: 14085485.41 | F26: 14736395 | G26: 14736395 | H26: 14736395 | I26: 13331256.71 | J26: 15517425 | K26: 16277778 | L26: 17042834
A27: Less Revenue Foregone (in excess of free sanitation service to indigent households)
A28: Less Cost of Free Basis Services (free sanitation service to indigent households) | C28: ='SA9'!E274 -> 0 | D28: ='SA9'!F274 -> 0 | E28: ='SA9'!G274 -> 0 | F28: ='SA9'!H274 -> 0 | G28: ='SA9'!I274 -> 0 | H28: ='SA9'!J274 -> 0 | I28: 0 | J28: ='SA9'!K274 -> 0 | K28: ='SA9'!L274 -> 0 | L28: ='SA9'!M274 -> 0
A29: ="Net "& A25 -> Net Service charges - Waste Water Management | C29: =C26-C27-C28 -> 12893848.73 | D29: =D26-D27-D28 -> 12452564.61 | E29: 14085485.41 | F29: 14736395 | G29: 14736395 | H29: 14736395 | I29: 13331256.71 | J29: 15517425 | K29: 16277778 | L29: 17042834
A31: ='A4-FinPerf RE'!A9 -> Service charges - Waste Management | B31: 6
A32: Total refuse removal revenue
A33: Total landfill revenue
A34: Less Revenue Foregone (in excess of one removal a week to indigent households)
A35: Less Cost of Free Basis Services (removed once a week to indigent households) | C35: ='SA9'!E286 -> 0 | D35: ='SA9'!F286 -> 0 | E35: ='SA9'!G286 -> 0 | F35: ='SA9'!H286 -> 0 | G35: ='SA9'!I286 -> 0 | H35: ='SA9'!J286 -> 0 | J35: ='SA9'!K286 -> 0 | K35: ='SA9'!L286 -> 0 | L35: ='SA9'!M286 -> 0
A36: ="Net "& A31 -> Net Service charges - Waste Management | C36: =SUM(C32:C33)-C34-C35 -> 0 | D36: =SUM(D32:D33)-D34-D35 -> 0 | E36: 0 | F36: 0 | G36: 0 | H36: 0 | I36: 0 | J36: 0 | K36: 0 | L36: 0
A51: EXPENDITURE ITEMS:
A52: ='A4-FinPerf RE'!A34 -> Employee related costs
A53: Basic Salaries and Wages | B53: 2 | C53: 249440183.6 | D53: 259972377.1 | E53: 274052647.1 | F53: 334380115 | G53: 327200055 | H53: 327200055 | I53: 233541528.2 | J53: 334432006 | K53: 359582394 | L53: 376482768
A54: Pension and UIF Contributions | C54: 40754047.94 | D54: 42410164.07 | E54: 42019220.59 | F54: 45363285 | G54: 47208709 | H54: 47208709 | I54: 39784373.91 | J54: 49637000 | K54: 52069278 | L54: 54516532
A55: Medical Aid Contributions | C55: 13334088.16 | D55: 14030392.72 | E55: 13879215.32 | F55: 14427956 | G55: 15041956 | H55: 15041956 | I55: 13201921.36 | J55: 15192638 | K55: 15937078 | L55: 16686120
A56: Overtime | C56: 38100476.39 | D56: 34535102.52 | E56: 29708601.81 | F56: 25091363 | G56: 21156021 | H56: 21156021 | I56: 11448189.6 | J56: 19989819 | K56: 20969322 | L56: 21954879
A57: Performance Bonus | C57: 0 | D57: 0 | E57: 473751.91 | F57: 0 | G57: 100000 | H57: 100000 | I57: 104189.5 | J57: 0 | K57: 0 | L57: 0
A58: Motor Vehicle Allowance | C58: 27626484.87 | D58: 23944222.21 | E58: 24663455.08 | F58: 26364980 | G58: 28543311 | H58: 28543311 | I58: 26495922.87 | J58: 29012377 | K58: 30433984 | L58: 31864380
A59: Cellphone Allowance | C59: 1688462 | D59: 1632364 | E59: 1616894 | F59: 2017961 | G59: 2509891 | H59: 2509891 | I59: 1713125 | J59: 19212344 | K59: 11468868 | L59: 12007905
A60: Housing Allowances | C60: 2369844.31 | D60: 2273271.38 | E60: 2542485.64 | F60: 3437086 | G60: 3937100 | H60: 3937100 | I60: 2186280.52 | J60: 3671900 | K60: 3851824 | L60: 4032862
A61: Other benefits and allowances | C61: 11715096.69 | D61: 12728857.67 | E61: 5207706.05 | F61: 1681209 | G61: 1859029 | H61: 1859029 | I61: 863005.79 | J61: 1402457 | K61: 1471176 | L61: 1540324
A62: Payments in lieu of leave | C62: 3851637.03 | D62: 3097653.07 | E62: 741390.64 | F62: 5131809 | G62: 5131809 | H62: 5131809 | I62: 1985652.94 | J62: 4259040 | K62: 4467734 | L62: 4677716
A63: Long service awards | C63: 4159787.28 | D63: 2840400.56 | E63: 0.3 | F63: 1267848 | G63: 1367848 | H63: 1367848 | I63: 1348870.86 | J63: 1440345 | K63: 1510920 | L63: 1581934
A64: Post-retirement benefit obligations | B64: 4 | C64: -394293.66 | D64: 9023755.56 | E64: 5980954 | F64: 202263 | G64: 202263 | H64: 202263 | I64: 72684.22 | J64: 212983 | K64: 223419 | L64: 233920
A65: Entertainment | C65: 0 | D65: 0 | E65: 0 | F65: 0 | G65: 0 | H65: 0 | I65: 0 | J65: 0 | K65: 0 | L65: 0
A66: Scarcity | C66: 0 | D66: 0 | E66: 0 | F66: 0 | G66: 0 | H66: 0 | I66: 0 | J66: 0 | K66: 0 | L66: 0
A67: Acting and post related allowance | C67: 29112.07 | D67: 13156.95 | E67: 176299.69 | F67: 63021 | G67: 323021 | H67: 323021 | I67: 332986.09 | J67: 66361 | K67: 69613 | L67: 72885
A68: In kind benefits | C68: 0 | D68: 0 | E68: 0 | F68: 0 | G68: 0 | H68: 0 | I68: 0 | J68: 0 | K68: 0 | L68: 0
A69: sub-total | B69: 5 | C69: =SUM(C53:C68) -> 392674926.6 | D69: =SUM(D53:D68) -> 406501717.8 | E69: 401062622.2 | F69: 459428896 | G69: 454581013 | H69: 454581013 | I69: 333078730.9 | J69: 478529270 | K69: 502055610 | L69: 525652225
A70: Less: Employees costs capitalised to PPE | C70: -2547732.24 | D70: -6677586.7 | E70: 0 | F70: 0 | G70: 0 | H70: 0 | I70: 0 | J70: 0 | K70: 0 | L70: 0
A71: ="Total "&A52 -> Total Employee related costs | B71: 1 | C71: =C69-C70 -> 395222658.9 | D71: =D69-D70 -> 413179304.5 | E71: 401062622.2 | F71: 459428896 | G71: 454581013 | H71: 454581013 | I71: 333078730.9 | J71: 478529270 | K71: 502055610 | L71: 525652225
A78: ='A4-FinPerf RE'!A39 -> Depreciation and amortisation
A79: Depreciation of Property, Plant & Equipment | C79: 100599183.1 | D79: 94331435.81 | E79: 116366974.3 | F79: 106884864 | G79: 94814864 | H79: 94814864 | I79: 0 | J79: 99840051 | K79: 104732214 | L79: 109654628
A80: Lease amortisation | C80: 0 | D80: 0 | E80: 0 | F80: 0 | G80: 0 | H80: 0 | I80: 0 | J80: 0 | K80: 0 | L80: 0
A81: Capital asset impairment | C81: 21630741.24 | D81: -0.24 | E81: 0 | F81: 0 | G81: 0 | H81: 0 | I81: 0 | J81: 0 | K81: 0 | L81: 0
A83: ="Total "&LEFT(A78,35) -> Total Depreciation and amortisation | B83: 1 | C83: =SUM(C79:C81) -> 122229924.3 | D83: =SUM(D79:D81) -> 94331435.57 | E83: 116366974.3 | F83: 106884864 | G83: 94814864 | H83: 94814864 | I83: 0 | J83: 99840051 | K83: 104732214 | L83: 109654628
A85: Bulk purchases - electricity
A86: Electricity bulk purchases | C86: 0 | D86: 0 | E86: 0 | F86: 0 | G86: 0 | H86: 0 | I86: 0 | J86: 0 | K86: 0 | L86: 0
A88: Total bulk purchases | B88: 1 | C88: =SUM(C86:C87) -> 0 | D88: =SUM(D86:D87) -> 0 | E88: 0 | F88: 0 | G88: 0 | H88: 0 | I88: 0 | J88: 0 | K88: 0 | L88: 0
A90: Transfers and grants
A91: Cash transfers and grants | C91: ='SA21'!C32 -> 0 | D91: ='SA21'!D32 -> 0 | E91: ='SA21'!E32 -> 0 | F91: ='SA21'!F32 -> 0 | G91: ='SA21'!G32 -> 0 | H91: ='SA21'!H32 -> 0 | I91: ='SA21'!I32 -> 0 | J91: ='SA21'!J32 -> 0 | K91: ='SA21'!K32 -> 0 | L91: ='SA21'!L32 -> 0
A92: Non-cash transfers and grants | C92: ='SA21'!C64 -> 3497209.2 | D92: ='SA21'!D64 -> 2556298.03 | E92: ='SA21'!E64 -> 3219345.65 | F92: ='SA21'!F64 -> 0 | G92: ='SA21'!G64 -> 0 | H92: ='SA21'!H64 -> 0 | I92: ='SA21'!I64 -> 0 | J92: ='SA21'!J64 -> 20000000 | K92: ='SA21'!K64 -> 0 | L92: ='SA21'!L64 -> 0
A93: Total transfers and grants | B93: 1 | C93: =SUM(C91:C92) -> 3497209.2 | D93: =SUM(D91:D92) -> 2556298.03 | E93: 3219345.65 | F93: 0 | G93: 0 | H93: 0 | I93: 0 | J93: 20000000 | K93: 0 | L93: 0
A95: Contracted Services
A96: Outsourced Services | C96: 76270928.64 | D96: 81948382.41 | E96: 101392887.9 | F96: 94765995 | G96: 50827656 | H96: 50827656 | I96: 23430082.42 | J96: 44986732 | K96: 125140799 | L96: 145101326
A97: Consultants and Professional Services | C97: 37226934.24 | D97: 47709363.32 | E97: 35733085.5 | F97: 51293542 | G97: 50833542 | H97: 50833542 | I97: 25975317.78 | J97: 59020484 | K97: 62890774 | L97: 65171965
A98: Contractors | C98: 66719084.18 | D98: 47777885.19 | E98: 63102776.44 | F98: 93271586 | G98: 98152508 | H98: 98152508 | I98: 57152332.59 | J98: 98760855 | K98: 124129313 | L98: 129705631
A127: Total contracted services | C127: =SUM(C96:C98) -> 180216947.1 | D127: =SUM(D96:D98) -> 177435630.9 | E127: 200228749.8 | F127: 239331123 | G127: 199813706 | H127: 199813706 | I127: 106557732.8 | J127: 202768071 | K127: 312160886 | L127: 339978922
A129: Operational Costs
A130: Collection costs | C130: 0 | D130: 0 | E130: 0 | F130: 600000 | G130: 400000 | H130: 400000 | I130: 386203.46 | J130: 421200 | K130: 441839 | L130: 462605
A131: Contributions to 'other' provisions
A133: Audit fees | C133: 5215783.6 | D133: 5461472.6 | E133: 7874194.38 | F133: 7854634 | G133: 9354634 | H133: 9354634 | I133: 8421873.95 | J133: 10900000 | K133: 11438907 | L133: 11983036
A136: Other Operational Costs | C136: 143020758.2 | D136: 158084267.9 | E136: 172097181.1 | F136: 175439874 | G136: 200480851 | H136: 200480851 | I136: 184710956.1 | J136: 208726900 | K136: 222018015 | L136: 233033261
A157: Total Operational Costs | B157: 1 | C157: =+C130+C131+C133+C136 -> 148236541.8 | D157: =+D130+D131+D133+D136 -> 163545740.5 | E157: 179971375.5 | F157: 183894508 | G157: 210235485 | H157: 210235485 | I157: 193519033.5 | J157: 220048100 | K157: 233898761 | L157: 245478902
A159: Repairs and Maintenance by Expenditure Item | B159: 8
A160: Employee related costs
A161: Inventory Consumed (Project Maintenance) | C161: 22856396.23 | D161: 26062841.64 | E161: 36805343.89 | F161: 34618060 | G161: 28181250 | H161: 28181250 | I161: 17088795.94 | J161: 26937470 | K161: 33636594 | L161: 35413878
A162: Contracted Services | C162: 76449537.61 | D162: 79237229.84 | E162: 104931183.7 | F162: 86934286 | G162: 54363039 | H162: 54363039 | I162: 20351020.8 | J162: 38926189 | K162: 123046549 | L162: 141115692
A163: Operational Costs | C163: 0 | D163: 0 | E163: 0 | F163: 1500000 | G163: 1400000 | H163: 1400000 | I163: 0 | J163: 2848200 | K163: 2668260 | L163: 2791995
A164: Total Repairs and Maintenance Expenditure | B164: 9 | C164: =SUM(C160:C163) -> 99305933.84 | D164: =SUM(D160:D163) -> 105300071.5 | E164: 141736527.6 | F164: 123052346 | G164: 83944289 | H164: 83944289 | I164: 37439816.74 | J164: 68711859 | K164: 159351403 | L164: 179321565
A166: Inventory Consumed
A167: Inventory Consumed - Water | C167: =-'SA3'!C37 -> 0 | D167: =-'SA3'!D37 -> 0 | E167: =-'SA3'!E37 -> 0 | F167: =-'SA3'!F37 -> -140743200 | G167: =-'SA3'!G37 -> -146617831 | H167: =-'SA3'!H37 -> -146617831 | I167: =-'SA3'!I37 -> 0 | J167: =-'SA3'!J37 -> -146617831 | K167: =-'SA3'!K37 -> -153802105 | L167: =-'SA3'!L37 -> -161030804
A168: Inventory Consumed - Other | C168: =-'SA3'!C66-'SA3'!C75-'SA3'!C82-'SA3'!C90-'SA3'!C98 -> 25650773 | D168: =-'SA3'!D66-'SA3'!D75-'SA3'!D82-'SA3'!D90-'SA3'!D98 -> 24307534 | E168: =-'SA3'!E66-'SA3'!E75-'SA3'!E82-'SA3'!E90-'SA3'!E98 -> 22905628 | F168: =-'SA3'!F66-'SA3'!F75-'SA3'!F82-'SA3'!F90-'SA3'!F98 -> 331818426 | G168: =-'SA3'!G66-'SA3'!G75-'SA3'!G82-'SA3'!G90-'SA3'!G98 -> 313611415 | H168: =-'SA3'!H66-'SA3'!H75-'SA3'!H82-'SA3'!H90-'SA3'!H98 -> 313611415 | I168: =-'SA3'!I66-'SA3'!I75-'SA3'!I82-'SA3'!I90-'SA3'!I98 -> 19899054.13 | J168: =-'SA3'!J66-'SA3'!J75-'SA3'!J82-'SA3'!J90-'SA3'!J98 -> 331684564 | K168: =-'SA3'!K66-'SA3'!K75-'SA3'!K82-'SA3'!K90-'SA3'!K98 -> 378519608 | L168: =-'SA3'!L66-'SA3'!L75-'SA3'!L82-'SA3'!L90-'SA3'!L98 -> 430114968
A169: Total Inventory Consumed & Other Material | C169: =SUM(C167:C168) -> 25650773 | D169: 24307534 | E169: 22905628 | F169: 191075226 | G169: 166993584 | H169: 166993584 | I169: 19899054.13 | J169: 185066733 | K169: 224717503 | L169: 269084164
A171: check | C171: =C164-SA34c!C175 -> 0 | D171: =D164-SA34c!D175 -> 0 | E171: =E164-SA34c!E175 -> 0 | F171: =F164-SA34c!F175 -> 0 | G171: =G164-SA34c!G175 -> 0 | H171: =H164-SA34c!H175 -> 0 | J171: =J164-SA34c!I175 -> 0 | K171: =K164-SA34c!J175 -> 0 | L171: =L164-SA34c!K175 -> 0
A172: =head27a -> References
A173: 1. Must reconcile with 'Budgeted Financial Performance (Revenue and Expenditure)
A174: 2. Must reconcile to supporting documentation on staff salaries
A176: 4. Expenditure to meet any 'unfunded obligations'
A177: 5 This sub-total must agree with the total on SA22, but excluding councillor and board member items
A178: 6. Include a note for each revenue item that is affected by 'revenue foregone'
A180: 8. Repairs and Maintenance is not a GRAP item. However to facilitate transparency, municipalities must provide a breakdown of the amounts included in the relevant GRAP items that will be spent on Repairs and Maintenance.
A181: 9. Must reconcile with Repairs and Maintenance by Asset Class (Total Repairs and Maintenance) on Table SA34c.

Sheet SA2
A1: =muni&" - "&TableA2 -> DC47 Sekhukhune - Supporting Table SA2 Matrix Financial Performance Budget (revenue source/expenditure type and dept.)
A2: =desc -> Description | B2: =head27 -> Ref | C2: ='A3-FinPerf V'!A5 -> Vote 01 - Speakers Office | D2: ='A3-FinPerf V'!A6 -> Vote 02 - Executive Mayor's Office | E2: ='A3-FinPerf V'!A7 -> Vote 03 - Municipal Manager Office | F2: ='A3-FinPerf V'!A8 -> Vote 04 - Budget And Treasury | G2: ='A3-FinPerf V'!A9 -> Vote 05 - Infrustracture And Water Services | H2: ='A3-FinPerf V'!A10 -> Vote 06 - Planning And Economic Development | I2: ='A3-FinPerf V'!A11 -> Vote 07 - Community Services | J2: ='A3-FinPerf V'!A12 -> Vote 08 - Sekhukhune Development Angancy | K2: ='A3-FinPerf V'!A13 -> Vote 09 - Corporate Services | L2: ='A3-FinPerf V'!A14 -> Vote 10 - | M2: ='A3-FinPerf V'!A15 -> Vote 11 - | N2: ='A3-FinPerf V'!A16 -> Vote 12 - | O2: ='A3-FinPerf V'!A17 -> Vote 13 - | P2: ='A3-FinPerf V'!A18 -> Vote 14 - | Q2: ='A3-FinPerf V'!A19 -> Vote 15 - Other | R2: Total
A3: R thousand | B3: 1 | R3: R'000
A4: Revenue
A5: Exchange Revenue
A6: Service charges - Electricity | F6: 0 | G6: 0 | R6: =SUM(C6:Q6) -> 0
A7: Service charges - Water | F7: 93541801 | G7: 0 | R7: 93541801
A8: Service charges - Waste Water Management | F8: 15517425 | G8: 0 | R8: 15517425
A9: Service charges - Waste Management | R9: 0
A10: Sale of Goods and Rendering of Services | E10: 0 | F10: 2249415 | I10: 0 | R10: 2249415
A11: Agency services | R11: 0
A12: Interest | R12: 0
A13: Interest earned from Receivables | F13: 16027930 | G13: 0 | R13: 16027930
A14: Interest earned from Current and Non Current Assets | F14: 26991908 | R14: 26991908
A15: Dividends | F15: 0 | R15: 0
A16: Rent on Land | R16: 0
A17: Rental from Fixed Assets | R17: 0
A18: Licence and permits | R18: 0
A19: Operational Revenue | E19: 0 | F19: 37241 | G19: 0 | K19: 0 | R19: 37241
A20: Non-Exchange Revenue
A21: Property rates | R21: =SUM(C21:Q21) -> 0
A22: Surcharges and Taxes | F22: 3421 | G22: 0 | R22: 3421
A23: Fines, penalties and forfeits | F23: 52789 | G23: 0 | R23: 52789
A24: Licences or permits | R24: 0
A25: Transfer and subsidies - Operational | C25: 0 | D25: 0 | E25: 0 | F25: 1118176990 | G25: 0 | H25: 0 | I25: 0 | J25: 0 | K25: 0 | R25: 1118176990
A26: Interest | R26: 0
A27: Fuel Levy | R27: 0
A28: Operational Revenue | R28: 0
A29: Gains on disposal of Assets | C29: 0 | D29: 0 | F29: 452812 | G29: 0 | I29: 0 | J29: 0 | K29: 0 | R29: 452812
A30: Other Gains | F30: 0 | R30: 0
A31: Discontinued Operations | R31: 0
A32: Total Revenue (excluding capital transfers and contributions) | C32: =SUM(C6:C19)+SUM(C21:C31) -> 0 | D32: =SUM(D6:D19)+SUM(D21:D31) -> 0 | E32: 0 | F32: 1273051732 | G32: 0 | H32: 0 | I32: 0 | J32: 0 | K32: 0 | L32: 0 | M32: 0 | N32: 0 | O32: 0 | P32: 0 | Q32: 0 | R32: 1273051732
A33: Expenditure
A34: Employee related costs | C34: 19810196 | D34: 33552286 | E34: 18230578 | F34: 51249599 | G34: 222523765 | H34: 12712152 | I34: 72383370 | J34: 3504445 | K34: 44562879 | R34: =SUM(C34:Q34) -> 478529270
A35: Remuneration of councillors | C35: 19082579 | D35: 0 | R35: 19082579
A36: Bulk purchases - electricity | Q36: 0 | R36: 0
A37: Inventory consumed | F37: 331684564 | G37: -146617831 | R37: 185066733
A38: Debt impairment | F38: 0 | I38: 0 | R38: 0
A39: Depreciation and amortisation | C39: 0 | D39: 0 | F39: 99629451 | G39: 0 | I39: 0 | J39: 210600 | K39: 0 | R39: 99840051
A40: Interest | F40: 105300 | R40: 105300
A41: Contracted services | C41: 3523000 | D41: 6200000 | E41: 54140392 | F41: 31017727 | G41: 60443332 | H41: 8404800 | I41: 3010170 | J41: 3500000 | K41: 32528650 | R41: 202768071
A42: Transfers and subsidies | C42: 0 | D42: 0 | G42: 20000000 | J42: 0 | R42: 20000000
A43: Irrecoverable debts written off | F43: 5306699 | G43: 0 | R43: 5306699
A44: Operational costs | C44: 9976237 | D44: 6316120 | E44: 25672736 | F44: 3794140 | G44: 56190586 | H44: 810000 | I44: 1353188 | J44: 1989890 | K44: 113945203 | R44: 220048100
A45: Losses on disposal of Assets | C45: 0 | D45: 0 | F45: 0 | G45: 0 | I45: 0 | J45: 0 | K45: 0 | R45: 0
A46: Other Losses | F46: 0 | G46: 0 | R46: 0
A47: Total Expenditure | C47: =SUM(C34:C46) -> 52392012 | D47: =SUM(D34:D46) -> 46068406 | E47: 98043706 | F47: 522787480 | G47: 212539852 | H47: 21926952 | I47: 76746728 | J47: 9204935 | K47: 191036732 | L47: 0 | M47: 0 | N47: 0 | O47: 0 | P47: 0 | Q47: 0 | R47: 1230746803
A48: Surplus/(Deficit) | C48: =+C32-C47 -> -52392012 | D48: =+D32-D47 -> -46068406 | E48: -98043706 | F48: 750264252 | G48: -212539852 | H48: -21926952 | I48: -76746728 | J48: -9204935 | K48: -191036732 | L48: 0 | M48: 0 | N48: 0 | O48: 0 | P48: 0 | Q48: 0 | R48: 42304929
A49: Transfers and subsidies - capital (monetary allocations) | F49: 0 | G49: 0 | R49: =SUM(C49:Q49) -> 0
A50: Transfers and subsidies - capital (in-kind) | F50: 0 | R50: =SUM(C50:Q50) -> 0
A51: Surplus/(Deficit) after capital transfers & contributions | C51: =SUM(C48:C50) -> -52392012 | D51: =SUM(D48:D50) -> -46068406 | E51: -98043706 | F51: 750264252 | G51: -212539852 | H51: -21926952 | I51: -76746728 | J51: -9204935 | K51: -191036732 | L51: 0 | M51: 0 | N51: 0 | O51: 0 | P51: 0 | Q51: 0 | R51: 42304929
A52: =head27a -> References
A53: 1. Departmental columns to be based on municipal organisation structure
R54: ='A4-FinPerf RE'!J51-'SA2'!#REF! -> 

Sheet SA3
A1: =muni&" - "&TableA3 -> DC47 Sekhukhune - Supporting Table SA3 Supportinging detail to 'Budgeted Financial Position'
A2: =desc -> Description | B2: =head27 -> Ref | C2: =head1b -> 2019/20 | D2: =head1A -> 2020/21 | E2: =Head1 -> 2021/22 | F2: =Head2 -> Current Year 2022/23 | J2: =Head3 -> 2023/24 Medium Term Revenue & Expenditure Framework
C3: =Head5 -> Audited Outcome | D3: =Head5 -> Audited Outcome | E3: =Head5 -> Audited Outcome | F3: =Head6 -> Original Budget | G3: =Head7 -> Adjusted Budget | H3: =Head8 -> Full Year Forecast | I3: =Head5b -> Pre-audit outcome | J3: =Head9 -> Budget Year 2023/24 | K3: =Head10 -> Budget Year +1 2024/25 | L3: =Head11 -> Budget Year +2 2025/26
A4: R thousand
A5: ASSETS
A6: Trade and other receivables from exchange transactions
A7: Electricity
A8: Water | C8: 226947744 | D8: 270490793.4 | E8: 329328983 | F8: 182359695 | G8: 182359695 | H8: 182359695 | I8: 384288155.8 | J8: 468104105 | K8: 494428390 | L8: 395605466
A9: Waste
A10: Waste Water | C10: 18073954.61 | D10: 19811196.79 | E10: 23292933.56 | F10: 10802085 | G10: 10802085 | H10: 10802085 | I10: 27936260.16 | J10: 81142946 | K10: 73383376 | L10: 145307152
A11: Other trade receivables from exchange transactions | C11: 2401263.54 | D11: 6466632.26 | E11: 7110197.78 | F11: 27158069 | G11: 27158069 | H11: 27158069 | I11: 7453111.47 | J11: 121245021 | K11: 101988814 | L11: 105697331
A12: Gross: Trade and other receivables from exchange transactions | C12: =SUM(C7:C11) -> 247422962.1 | D12: =SUM(D7:D11) -> 296768622.5 | E12: 359732114.3 | F12: 220319849 | G12: 220319849 | H12: 220319849 | I12: 419677527.4 | J12: 670492072 | K12: 669800580 | L12: 646609949
A13: Less: Impairment for debt | C13: =SUM(C14:C18) -> -122646928.3 | D13: =SUM(D14:D18) -> -121108673.5 | E13: -306748246.6 | F13: -126096809 | G13: -126096809 | H13: -126096809 | I13: -306748246.6 | J13: -126096809 | K13: -132275552 | L13: -138492503
A14: Impairment for Electricity | C14: 0 | D14: 0 | E14: 0 | F14: 0 | G14: 0 | H14: 0 | I14: 0 | J14: 0 | K14: 0 | L14: 0
A15: Impairment for Water | C15: -122646928.3 | D15: -113156940.7 | E15: -298796513.9 | F15: -101016187 | G15: -101016187 | H15: -101016187 | I15: -298796513.9 | J15: -101016187 | K15: -105965980 | L15: -110946381
A16: Impairment for Waste
A17: Impairment for Waste Water | C17: 0 | D17: -7951732.72 | E17: -7951732.72 | F17: 0 | G17: 0 | H17: 0 | I17: -7951732.72 | J17: 0 | K17: 0 | L17: 0
A18: Impairment for other trade receivalbes from exchange transactions | C18: 0 | D18: 0 | E18: 0 | F18: -25080622 | G18: -25080622 | H18: -25080622 | I18: 0 | J18: -25080622 | K18: -26309572 | L18: -27546122
A19: Total net Trade and other receivables from Exchange Transactions | C19: =+C12+C13 -> 124776033.8 | D19: =+D12+D13 -> 175659949 | E19: 52983867.68 | F19: 94223040 | G19: 94223040 | H19: 94223040 | I19: 112929280.8 | J19: 544395263 | K19: 537525028 | L19: 508117446
A21: Receivables from non-exchange transactions
A22: Property rates
A23: Less: Impairment of Property rates
A24: Net Property rates | C24: =+C22+C23 -> 0 | D24: =+D22+D23 -> 0 | E24: 0 | F24: 0 | G24: 0 | H24: 0 | I24: 0 | J24: 0 | K24: 0 | L24: 0
A25: Other receivables from non-exchange transactions | C25: 0 | D25: 0 | E25: 0 | F25: 0 | G25: 0 | H25: 0 | I25: 0 | J25: 0 | K25: 0 | L25: 0
A26: Impairment for other receivalbes from non-exchange transactions | C26: 0 | D26: 0 | E26: 0 | F26: 0 | G26: 0 | H26: 0 | I26: 0 | J26: 0 | K26: 0 | L26: 0
A27: Net other receivables from non-exchange transactions | C27: =+C25+C26 -> 0 | D27: =+D25+D26 -> 0 | E27: 0 | F27: 0 | G27: 0 | H27: 0 | I27: 0 | J27: 0 | K27: 0 | L27: 0
A28: Total net Receivables from non-exchange transactions | C28: =+C24+C27 -> 0 | D28: =+D24+D27 -> 0 | E28: 0 | F28: 0 | G28: 0 | H28: 0 | I28: 0 | J28: 0 | K28: 0 | L28: 0
A30: Inventory
A31: Water
A32: Opening Balance | C32: 0 | D32: =C61 -> 0 | E32: =D61 -> 0 | F32: =E61 -> 26162294 | G32: =E61 -> 26162294 | H32: =E61 -> 26162294 | I32: =E61 -> 26162294 | J32: =G61 -> 327597645 | K32: =J61 -> 629032996 | L32: =K61 -> 945238680
A33: System Input Volume | C33: =(SUM(C34:C36)) -> 0 | D33: =(SUM(D34:D36)) -> 0 | E33: 26162294 | F33: 140743200 | G33: 140743200 | H33: 140743200 | I33: 9401609.79 | J33: 140743200 | K33: 147639617 | L33: 154578679
A34: Water Treatment Works | F34: 40743200 | G34: 40743200 | H34: 40743200 | I34: 0 | J34: 40743200 | K34: 42739617 | L34: 44748379
A35: Bulk Purchases | E35: 26162294 | F35: 100000000 | G35: 100000000 | H35: 100000000 | I35: 9401609.79 | J35: 100000000 | K35: 104900000 | L35: 109830300
A36: Natural Sources | F36: 0 | G36: 0 | H36: 0 | I36: 0 | J36: 0 | K36: 0 | L36: 0
A37: Authorised Consumption | B37: 6 | C37: =C38+C47 -> 0 | D37: =D38+D47 -> 0 | E37: 0 | F37: 140743200 | G37: 146617831 | H37: 146617831 | I37: 0 | J37: 146617831 | K37: 153802105 | L37: 161030804
A38: Billed Authorised Consumption | C38: =C43+C39 -> 0 | D38: =D43+D39 -> 0 | E38: 0 | F38: 110743200 | G38: 116617831 | H38: 116617831 | I38: 0 | J38: 116617831 | K38: 122332105 | L38: 128081714
A39: Billed Metered Consumption | C39: =SUM(C40:C42) -> 0 | D39: =SUM(D40:D42) -> 0 | E39: 0 | F39: 110743200 | G39: 116617831 | H39: 116617831 | I39: 0 | J39: 116617831 | K39: 122332105 | L39: 128081714
A40: Free Basic Water | F40: 40000000 | G40: 40000000 | H40: 40000000 | I40: 0 | J40: 40000000 | K40: 41960000 | L40: 43932120
A41: Subsidised Water | F41: 0 | G41: 0 | H41: 0 | I41: 0 | J41: 0 | K41: 0 | L41: 0
A42: Revenue Water | F42: 70743200 | G42: 76617831 | H42: 76617831 | I42: 0 | J42: 76617831 | K42: 80372105 | L42: 84149594
A43: Billed Unmetered Consumption | C43: =SUM(C44:C46) -> 0 | D43: =SUM(D44:D46) -> 0 | E43: 0 | F43: 0 | G43: 0 | H43: 0 | I43: 0 | J43: 0 | K43: 0 | L43: 0
A44: Free Basic Water | F44: 0 | G44: 0 | H44: 0 | I44: 0 | J44: 0 | K44: 0 | L44: 0
A45: Subsidised Water | F45: 0 | G45: 0 | H45: 0 | I45: 0 | J45: 0 | K45: 0 | L45: 0
A46: Revenue Water | F46: 0 | G46: 0 | H46: 0 | I46: 0 | J46: 0 | K46: 0 | L46: 0
A47: UnBilled Authorised Consumption | C47: =SUM(C48:C49) -> 0 | D47: =SUM(D48:D49) -> 0 | E47: 0 | F47: 30000000 | G47: 30000000 | H47: 30000000 | I47: 0 | J47: 30000000 | K47: 31470000 | L47: 32949090
A48: Unbilled Metered Consumption | F48: 30000000 | G48: 30000000 | H48: 30000000 | I48: 0 | J48: 30000000 | K48: 31470000 | L48: 32949090
A49: Unbilled Unmetered Consumption | F49: 0 | G49: 0 | H49: 0 | I49: 0 | J49: 0 | K49: 0 | L49: 0
A50: Water Losses | C50: =C51+C54 -> 0 | D50: =D51+D54 -> 0 | E50: 0 | F50: 14074320 | G50: 14074320 | H50: 14074320 | I50: 0 | J50: 14074320 | K50: 14763962 | L50: 15457868
A51: Apparent losses | C51: =SUM(C52:C53) -> 0 | D51: =SUM(D52:D53) -> 0 | E51: 0 | F51: 0 | G51: 0 | H51: 0 | I51: 0 | J51: 0 | K51: 0 | L51: 0
A52: Unauthorised Consumption | F52: 0 | G52: 0 | H52: 0 | I52: 0 | J52: 0 | K52: 0 | L52: 0
A53: Customer Meter Inaccuracies | F53: 0 | G53: 0 | H53: 0 | I53: 0 | J53: 0 | K53: 0 | L53: 0
A54: Real losses | C54: =SUM(C55:C59) -> 0 | D54: =SUM(D55:D59) -> 0 | E54: 0 | F54: 14074320 | G54: 14074320 | H54: 14074320 | I54: 0 | J54: 14074320 | K54: 14763962 | L54: 15457868
A55: Leakage on Transmission and Distribution Mains | F55: 14074320 | G55: 14074320 | H55: 14074320 | I55: 0 | J55: 14074320 | K55: 14763962 | L55: 15457868
A56: Leakage and Overflows at Storage Tanks/Reservoirs | F56: 0 | G56: 0 | H56: 0 | I56: 0 | J56: 0 | K56: 0 | L56: 0
A57: Leakage on Service Connections up to the point of Customer Meter | F57: 0 | G57: 0 | H57: 0 | I57: 0 | J57: 0 | K57: 0 | L57: 0
A58: Data Transfer and Management Errors | F58: 0 | G58: 0 | H58: 0 | I58: 0 | J58: 0 | K58: 0 | L58: 0
A59: Unavoidable Annual Real Losses | F59: 0 | G59: 0 | H59: 0 | I59: 0 | J59: 0 | K59: 0 | L59: 0
A60: Non-revenue Water | C60: =C47+C50 -> 0 | D60: =D47+D50 -> 0 | E60: 0 | F60: 44074320 | G60: 44074320 | H60: 44074320 | I60: 0 | J60: 44074320 | K60: 46233962 | L60: 48406958
A61: Closing Balance Water | C61: =C32+C33+C37+C50 -> 0 | D61: =D32+D33+D37+D50 -> 0 | E61: 26162294 | F61: 321723014 | G61: 327597645 | H61: 327597645 | I61: 35563903.79 | J61: 629032996 | K61: 945238680 | L61: 1276306031
A63: Agricultural
A64: Opening Balance | D64: =C69 -> 0 | E64: =D69 -> 0 | F64: =E69 -> 0 | G64: =E69 -> 0 | H64: =E69 -> 0 | I64: =E69 -> 0 | J64: =G69 -> 0 | K64: =J69 -> 0 | L64: =K69 -> 0
A65: Acquisitions
A66: Issues | B66: 7
A67: Adjustments | B67: 8
A68: Write-offs | B68: 9
A69: Closing balance - Agricultural | C69: =SUM(C64:C68) -> 0 | D69: 0 | E69: 0 | F69: 0 | G69: 0 | H69: 0 | I69: 0 | J69: 0 | K69: 0 | L69: 0
A71: Consumables
A72: Standard Rated
A73: Opening Balance | C73: 22075135 | D73: =C78 -> 31702467 | E73: =D78 -> 31383574 | F73: =E78 -> 32019575 | G73: =E78 -> 32019575 | H73: =E78 -> 32019575 | I73: =E78 -> 32019575 | J73: =G78 -> -184313714 | K73: =J78 -> -416602334 | L73: =K78 -> -871680647
A74: Acquisitions | C74: 35278105 | D74: 23988641 | E74: 23541629 | F74: 97278126 | G74: 97278126 | H74: 97278126 | I74: 20094732.93 | J74: 119563412 | K74: 6107384 | L74: 166898237
A75: Issues | B75: 7 | C75: -25650773 | D75: -24307534 | E75: -22905628 | F75: -331818426 | G75: -313611415 | H75: -313611415 | I75: -19899054.13 | J75: -331684564 | K75: -378519608 | L75: -430114968
A76: Adjustments | B76: 8 | F76: 0 | G76: 0 | H76: 0 | I76: -0.08 | J76: -20167468 | K76: -82666089 | L76: -103040799
A77: Write-offs | B77: 9 | F77: 0 | G77: 0 | H77: 0 | I77: 0 | J77: 0 | K77: 0 | L77: 0
A78: Closing balance - Consumables Standard Rated | C78: =SUM(C73:C77) -> 31702467 | D78: =SUM(D73:D77) -> 31383574 | E78: 32019575 | F78: -202520725 | G78: -184313714 | H78: -184313714 | I78: 32215253.72 | J78: -416602334 | K78: -871680647 | L78: -1237938177
A79: Zero Rated
A80: Opening Balance | C80: 0 | D80: =C85 -> 0 | E80: =D85 -> 0 | F80: =E85 -> 0 | G80: =E85 -> 0 | H80: =E85 -> 0 | I80: =E85 -> 0 | J80: =G85 -> 0 | K80: =J85 -> 0 | L80: =K85 -> 0
A81: Acquisitions | F81: 0 | G81: 0 | H81: 0 | I81: 0 | J81: 0 | K81: 0 | L81: 0
A82: Issues | B82: 7 | F82: 0 | G82: 0 | H82: 0 | I82: 0 | J82: 0 | K82: 0 | L82: 0
A83: Adjustments | B83: 8 | F83: 0 | G83: 0 | H83: 0 | I83: 0 | J83: 0 | K83: 0 | L83: 0
A84: Write-offs | B84: 9 | F84: 0 | G84: 0 | H84: 0 | I84: 0 | J84: 0 | K84: 0 | L84: 0
A85: Closing balance - Consumables Zero Rated | C85: =SUM(C80:C84) -> 0 | D85: =SUM(D80:D84) -> 0 | E85: 0 | F85: 0 | G85: 0 | H85: 0 | I85: 0 | J85: 0 | K85: 0 | L85: 0
A87: Finished Goods
A88: Opening Balance | D88: =C93 -> 0 | E88: =D93 -> 0 | F88: =E93 -> 0 | G88: =E93 -> 0 | H88: =E93 -> 0 | I88: =E93 -> 0 | J88: =G93 -> 0 | K88: =J93 -> 0 | L88: =K93 -> 0
A89: Acquisitions
A90: Issues | B90: 7
A91: Adjustments | B91: 8
A92: Write-offs | B92: 9
A93: Closing balance - Finished Goods | C93: =SUM(C88:C92) -> 0 | D93: =SUM(D88:D92) -> 0 | E93: 0 | F93: 0 | G93: 0 | H93: 0 | I93: 0 | J93: 0 | K93: 0 | L93: 0
A95: Materials and Supplies
A96: Opening Balance | D96: =C101 -> 0 | E96: =D101 -> 0 | F96: =E101 -> 0 | G96: =E101 -> 0 | H96: =E101 -> 0 | I96: =E101 -> 0 | J96: =G101 -> 0 | K96: =J101 -> 0 | L96: =K101 -> 0
A97: Acquisitions
A98: Issues | B98: 7
A99: Adjustments | B99: 8
A100: Write-offs | B100: 9
A101: Closing balance - Materials and Supplies | C101: =SUM(C96:C100) -> 0 | D101: =SUM(D96:D100) -> 0 | E101: 0 | F101: 0 | G101: 0 | H101: 0 | I101: 0 | J101: 0 | K101: 0 | L101: 0
A103: Work-in-progress
A104: Opening Balance | D104: =C107 -> 0 | E104: =D107 -> 0 | F104: =E107 -> 0 | G104: =E107 -> 0 | H104: =E107 -> 0 | I104: =E107 -> 0 | J104: =G107 -> 0 | K104: =J107 -> 0 | L104: =K107 -> 0
A105: Materials
A106: Transfers
A107: Closing balance - Work-in-progress | C107: =SUM(C104:C106) -> 0 | D107: =SUM(D104:D106) -> 0 | E107: 0 | F107: 0 | G107: 0 | H107: 0 | I107: 0 | J107: 0 | K107: 0 | L107: 0
A109: Housing Stock
A110: Opening Balance | D110: =C114 -> 0 | E110: =D114 -> 0 | F110: =E114 -> 0 | G110: =E114 -> 0 | H110: =E114 -> 0 | I110: =E114 -> 0 | J110: =G114 -> 0 | K110: =J114 -> 0 | L110: =K114 -> 0
A111: Acquisitions
A112: Transfers
A113: Sales
A114: Closing Balance - Housing Stock | C114: =+SUM(C110:C113) -> 0 | D114: =+SUM(D110:D113) -> 0 | E114: 0 | F114: 0 | G114: 0 | H114: 0 | I114: 0 | J114: 0 | K114: 0 | L114: 0
A116: Land
A117: Opening Balance | D117: =C122 -> 0 | E117: =D122 -> 0 | F117: =E122 -> 0 | G117: =E122 -> 0 | H117: =E122 -> 0 | I117: =E122 -> 0 | J117: =G122 -> 0 | K117: =J122 -> 0 | L117: =K122 -> 0
A118: Acquisitions
A119: Sales
A120: Adjustments
A121: Correction of Prior period errors
A122: Closing Balance - Land | C122: =SUM(C117:C121) -> 0 | D122: =SUM(D117:D121) -> 0 | E122: 0 | F122: 0 | G122: 0 | H122: 0 | I122: 0 | J122: 0 | K122: 0 | L122: 0
A123: Closing Balance - Inventory & Consumables | C123: =C61+C69+C78+C85+C93+C101+C107+C114+C122 -> 31702467 | D123: =D61+D69+D78+D85+D93+D101+D107+D114+D122 -> 31383574 | E123: 58181869 | F123: 119202289 | G123: 143283931 | H123: 143283931 | I123: 67779157.51 | J123: 212430662 | K123: 73558033 | L123: 38367854
A125: Property, plant and equipment (PPE)
A126: PPE at cost/valuation (excl. finance leases) | C126: 4456493118 | D126: 4892115668 | E126: 5706021066 | F126: 4495410979 | G126: 4617283022 | H126: 4617283022 | I126: 5885664679 | J126: 4598447863 | K126: 4780926940 | L126: 4994313319
A127: Leases recognised as PPE | B127: 3 | C127: 0 | D127: 0 | E127: 0 | F127: 0 | G127: 0 | H127: 0 | I127: 0 | J127: 0 | K127: 0 | L127: 0
A128: Less: Accumulated depreciation | C128: 785436866.3 | D128: 891526891.1 | E128: 1078590839 | F128: 722884393 | G128: 722454372 | H128: 722454372 | I128: 1078590839 | J128: 722884393 | K128: 758305728 | L128: 793473805
A129: Total Property, plant and equipment (PPE) | B129: 2 | C129: =SUM(C126:C127)-C128 -> 3671056252 | D129: =SUM(D126:D127)-D128 -> 4000588777 | E129: 4627430228 | F129: 3772526586 | G129: 3894828650 | H129: 3894828650 | I129: 4807073840 | J129: 3875563470 | K129: 4022621212 | L129: 4200839514
A131: LIABILITIES
A132: Current liabilities - Financial liabilities
A133: Short term loans (other than bank overdraft)
A134: Current portion of long-term liabilities | C134: 0 | D134: 0 | E134: 0 | F134: 0 | G134: 0 | H134: 0 | I134: 0 | J134: 0 | K134: 0 | L134: 0
A135: Total Current liabilities - Financial liabilities | C135: =SUM(C133:C134) -> 0 | D135: =SUM(D133:D134) -> 0 | E135: 0 | F135: 0 | G135: 0 | H135: 0 | I135: 0 | J135: 0 | K135: 0 | L135: 0
A137: Trade and other payables from exchange transactions
A138: Trade and other payables from exchange transactions | B138: 5 | C138: 391847332.7 | D138: 463247137.7 | E138: 529901321 | F138: 254289515 | G138: 197104891 | H138: 197104891 | I138: 433378253.3 | J138: 155000000 | K138: 138550688 | L138: 139927869
A139: Other trade payables from exchange transactions
